Workbook

Sheet Rates (hidden)
A1: Medicare Home Health- PPS Rates by HH Resource Group: Eff. 1/1/18 - Final
G2: =Main!$C$26 -> 0.5594843 | H2: =Main!$C$27 -> 0.6910976 | I2: =Main!$C$28 -> 0.822711 | J2: =Main!$C$29 -> 0.9543242 | K2: =Main!$C$30 -> 1.085938 | L2: =Main!$C$31 -> 0.6640378 | M2: =Main!$C$32 -> 0.7832493 | N2: =Main!$C$33 -> 0.9024608 | O2: =Main!$C$34 -> 1.021672 | P2: =Main!$C$35 -> 1.140884 | Q2: =Main!$C$36 -> 0.7139324 | R2: =Main!$C$37 -> 0.8302469 | S2: =Main!$C$38 -> 0.9465613 | T2: =Main!$C$39 -> 1.062876 | U2: =Main!$C$40 -> 1.17919 | V2: =Main!$C$41 -> 0.5948038 | W2: =Main!$C$42 -> 0.732536 | X2: =Main!$C$43 -> 0.8702682 | Y2: =Main!$C$44 -> 1.008 | Z2: =Main!$C$45 -> 1.145733 | AA2: =Main!$C$46 -> 0.6993572 | AB2: =Main!$C$47 -> 0.8246877 | AC2: =Main!$C$48 -> 0.950018 | AD2: =Main!$C$49 -> 1.075348 | AE2: =Main!$C$50 -> 1.200679 | AF2: =Main!$C$51 -> 0.7492518 | AG2: =Main!$C$52 -> 0.8716852 | AH2: =Main!$C$53 -> 0.9941186 | AI2: =Main!$C$54 -> 1.116552 | AJ2: =Main!$C$55 -> 1.238985 | AK2: =Main!$C$56 -> 0.637422 | AL2: =Main!$C$57 -> 0.7901747 | AM2: =Main!$C$58 -> 0.9429273 | AN2: =Main!$C$59 -> 1.09568 | AO2: =Main!$C$60 -> 1.248433 | AP2: =Main!$C$61 -> 0.7419754 | AQ2: =Main!$C$62 -> 0.8823262 | AR2: =Main!$C$63 -> 1.022677 | AS2: =Main!$C$64 -> 1.163028 | AT2: =Main!$C$65 -> 1.303379 | AU2: =Main!$C$66 -> 0.7918699 | AV2: =Main!$C$67 -> 0.9293239 | AW2: =Main!$C$68 -> 1.066778 | AX2: =Main!$C$69 -> 1.204232 | AY2: =Main!$C$70 -> 1.341685 | AZ2: =Main!$C$71 -> 1.217551 | BA2: =Main!$C$72 -> 1.380701 | BB2: =Main!$C$73 -> 1.543851 | BC2: =Main!$C$74 -> 1.260095 | BD2: =Main!$C$75 -> 1.421333 | BE2: =Main!$C$76 -> 1.582571 | BF2: =Main!$C$77 -> 1.295505 | BG2: =Main!$C$78 -> 1.459951 | BH2: =Main!$C$79 -> 1.624398 | BI2: =Main!$C$80 -> 1.283465 | BJ2: =Main!$C$81 -> 1.45977 | BK2: =Main!$C$82 -> 1.636074 | BL2: =Main!$C$83 -> 1.326009 | BM2: =Main!$C$84 -> 1.500402 | BN2: =Main!$C$85 -> 1.674794 | BO2: =Main!$C$86 -> 1.361419 | BP2: =Main!$C$87 -> 1.53902 | BQ2: =Main!$C$88 -> 1.716621 | BR2: =Main!$C$89 -> 1.401185 | BS2: =Main!$C$90 -> 1.618803 | BT2: =Main!$C$91 -> 1.836421 | BU2: =Main!$C$92 -> 1.44373 | BV2: =Main!$C$93 -> 1.659435 | BW2: =Main!$C$94 -> 1.875141 | BX2: =Main!$C$95 -> 1.479139 | BY2: =Main!$C$96 -> 1.698054 | BZ2: =Main!$C$97 -> 1.916968 | CA2: =Main!$C$98 -> 1.232843 | CB2: =Main!$C$99 -> 1.390896 | CC2: =Main!$C$100 -> 1.548948 | CD2: =Main!$C$101 -> 1.261917 | CE2: =Main!$C$102 -> 1.422547 | CF2: =Main!$C$103 -> 1.583178 | CG2: =Main!$C$104 -> 1.308805 | CH2: =Main!$C$105 -> 1.468818 | CI2: =Main!$C$106 -> 1.628831 | CJ2: =Main!$C$107 -> 1.286003 | CK2: =Main!$C$108 -> 1.461462 | CL2: =Main!$C$109 -> 1.63692 | CM2: =Main!$C$110 -> 1.315077 | CN2: =Main!$C$111 -> 1.493113 | CO2: =Main!$C$112 -> 1.67115 | CP2: =Main!$C$113 -> 1.361965 | CQ2: =Main!$C$114 -> 1.539384 | CR2: =Main!$C$115 -> 1.716803 | CS2: =Main!$C$116 -> 1.49506 | CT2: =Main!$C$117 -> 1.681387 | CU2: =Main!$C$118 -> 1.867713 | CV2: =Main!$C$119 -> 1.524134 | CW2: =Main!$C$120 -> 1.713038 | CX2: =Main!$C$121 -> 1.901943 | CY2: =Main!$C$122 -> 1.571022 | CZ2: =Main!$C$123 -> 1.759309 | DA2: =Main!$C$124 -> 1.947596 | DB2: =Main!$C$125 -> 0.4557115 | DC2: =Main!$C$126 -> 0.6111379 | DD2: =Main!$C$127 -> 0.7665643 | DE2: =Main!$C$128 -> 0.9219907 | DF2: =Main!$C$129 -> 1.077417 | DG2: =Main!$C$130 -> 0.5407126 | DH2: =Main!$C$131 -> 0.6849535 | DI2: =Main!$C$132 -> 0.8291942 | DJ2: =Main!$C$133 -> 0.9734352 | DK2: =Main!$C$134 -> 1.117676 | DL2: =Main!$C$135 -> 0.5856175 | DM2: =Main!$C$136 -> 0.7302551 | DN2: =Main!$C$137 -> 0.8748926 | DO2: =Main!$C$138 -> 1.01953 | DP2: =Main!$C$139 -> 1.164168 | DQ2: =Main!$C$140 -> 0.4802411 | DR2: =Main!$C$141 -> 0.6413935 | DS2: =Main!$C$142 -> 0.8025459 | DT2: =Main!$C$143 -> 0.9636983 | DU2: =Main!$C$144 -> 1.124851 | DV2: =Main!$C$145 -> 0.5652421 | DW2: =Main!$C$146 -> 0.7152089 | DX2: =Main!$C$147 -> 0.8651758 | DY2: =Main!$C$148 -> 1.015143 | DZ2: =Main!$C$149 -> 1.16511 | EA2: =Main!$C$150 -> 0.6101471 | EB2: =Main!$C$151 -> 0.7605106 | EC2: =Main!$C$152 -> 0.9108742 | ED2: =Main!$C$153 -> 1.061238 | EE2: =Main!$C$154 -> 1.211601 | EF2: =Main!$C$155 -> 0.5935631 | EG2: =Main!$C$156 -> 0.7738625 | EH2: =Main!$C$157 -> 0.954162 | EI2: =Main!$C$158 -> 1.134461 | EJ2: =Main!$C$159 -> 1.314761 | EK2: =Main!$C$160 -> 0.6785641 | EL2: =Main!$C$161 -> 0.847678 | EM2: =Main!$C$162 -> 1.016792 | EN2: =Main!$C$163 -> 1.185906 | EO2: =Main!$C$164 -> 1.35502 | EP2: =Main!$C$165 -> 0.7234691 | EQ2: =Main!$C$166 -> 0.8929797 | ER2: =Main!$C$167 -> 1.06249 | ES2: =Main!$C$168 -> 1.232001 | ET2: =Main!$C$169 -> 1.401512 | EU2: =Main!$C$170 -> 1.707 | EV2: =Main!$C$171 -> 1.743808 | EW2: =Main!$C$172 -> 1.788844 | EX2: =Main!$C$173 -> 1.812379 | EY2: =Main!$C$174 -> 1.849187 | EZ2: =Main!$C$175 -> 1.894222 | FA2: =Main!$C$176 -> 2.054039 | FB2: =Main!$C$177 -> 2.090847 | FC2: =Main!$C$178 -> 2.135883 | FD2: =Main!C6 -> 143.4 | FE2: =Main!C7 -> 156.76 | FF2: =Main!C8 -> 157.83 | FG2: =Main!C9 -> 170.38 | FH2: =Main!C10 -> 229.86 | FI2: =Main!C11 -> 64.94
G3: 1st & 2nd Episodes, 0-13 Therapy Visits | S3: =G3 -> 1st & 2nd Episodes, 0-13 Therapy Visits | AE3: =S3 -> 1st & 2nd Episodes, 0-13 Therapy Visits | AQ3: =AE3 -> 1st & 2nd Episodes, 0-13 Therapy Visits | AZ3: 1st & 2nd Episodes, 14-19 Therapy Visits | BL3: =AZ3 -> 1st & 2nd Episodes, 14-19 Therapy Visits | BX3: =BL3 -> 1st & 2nd Episodes, 14-19 Therapy Visits | CA3: 3rd + Episodes, 14-19 Therapy Visits | CO3: =CA3 -> 3rd + Episodes, 14-19 Therapy Visits | DB3: 3rd + Episodes, 0-13 Therapy Visits | DQ3: =DB3 -> 3rd + Episodes, 0-13 Therapy Visits | EH3: =DQ3 -> 3rd + Episodes, 0-13 Therapy Visits | EU3: All Episodes, 20+ Therapy Visits
A4: State | B4: Code | C4: Area | D4: CBSA | E4: Index | F4: Rate | G4: =Main!$B$26 -> C1F1S1 | H4: =Main!$B$27 -> C1F1S2 | I4: =Main!$B$28 -> C1F1S3 | J4: =Main!$B$29 -> C1F1S4 | K4: =Main!$B$30 -> C1F1S5 | L4: =Main!$B$31 -> C1F2S1 | M4: =Main!$B$32 -> C1F2S2 | N4: =Main!$B$33 -> C1F2S3 | O4: =Main!$B$34 -> C1F2S4 | P4: =Main!$B$35 -> C1F2S5 | Q4: =Main!$B$36 -> C1F3S1 | R4: =Main!$B$37 -> C1F3S2 | S4: =Main!$B$38 -> C1F3S3 | T4: =Main!$B$39 -> C1F3S4 | U4: =Main!$B$40 -> C1F3S5 | V4: =Main!$B$41 -> C2F1S1 | W4: =Main!$B$42 -> C2F1S2 | X4: =Main!$B$43 -> C2F1S3 | Y4: =Main!$B$44 -> C2F1S4 | Z4: =Main!$B$45 -> C2F1S5 | AA4: =Main!$B$46 -> C2F2S1 | AB4: =Main!$B$47 -> C2F2S2 | AC4: =Main!$B$48 -> C2F2S3 | AD4: =Main!$B$49 -> C2F2S4 | AE4: =Main!$B$50 -> C2F2S5 | AF4: =Main!$B$51 -> C2F3S1 | AG4: =Main!$B$52 -> C2F3S2 | AH4: =Main!$B$53 -> C2F3S3 | AI4: =Main!$B$54 -> C2F3S4 | AJ4: =Main!$B$55 -> C2F3S5 | AK4: =Main!$B$56 -> C3F1S1 | AL4: =Main!$B$57 -> C3F1S2 | AM4: =Main!$B$58 -> C3F1S3 | AN4: =Main!$B$59 -> C3F1S4 | AO4: =Main!$B$60 -> C3F1S5 | AP4: =Main!$B$61 -> C3F2S1 | AQ4: =Main!$B$62 -> C3F2S2 | AR4: =Main!$B$63 -> C3F2S3 | AS4: =Main!$B$64 -> C3F2S4 | AT4: =Main!$B$65 -> C3F2S5 | AU4: =Main!$B$66 -> C3F3S1 | AV4: =Main!$B$67 -> C3F3S2 | AW4: =Main!$B$68 -> C3F3S3 | AX4: =Main!$B$69 -> C3F3S4 | AY4: =Main!$B$70 -> C3F3S5 | AZ4: =Main!$B$71 -> C1F1S1 | BA4: =Main!$B$72 -> C1F1S2 | BB4: =Main!$B$73 -> C1F1S3 | BC4: =Main!$B$74 -> C1F2S1 | BD4: =Main!$B$75 -> C1F2S2 | BE4: =Main!$B$76 -> C1F2S3 | BF4: =Main!$B$77 -> C1F3S1 | BG4: =Main!$B$78 -> C1F3S2 | BH4: =Main!$B$79 -> C1F3S3 | BI4: =Main!$B$80 -> C2F1S1 | BJ4: =Main!$B$81 -> C2F1S2 | BK4: =Main!$B$82 -> C2F1S3 | BL4: =Main!$B$83 -> C2F2S1 | BM4: =Main!$B$84 -> C2F2S2 | BN4: =Main!$B$85 -> C2F2S3 | BO4: =Main!$B$86 -> C2F3S1 | BP4: =Main!$B$87 -> C2F3S2 | BQ4: =Main!$B$88 -> C2F3S3 | BR4: =Main!$B$89 -> C3F1S1 | BS4: =Main!$B$90 -> C3F1S2 | BT4: =Main!$B$91 -> C3F1S3 | BU4: =Main!$B$92 -> C3F2S1 | BV4: =Main!$B$93 -> C3F2S2 | BW4: =Main!$B$94 -> C3F2S3 | BX4: =Main!$B$95 -> C3F3S1 | BY4: =Main!$B$96 -> C3F3S2 | BZ4: =Main!$B$97 -> C3F3S3 | CA4: =Main!$B$98 -> C1F1S1 | CB4: =Main!$B$99 -> C1F1S2 | CC4: =Main!$B$100 -> C1F1S3 | CD4: =Main!$B$101 -> C1F2S1 | CE4: =Main!$B$102 -> C1F2S2 | CF4: =Main!$B$103 -> C1F2S3 | CG4: =Main!$B$104 -> C1F3S1 | CH4: =Main!$B$105 -> C1F3S2 | CI4: =Main!$B$106 -> C1F3S3 | CJ4: =Main!$B$107 -> C2F1S1 | CK4: =Main!$B$108 -> C2F1S2 | CL4: =Main!$B$109 -> C2F1S3 | CM4: =Main!$B$110 -> C2F2S1 | CN4: =Main!$B$111 -> C2F2S2 | CO4: =Main!$B$112 -> C2F2S3 | CP4: =Main!$B$113 -> C2F3S1 | CQ4: =Main!$B$114 -> C2F3S2 | CR4: =Main!$B$115 -> C2F3S3 | CS4: =Main!$B$116 -> C3F1S1 | CT4: =Main!$B$117 -> C3F1S2 | CU4: =Main!$B$118 -> C3F1S3 | CV4: =Main!$B$119 -> C3F2S1 | CW4: =Main!$B$120 -> C3F2S2 | CX4: =Main!$B$121 -> C3F2S3 | CY4: =Main!$B$122 -> C3F3S1 | CZ4: =Main!$B$123 -> C3F3S2 | DA4: =Main!$B$124 -> C3F3S3 | DB4: =Main!$B$125 -> C1F1S1 | DC4: =Main!$B$126 -> C1F1S2 | DD4: =Main!$B$127 -> C1F1S3 | DE4: =Main!$B$128 -> C1F1S4 | DF4: =Main!$B$129 -> C1F1S5 | DG4: =Main!$B$130 -> C1F2S1 | DH4: =Main!$B$131 -> C1F2S2 | DI4: =Main!$B$132 -> C1F2S3 | DJ4: =Main!$B$133 -> C1F2S4 | DK4: =Main!$B$134 -> C1F2S5 | DL4: =Main!$B$135 -> C1F3S1 | DM4: =Main!$B$136 -> C1F3S2 | DN4: =Main!$B$137 -> C1F3S3 | DO4: =Main!$B$138 -> C1F3S4 | DP4: =Main!$B$139 -> C1F3S5 | DQ4: =Main!$B$140 -> C2F1S1 | DR4: =Main!$B$141 -> C2F1S2 | DS4: =Main!$B$142 -> C2F1S3 | DT4: =Main!$B$143 -> C2F1S4 | DU4: =Main!$B$144 -> C2F1S5 | DV4: =Main!$B$145 -> C2F2S1 | DW4: =Main!$B$146 -> C2F2S2 | DX4: =Main!$B$147 -> C2F2S3 | DY4: =Main!$B$148 -> C2F2S4 | DZ4: =Main!$B$149 -> C2F2S5 | EA4: =Main!$B$150 -> C2F3S1 | EB4: =Main!$B$151 -> C2F3S2 | EC4: =Main!$B$152 -> C2F3S3 | ED4: =Main!$B$153 -> C2F3S4 | EE4: =Main!$B$154 -> C2F3S5 | EF4: =Main!$B$155 -> C3F1S1 | EG4: =Main!$B$156 -> C3F1S2 | EH4: =Main!$B$157 -> C3F1S3 | EI4: =Main!$B$158 -> C3F1S4 | EJ4: =Main!$B$159 -> C3F1S5 | EK4: =Main!$B$160 -> C3F2S1 | EL4: =Main!$B$161 -> C3F2S2 | EM4: =Main!$B$162 -> C3F2S3 | EN4: =Main!$B$163 -> C3F2S4 | EO4: =Main!$B$164 -> C3F2S5 | EP4: =Main!$B$165 -> C3F3S1 | EQ4: =Main!$B$166 -> C3F3S2 | ER4: =Main!$B$167 -> C3F3S3 | ES4: =Main!$B$168 -> C3F3S4 | ET4: =Main!$B$169 -> C3F3S5 | EU4: =Main!$B$170 -> C1F1S1 | EV4: =Main!$B$171 -> C1F2S1 | EW4: =Main!$B$172 -> C1F3S1 | EX4: =Main!$B$173 -> C2F1S1 | EY4: =Main!$B$174 -> C2F2S1 | EZ4: =Main!$B$175 -> C2F3S1 | FA4: =Main!$B$176 -> C3F1S1 | FB4: =Main!$B$177 -> C3F2S1 | FC4: =Main!$B$178 -> C3F3S1 | FD4: Nursing | FE4: PT | FF4: OT | FG4: ST | FH4: MSW | FI4: HHAide
A5: AK | B5: 2 | C5: Nonurban | D5: 2 | E5: 1.3443 | F5: =IF($D5<100,Main!$C$2*(1+Main!$C$3),Main!$C$2) -> 3039.64 | G5: =G$2*$F5*Main!$C$4*$E5+Main!$C$5*G$2*$F5 -> 2160.474648 | H5: =H$2*$F5*Main!$C$4*$E5+Main!$C$5*H$2*$F5 -> 2668.705527 | I5: =I$2*$F5*Main!$C$4*$E5+Main!$C$5*I$2*$F5 -> 3176.936793 | J5: =J$2*$F5*Main!$C$4*$E5+Main!$C$5*J$2*$F5 -> 3685.167286 | K5: =K$2*$F5*Main!$C$4*$E5+Main!$C$5*K$2*$F5 -> 4193.400097 | L5: =L$2*$F5*Main!$C$4*$E5+Main!$C$5*L$2*$F5 -> 2564.212851 | M5: =M$2*$F5*Main!$C$4*$E5+Main!$C$5*M$2*$F5 -> 3024.553603 | N5: =N$2*$F5*Main!$C$4*$E5+Main!$C$5*N$2*$F5 -> 3484.894355 | O5: =O$2*$F5*Main!$C$4*$E5+Main!$C$5*O$2*$F5 -> 3945.233949 | P5: =P$2*$F5*Main!$C$4*$E5+Main!$C$5*P$2*$F5 -> 4405.576632 | Q5: =Q$2*$F5*Main!$C$4*$E5+Main!$C$5*Q$2*$F5 -> 2756.883169 | R5: =R$2*$F5*Main!$C$4*$E5+Main!$C$5*R$2*$F5 -> 3206.037021 | S5: =S$2*$F5*Main!$C$4*$E5+Main!$C$5*S$2*$F5 -> 3655.190487 | T5: =T$2*$F5*Main!$C$4*$E5+Main!$C$5*T$2*$F5 -> 4104.345111 | U5: =U$2*$F5*Main!$C$4*$E5+Main!$C$5*U$2*$F5 -> 4553.497032 | V5: =V$2*$F5*Main!$C$4*$E5+Main!$C$5*V$2*$F5 -> 2296.86254 | W5: =W$2*$F5*Main!$C$4*$E5+Main!$C$5*W$2*$F5 -> 2828.721836 | X5: =X$2*$F5*Main!$C$4*$E5+Main!$C$5*X$2*$F5 -> 3360.581133 | Y5: =Y$2*$F5*Main!$C$4*$E5+Main!$C$5*Y$2*$F5 -> 3892.438885 | Z5: =Z$2*$F5*Main!$C$4*$E5+Main!$C$5*Z$2*$F5 -> 4424.301271 | AA5: =AA$2*$F5*Main!$C$4*$E5+Main!$C$5*AA$2*$F5 -> 2700.600357 | AB5: =AB$2*$F5*Main!$C$4*$E5+Main!$C$5*AB$2*$F5 -> 3184.569912 | AC5: =AC$2*$F5*Main!$C$4*$E5+Main!$C$5*AC$2*$F5 -> 3668.538695 | AD5: =AD$2*$F5*Main!$C$4*$E5+Main!$C$5*AD$2*$F5 -> 4152.506319 | AE5: =AE$2*$F5*Main!$C$4*$E5+Main!$C$5*AE$2*$F5 -> 4636.477805 | AF5: =AF$2*$F5*Main!$C$4*$E5+Main!$C$5*AF$2*$F5 -> 2893.270675 | AG5: =AG$2*$F5*Main!$C$4*$E5+Main!$C$5*AG$2*$F5 -> 3366.052944 | AH5: =AH$2*$F5*Main!$C$4*$E5+Main!$C$5*AH$2*$F5 -> 3838.835213 | AI5: =AI$2*$F5*Main!$C$4*$E5+Main!$C$5*AI$2*$F5 -> 4311.617482 | AJ5: =AJ$2*$F5*Main!$C$4*$E5+Main!$C$5*AJ$2*$F5 -> 4784.398206 | AK5: =AK$2*$F5*Main!$C$4*$E5+Main!$C$5*AK$2*$F5 -> 2461.434701 | AL5: =AL$2*$F5*Main!$C$4*$E5+Main!$C$5*AL$2*$F5 -> 3051.296357 | AM5: =AM$2*$F5*Main!$C$4*$E5+Main!$C$5*AM$2*$F5 -> 3641.157627 | AN5: =AN$2*$F5*Main!$C$4*$E5+Main!$C$5*AN$2*$F5 -> 4231.019283 | AO5: =AO$2*$F5*Main!$C$4*$E5+Main!$C$5*AO$2*$F5 -> 4820.882097 | AP5: =AP$2*$F5*Main!$C$4*$E5+Main!$C$5*AP$2*$F5 -> 2865.172518 | AQ5: =AQ$2*$F5*Main!$C$4*$E5+Main!$C$5*AQ$2*$F5 -> 3407.143661 | AR5: =AR$2*$F5*Main!$C$4*$E5+Main!$C$5*AR$2*$F5 -> 3949.114803 | AS5: =AS$2*$F5*Main!$C$4*$E5+Main!$C$5*AS$2*$F5 -> 4491.086718 | AT5: =AT$2*$F5*Main!$C$4*$E5+Main!$C$5*AT$2*$F5 -> 5033.058632 | AU5: =AU$2*$F5*Main!$C$4*$E5+Main!$C$5*AU$2*$F5 -> 3057.842451 | AV5: =AV$2*$F5*Main!$C$4*$E5+Main!$C$5*AV$2*$F5 -> 3588.627465 | AW5: =AW$2*$F5*Main!$C$4*$E5+Main!$C$5*AW$2*$F5 -> 4119.412866 | AX5: =AX$2*$F5*Main!$C$4*$E5+Main!$C$5*AX$2*$F5 -> 4650.19788 | AY5: =AY$2*$F5*Main!$C$4*$E5+Main!$C$5*AY$2*$F5 -> 5180.979033 | AZ5: =AZ$2*$F5*Main!$C$4*$E5+Main!$C$5*AZ$2*$F5 -> 4701.629818 | BA5: =BA$2*$F5*Main!$C$4*$E5+Main!$C$5*BA$2*$F5 -> 5331.641132 | BB5: =BB$2*$F5*Main!$C$4*$E5+Main!$C$5*BB$2*$F5 -> 5961.652445 | BC5: =BC$2*$F5*Main!$C$4*$E5+Main!$C$5*BC$2*$F5 -> 4865.915453 | BD5: =BD$2*$F5*Main!$C$4*$E5+Main!$C$5*BD$2*$F5 -> 5488.543489 | BE5: =BE$2*$F5*Main!$C$4*$E5+Main!$C$5*BE$2*$F5 -> 6111.171526 | BF5: =BF$2*$F5*Main!$C$4*$E5+Main!$C$5*BF$2*$F5 -> 5002.652815 | BG5: =BG$2*$F5*Main!$C$4*$E5+Main!$C$5*BG$2*$F5 -> 5637.668693 | BH5: =BH$2*$F5*Main!$C$4*$E5+Main!$C$5*BH$2*$F5 -> 6272.688432 | BI5: =BI$2*$F5*Main!$C$4*$E5+Main!$C$5*BI$2*$F5 -> 4956.159795 | BJ5: =BJ$2*$F5*Main!$C$4*$E5+Main!$C$5*BJ$2*$F5 -> 5636.969753 | BK5: =BK$2*$F5*Main!$C$4*$E5+Main!$C$5*BK$2*$F5 -> 6317.775849 | BL5: =BL$2*$F5*Main!$C$4*$E5+Main!$C$5*BL$2*$F5 -> 5120.44543 | BM5: =BM$2*$F5*Main!$C$4*$E5+Main!$C$5*BM$2*$F5 -> 5793.872111 | BN5: =BN$2*$F5*Main!$C$4*$E5+Main!$C$5*BN$2*$F5 -> 6467.29493 | BO5: =BO$2*$F5*Main!$C$4*$E5+Main!$C$5*BO$2*$F5 -> 5257.182792 | BP5: =BP$2*$F5*Main!$C$4*$E5+Main!$C$5*BP$2*$F5 -> 5942.997314 | BQ5: =BQ$2*$F5*Main!$C$4*$E5+Main!$C$5*BQ$2*$F5 -> 6628.811836 | BR5: =BR$2*$F5*Main!$C$4*$E5+Main!$C$5*BR$2*$F5 -> 5410.74105 | BS5: =BS$2*$F5*Main!$C$4*$E5+Main!$C$5*BS$2*$F5 -> 6251.083079 | BT5: =BT$2*$F5*Main!$C$4*$E5+Main!$C$5*BT$2*$F5 -> 7091.425108 | BU5: =BU$2*$F5*Main!$C$4*$E5+Main!$C$5*BU$2*$F5 -> 5575.030547 | BV5: =BV$2*$F5*Main!$C$4*$E5+Main!$C$5*BV$2*$F5 -> 6407.985437 | BW5: =BW$2*$F5*Main!$C$4*$E5+Main!$C$5*BW$2*$F5 -> 7240.944189 | BX5: =BX$2*$F5*Main!$C$4*$E5+Main!$C$5*BX$2*$F5 -> 5711.764047 | BY5: =BY$2*$F5*Main!$C$4*$E5+Main!$C$5*BY$2*$F5 -> 6557.114502 | BZ5: =BZ$2*$F5*Main!$C$4*$E5+Main!$C$5*BZ$2*$F5 -> 7402.461095 | CA5: =CA$2*$F5*Main!$C$4*$E5+Main!$C$5*CA$2*$F5 -> 4760.680587 | CB5: =CB$2*$F5*Main!$C$4*$E5+Main!$C$5*CB$2*$F5 -> 5371.009598 | CC5: =CC$2*$F5*Main!$C$4*$E5+Main!$C$5*CC$2*$F5 -> 5981.334748 | CD5: =CD$2*$F5*Main!$C$4*$E5+Main!$C$5*CD$2*$F5 -> 4872.951191 | CE5: =CE$2*$F5*Main!$C$4*$E5+Main!$C$5*CE$2*$F5 -> 5493.231407 | CF5: =CF$2*$F5*Main!$C$4*$E5+Main!$C$5*CF$2*$F5 -> 6113.515485 | CG5: =CG$2*$F5*Main!$C$4*$E5+Main!$C$5*CG$2*$F5 -> 5054.011383 | CH5: =CH$2*$F5*Main!$C$4*$E5+Main!$C$5*CH$2*$F5 -> 5671.909026 | CI5: =CI$2*$F5*Main!$C$4*$E5+Main!$C$5*CI$2*$F5 -> 6289.806668 | CJ5: =CJ$2*$F5*Main!$C$4*$E5+Main!$C$5*CJ$2*$F5 -> 4965.9604 | CK5: =CK$2*$F5*Main!$C$4*$E5+Main!$C$5*CK$2*$F5 -> 5643.503489 | CL5: =CL$2*$F5*Main!$C$4*$E5+Main!$C$5*CL$2*$F5 -> 6321.042717 | CM5: =CM$2*$F5*Main!$C$4*$E5+Main!$C$5*CM$2*$F5 -> 5078.231003 | CN5: =CN$2*$F5*Main!$C$4*$E5+Main!$C$5*CN$2*$F5 -> 5765.725298 | CO5: =CO$2*$F5*Main!$C$4*$E5+Main!$C$5*CO$2*$F5 -> 6453.223455 | CP5: =CP$2*$F5*Main!$C$4*$E5+Main!$C$5*CP$2*$F5 -> 5259.291196 | CQ5: =CQ$2*$F5*Main!$C$4*$E5+Main!$C$5*CQ$2*$F5 -> 5944.402917 | CR5: =CR$2*$F5*Main!$C$4*$E5+Main!$C$5*CR$2*$F5 -> 6629.514638 | CS5: =CS$2*$F5*Main!$C$4*$E5+Main!$C$5*CS$2*$F5 -> 5773.243729 | CT5: =CT$2*$F5*Main!$C$4*$E5+Main!$C$5*CT$2*$F5 -> 6492.754106 | CU5: =CU$2*$F5*Main!$C$4*$E5+Main!$C$5*CU$2*$F5 -> 7212.260622 | CV5: =CV$2*$F5*Main!$C$4*$E5+Main!$C$5*CV$2*$F5 -> 5885.514332 | CW5: =CW$2*$F5*Main!$C$4*$E5+Main!$C$5*CW$2*$F5 -> 6614.975915 | CX5: =CX$2*$F5*Main!$C$4*$E5+Main!$C$5*CX$2*$F5 -> 7344.441359 | CY5: =CY$2*$F5*Main!$C$4*$E5+Main!$C$5*CY$2*$F5 -> 6066.574525 | CZ5: =CZ$2*$F5*Main!$C$4*$E5+Main!$C$5*CZ$2*$F5 -> 6793.653534 | DA5: =DA$2*$F5*Main!$C$4*$E5+Main!$C$5*DA$2*$F5 -> 7520.732542 | DB5: =DB$2*$F5*Main!$C$4*$E5+Main!$C$5*DB$2*$F5 -> 1759.751154 | DC5: =DC$2*$F5*Main!$C$4*$E5+Main!$C$5*DC$2*$F5 -> 2359.937426 | DD5: =DD$2*$F5*Main!$C$4*$E5+Main!$C$5*DD$2*$F5 -> 2960.123699 | DE5: =DE$2*$F5*Main!$C$4*$E5+Main!$C$5*DE$2*$F5 -> 3560.309972 | DF5: =DF$2*$F5*Main!$C$4*$E5+Main!$C$5*DF$2*$F5 -> 4160.495859 | DG5: =DG$2*$F5*Main!$C$4*$E5+Main!$C$5*DG$2*$F5 -> 2087.986855 | DH5: =DH$2*$F5*Main!$C$4*$E5+Main!$C$5*DH$2*$F5 -> 2644.979799 | DI5: =DI$2*$F5*Main!$C$4*$E5+Main!$C$5*DI$2*$F5 -> 3201.971971 | DJ5: =DJ$2*$F5*Main!$C$4*$E5+Main!$C$5*DJ$2*$F5 -> 3758.965302 | DK5: =DK$2*$F5*Main!$C$4*$E5+Main!$C$5*DK$2*$F5 -> 4315.95786 | DL5: =DL$2*$F5*Main!$C$4*$E5+Main!$C$5*DL$2*$F5 -> 2261.389215 | DM5: =DM$2*$F5*Main!$C$4*$E5+Main!$C$5*DM$2*$F5 -> 2819.914035 | DN5: =DN$2*$F5*Main!$C$4*$E5+Main!$C$5*DN$2*$F5 -> 3378.438468 | DO5: =DO$2*$F5*Main!$C$4*$E5+Main!$C$5*DO$2*$F5 -> 3936.962516 | DP5: =DP$2*$F5*Main!$C$4*$E5+Main!$C$5*DP$2*$F5 -> 4495.488881 | DQ5: =DQ$2*$F5*Main!$C$4*$E5+Main!$C$5*DQ$2*$F5 -> 1854.473345 | DR5: =DR$2*$F5*Main!$C$4*$E5+Main!$C$5*DR$2*$F5 -> 2476.770833 | DS5: =DS$2*$F5*Main!$C$4*$E5+Main!$C$5*DS$2*$F5 -> 3099.068321 | DT5: =DT$2*$F5*Main!$C$4*$E5+Main!$C$5*DT$2*$F5 -> 3721.36581 | DU5: =DU$2*$F5*Main!$C$4*$E5+Main!$C$5*DU$2*$F5 -> 4343.664456 | DV5: =DV$2*$F5*Main!$C$4*$E5+Main!$C$5*DV$2*$F5 -> 2182.70866 | DW5: =DW$2*$F5*Main!$C$4*$E5+Main!$C$5*DW$2*$F5 -> 2761.812434 | DX5: =DX$2*$F5*Main!$C$4*$E5+Main!$C$5*DX$2*$F5 -> 3340.916593 | DY5: =DY$2*$F5*Main!$C$4*$E5+Main!$C$5*DY$2*$F5 -> 3920.021911 | DZ5: =DZ$2*$F5*Main!$C$4*$E5+Main!$C$5*DZ$2*$F5 -> 4499.126457 | EA5: =EA$2*$F5*Main!$C$4*$E5+Main!$C$5*EA$2*$F5 -> 2356.111406 | EB5: =EB$2*$F5*Main!$C$4*$E5+Main!$C$5*EB$2*$F5 -> 2936.747055 | EC5: =EC$2*$F5*Main!$C$4*$E5+Main!$C$5*EC$2*$F5 -> 3517.38309 | ED5: =ED$2*$F5*Main!$C$4*$E5+Main!$C$5*ED$2*$F5 -> 4098.019898 | EE5: =EE$2*$F5*Main!$C$4*$E5+Main!$C$5*EE$2*$F5 -> 4678.653616 | EF5: =EF$2*$F5*Main!$C$4*$E5+Main!$C$5*EF$2*$F5 -> 2292.071519 | EG5: =EG$2*$F5*Main!$C$4*$E5+Main!$C$5*EG$2*$F5 -> 2988.306038 | EH5: =EH$2*$F5*Main!$C$4*$E5+Main!$C$5*EH$2*$F5 -> 3684.540944 | EI5: =EI$2*$F5*Main!$C$4*$E5+Main!$C$5*EI$2*$F5 -> 4380.773918 | EJ5: =EJ$2*$F5*Main!$C$4*$E5+Main!$C$5*EJ$2*$F5 -> 5077.010755 | EK5: =EK$2*$F5*Main!$C$4*$E5+Main!$C$5*EK$2*$F5 -> 2620.306834 | EL5: =EL$2*$F5*Main!$C$4*$E5+Main!$C$5*EL$2*$F5 -> 3273.348025 | EM5: =EM$2*$F5*Main!$C$4*$E5+Main!$C$5*EM$2*$F5 -> 3926.389602 | EN5: =EN$2*$F5*Main!$C$4*$E5+Main!$C$5*EN$2*$F5 -> 4579.431179 | EO5: =EO$2*$F5*Main!$C$4*$E5+Main!$C$5*EO$2*$F5 -> 5232.472756 | EP5: =EP$2*$F5*Main!$C$4*$E5+Main!$C$5*EP$2*$F5 -> 2793.70958 | EQ5: =EQ$2*$F5*Main!$C$4*$E5+Main!$C$5*EQ$2*$F5 -> 3448.282646 | ER5: =ER$2*$F5*Main!$C$4*$E5+Main!$C$5*ER$2*$F5 -> 4102.854554 | ES5: =ES$2*$F5*Main!$C$4*$E5+Main!$C$5*ES$2*$F5 -> 4757.429165 | ET5: =ET$2*$F5*Main!$C$4*$E5+Main!$C$5*ET$2*$F5 -> 5412.003776 | EU5: =EU$2*$F5*Main!$C$4*$E5+Main!$C$5*EU$2*$F5 -> 6591.659897 | EV5: =EV$2*$F5*Main!$C$4*$E5+Main!$C$5*EV$2*$F5 -> 6733.795701 | EW5: =EW$2*$F5*Main!$C$4*$E5+Main!$C$5*EW$2*$F5 -> 6907.70431 | EX5: =EX$2*$F5*Main!$C$4*$E5+Main!$C$5*EX$2*$F5 -> 6998.585807 | EY5: =EY$2*$F5*Main!$C$4*$E5+Main!$C$5*EY$2*$F5 -> 7140.721611 | EZ5: =EZ$2*$F5*Main!$C$4*$E5+Main!$C$5*EZ$2*$F5 -> 7314.626358 | FA5: =FA$2*$F5*Main!$C$4*$E5+Main!$C$5*FA$2*$F5 -> 7931.767137 | FB5: =FB$2*$F5*Main!$C$4*$E5+Main!$C$5*FB$2*$F5 -> 8073.902941 | FC5: =FC$2*$F5*Main!$C$4*$E5+Main!$C$5*FC$2*$F5 -> 8247.81155 | FD5: =IF($D5<100,(FD$2*(1+Main!$C$3)*$E5*Main!$C$4)+(FD$2*(1+Main!$C$3)*Main!$C$5),(FD$2*$E5*Main!$C$4)+(FD$2*Main!$C$5)) -> 182.1747871 | FE5: =IF($D5<100,(FE$2*(1+Main!$C$3)*$E5*Main!$C$4)+(FE$2*(1+Main!$C$3)*Main!$C$5),(FE$2*$E5*Main!$C$4)+(FE$2*Main!$C$5)) -> 199.1472777 | FF5: =IF($D5<100,(FF$2*(1+Main!$C$3)*$E5*Main!$C$4)+(FF$2*(1+Main!$C$3)*Main!$C$5),(FF$2*$E5*Main!$C$4)+(FF$2*Main!$C$5)) -> 200.5066015 | FG5: =IF($D5<100,(FG$2*(1+Main!$C$3)*$E5*Main!$C$4)+(FG$2*(1+Main!$C$3)*Main!$C$5),(FG$2*$E5*Main!$C$4)+(FG$2*Main!$C$5)) -> 216.4500713 | FH5: =IF($D5<100,(FH$2*(1+Main!$C$3)*$E5*Main!$C$4)+(FH$2*(1+Main!$C$3)*Main!$C$5),(FH$2*$E5*Main!$C$4)+(FH$2*Main!$C$5)) -> 292.0132257 | FI5: =IF($D5<100,(FI$2*(1+Main!$C$3)*$E5*Main!$C$4)+(FI$2*(1+Main!$C$3)*Main!$C$5),(FI$2*$E5*Main!$C$4)+(FI$2*Main!$C$5)) -> 82.49951656
A6: AK | B6: 11260 | C6: (Anchorage, Anchorage Municipality, Matanuska-Susitna Borough) | D6: 11260 | E6: 1.2542 | F6: =IF($D6<100,Main!$C$2*(1+Main!$C$3),Main!$C$2) -> 3039.64 | G6: =G$2*$F6*Main!$C$4*$E6+Main!$C$5*G$2*$F6 -> 2040.137949 | H6: =H$2*$F6*Main!$C$4*$E6+Main!$C$5*H$2*$F6 -> 2520.060777 | I6: =I$2*$F6*Main!$C$4*$E6+Main!$C$5*I$2*$F6 -> 2999.983971 | J6: =J$2*$F6*Main!$C$4*$E6+Main!$C$5*J$2*$F6 -> 3479.906435 | K6: =K$2*$F6*Main!$C$4*$E6+Main!$C$5*K$2*$F6 -> 3959.831087 | L6: =L$2*$F6*Main!$C$4*$E6+Main!$C$5*L$2*$F6 -> 2421.388259 | M6: =M$2*$F6*Main!$C$4*$E6+Main!$C$5*M$2*$F6 -> 2856.088402 | N6: =N$2*$F6*Main!$C$4*$E6+Main!$C$5*N$2*$F6 -> 3290.788544 | O6: =O$2*$F6*Main!$C$4*$E6+Main!$C$5*O$2*$F6 -> 3725.487593 | P6: =P$2*$F6*Main!$C$4*$E6+Main!$C$5*P$2*$F6 -> 4160.189559 | Q6: =Q$2*$F6*Main!$C$4*$E6+Main!$C$5*Q$2*$F6 -> 2603.326996 | R6: =R$2*$F6*Main!$C$4*$E6+Main!$C$5*R$2*$F6 -> 3027.46334 | S6: =S$2*$F6*Main!$C$4*$E6+Main!$C$5*S$2*$F6 -> 3451.599319 | T6: =T$2*$F6*Main!$C$4*$E6+Main!$C$5*T$2*$F6 -> 3875.736392 | U6: =U$2*$F6*Main!$C$4*$E6+Main!$C$5*U$2*$F6 -> 4299.870912 | V6: =V$2*$F6*Main!$C$4*$E6+Main!$C$5*V$2*$F6 -> 2168.929145 | W6: =W$2*$F6*Main!$C$4*$E6+Main!$C$5*W$2*$F6 -> 2671.164307 | X6: =X$2*$F6*Main!$C$4*$E6+Main!$C$5*X$2*$F6 -> 3173.399468 | Y6: =Y$2*$F6*Main!$C$4*$E6+Main!$C$5*Y$2*$F6 -> 3675.633172 | Z6: =Z$2*$F6*Main!$C$4*$E6+Main!$C$5*Z$2*$F6 -> 4177.871251 | AA6: =AA$2*$F6*Main!$C$4*$E6+Main!$C$5*AA$2*$F6 -> 2550.17909 | AB6: =AB$2*$F6*Main!$C$4*$E6+Main!$C$5*AB$2*$F6 -> 3007.191931 | AC6: =AC$2*$F6*Main!$C$4*$E6+Main!$C$5*AC$2*$F6 -> 3464.204042 | AD6: =AD$2*$F6*Main!$C$4*$E6+Main!$C$5*AD$2*$F6 -> 3921.215059 | AE6: =AE$2*$F6*Main!$C$4*$E6+Main!$C$5*AE$2*$F6 -> 4378.229723 | AF6: =AF$2*$F6*Main!$C$4*$E6+Main!$C$5*AF$2*$F6 -> 2732.117827 | AG6: =AG$2*$F6*Main!$C$4*$E6+Main!$C$5*AG$2*$F6 -> 3178.566504 | AH6: =AH$2*$F6*Main!$C$4*$E6+Main!$C$5*AH$2*$F6 -> 3625.015181 | AI6: =AI$2*$F6*Main!$C$4*$E6+Main!$C$5*AI$2*$F6 -> 4071.463858 | AJ6: =AJ$2*$F6*Main!$C$4*$E6+Main!$C$5*AJ$2*$F6 -> 4517.911077 | AK6: =AK$2*$F6*Main!$C$4*$E6+Main!$C$5*AK$2*$F6 -> 2324.334769 | AL6: =AL$2*$F6*Main!$C$4*$E6+Main!$C$5*AL$2*$F6 -> 2881.341606 | AM6: =AM$2*$F6*Main!$C$4*$E6+Main!$C$5*AM$2*$F6 -> 3438.348078 | AN6: =AN$2*$F6*Main!$C$4*$E6+Main!$C$5*AN$2*$F6 -> 3995.354914 | AO6: =AO$2*$F6*Main!$C$4*$E6+Main!$C$5*AO$2*$F6 -> 4552.362845 | AP6: =AP$2*$F6*Main!$C$4*$E6+Main!$C$5*AP$2*$F6 -> 2705.584715 | AQ6: =AQ$2*$F6*Main!$C$4*$E6+Main!$C$5*AQ$2*$F6 -> 3217.368501 | AR6: =AR$2*$F6*Main!$C$4*$E6+Main!$C$5*AR$2*$F6 -> 3729.152287 | AS6: =AS$2*$F6*Main!$C$4*$E6+Main!$C$5*AS$2*$F6 -> 4240.936802 | AT6: =AT$2*$F6*Main!$C$4*$E6+Main!$C$5*AT$2*$F6 -> 4752.721317 | AU6: =AU$2*$F6*Main!$C$4*$E6+Main!$C$5*AU$2*$F6 -> 2887.523087 | AV6: =AV$2*$F6*Main!$C$4*$E6+Main!$C$5*AV$2*$F6 -> 3388.743804 | AW6: =AW$2*$F6*Main!$C$4*$E6+Main!$C$5*AW$2*$F6 -> 3889.964885 | AX6: =AX$2*$F6*Main!$C$4*$E6+Main!$C$5*AX$2*$F6 -> 4391.185601 | AY6: =AY$2*$F6*Main!$C$4*$E6+Main!$C$5*AY$2*$F6 -> 4892.402671 | AZ6: =AZ$2*$F6*Main!$C$4*$E6+Main!$C$5*AZ$2*$F6 -> 4439.752821 | BA6: =BA$2*$F6*Main!$C$4*$E6+Main!$C$5*BA$2*$F6 -> 5034.673012 | BB6: =BB$2*$F6*Main!$C$4*$E6+Main!$C$5*BB$2*$F6 -> 5629.593202 | BC6: =BC$2*$F6*Main!$C$4*$E6+Main!$C$5*BC$2*$F6 -> 4594.887878 | BD6: =BD$2*$F6*Main!$C$4*$E6+Main!$C$5*BD$2*$F6 -> 5182.836035 | BE6: =BE$2*$F6*Main!$C$4*$E6+Main!$C$5*BE$2*$F6 -> 5770.784191 | BF6: =BF$2*$F6*Main!$C$4*$E6+Main!$C$5*BF$2*$F6 -> 4724.009079 | BG6: =BG$2*$F6*Main!$C$4*$E6+Main!$C$5*BG$2*$F6 -> 5323.655084 | BH6: =BH$2*$F6*Main!$C$4*$E6+Main!$C$5*BH$2*$F6 -> 5923.304735 | BI6: =BI$2*$F6*Main!$C$4*$E6+Main!$C$5*BI$2*$F6 -> 4680.105683 | BJ6: =BJ$2*$F6*Main!$C$4*$E6+Main!$C$5*BJ$2*$F6 -> 5322.995074 | BK6: =BK$2*$F6*Main!$C$4*$E6+Main!$C$5*BK$2*$F6 -> 5965.880819 | BL6: =BL$2*$F6*Main!$C$4*$E6+Main!$C$5*BL$2*$F6 -> 4835.24074 | BM6: =BM$2*$F6*Main!$C$4*$E6+Main!$C$5*BM$2*$F6 -> 5471.158097 | BN6: =BN$2*$F6*Main!$C$4*$E6+Main!$C$5*BN$2*$F6 -> 6107.071808 | BO6: =BO$2*$F6*Main!$C$4*$E6+Main!$C$5*BO$2*$F6 -> 4964.361941 | BP6: =BP$2*$F6*Main!$C$4*$E6+Main!$C$5*BP$2*$F6 -> 5611.977147 | BQ6: =BQ$2*$F6*Main!$C$4*$E6+Main!$C$5*BQ$2*$F6 -> 6259.592352 | BR6: =BR$2*$F6*Main!$C$4*$E6+Main!$C$5*BR$2*$F6 -> 5109.367129 | BS6: =BS$2*$F6*Main!$C$4*$E6+Main!$C$5*BS$2*$F6 -> 5902.902783 | BT6: =BT$2*$F6*Main!$C$4*$E6+Main!$C$5*BT$2*$F6 -> 6696.438437 | BU6: =BU$2*$F6*Main!$C$4*$E6+Main!$C$5*BU$2*$F6 -> 5264.505832 | BV6: =BV$2*$F6*Main!$C$4*$E6+Main!$C$5*BV$2*$F6 -> 6051.065806 | BW6: =BW$2*$F6*Main!$C$4*$E6+Main!$C$5*BW$2*$F6 -> 6837.629426 | BX6: =BX$2*$F6*Main!$C$4*$E6+Main!$C$5*BX$2*$F6 -> 5393.623387 | BY6: =BY$2*$F6*Main!$C$4*$E6+Main!$C$5*BY$2*$F6 -> 6191.888502 | BZ6: =BZ$2*$F6*Main!$C$4*$E6+Main!$C$5*BZ$2*$F6 -> 6990.14997 | CA6: =CA$2*$F6*Main!$C$4*$E6+Main!$C$5*CA$2*$F6 -> 4495.51451 | CB6: =CB$2*$F6*Main!$C$4*$E6+Main!$C$5*CB$2*$F6 -> 5071.848686 | CC6: =CC$2*$F6*Main!$C$4*$E6+Main!$C$5*CC$2*$F6 -> 5648.179216 | CD6: =CD$2*$F6*Main!$C$4*$E6+Main!$C$5*CD$2*$F6 -> 4601.531731 | CE6: =CE$2*$F6*Main!$C$4*$E6+Main!$C$5*CE$2*$F6 -> 5187.262839 | CF6: =CF$2*$F6*Main!$C$4*$E6+Main!$C$5*CF$2*$F6 -> 5772.997593 | CG6: =CG$2*$F6*Main!$C$4*$E6+Main!$C$5*CG$2*$F6 -> 4772.507017 | CH6: =CH$2*$F6*Main!$C$4*$E6+Main!$C$5*CH$2*$F6 -> 5355.988258 | CI6: =CI$2*$F6*Main!$C$4*$E6+Main!$C$5*CI$2*$F6 -> 5939.469499 | CJ6: =CJ$2*$F6*Main!$C$4*$E6+Main!$C$5*CJ$2*$F6 -> 4689.360402 | CK6: =CK$2*$F6*Main!$C$4*$E6+Main!$C$5*CK$2*$F6 -> 5329.164887 | CL6: =CL$2*$F6*Main!$C$4*$E6+Main!$C$5*CL$2*$F6 -> 5968.965726 | CM6: =CM$2*$F6*Main!$C$4*$E6+Main!$C$5*CM$2*$F6 -> 4795.377624 | CN6: =CN$2*$F6*Main!$C$4*$E6+Main!$C$5*CN$2*$F6 -> 5444.57904 | CO6: =CO$2*$F6*Main!$C$4*$E6+Main!$C$5*CO$2*$F6 -> 6093.784102 | CP6: =CP$2*$F6*Main!$C$4*$E6+Main!$C$5*CP$2*$F6 -> 4966.352909 | CQ6: =CQ$2*$F6*Main!$C$4*$E6+Main!$C$5*CQ$2*$F6 -> 5613.304459 | CR6: =CR$2*$F6*Main!$C$4*$E6+Main!$C$5*CR$2*$F6 -> 6260.256008 | CS6: =CS$2*$F6*Main!$C$4*$E6+Main!$C$5*CS$2*$F6 -> 5451.6787 | CT6: =CT$2*$F6*Main!$C$4*$E6+Main!$C$5*CT$2*$F6 -> 6131.112928 | CU6: =CU$2*$F6*Main!$C$4*$E6+Main!$C$5*CU$2*$F6 -> 6810.54351 | CV6: =CV$2*$F6*Main!$C$4*$E6+Main!$C$5*CV$2*$F6 -> 5557.695921 | CW6: =CW$2*$F6*Main!$C$4*$E6+Main!$C$5*CW$2*$F6 -> 6246.527081 | CX6: =CX$2*$F6*Main!$C$4*$E6+Main!$C$5*CX$2*$F6 -> 6935.361886 | CY6: =CY$2*$F6*Main!$C$4*$E6+Main!$C$5*CY$2*$F6 -> 5728.671207 | CZ6: =CZ$2*$F6*Main!$C$4*$E6+Main!$C$5*CZ$2*$F6 -> 6415.2525 | DA6: =DA$2*$F6*Main!$C$4*$E6+Main!$C$5*DA$2*$F6 -> 7101.833792 | DB6: =DB$2*$F6*Main!$C$4*$E6+Main!$C$5*DB$2*$F6 -> 1661.734431 | DC6: =DC$2*$F6*Main!$C$4*$E6+Main!$C$5*DC$2*$F6 -> 2228.490811 | DD6: =DD$2*$F6*Main!$C$4*$E6+Main!$C$5*DD$2*$F6 -> 2795.247192 | DE6: =DE$2*$F6*Main!$C$4*$E6+Main!$C$5*DE$2*$F6 -> 3362.003572 | DF6: =DF$2*$F6*Main!$C$4*$E6+Main!$C$5*DF$2*$F6 -> 3928.759588 | DG6: =DG$2*$F6*Main!$C$4*$E6+Main!$C$5*DG$2*$F6 -> 1971.687668 | DH6: =DH$2*$F6*Main!$C$4*$E6+Main!$C$5*DH$2*$F6 -> 2497.656553 | DI6: =DI$2*$F6*Main!$C$4*$E6+Main!$C$5*DI$2*$F6 -> 3023.62471 | DJ6: =DJ$2*$F6*Main!$C$4*$E6+Main!$C$5*DJ$2*$F6 -> 3549.59396 | DK6: =DK$2*$F6*Main!$C$4*$E6+Main!$C$5*DK$2*$F6 -> 4075.562481 | DL6: =DL$2*$F6*Main!$C$4*$E6+Main!$C$5*DL$2*$F6 -> 2135.431656 | DM6: =DM$2*$F6*Main!$C$4*$E6+Main!$C$5*DM$2*$F6 -> 2662.847093 | DN6: =DN$2*$F6*Main!$C$4*$E6+Main!$C$5*DN$2*$F6 -> 3190.262165 | DO6: =DO$2*$F6*Main!$C$4*$E6+Main!$C$5*DO$2*$F6 -> 3717.676873 | DP6: =DP$2*$F6*Main!$C$4*$E6+Main!$C$5*DP$2*$F6 -> 4245.093768 | DQ6: =DQ$2*$F6*Main!$C$4*$E6+Main!$C$5*DQ$2*$F6 -> 1751.180672 | DR6: =DR$2*$F6*Main!$C$4*$E6+Main!$C$5*DR$2*$F6 -> 2338.816691 | DS6: =DS$2*$F6*Main!$C$4*$E6+Main!$C$5*DS$2*$F6 -> 2926.45271 | DT6: =DT$2*$F6*Main!$C$4*$E6+Main!$C$5*DT$2*$F6 -> 3514.088729 | DU6: =DU$2*$F6*Main!$C$4*$E6+Main!$C$5*DU$2*$F6 -> 4101.725842 | DV6: =DV$2*$F6*Main!$C$4*$E6+Main!$C$5*DV$2*$F6 -> 2061.133544 | DW6: =DW$2*$F6*Main!$C$4*$E6+Main!$C$5*DW$2*$F6 -> 2607.981704 | DX6: =DX$2*$F6*Main!$C$4*$E6+Main!$C$5*DX$2*$F6 -> 3154.830228 | DY6: =DY$2*$F6*Main!$C$4*$E6+Main!$C$5*DY$2*$F6 -> 3701.679846 | DZ6: =DZ$2*$F6*Main!$C$4*$E6+Main!$C$5*DZ$2*$F6 -> 4248.528735 | EA6: =EA$2*$F6*Main!$C$4*$E6+Main!$C$5*EA$2*$F6 -> 2224.877897 | EB6: =EB$2*$F6*Main!$C$4*$E6+Main!$C$5*EB$2*$F6 -> 2773.172608 | EC6: =EC$2*$F6*Main!$C$4*$E6+Main!$C$5*EC$2*$F6 -> 3321.467683 | ED6: =ED$2*$F6*Main!$C$4*$E6+Main!$C$5*ED$2*$F6 -> 3869.763488 | EE6: =EE$2*$F6*Main!$C$4*$E6+Main!$C$5*EE$2*$F6 -> 4418.056375 | EF6: =EF$2*$F6*Main!$C$4*$E6+Main!$C$5*EF$2*$F6 -> 2164.40498 | EG6: =EG$2*$F6*Main!$C$4*$E6+Main!$C$5*EG$2*$F6 -> 2821.859797 | EH6: =EH$2*$F6*Main!$C$4*$E6+Main!$C$5*EH$2*$F6 -> 3479.314979 | EI6: =EI$2*$F6*Main!$C$4*$E6+Main!$C$5*EI$2*$F6 -> 4136.768337 | EJ6: =EJ$2*$F6*Main!$C$4*$E6+Main!$C$5*EJ$2*$F6 -> 4794.225342 | EK6: =EK$2*$F6*Main!$C$4*$E6+Main!$C$5*EK$2*$F6 -> 2474.357852 | EL6: =EL$2*$F6*Main!$C$4*$E6+Main!$C$5*EL$2*$F6 -> 3091.025174 | EM6: =EM$2*$F6*Main!$C$4*$E6+Main!$C$5*EM$2*$F6 -> 3707.692861 | EN6: =EN$2*$F6*Main!$C$4*$E6+Main!$C$5*EN$2*$F6 -> 4324.360548 | EO6: =EO$2*$F6*Main!$C$4*$E6+Main!$C$5*EO$2*$F6 -> 4941.028234 | EP6: =EP$2*$F6*Main!$C$4*$E6+Main!$C$5*EP$2*$F6 -> 2638.102205 | EQ6: =EQ$2*$F6*Main!$C$4*$E6+Main!$C$5*EQ$2*$F6 -> 3256.216078 | ER6: =ER$2*$F6*Main!$C$4*$E6+Main!$C$5*ER$2*$F6 -> 3874.328858 | ES6: =ES$2*$F6*Main!$C$4*$E6+Main!$C$5*ES$2*$F6 -> 4492.44419 | ET6: =ET$2*$F6*Main!$C$4*$E6+Main!$C$5*ET$2*$F6 -> 5110.559522 | EU6: =EU$2*$F6*Main!$C$4*$E6+Main!$C$5*EU$2*$F6 -> 6224.509746 | EV6: =EV$2*$F6*Main!$C$4*$E6+Main!$C$5*EV$2*$F6 -> 6358.7287 | EW6: =EW$2*$F6*Main!$C$4*$E6+Main!$C$5*EW$2*$F6 -> 6522.950739 | EX6: =EX$2*$F6*Main!$C$4*$E6+Main!$C$5*EX$2*$F6 -> 6608.77021 | EY6: =EY$2*$F6*Main!$C$4*$E6+Main!$C$5*EY$2*$F6 -> 6742.989165 | EZ6: =EZ$2*$F6*Main!$C$4*$E6+Main!$C$5*EZ$2*$F6 -> 6907.207557 | FA6: =FA$2*$F6*Main!$C$4*$E6+Main!$C$5*FA$2*$F6 -> 7489.974092 | FB6: =FB$2*$F6*Main!$C$4*$E6+Main!$C$5*FB$2*$F6 -> 7624.193046 | FC6: =FC$2*$F6*Main!$C$4*$E6+Main!$C$5*FC$2*$F6 -> 7788.415085 | FD6: =IF($D6<100,(FD$2*(1+Main!$C$3)*$E6*Main!$C$4)+(FD$2*(1+Main!$C$3)*Main!$C$5),(FD$2*$E6*Main!$C$4)+(FD$2*Main!$C$5)) -> 172.0277981 | FE6: =IF($D6<100,(FE$2*(1+Main!$C$3)*$E6*Main!$C$4)+(FE$2*(1+Main!$C$3)*Main!$C$5),(FE$2*$E6*Main!$C$4)+(FE$2*Main!$C$5)) -> 188.0549347 | FF6: =IF($D6<100,(FF$2*(1+Main!$C$3)*$E6*Main!$C$4)+(FF$2*(1+Main!$C$3)*Main!$C$5),(FF$2*$E6*Main!$C$4)+(FF$2*Main!$C$5)) -> 189.3385451 | FG6: =IF($D6<100,(FG$2*(1+Main!$C$3)*$E6*Main!$C$4)+(FG$2*(1+Main!$C$3)*Main!$C$5),(FG$2*$E6*Main!$C$4)+(FG$2*Main!$C$5)) -> 204.3939766 | FH6: =IF($D6<100,(FH$2*(1+Main!$C$3)*$E6*Main!$C$4)+(FH$2*(1+Main!$C$3)*Main!$C$5),(FH$2*$E6*Main!$C$4)+(FH$2*Main!$C$5)) -> 275.7483241 | FI6: =IF($D6<100,(FI$2*(1+Main!$C$3)*$E6*Main!$C$4)+(FI$2*(1+Main!$C$3)*Main!$C$5),(FI$2*$E6*Main!$C$4)+(FI$2*Main!$C$5)) -> 77.90435989
A7: AK | B7: 21820 | C7: (Fairbanks, Fairbanks North Star Borough) | D7: 21820 | E7: 1.0998 | F7: =IF($D7<100,Main!$C$2*(1+Main!$C$3),Main!$C$2) -> 3039.64 | G7: =G$2*$F7*Main!$C$4*$E7+Main!$C$5*G$2*$F7 -> 1833.922784 | H7: =H$2*$F7*Main!$C$4*$E7+Main!$C$5*H$2*$F7 -> 2265.335479 | I7: =I$2*$F7*Main!$C$4*$E7+Main!$C$5*I$2*$F7 -> 2696.748501 | J7: =J$2*$F7*Main!$C$4*$E7+Main!$C$5*J$2*$F7 -> 3128.160868 | K7: =K$2*$F7*Main!$C$4*$E7+Main!$C$5*K$2*$F7 -> 3559.575202 | L7: =L$2*$F7*Main!$C$4*$E7+Main!$C$5*L$2*$F7 -> 2176.636683 | M7: =M$2*$F7*Main!$C$4*$E7+Main!$C$5*M$2*$F7 -> 2567.397757 | N7: =N$2*$F7*Main!$C$4*$E7+Main!$C$5*N$2*$F7 -> 2958.158831 | O7: =O$2*$F7*Main!$C$4*$E7+Main!$C$5*O$2*$F7 -> 3348.918921 | P7: =P$2*$F7*Main!$C$4*$E7+Main!$C$5*P$2*$F7 -> 3739.681634 | Q7: =Q$2*$F7*Main!$C$4*$E7+Main!$C$5*Q$2*$F7 -> 2340.185229 | R7: =R$2*$F7*Main!$C$4*$E7+Main!$C$5*R$2*$F7 -> 2721.450282 | S7: =S$2*$F7*Main!$C$4*$E7+Main!$C$5*S$2*$F7 -> 3102.715008 | T7: =T$2*$F7*Main!$C$4*$E7+Main!$C$5*T$2*$F7 -> 3483.980717 | U7: =U$2*$F7*Main!$C$4*$E7+Main!$C$5*U$2*$F7 -> 3865.244132 | V7: =V$2*$F7*Main!$C$4*$E7+Main!$C$5*V$2*$F7 -> 1949.695891 | W7: =W$2*$F7*Main!$C$4*$E7+Main!$C$5*W$2*$F7 -> 2401.16561 | X7: =X$2*$F7*Main!$C$4*$E7+Main!$C$5*X$2*$F7 -> 2852.635329 | Y7: =Y$2*$F7*Main!$C$4*$E7+Main!$C$5*Y$2*$F7 -> 3304.103737 | Z7: =Z$2*$F7*Main!$C$4*$E7+Main!$C$5*Z$2*$F7 -> 3755.576078 | AA7: =AA$2*$F7*Main!$C$4*$E7+Main!$C$5*AA$2*$F7 -> 2292.409462 | AB7: =AB$2*$F7*Main!$C$4*$E7+Main!$C$5*AB$2*$F7 -> 2703.227888 | AC7: =AC$2*$F7*Main!$C$4*$E7+Main!$C$5*AC$2*$F7 -> 3114.045658 | AD7: =AD$2*$F7*Main!$C$4*$E7+Main!$C$5*AD$2*$F7 -> 3524.862445 | AE7: =AE$2*$F7*Main!$C$4*$E7+Main!$C$5*AE$2*$F7 -> 3935.68251 | AF7: =AF$2*$F7*Main!$C$4*$E7+Main!$C$5*AF$2*$F7 -> 2455.958008 | AG7: =AG$2*$F7*Main!$C$4*$E7+Main!$C$5*AG$2*$F7 -> 2857.280086 | AH7: =AH$2*$F7*Main!$C$4*$E7+Main!$C$5*AH$2*$F7 -> 3258.602164 | AI7: =AI$2*$F7*Main!$C$4*$E7+Main!$C$5*AI$2*$F7 -> 3659.924241 | AJ7: =AJ$2*$F7*Main!$C$4*$E7+Main!$C$5*AJ$2*$F7 -> 4061.245008 | AK7: =AK$2*$F7*Main!$C$4*$E7+Main!$C$5*AK$2*$F7 -> 2089.393266 | AL7: =AL$2*$F7*Main!$C$4*$E7+Main!$C$5*AL$2*$F7 -> 2590.098392 | AM7: =AM$2*$F7*Main!$C$4*$E7+Main!$C$5*AM$2*$F7 -> 3090.80319 | AN7: =AN$2*$F7*Main!$C$4*$E7+Main!$C$5*AN$2*$F7 -> 3591.508316 | AO7: =AO$2*$F7*Main!$C$4*$E7+Main!$C$5*AO$2*$F7 -> 4092.214425 | AP7: =AP$2*$F7*Main!$C$4*$E7+Main!$C$5*AP$2*$F7 -> 2432.106837 | AQ7: =AQ$2*$F7*Main!$C$4*$E7+Main!$C$5*AQ$2*$F7 -> 2892.160014 | AR7: =AR$2*$F7*Main!$C$4*$E7+Main!$C$5*AR$2*$F7 -> 3352.213192 | AS7: =AS$2*$F7*Main!$C$4*$E7+Main!$C$5*AS$2*$F7 -> 3812.267024 | AT7: =AT$2*$F7*Main!$C$4*$E7+Main!$C$5*AT$2*$F7 -> 4272.320857 | AU7: =AU$2*$F7*Main!$C$4*$E7+Main!$C$5*AU$2*$F7 -> 2595.655055 | AV7: =AV$2*$F7*Main!$C$4*$E7+Main!$C$5*AV$2*$F7 -> 3046.212868 | AW7: =AW$2*$F7*Main!$C$4*$E7+Main!$C$5*AW$2*$F7 -> 3496.771008 | AX7: =AX$2*$F7*Main!$C$4*$E7+Main!$C$5*AX$2*$F7 -> 3947.32882 | AY7: =AY$2*$F7*Main!$C$4*$E7+Main!$C$5*AY$2*$F7 -> 4397.883355 | AZ7: =AZ$2*$F7*Main!$C$4*$E7+Main!$C$5*AZ$2*$F7 -> 3990.986913 | BA7: =BA$2*$F7*Main!$C$4*$E7+Main!$C$5*BA$2*$F7 -> 4525.773148 | BB7: =BB$2*$F7*Main!$C$4*$E7+Main!$C$5*BB$2*$F7 -> 5060.559383 | BC7: =BC$2*$F7*Main!$C$4*$E7+Main!$C$5*BC$2*$F7 -> 4130.44107 | BD7: =BD$2*$F7*Main!$C$4*$E7+Main!$C$5*BD$2*$F7 -> 4658.959996 | BE7: =BE$2*$F7*Main!$C$4*$E7+Main!$C$5*BE$2*$F7 -> 5187.478923 | BF7: =BF$2*$F7*Main!$C$4*$E7+Main!$C$5*BF$2*$F7 -> 4246.510825 | BG7: =BG$2*$F7*Main!$C$4*$E7+Main!$C$5*BG$2*$F7 -> 4785.545193 | BH7: =BH$2*$F7*Main!$C$4*$E7+Main!$C$5*BH$2*$F7 -> 5324.582839 | BI7: =BI$2*$F7*Main!$C$4*$E7+Main!$C$5*BI$2*$F7 -> 4207.045141 | BJ7: =BJ$2*$F7*Main!$C$4*$E7+Main!$C$5*BJ$2*$F7 -> 4784.951897 | BK7: =BK$2*$F7*Main!$C$4*$E7+Main!$C$5*BK$2*$F7 -> 5362.855374 | BL7: =BL$2*$F7*Main!$C$4*$E7+Main!$C$5*BL$2*$F7 -> 4346.499297 | BM7: =BM$2*$F7*Main!$C$4*$E7+Main!$C$5*BM$2*$F7 -> 4918.138745 | BN7: =BN$2*$F7*Main!$C$4*$E7+Main!$C$5*BN$2*$F7 -> 5489.774914 | BO7: =BO$2*$F7*Main!$C$4*$E7+Main!$C$5*BO$2*$F7 -> 4462.569053 | BP7: =BP$2*$F7*Main!$C$4*$E7+Main!$C$5*BP$2*$F7 -> 5044.723941 | BQ7: =BQ$2*$F7*Main!$C$4*$E7+Main!$C$5*BQ$2*$F7 -> 5626.87883 | BR7: =BR$2*$F7*Main!$C$4*$E7+Main!$C$5*BR$2*$F7 -> 4592.917256 | BS7: =BS$2*$F7*Main!$C$4*$E7+Main!$C$5*BS$2*$F7 -> 5306.243096 | BT7: =BT$2*$F7*Main!$C$4*$E7+Main!$C$5*BT$2*$F7 -> 6019.568937 | BU7: =BU$2*$F7*Main!$C$4*$E7+Main!$C$5*BU$2*$F7 -> 4732.37469 | BV7: =BV$2*$F7*Main!$C$4*$E7+Main!$C$5*BV$2*$F7 -> 5439.429945 | BW7: =BW$2*$F7*Main!$C$4*$E7+Main!$C$5*BW$2*$F7 -> 6146.488477 | BX7: =BX$2*$F7*Main!$C$4*$E7+Main!$C$5*BX$2*$F7 -> 4848.441168 | BY7: =BY$2*$F7*Main!$C$4*$E7+Main!$C$5*BY$2*$F7 -> 5566.018419 | BZ7: =BZ$2*$F7*Main!$C$4*$E7+Main!$C$5*BZ$2*$F7 -> 6283.592393 | CA7: =CA$2*$F7*Main!$C$4*$E7+Main!$C$5*CA$2*$F7 -> 4041.112265 | CB7: =CB$2*$F7*Main!$C$4*$E7+Main!$C$5*CB$2*$F7 -> 4559.191142 | CC7: =CC$2*$F7*Main!$C$4*$E7+Main!$C$5*CC$2*$F7 -> 5077.266741 | CD7: =CD$2*$F7*Main!$C$4*$E7+Main!$C$5*CD$2*$F7 -> 4136.413368 | CE7: =CE$2*$F7*Main!$C$4*$E7+Main!$C$5*CE$2*$F7 -> 4662.939344 | CF7: =CF$2*$F7*Main!$C$4*$E7+Main!$C$5*CF$2*$F7 -> 5189.468597 | CG7: =CG$2*$F7*Main!$C$4*$E7+Main!$C$5*CG$2*$F7 -> 4290.106638 | CH7: =CH$2*$F7*Main!$C$4*$E7+Main!$C$5*CH$2*$F7 -> 4814.610161 | CI7: =CI$2*$F7*Main!$C$4*$E7+Main!$C$5*CI$2*$F7 -> 5339.113684 | CJ7: =CJ$2*$F7*Main!$C$4*$E7+Main!$C$5*CJ$2*$F7 -> 4215.364402 | CK7: =CK$2*$F7*Main!$C$4*$E7+Main!$C$5*CK$2*$F7 -> 4790.498071 | CL7: =CL$2*$F7*Main!$C$4*$E7+Main!$C$5*CL$2*$F7 -> 5365.628461 | CM7: =CM$2*$F7*Main!$C$4*$E7+Main!$C$5*CM$2*$F7 -> 4310.665506 | CN7: =CN$2*$F7*Main!$C$4*$E7+Main!$C$5*CN$2*$F7 -> 4894.246272 | CO7: =CO$2*$F7*Main!$C$4*$E7+Main!$C$5*CO$2*$F7 -> 5477.830317 | CP7: =CP$2*$F7*Main!$C$4*$E7+Main!$C$5*CP$2*$F7 -> 4464.358776 | CQ7: =CQ$2*$F7*Main!$C$4*$E7+Main!$C$5*CQ$2*$F7 -> 5045.91709 | CR7: =CR$2*$F7*Main!$C$4*$E7+Main!$C$5*CR$2*$F7 -> 5627.475404 | CS7: =CS$2*$F7*Main!$C$4*$E7+Main!$C$5*CS$2*$F7 -> 4900.628306 | CT7: =CT$2*$F7*Main!$C$4*$E7+Main!$C$5*CT$2*$F7 -> 5511.385982 | CU7: =CU$2*$F7*Main!$C$4*$E7+Main!$C$5*CU$2*$F7 -> 6122.140379 | CV7: =CV$2*$F7*Main!$C$4*$E7+Main!$C$5*CV$2*$F7 -> 4995.929409 | CW7: =CW$2*$F7*Main!$C$4*$E7+Main!$C$5*CW$2*$F7 -> 5615.134183 | CX7: =CX$2*$F7*Main!$C$4*$E7+Main!$C$5*CX$2*$F7 -> 6234.342235 | CY7: =CY$2*$F7*Main!$C$4*$E7+Main!$C$5*CY$2*$F7 -> 5149.622679 | CZ7: =CZ$2*$F7*Main!$C$4*$E7+Main!$C$5*CZ$2*$F7 -> 5766.805001 | DA7: =DA$2*$F7*Main!$C$4*$E7+Main!$C$5*DA$2*$F7 -> 6383.987323 | DB7: =DB$2*$F7*Main!$C$4*$E7+Main!$C$5*DB$2*$F7 -> 1493.767927 | DC7: =DC$2*$F7*Main!$C$4*$E7+Main!$C$5*DC$2*$F7 -> 2003.237122 | DD7: =DD$2*$F7*Main!$C$4*$E7+Main!$C$5*DD$2*$F7 -> 2512.706317 | DE7: =DE$2*$F7*Main!$C$4*$E7+Main!$C$5*DE$2*$F7 -> 3022.175513 | DF7: =DF$2*$F7*Main!$C$4*$E7+Main!$C$5*DF$2*$F7 -> 3531.644381 | DG7: =DG$2*$F7*Main!$C$4*$E7+Main!$C$5*DG$2*$F7 -> 1772.391391 | DH7: =DH$2*$F7*Main!$C$4*$E7+Main!$C$5*DH$2*$F7 -> 2245.195852 | DI7: =DI$2*$F7*Main!$C$4*$E7+Main!$C$5*DI$2*$F7 -> 2717.999657 | DJ7: =DJ$2*$F7*Main!$C$4*$E7+Main!$C$5*DJ$2*$F7 -> 3190.804446 | DK7: =DK$2*$F7*Main!$C$4*$E7+Main!$C$5*DK$2*$F7 -> 3663.608579 | DL7: =DL$2*$F7*Main!$C$4*$E7+Main!$C$5*DL$2*$F7 -> 1919.584296 | DM7: =DM$2*$F7*Main!$C$4*$E7+Main!$C$5*DM$2*$F7 -> 2393.689092 | DN7: =DN$2*$F7*Main!$C$4*$E7+Main!$C$5*DN$2*$F7 -> 2867.79356 | DO7: =DO$2*$F7*Main!$C$4*$E7+Main!$C$5*DO$2*$F7 -> 3341.897701 | DP7: =DP$2*$F7*Main!$C$4*$E7+Main!$C$5*DP$2*$F7 -> 3816.003808 | DQ7: =DQ$2*$F7*Main!$C$4*$E7+Main!$C$5*DQ$2*$F7 -> 1574.173029 | DR7: =DR$2*$F7*Main!$C$4*$E7+Main!$C$5*DR$2*$F7 -> 2102.411369 | DS7: =DS$2*$F7*Main!$C$4*$E7+Main!$C$5*DS$2*$F7 -> 2630.649709 | DT7: =DT$2*$F7*Main!$C$4*$E7+Main!$C$5*DT$2*$F7 -> 3158.88805 | DU7: =DU$2*$F7*Main!$C$4*$E7+Main!$C$5*DU$2*$F7 -> 3687.127373 | DV7: =DV$2*$F7*Main!$C$4*$E7+Main!$C$5*DV$2*$F7 -> 1852.796165 | DW7: =DW$2*$F7*Main!$C$4*$E7+Main!$C$5*DW$2*$F7 -> 2344.369443 | DX7: =DX$2*$F7*Main!$C$4*$E7+Main!$C$5*DX$2*$F7 -> 2835.943049 | DY7: =DY$2*$F7*Main!$C$4*$E7+Main!$C$5*DY$2*$F7 -> 3327.517638 | DZ7: =DZ$2*$F7*Main!$C$4*$E7+Main!$C$5*DZ$2*$F7 -> 3819.091572 | EA7: =EA$2*$F7*Main!$C$4*$E7+Main!$C$5*EA$2*$F7 -> 1999.989398 | EB7: =EB$2*$F7*Main!$C$4*$E7+Main!$C$5*EB$2*$F7 -> 2492.863011 | EC7: =EC$2*$F7*Main!$C$4*$E7+Main!$C$5*EC$2*$F7 -> 2985.736952 | ED7: =ED$2*$F7*Main!$C$4*$E7+Main!$C$5*ED$2*$F7 -> 3478.611549 | EE7: =EE$2*$F7*Main!$C$4*$E7+Main!$C$5*EE$2*$F7 -> 3971.483523 | EF7: =EF$2*$F7*Main!$C$4*$E7+Main!$C$5*EF$2*$F7 -> 1945.629024 | EG7: =EG$2*$F7*Main!$C$4*$E7+Main!$C$5*EG$2*$F7 -> 2536.628946 | EH7: =EH$2*$F7*Main!$C$4*$E7+Main!$C$5*EH$2*$F7 -> 3127.629196 | EI7: =EI$2*$F7*Main!$C$4*$E7+Main!$C$5*EI$2*$F7 -> 3718.627807 | EJ7: =EJ$2*$F7*Main!$C$4*$E7+Main!$C$5*EJ$2*$F7 -> 4309.629695 | EK7: =EK$2*$F7*Main!$C$4*$E7+Main!$C$5*EK$2*$F7 -> 2224.252161 | EL7: =EL$2*$F7*Main!$C$4*$E7+Main!$C$5*EL$2*$F7 -> 2778.587349 | EM7: =EM$2*$F7*Main!$C$4*$E7+Main!$C$5*EM$2*$F7 -> 3332.922864 | EN7: =EN$2*$F7*Main!$C$4*$E7+Main!$C$5*EN$2*$F7 -> 3887.258379 | EO7: =EO$2*$F7*Main!$C$4*$E7+Main!$C$5*EO$2*$F7 -> 4441.593894 | EP7: =EP$2*$F7*Main!$C$4*$E7+Main!$C$5*EP$2*$F7 -> 2371.445394 | EQ7: =EQ$2*$F7*Main!$C$4*$E7+Main!$C$5*EQ$2*$F7 -> 2927.080916 | ER7: =ER$2*$F7*Main!$C$4*$E7+Main!$C$5*ER$2*$F7 -> 3482.715456 | ES7: =ES$2*$F7*Main!$C$4*$E7+Main!$C$5*ES$2*$F7 -> 4038.352289 | ET7: =ET$2*$F7*Main!$C$4*$E7+Main!$C$5*ET$2*$F7 -> 4593.989123 | EU7: =EU$2*$F7*Main!$C$4*$E7+Main!$C$5*EU$2*$F7 -> 5595.34234 | EV7: =EV$2*$F7*Main!$C$4*$E7+Main!$C$5*EV$2*$F7 -> 5715.994572 | EW7: =EW$2*$F7*Main!$C$4*$E7+Main!$C$5*EW$2*$F7 -> 5863.617207 | EX7: =EX$2*$F7*Main!$C$4*$E7+Main!$C$5*EX$2*$F7 -> 5940.762129 | EY7: =EY$2*$F7*Main!$C$4*$E7+Main!$C$5*EY$2*$F7 -> 6061.414362 | EZ7: =EZ$2*$F7*Main!$C$4*$E7+Main!$C$5*EZ$2*$F7 -> 6209.033719 | FA7: =FA$2*$F7*Main!$C$4*$E7+Main!$C$5*FA$2*$F7 -> 6732.894777 | FB7: =FB$2*$F7*Main!$C$4*$E7+Main!$C$5*FB$2*$F7 -> 6853.547009 | FC7: =FC$2*$F7*Main!$C$4*$E7+Main!$C$5*FC$2*$F7 -> 7001.169644 | FD7: =IF($D7<100,(FD$2*(1+Main!$C$3)*$E7*Main!$C$4)+(FD$2*(1+Main!$C$3)*Main!$C$5),(FD$2*$E7*Main!$C$4)+(FD$2*Main!$C$5)) -> 154.6393952 | FE7: =IF($D7<100,(FE$2*(1+Main!$C$3)*$E7*Main!$C$4)+(FE$2*(1+Main!$C$3)*Main!$C$5),(FE$2*$E7*Main!$C$4)+(FE$2*Main!$C$5)) -> 169.0465243 | FF7: =IF($D7<100,(FF$2*(1+Main!$C$3)*$E7*Main!$C$4)+(FF$2*(1+Main!$C$3)*Main!$C$5),(FF$2*$E7*Main!$C$4)+(FF$2*Main!$C$5)) -> 170.2003887 | FG7: =IF($D7<100,(FG$2*(1+Main!$C$3)*$E7*Main!$C$4)+(FG$2*(1+Main!$C$3)*Main!$C$5),(FG$2*$E7*Main!$C$4)+(FG$2*Main!$C$5)) -> 183.7340317 | FH7: =IF($D7<100,(FH$2*(1+Main!$C$3)*$E7*Main!$C$4)+(FH$2*(1+Main!$C$3)*Main!$C$5),(FH$2*$E7*Main!$C$4)+(FH$2*Main!$C$5)) -> 247.875951 | FI7: =IF($D7<100,(FI$2*(1+Main!$C$3)*$E7*Main!$C$4)+(FI$2*(1+Main!$C$3)*Main!$C$5),(FI$2*$E7*Main!$C$4)+(FI$2*Main!$C$5)) -> 70.02986277
A8: AL | B8: 1 | C8: Nonurban | D8: 1 | E8: 0.6828 | F8: =IF($D8<100,Main!$C$2*(1+Main!$C$3),Main!$C$2) -> 3039.64 | G8: =G$2*$F8*Main!$C$4*$E8+Main!$C$5*G$2*$F8 -> 1276.981569 | H8: =H$2*$F8*Main!$C$4*$E8+Main!$C$5*H$2*$F8 -> 1577.3792 | I8: =I$2*$F8*Main!$C$4*$E8+Main!$C$5*I$2*$F8 -> 1877.777059 | J8: =J$2*$F8*Main!$C$4*$E8+Main!$C$5*J$2*$F8 -> 2178.174462 | K8: =K$2*$F8*Main!$C$4*$E8+Main!$C$5*K$2*$F8 -> 2478.573234 | L8: =L$2*$F8*Main!$C$4*$E8+Main!$C$5*L$2*$F8 -> 1515.617206 | M8: =M$2*$F8*Main!$C$4*$E8+Main!$C$5*M$2*$F8 -> 1787.708645 | N8: =N$2*$F8*Main!$C$4*$E8+Main!$C$5*N$2*$F8 -> 2059.800084 | O8: =O$2*$F8*Main!$C$4*$E8+Main!$C$5*O$2*$F8 -> 2331.890838 | P8: =P$2*$F8*Main!$C$4*$E8+Main!$C$5*P$2*$F8 -> 2603.983419 | Q8: =Q$2*$F8*Main!$C$4*$E8+Main!$C$5*Q$2*$F8 -> 1629.497943 | R8: =R$2*$F8*Main!$C$4*$E8+Main!$C$5*R$2*$F8 -> 1894.977194 | S8: =S$2*$F8*Main!$C$4*$E8+Main!$C$5*S$2*$F8 -> 2160.456216 | T8: =T$2*$F8*Main!$C$4*$E8+Main!$C$5*T$2*$F8 -> 2425.935923 | U8: =U$2*$F8*Main!$C$4*$E8+Main!$C$5*U$2*$F8 -> 2691.414033 | V8: =V$2*$F8*Main!$C$4*$E8+Main!$C$5*V$2*$F8 -> 1357.595717 | W8: =W$2*$F8*Main!$C$4*$E8+Main!$C$5*W$2*$F8 -> 1671.959286 | X8: =X$2*$F8*Main!$C$4*$E8+Main!$C$5*X$2*$F8 -> 1986.322854 | Y8: =Y$2*$F8*Main!$C$4*$E8+Main!$C$5*Y$2*$F8 -> 2300.685509 | Z8: =Z$2*$F8*Main!$C$4*$E8+Main!$C$5*Z$2*$F8 -> 2615.050903 | AA8: =AA$2*$F8*Main!$C$4*$E8+Main!$C$5*AA$2*$F8 -> 1596.231126 | AB8: =AB$2*$F8*Main!$C$4*$E8+Main!$C$5*AB$2*$F8 -> 1882.288731 | AC8: =AC$2*$F8*Main!$C$4*$E8+Main!$C$5*AC$2*$F8 -> 2168.345879 | AD8: =AD$2*$F8*Main!$C$4*$E8+Main!$C$5*AD$2*$F8 -> 2454.402342 | AE8: =AE$2*$F8*Main!$C$4*$E8+Main!$C$5*AE$2*$F8 -> 2740.461087 | AF8: =AF$2*$F8*Main!$C$4*$E8+Main!$C$5*AF$2*$F8 -> 1710.111864 | AG8: =AG$2*$F8*Main!$C$4*$E8+Main!$C$5*AG$2*$F8 -> 1989.557051 | AH8: =AH$2*$F8*Main!$C$4*$E8+Main!$C$5*AH$2*$F8 -> 2269.002239 | AI8: =AI$2*$F8*Main!$C$4*$E8+Main!$C$5*AI$2*$F8 -> 2548.447427 | AJ8: =AJ$2*$F8*Main!$C$4*$E8+Main!$C$5*AJ$2*$F8 -> 2827.891701 | AK8: =AK$2*$F8*Main!$C$4*$E8+Main!$C$5*AK$2*$F8 -> 1454.868609 | AL8: =AL$2*$F8*Main!$C$4*$E8+Main!$C$5*AL$2*$F8 -> 1803.515359 | AM8: =AM$2*$F8*Main!$C$4*$E8+Main!$C$5*AM$2*$F8 -> 2152.16188 | AN8: =AN$2*$F8*Main!$C$4*$E8+Main!$C$5*AN$2*$F8 -> 2500.808629 | AO8: =AO$2*$F8*Main!$C$4*$E8+Main!$C$5*AO$2*$F8 -> 2849.456063 | AP8: =AP$2*$F8*Main!$C$4*$E8+Main!$C$5*AP$2*$F8 -> 1693.504018 | AQ8: =AQ$2*$F8*Main!$C$4*$E8+Main!$C$5*AQ$2*$F8 -> 2013.844347 | AR8: =AR$2*$F8*Main!$C$4*$E8+Main!$C$5*AR$2*$F8 -> 2334.184677 | AS8: =AS$2*$F8*Main!$C$4*$E8+Main!$C$5*AS$2*$F8 -> 2654.525462 | AT8: =AT$2*$F8*Main!$C$4*$E8+Main!$C$5*AT$2*$F8 -> 2974.866248 | AU8: =AU$2*$F8*Main!$C$4*$E8+Main!$C$5*AU$2*$F8 -> 1807.384527 | AV8: =AV$2*$F8*Main!$C$4*$E8+Main!$C$5*AV$2*$F8 -> 2121.113125 | AW8: =AW$2*$F8*Main!$C$4*$E8+Main!$C$5*AW$2*$F8 -> 2434.84195 | AX8: =AX$2*$F8*Main!$C$4*$E8+Main!$C$5*AX$2*$F8 -> 2748.570547 | AY8: =AY$2*$F8*Main!$C$4*$E8+Main!$C$5*AY$2*$F8 -> 3062.296862 | AZ8: =AZ$2*$F8*Main!$C$4*$E8+Main!$C$5*AZ$2*$F8 -> 2778.97018 | BA8: =BA$2*$F8*Main!$C$4*$E8+Main!$C$5*BA$2*$F8 -> 3151.347999 | BB8: =BB$2*$F8*Main!$C$4*$E8+Main!$C$5*BB$2*$F8 -> 3523.725817 | BC8: =BC$2*$F8*Main!$C$4*$E8+Main!$C$5*BC$2*$F8 -> 2876.073716 | BD8: =BD$2*$F8*Main!$C$4*$E8+Main!$C$5*BD$2*$F8 -> 3244.087536 | BE8: =BE$2*$F8*Main!$C$4*$E8+Main!$C$5*BE$2*$F8 -> 3612.101355 | BF8: =BF$2*$F8*Main!$C$4*$E8+Main!$C$5*BF$2*$F8 -> 2956.894425 | BG8: =BG$2*$F8*Main!$C$4*$E8+Main!$C$5*BG$2*$F8 -> 3332.230267 | BH8: =BH$2*$F8*Main!$C$4*$E8+Main!$C$5*BH$2*$F8 -> 3707.568392 | BI8: =BI$2*$F8*Main!$C$4*$E8+Main!$C$5*BI$2*$F8 -> 2929.414014 | BJ8: =BJ$2*$F8*Main!$C$4*$E8+Main!$C$5*BJ$2*$F8 -> 3331.817148 | BK8: =BK$2*$F8*Main!$C$4*$E8+Main!$C$5*BK$2*$F8 -> 3734.217999 | BL8: =BL$2*$F8*Main!$C$4*$E8+Main!$C$5*BL$2*$F8 -> 3026.51755 | BM8: =BM$2*$F8*Main!$C$4*$E8+Main!$C$5*BM$2*$F8 -> 3424.556685 | BN8: =BN$2*$F8*Main!$C$4*$E8+Main!$C$5*BN$2*$F8 -> 3822.593538 | BO8: =BO$2*$F8*Main!$C$4*$E8+Main!$C$5*BO$2*$F8 -> 3107.338258 | BP8: =BP$2*$F8*Main!$C$4*$E8+Main!$C$5*BP$2*$F8 -> 3512.699416 | BQ8: =BQ$2*$F8*Main!$C$4*$E8+Main!$C$5*BQ$2*$F8 -> 3918.060574 | BR8: =BR$2*$F8*Main!$C$4*$E8+Main!$C$5*BR$2*$F8 -> 3198.101215 | BS8: =BS$2*$F8*Main!$C$4*$E8+Main!$C$5*BS$2*$F8 -> 3694.798218 | BT8: =BT$2*$F8*Main!$C$4*$E8+Main!$C$5*BT$2*$F8 -> 4191.495221 | BU8: =BU$2*$F8*Main!$C$4*$E8+Main!$C$5*BU$2*$F8 -> 3295.207033 | BV8: =BV$2*$F8*Main!$C$4*$E8+Main!$C$5*BV$2*$F8 -> 3787.537755 | BW8: =BW$2*$F8*Main!$C$4*$E8+Main!$C$5*BW$2*$F8 -> 4279.870759 | BX8: =BX$2*$F8*Main!$C$4*$E8+Main!$C$5*BX$2*$F8 -> 3376.025459 | BY8: =BY$2*$F8*Main!$C$4*$E8+Main!$C$5*BY$2*$F8 -> 3875.682769 | BZ8: =BZ$2*$F8*Main!$C$4*$E8+Main!$C$5*BZ$2*$F8 -> 4375.337796 | CA8: =CA$2*$F8*Main!$C$4*$E8+Main!$C$5*CA$2*$F8 -> 2813.87304 | CB8: =CB$2*$F8*Main!$C$4*$E8+Main!$C$5*CB$2*$F8 -> 3174.617333 | CC8: =CC$2*$F8*Main!$C$4*$E8+Main!$C$5*CC$2*$F8 -> 3535.359343 | CD8: =CD$2*$F8*Main!$C$4*$E8+Main!$C$5*CD$2*$F8 -> 2880.232297 | CE8: =CE$2*$F8*Main!$C$4*$E8+Main!$C$5*CE$2*$F8 -> 3246.858401 | CF8: =CF$2*$F8*Main!$C$4*$E8+Main!$C$5*CF$2*$F8 -> 3613.486788 | CG8: =CG$2*$F8*Main!$C$4*$E8+Main!$C$5*CG$2*$F8 -> 2987.250692 | CH8: =CH$2*$F8*Main!$C$4*$E8+Main!$C$5*CH$2*$F8 -> 3352.468539 | CI8: =CI$2*$F8*Main!$C$4*$E8+Main!$C$5*CI$2*$F8 -> 3717.686387 | CJ8: =CJ$2*$F8*Main!$C$4*$E8+Main!$C$5*CJ$2*$F8 -> 2935.206812 | CK8: =CK$2*$F8*Main!$C$4*$E8+Main!$C$5*CK$2*$F8 -> 3335.679013 | CL8: =CL$2*$F8*Main!$C$4*$E8+Main!$C$5*CL$2*$F8 -> 3736.148931 | CM8: =CM$2*$F8*Main!$C$4*$E8+Main!$C$5*CM$2*$F8 -> 3001.566068 | CN8: =CN$2*$F8*Main!$C$4*$E8+Main!$C$5*CN$2*$F8 -> 3407.920081 | CO8: =CO$2*$F8*Main!$C$4*$E8+Main!$C$5*CO$2*$F8 -> 3814.276377 | CP8: =CP$2*$F8*Main!$C$4*$E8+Main!$C$5*CP$2*$F8 -> 3108.584463 | CQ8: =CQ$2*$F8*Main!$C$4*$E8+Main!$C$5*CQ$2*$F8 -> 3513.530219 | CR8: =CR$2*$F8*Main!$C$4*$E8+Main!$C$5*CR$2*$F8 -> 3918.475976 | CS8: =CS$2*$F8*Main!$C$4*$E8+Main!$C$5*CS$2*$F8 -> 3412.363965 | CT8: =CT$2*$F8*Main!$C$4*$E8+Main!$C$5*CT$2*$F8 -> 3837.641573 | CU8: =CU$2*$F8*Main!$C$4*$E8+Main!$C$5*CU$2*$F8 -> 4262.916898 | CV8: =CV$2*$F8*Main!$C$4*$E8+Main!$C$5*CV$2*$F8 -> 3478.723221 | CW8: =CW$2*$F8*Main!$C$4*$E8+Main!$C$5*CW$2*$F8 -> 3909.882641 | CX8: =CX$2*$F8*Main!$C$4*$E8+Main!$C$5*CX$2*$F8 -> 4341.044344 | CY8: =CY$2*$F8*Main!$C$4*$E8+Main!$C$5*CY$2*$F8 -> 3585.741616 | CZ8: =CZ$2*$F8*Main!$C$4*$E8+Main!$C$5*CZ$2*$F8 -> 4015.492779 | DA8: =DA$2*$F8*Main!$C$4*$E8+Main!$C$5*DA$2*$F8 -> 4445.243942 | DB8: =DB$2*$F8*Main!$C$4*$E8+Main!$C$5*DB$2*$F8 -> 1040.127822 | DC8: =DC$2*$F8*Main!$C$4*$E8+Main!$C$5*DC$2*$F8 -> 1394.877094 | DD8: =DD$2*$F8*Main!$C$4*$E8+Main!$C$5*DD$2*$F8 -> 1749.626366 | DE8: =DE$2*$F8*Main!$C$4*$E8+Main!$C$5*DE$2*$F8 -> 2104.375638 | DF8: =DF$2*$F8*Main!$C$4*$E8+Main!$C$5*DF$2*$F8 -> 2459.124681 | DG8: =DG$2*$F8*Main!$C$4*$E8+Main!$C$5*DG$2*$F8 -> 1234.136551 | DH8: =DH$2*$F8*Main!$C$4*$E8+Main!$C$5*DH$2*$F8 -> 1563.355746 | DI8: =DI$2*$F8*Main!$C$4*$E8+Main!$C$5*DI$2*$F8 -> 1892.574484 | DJ8: =DJ$2*$F8*Main!$C$4*$E8+Main!$C$5*DJ$2*$F8 -> 2221.793907 | DK8: =DK$2*$F8*Main!$C$4*$E8+Main!$C$5*DK$2*$F8 -> 2551.012874 | DL8: =DL$2*$F8*Main!$C$4*$E8+Main!$C$5*DL$2*$F8 -> 1336.628667 | DM8: =DM$2*$F8*Main!$C$4*$E8+Main!$C$5*DM$2*$F8 -> 1666.7533 | DN8: =DN$2*$F8*Main!$C$4*$E8+Main!$C$5*DN$2*$F8 -> 1996.877705 | DO8: =DO$2*$F8*Main!$C$4*$E8+Main!$C$5*DO$2*$F8 -> 2327.001882 | DP8: =DP$2*$F8*Main!$C$4*$E8+Main!$C$5*DP$2*$F8 -> 2657.127428 | DQ8: =DQ$2*$F8*Main!$C$4*$E8+Main!$C$5*DQ$2*$F8 -> 1096.114821 | DR8: =DR$2*$F8*Main!$C$4*$E8+Main!$C$5*DR$2*$F8 -> 1463.933265 | DS8: =DS$2*$F8*Main!$C$4*$E8+Main!$C$5*DS$2*$F8 -> 1831.751709 | DT8: =DT$2*$F8*Main!$C$4*$E8+Main!$C$5*DT$2*$F8 -> 2199.570152 | DU8: =DU$2*$F8*Main!$C$4*$E8+Main!$C$5*DU$2*$F8 -> 2567.389281 | DV8: =DV$2*$F8*Main!$C$4*$E8+Main!$C$5*DV$2*$F8 -> 1290.123322 | DW8: =DW$2*$F8*Main!$C$4*$E8+Main!$C$5*DW$2*$F8 -> 1632.41146 | DX8: =DX$2*$F8*Main!$C$4*$E8+Main!$C$5*DX$2*$F8 -> 1974.699827 | DY8: =DY$2*$F8*Main!$C$4*$E8+Main!$C$5*DY$2*$F8 -> 2316.988878 | DZ8: =DZ$2*$F8*Main!$C$4*$E8+Main!$C$5*DZ$2*$F8 -> 2659.277473 | EA8: =EA$2*$F8*Main!$C$4*$E8+Main!$C$5*EA$2*$F8 -> 1392.615666 | EB8: =EB$2*$F8*Main!$C$4*$E8+Main!$C$5*EB$2*$F8 -> 1735.809243 | EC8: =EC$2*$F8*Main!$C$4*$E8+Main!$C$5*EC$2*$F8 -> 2079.003048 | ED8: =ED$2*$F8*Main!$C$4*$E8+Main!$C$5*ED$2*$F8 -> 2422.197309 | EE8: =EE$2*$F8*Main!$C$4*$E8+Main!$C$5*EE$2*$F8 -> 2765.389745 | EF8: =EF$2*$F8*Main!$C$4*$E8+Main!$C$5*EF$2*$F8 -> 1354.763911 | EG8: =EG$2*$F8*Main!$C$4*$E8+Main!$C$5*EG$2*$F8 -> 1766.283968 | EH8: =EH$2*$F8*Main!$C$4*$E8+Main!$C$5*EH$2*$F8 -> 2177.804252 | EI8: =EI$2*$F8*Main!$C$4*$E8+Main!$C$5*EI$2*$F8 -> 2589.323396 | EJ8: =EJ$2*$F8*Main!$C$4*$E8+Main!$C$5*EJ$2*$F8 -> 3000.844822 | EK8: =EK$2*$F8*Main!$C$4*$E8+Main!$C$5*EK$2*$F8 -> 1548.772412 | EL8: =EL$2*$F8*Main!$C$4*$E8+Main!$C$5*EL$2*$F8 -> 1934.762392 | EM8: =EM$2*$F8*Main!$C$4*$E8+Main!$C$5*EM$2*$F8 -> 2320.752599 | EN8: =EN$2*$F8*Main!$C$4*$E8+Main!$C$5*EN$2*$F8 -> 2706.742806 | EO8: =EO$2*$F8*Main!$C$4*$E8+Main!$C$5*EO$2*$F8 -> 3092.733014 | EP8: =EP$2*$F8*Main!$C$4*$E8+Main!$C$5*EP$2*$F8 -> 1651.264756 | EQ8: =EQ$2*$F8*Main!$C$4*$E8+Main!$C$5*EQ$2*$F8 -> 2038.160174 | ER8: =ER$2*$F8*Main!$C$4*$E8+Main!$C$5*ER$2*$F8 -> 2425.054907 | ES8: =ES$2*$F8*Main!$C$4*$E8+Main!$C$5*ES$2*$F8 -> 2811.951237 | ET8: =ET$2*$F8*Main!$C$4*$E8+Main!$C$5*ET$2*$F8 -> 3198.847568 | EU8: =EU$2*$F8*Main!$C$4*$E8+Main!$C$5*EU$2*$F8 -> 3896.101353 | EV8: =EV$2*$F8*Main!$C$4*$E8+Main!$C$5*EV$2*$F8 -> 3980.112892 | EW8: =EW$2*$F8*Main!$C$4*$E8+Main!$C$5*EW$2*$F8 -> 4082.904234 | EX8: =EX$2*$F8*Main!$C$4*$E8+Main!$C$5*EX$2*$F8 -> 4136.621132 | EY8: =EY$2*$F8*Main!$C$4*$E8+Main!$C$5*EY$2*$F8 -> 4220.632672 | EZ8: =EZ$2*$F8*Main!$C$4*$E8+Main!$C$5*EZ$2*$F8 -> 4323.421732 | FA8: =FA$2*$F8*Main!$C$4*$E8+Main!$C$5*FA$2*$F8 -> 4688.192224 | FB8: =FB$2*$F8*Main!$C$4*$E8+Main!$C$5*FB$2*$F8 -> 4772.203764 | FC8: =FC$2*$F8*Main!$C$4*$E8+Main!$C$5*FC$2*$F8 -> 4874.995106 | FD8: =IF($D8<100,(FD$2*(1+Main!$C$3)*$E8*Main!$C$4)+(FD$2*(1+Main!$C$3)*Main!$C$5),(FD$2*$E8*Main!$C$4)+(FD$2*Main!$C$5)) -> 107.6771929 | FE8: =IF($D8<100,(FE$2*(1+Main!$C$3)*$E8*Main!$C$4)+(FE$2*(1+Main!$C$3)*Main!$C$5),(FE$2*$E8*Main!$C$4)+(FE$2*Main!$C$5)) -> 117.709043 | FF8: =IF($D8<100,(FF$2*(1+Main!$C$3)*$E8*Main!$C$4)+(FF$2*(1+Main!$C$3)*Main!$C$5),(FF$2*$E8*Main!$C$4)+(FF$2*Main!$C$5)) -> 118.5124921 | FG8: =IF($D8<100,(FG$2*(1+Main!$C$3)*$E8*Main!$C$4)+(FG$2*(1+Main!$C$3)*Main!$C$5),(FG$2*$E8*Main!$C$4)+(FG$2*Main!$C$5)) -> 127.9361237 | FH8: =IF($D8<100,(FH$2*(1+Main!$C$3)*$E8*Main!$C$4)+(FH$2*(1+Main!$C$3)*Main!$C$5),(FH$2*$E8*Main!$C$4)+(FH$2*Main!$C$5)) -> 172.5988812 | FI8: =IF($D8<100,(FI$2*(1+Main!$C$3)*$E8*Main!$C$4)+(FI$2*(1+Main!$C$3)*Main!$C$5),(FI$2*$E8*Main!$C$4)+(FI$2*Main!$C$5)) -> 48.76260048
A9: AL | B9: 11500 | C9: (Anniston-Oxford-Jacksonville, Calhoun County) | D9: 11500 | E9: 0.6864 | F9: =IF($D9<100,Main!$C$2*(1+Main!$C$3),Main!$C$2) -> 3039.64 | G9: =G$2*$F9*Main!$C$4*$E9+Main!$C$5*G$2*$F9 -> 1281.789694 | H9: =H$2*$F9*Main!$C$4*$E9+Main!$C$5*H$2*$F9 -> 1583.318391 | I9: =I$2*$F9*Main!$C$4*$E9+Main!$C$5*I$2*$F9 -> 1884.847316 | J9: =J$2*$F9*Main!$C$4*$E9+Main!$C$5*J$2*$F9 -> 2186.375783 | K9: =K$2*$F9*Main!$C$4*$E9+Main!$C$5*K$2*$F9 -> 2487.905625 | L9: =L$2*$F9*Main!$C$4*$E9+Main!$C$5*L$2*$F9 -> 1521.323849 | M9: =M$2*$F9*Main!$C$4*$E9+Main!$C$5*M$2*$F9 -> 1794.439774 | N9: =N$2*$F9*Main!$C$4*$E9+Main!$C$5*N$2*$F9 -> 2067.555699 | O9: =O$2*$F9*Main!$C$4*$E9+Main!$C$5*O$2*$F9 -> 2340.670937 | P9: =P$2*$F9*Main!$C$4*$E9+Main!$C$5*P$2*$F9 -> 2613.788007 | Q9: =Q$2*$F9*Main!$C$4*$E9+Main!$C$5*Q$2*$F9 -> 1635.633373 | R9: =R$2*$F9*Main!$C$4*$E9+Main!$C$5*R$2*$F9 -> 1902.112213 | S9: =S$2*$F9*Main!$C$4*$E9+Main!$C$5*S$2*$F9 -> 2168.590825 | T9: =T$2*$F9*Main!$C$4*$E9+Main!$C$5*T$2*$F9 -> 2435.070123 | U9: =U$2*$F9*Main!$C$4*$E9+Main!$C$5*U$2*$F9 -> 2701.547818 | V9: =V$2*$F9*Main!$C$4*$E9+Main!$C$5*V$2*$F9 -> 1362.707374 | W9: =W$2*$F9*Main!$C$4*$E9+Main!$C$5*W$2*$F9 -> 1678.254592 | X9: =X$2*$F9*Main!$C$4*$E9+Main!$C$5*X$2*$F9 -> 1993.80181 | Y9: =Y$2*$F9*Main!$C$4*$E9+Main!$C$5*Y$2*$F9 -> 2309.348112 | Z9: =Z$2*$F9*Main!$C$4*$E9+Main!$C$5*Z$2*$F9 -> 2624.897163 | AA9: =AA$2*$F9*Main!$C$4*$E9+Main!$C$5*AA$2*$F9 -> 1602.241299 | AB9: =AB$2*$F9*Main!$C$4*$E9+Main!$C$5*AB$2*$F9 -> 1889.375975 | AC9: =AC$2*$F9*Main!$C$4*$E9+Main!$C$5*AC$2*$F9 -> 2176.510193 | AD9: =AD$2*$F9*Main!$C$4*$E9+Main!$C$5*AD$2*$F9 -> 2463.643724 | AE9: =AE$2*$F9*Main!$C$4*$E9+Main!$C$5*AE$2*$F9 -> 2750.779546 | AF9: =AF$2*$F9*Main!$C$4*$E9+Main!$C$5*AF$2*$F9 -> 1716.550823 | AG9: =AG$2*$F9*Main!$C$4*$E9+Main!$C$5*AG$2*$F9 -> 1997.048185 | AH9: =AH$2*$F9*Main!$C$4*$E9+Main!$C$5*AH$2*$F9 -> 2277.545548 | AI9: =AI$2*$F9*Main!$C$4*$E9+Main!$C$5*AI$2*$F9 -> 2558.04291 | AJ9: =AJ$2*$F9*Main!$C$4*$E9+Main!$C$5*AJ$2*$F9 -> 2838.539356 | AK9: =AK$2*$F9*Main!$C$4*$E9+Main!$C$5*AK$2*$F9 -> 1460.34652 | AL9: =AL$2*$F9*Main!$C$4*$E9+Main!$C$5*AL$2*$F9 -> 1810.306004 | AM9: =AM$2*$F9*Main!$C$4*$E9+Main!$C$5*AM$2*$F9 -> 2160.265258 | AN9: =AN$2*$F9*Main!$C$4*$E9+Main!$C$5*AN$2*$F9 -> 2510.224742 | AO9: =AO$2*$F9*Main!$C$4*$E9+Main!$C$5*AO$2*$F9 -> 2860.184912 | AP9: =AP$2*$F9*Main!$C$4*$E9+Main!$C$5*AP$2*$F9 -> 1699.880446 | AQ9: =AQ$2*$F9*Main!$C$4*$E9+Main!$C$5*AQ$2*$F9 -> 2021.426929 | AR9: =AR$2*$F9*Main!$C$4*$E9+Main!$C$5*AR$2*$F9 -> 2342.973412 | AS9: =AS$2*$F9*Main!$C$4*$E9+Main!$C$5*AS$2*$F9 -> 2664.520353 | AT9: =AT$2*$F9*Main!$C$4*$E9+Main!$C$5*AT$2*$F9 -> 2986.067295 | AU9: =AU$2*$F9*Main!$C$4*$E9+Main!$C$5*AU$2*$F9 -> 1814.189741 | AV9: =AV$2*$F9*Main!$C$4*$E9+Main!$C$5*AV$2*$F9 -> 2129.099597 | AW9: =AW$2*$F9*Main!$C$4*$E9+Main!$C$5*AW$2*$F9 -> 2444.009683 | AX9: =AX$2*$F9*Main!$C$4*$E9+Main!$C$5*AX$2*$F9 -> 2758.919539 | AY9: =AY$2*$F9*Main!$C$4*$E9+Main!$C$5*AY$2*$F9 -> 3073.827105 | AZ9: =AZ$2*$F9*Main!$C$4*$E9+Main!$C$5*AZ$2*$F9 -> 2789.433634 | BA9: =BA$2*$F9*Main!$C$4*$E9+Main!$C$5*BA$2*$F9 -> 3163.213539 | BB9: =BB$2*$F9*Main!$C$4*$E9+Main!$C$5*BB$2*$F9 -> 3536.993445 | BC9: =BC$2*$F9*Main!$C$4*$E9+Main!$C$5*BC$2*$F9 -> 2886.902787 | BD9: =BD$2*$F9*Main!$C$4*$E9+Main!$C$5*BD$2*$F9 -> 3256.302262 | BE9: =BE$2*$F9*Main!$C$4*$E9+Main!$C$5*BE$2*$F9 -> 3625.701737 | BF9: =BF$2*$F9*Main!$C$4*$E9+Main!$C$5*BF$2*$F9 -> 2968.027804 | BG9: =BG$2*$F9*Main!$C$4*$E9+Main!$C$5*BG$2*$F9 -> 3344.776871 | BH9: =BH$2*$F9*Main!$C$4*$E9+Main!$C$5*BH$2*$F9 -> 3721.528229 | BI9: =BI$2*$F9*Main!$C$4*$E9+Main!$C$5*BI$2*$F9 -> 2940.443923 | BJ9: =BJ$2*$F9*Main!$C$4*$E9+Main!$C$5*BJ$2*$F9 -> 3344.362196 | BK9: =BK$2*$F9*Main!$C$4*$E9+Main!$C$5*BK$2*$F9 -> 3748.278178 | BL9: =BL$2*$F9*Main!$C$4*$E9+Main!$C$5*BL$2*$F9 -> 3037.913076 | BM9: =BM$2*$F9*Main!$C$4*$E9+Main!$C$5*BM$2*$F9 -> 3437.450919 | BN9: =BN$2*$F9*Main!$C$4*$E9+Main!$C$5*BN$2*$F9 -> 3836.98647 | BO9: =BO$2*$F9*Main!$C$4*$E9+Main!$C$5*BO$2*$F9 -> 3119.038093 | BP9: =BP$2*$F9*Main!$C$4*$E9+Main!$C$5*BP$2*$F9 -> 3525.925527 | BQ9: =BQ$2*$F9*Main!$C$4*$E9+Main!$C$5*BQ$2*$F9 -> 3932.812962 | BR9: =BR$2*$F9*Main!$C$4*$E9+Main!$C$5*BR$2*$F9 -> 3210.142792 | BS9: =BS$2*$F9*Main!$C$4*$E9+Main!$C$5*BS$2*$F9 -> 3708.709972 | BT9: =BT$2*$F9*Main!$C$4*$E9+Main!$C$5*BT$2*$F9 -> 4207.277152 | BU9: =BU$2*$F9*Main!$C$4*$E9+Main!$C$5*BU$2*$F9 -> 3307.614236 | BV9: =BV$2*$F9*Main!$C$4*$E9+Main!$C$5*BV$2*$F9 -> 3801.798695 | BW9: =BW$2*$F9*Main!$C$4*$E9+Main!$C$5*BW$2*$F9 -> 4295.985445 | BX9: =BX$2*$F9*Main!$C$4*$E9+Main!$C$5*BX$2*$F9 -> 3388.736961 | BY9: =BY$2*$F9*Main!$C$4*$E9+Main!$C$5*BY$2*$F9 -> 3890.275594 | BZ9: =BZ$2*$F9*Main!$C$4*$E9+Main!$C$5*BZ$2*$F9 -> 4391.811936 | CA9: =CA$2*$F9*Main!$C$4*$E9+Main!$C$5*CA$2*$F9 -> 2824.467911 | CB9: =CB$2*$F9*Main!$C$4*$E9+Main!$C$5*CB$2*$F9 -> 3186.570488 | CC9: =CC$2*$F9*Main!$C$4*$E9+Main!$C$5*CC$2*$F9 -> 3548.670773 | CD9: =CD$2*$F9*Main!$C$4*$E9+Main!$C$5*CD$2*$F9 -> 2891.077025 | CE9: =CE$2*$F9*Main!$C$4*$E9+Main!$C$5*CE$2*$F9 -> 3259.08356 | CF9: =CF$2*$F9*Main!$C$4*$E9+Main!$C$5*CF$2*$F9 -> 3627.092386 | CG9: =CG$2*$F9*Main!$C$4*$E9+Main!$C$5*CG$2*$F9 -> 2998.498369 | CH9: =CH$2*$F9*Main!$C$4*$E9+Main!$C$5*CH$2*$F9 -> 3365.091345 | CI9: =CI$2*$F9*Main!$C$4*$E9+Main!$C$5*CI$2*$F9 -> 3731.68432 | CJ9: =CJ$2*$F9*Main!$C$4*$E9+Main!$C$5*CJ$2*$F9 -> 2946.258532 | CK9: =CK$2*$F9*Main!$C$4*$E9+Main!$C$5*CK$2*$F9 -> 3348.238602 | CL9: =CL$2*$F9*Main!$C$4*$E9+Main!$C$5*CL$2*$F9 -> 3750.216381 | CM9: =CM$2*$F9*Main!$C$4*$E9+Main!$C$5*CM$2*$F9 -> 3012.867646 | CN9: =CN$2*$F9*Main!$C$4*$E9+Main!$C$5*CN$2*$F9 -> 3420.751674 | CO9: =CO$2*$F9*Main!$C$4*$E9+Main!$C$5*CO$2*$F9 -> 3828.637994 | CP9: =CP$2*$F9*Main!$C$4*$E9+Main!$C$5*CP$2*$F9 -> 3120.28899 | CQ9: =CQ$2*$F9*Main!$C$4*$E9+Main!$C$5*CQ$2*$F9 -> 3526.759459 | CR9: =CR$2*$F9*Main!$C$4*$E9+Main!$C$5*CR$2*$F9 -> 3933.229927 | CS9: =CS$2*$F9*Main!$C$4*$E9+Main!$C$5*CS$2*$F9 -> 3425.21229 | CT9: =CT$2*$F9*Main!$C$4*$E9+Main!$C$5*CT$2*$F9 -> 3852.091165 | CU9: =CU$2*$F9*Main!$C$4*$E9+Main!$C$5*CU$2*$F9 -> 4278.967748 | CV9: =CV$2*$F9*Main!$C$4*$E9+Main!$C$5*CV$2*$F9 -> 3491.821404 | CW9: =CW$2*$F9*Main!$C$4*$E9+Main!$C$5*CW$2*$F9 -> 3924.604237 | CX9: =CX$2*$F9*Main!$C$4*$E9+Main!$C$5*CX$2*$F9 -> 4357.389361 | CY9: =CY$2*$F9*Main!$C$4*$E9+Main!$C$5*CY$2*$F9 -> 3599.242748 | CZ9: =CZ$2*$F9*Main!$C$4*$E9+Main!$C$5*CZ$2*$F9 -> 4030.612022 | DA9: =DA$2*$F9*Main!$C$4*$E9+Main!$C$5*DA$2*$F9 -> 4461.981295 | DB9: =DB$2*$F9*Main!$C$4*$E9+Main!$C$5*DB$2*$F9 -> 1044.044139 | DC9: =DC$2*$F9*Main!$C$4*$E9+Main!$C$5*DC$2*$F9 -> 1400.129123 | DD9: =DD$2*$F9*Main!$C$4*$E9+Main!$C$5*DD$2*$F9 -> 1756.214106 | DE9: =DE$2*$F9*Main!$C$4*$E9+Main!$C$5*DE$2*$F9 -> 2112.29909 | DF9: =DF$2*$F9*Main!$C$4*$E9+Main!$C$5*DF$2*$F9 -> 2468.383844 | DG9: =DG$2*$F9*Main!$C$4*$E9+Main!$C$5*DG$2*$F9 -> 1238.783355 | DH9: =DH$2*$F9*Main!$C$4*$E9+Main!$C$5*DH$2*$F9 -> 1569.242135 | DI9: =DI$2*$F9*Main!$C$4*$E9+Main!$C$5*DI$2*$F9 -> 1899.700457 | DJ9: =DJ$2*$F9*Main!$C$4*$E9+Main!$C$5*DJ$2*$F9 -> 2230.159466 | DK9: =DK$2*$F9*Main!$C$4*$E9+Main!$C$5*DK$2*$F9 -> 2560.618016 | DL9: =DL$2*$F9*Main!$C$4*$E9+Main!$C$5*DL$2*$F9 -> 1341.661377 | DM9: =DM$2*$F9*Main!$C$4*$E9+Main!$C$5*DM$2*$F9 -> 1673.029004 | DN9: =DN$2*$F9*Main!$C$4*$E9+Main!$C$5*DN$2*$F9 -> 2004.396403 | DO9: =DO$2*$F9*Main!$C$4*$E9+Main!$C$5*DO$2*$F9 -> 2335.763572 | DP9: =DP$2*$F9*Main!$C$4*$E9+Main!$C$5*DP$2*$F9 -> 2667.132116 | DQ9: =DQ$2*$F9*Main!$C$4*$E9+Main!$C$5*DQ$2*$F9 -> 1100.241942 | DR9: =DR$2*$F9*Main!$C$4*$E9+Main!$C$5*DR$2*$F9 -> 1469.445306 | DS9: =DS$2*$F9*Main!$C$4*$E9+Main!$C$5*DS$2*$F9 -> 1838.64867 | DT9: =DT$2*$F9*Main!$C$4*$E9+Main!$C$5*DT$2*$F9 -> 2207.852033 | DU9: =DU$2*$F9*Main!$C$4*$E9+Main!$C$5*DU$2*$F9 -> 2577.056085 | DV9: =DV$2*$F9*Main!$C$4*$E9+Main!$C$5*DV$2*$F9 -> 1294.980929 | DW9: =DW$2*$F9*Main!$C$4*$E9+Main!$C$5*DW$2*$F9 -> 1638.55786 | DX9: =DX$2*$F9*Main!$C$4*$E9+Main!$C$5*DX$2*$F9 -> 1982.13502 | DY9: =DY$2*$F9*Main!$C$4*$E9+Main!$C$5*DY$2*$F9 -> 2325.712868 | DZ9: =DZ$2*$F9*Main!$C$4*$E9+Main!$C$5*DZ$2*$F9 -> 2669.290257 | EA9: =EA$2*$F9*Main!$C$4*$E9+Main!$C$5*EA$2*$F9 -> 1397.85918 | EB9: =EB$2*$F9*Main!$C$4*$E9+Main!$C$5*EB$2*$F9 -> 1742.344959 | EC9: =EC$2*$F9*Main!$C$4*$E9+Main!$C$5*EC$2*$F9 -> 2086.830966 | ED9: =ED$2*$F9*Main!$C$4*$E9+Main!$C$5*ED$2*$F9 -> 2431.317432 | EE9: =EE$2*$F9*Main!$C$4*$E9+Main!$C$5*EE$2*$F9 -> 2775.802065 | EF9: =EF$2*$F9*Main!$C$4*$E9+Main!$C$5*EF$2*$F9 -> 1359.864905 | EG9: =EG$2*$F9*Main!$C$4*$E9+Main!$C$5*EG$2*$F9 -> 1772.934428 | EH9: =EH$2*$F9*Main!$C$4*$E9+Main!$C$5*EH$2*$F9 -> 2186.00418 | EI9: =EI$2*$F9*Main!$C$4*$E9+Main!$C$5*EI$2*$F9 -> 2599.072786 | EJ9: =EJ$2*$F9*Main!$C$4*$E9+Main!$C$5*EJ$2*$F9 -> 3012.143684 | EK9: =EK$2*$F9*Main!$C$4*$E9+Main!$C$5*EK$2*$F9 -> 1554.603892 | EL9: =EL$2*$F9*Main!$C$4*$E9+Main!$C$5*EL$2*$F9 -> 1942.047211 | EM9: =EM$2*$F9*Main!$C$4*$E9+Main!$C$5*EM$2*$F9 -> 2329.49076 | EN9: =EN$2*$F9*Main!$C$4*$E9+Main!$C$5*EN$2*$F9 -> 2716.934308 | EO9: =EO$2*$F9*Main!$C$4*$E9+Main!$C$5*EO$2*$F9 -> 3104.377856 | EP9: =EP$2*$F9*Main!$C$4*$E9+Main!$C$5*EP$2*$F9 -> 1657.482143 | EQ9: =EQ$2*$F9*Main!$C$4*$E9+Main!$C$5*EQ$2*$F9 -> 2045.83431 | ER9: =ER$2*$F9*Main!$C$4*$E9+Main!$C$5*ER$2*$F9 -> 2434.185789 | ES9: =ES$2*$F9*Main!$C$4*$E9+Main!$C$5*ES$2*$F9 -> 2822.538872 | ET9: =ET$2*$F9*Main!$C$4*$E9+Main!$C$5*ET$2*$F9 -> 3210.891956 | EU9: =EU$2*$F9*Main!$C$4*$E9+Main!$C$5*EU$2*$F9 -> 3910.771059 | EV9: =EV$2*$F9*Main!$C$4*$E9+Main!$C$5*EV$2*$F9 -> 3995.098921 | EW9: =EW$2*$F9*Main!$C$4*$E9+Main!$C$5*EW$2*$F9 -> 4098.277296 | EX9: =EX$2*$F9*Main!$C$4*$E9+Main!$C$5*EX$2*$F9 -> 4152.19645 | EY9: =EY$2*$F9*Main!$C$4*$E9+Main!$C$5*EY$2*$F9 -> 4236.524313 | EZ9: =EZ$2*$F9*Main!$C$4*$E9+Main!$C$5*EZ$2*$F9 -> 4339.700396 | FA9: =FA$2*$F9*Main!$C$4*$E9+Main!$C$5*FA$2*$F9 -> 4705.844332 | FB9: =FB$2*$F9*Main!$C$4*$E9+Main!$C$5*FB$2*$F9 -> 4790.172195 | FC9: =FC$2*$F9*Main!$C$4*$E9+Main!$C$5*FC$2*$F9 -> 4893.350569 | FD9: =IF($D9<100,(FD$2*(1+Main!$C$3)*$E9*Main!$C$4)+(FD$2*(1+Main!$C$3)*Main!$C$5),(FD$2*$E9*Main!$C$4)+(FD$2*Main!$C$5)) -> 108.082622 | FE9: =IF($D9<100,(FE$2*(1+Main!$C$3)*$E9*Main!$C$4)+(FE$2*(1+Main!$C$3)*Main!$C$5),(FE$2*$E9*Main!$C$4)+(FE$2*Main!$C$5)) -> 118.1522443 | FF9: =IF($D9<100,(FF$2*(1+Main!$C$3)*$E9*Main!$C$4)+(FF$2*(1+Main!$C$3)*Main!$C$5),(FF$2*$E9*Main!$C$4)+(FF$2*Main!$C$5)) -> 118.9587185 | FG9: =IF($D9<100,(FG$2*(1+Main!$C$3)*$E9*Main!$C$4)+(FG$2*(1+Main!$C$3)*Main!$C$5),(FG$2*$E9*Main!$C$4)+(FG$2*Main!$C$5)) -> 128.4178322 | FH9: =IF($D9<100,(FH$2*(1+Main!$C$3)*$E9*Main!$C$4)+(FH$2*(1+Main!$C$3)*Main!$C$5),(FH$2*$E9*Main!$C$4)+(FH$2*Main!$C$5)) -> 173.2487552 | FI9: =IF($D9<100,(FI$2*(1+Main!$C$3)*$E9*Main!$C$4)+(FI$2*(1+Main!$C$3)*Main!$C$5),(FI$2*$E9*Main!$C$4)+(FI$2*Main!$C$5)) -> 48.94620275
A10: AL | B10: 12220 | C10: (Auburn-Opelika, Lee County) | D10: 12220 | E10: 0.7452 | F10: =IF($D10<100,Main!$C$2*(1+Main!$C$3),Main!$C$2) -> 3039.64 | G10: =G$2*$F10*Main!$C$4*$E10+Main!$C$5*G$2*$F10 -> 1360.322413 | H10: =H$2*$F10*Main!$C$4*$E10+Main!$C$5*H$2*$F10 -> 1680.325175 | I10: =I$2*$F10*Main!$C$4*$E10+Main!$C$5*I$2*$F10 -> 2000.328181 | J10: =J$2*$F10*Main!$C$4*$E10+Main!$C$5*J$2*$F10 -> 2320.330701 | K10: =K$2*$F10*Main!$C$4*$E10+Main!$C$5*K$2*$F10 -> 2640.33468 | L10: =L$2*$F10*Main!$C$4*$E10+Main!$C$5*L$2*$F10 -> 1614.532351 | M10: =M$2*$F10*Main!$C$4*$E10+Main!$C$5*M$2*$F10 -> 1904.381548 | N10: =N$2*$F10*Main!$C$4*$E10+Main!$C$5*N$2*$F10 -> 2194.230745 | O10: =O$2*$F10*Main!$C$4*$E10+Main!$C$5*O$2*$F10 -> 2484.079213 | P10: =P$2*$F10*Main!$C$4*$E10+Main!$C$5*P$2*$F10 -> 2773.929626 | Q10: =Q$2*$F10*Main!$C$4*$E10+Main!$C$5*Q$2*$F10 -> 1735.845393 | R10: =R$2*$F10*Main!$C$4*$E10+Main!$C$5*R$2*$F10 -> 2018.650865 | S10: =S$2*$F10*Main!$C$4*$E10+Main!$C$5*S$2*$F10 -> 2301.456093 | T10: =T$2*$F10*Main!$C$4*$E10+Main!$C$5*T$2*$F10 -> 2584.262051 | U10: =U$2*$F10*Main!$C$4*$E10+Main!$C$5*U$2*$F10 -> 2867.066307 | V10: =V$2*$F10*Main!$C$4*$E10+Main!$C$5*V$2*$F10 -> 1446.197758 | W10: =W$2*$F10*Main!$C$4*$E10+Main!$C$5*W$2*$F10 -> 1781.07793 | X10: =X$2*$F10*Main!$C$4*$E10+Main!$C$5*X$2*$F10 -> 2115.958102 | Y10: =Y$2*$F10*Main!$C$4*$E10+Main!$C$5*Y$2*$F10 -> 2450.837301 | Z10: =Z$2*$F10*Main!$C$4*$E10+Main!$C$5*Z$2*$F10 -> 2785.719418 | AA10: =AA$2*$F10*Main!$C$4*$E10+Main!$C$5*AA$2*$F10 -> 1700.407453 | AB10: =AB$2*$F10*Main!$C$4*$E10+Main!$C$5*AB$2*$F10 -> 2005.134302 | AC10: =AC$2*$F10*Main!$C$4*$E10+Main!$C$5*AC$2*$F10 -> 2309.860666 | AD10: =AD$2*$F10*Main!$C$4*$E10+Main!$C$5*AD$2*$F10 -> 2614.5863 | AE10: =AE$2*$F10*Main!$C$4*$E10+Main!$C$5*AE$2*$F10 -> 2919.314365 | AF10: =AF$2*$F10*Main!$C$4*$E10+Main!$C$5*AF$2*$F10 -> 1821.720495 | AG10: =AG$2*$F10*Main!$C$4*$E10+Main!$C$5*AG$2*$F10 -> 2119.403376 | AH10: =AH$2*$F10*Main!$C$4*$E10+Main!$C$5*AH$2*$F10 -> 2417.086257 | AI10: =AI$2*$F10*Main!$C$4*$E10+Main!$C$5*AI$2*$F10 -> 2714.769137 | AJ10: =AJ$2*$F10*Main!$C$4*$E10+Main!$C$5*AJ$2*$F10 -> 3012.451045 | AK10: =AK$2*$F10*Main!$C$4*$E10+Main!$C$5*AK$2*$F10 -> 1549.819062 | AL10: =AL$2*$F10*Main!$C$4*$E10+Main!$C$5*AL$2*$F10 -> 1921.21987 | AM10: =AM$2*$F10*Main!$C$4*$E10+Main!$C$5*AM$2*$F10 -> 2292.620436 | AN10: =AN$2*$F10*Main!$C$4*$E10+Main!$C$5*AN$2*$F10 -> 2664.021244 | AO10: =AO$2*$F10*Main!$C$4*$E10+Main!$C$5*AO$2*$F10 -> 3035.422782 | AP10: =AP$2*$F10*Main!$C$4*$E10+Main!$C$5*AP$2*$F10 -> 1804.028757 | AQ10: =AQ$2*$F10*Main!$C$4*$E10+Main!$C$5*AQ$2*$F10 -> 2145.275757 | AR10: =AR$2*$F10*Main!$C$4*$E10+Main!$C$5*AR$2*$F10 -> 2486.522757 | AS10: =AS$2*$F10*Main!$C$4*$E10+Main!$C$5*AS$2*$F10 -> 2827.770243 | AT10: =AT$2*$F10*Main!$C$4*$E10+Main!$C$5*AT$2*$F10 -> 3169.017729 | AU10: =AU$2*$F10*Main!$C$4*$E10+Main!$C$5*AU$2*$F10 -> 1925.341556 | AV10: =AV$2*$F10*Main!$C$4*$E10+Main!$C$5*AV$2*$F10 -> 2259.545316 | AW10: =AW$2*$F10*Main!$C$4*$E10+Main!$C$5*AW$2*$F10 -> 2593.74932 | AX10: =AX$2*$F10*Main!$C$4*$E10+Main!$C$5*AX$2*$F10 -> 2927.95308 | AY10: =AY$2*$F10*Main!$C$4*$E10+Main!$C$5*AY$2*$F10 -> 3262.154409 | AZ10: =AZ$2*$F10*Main!$C$4*$E10+Main!$C$5*AZ$2*$F10 -> 2960.336713 | BA10: =BA$2*$F10*Main!$C$4*$E10+Main!$C$5*BA$2*$F10 -> 3357.017373 | BB10: =BB$2*$F10*Main!$C$4*$E10+Main!$C$5*BB$2*$F10 -> 3753.698034 | BC10: =BC$2*$F10*Main!$C$4*$E10+Main!$C$5*BC$2*$F10 -> 3063.777608 | BD10: =BD$2*$F10*Main!$C$4*$E10+Main!$C$5*BD$2*$F10 -> 3455.809458 | BE10: =BE$2*$F10*Main!$C$4*$E10+Main!$C$5*BE$2*$F10 -> 3847.841308 | BF10: =BF$2*$F10*Main!$C$4*$E10+Main!$C$5*BF$2*$F10 -> 3149.872994 | BG10: =BG$2*$F10*Main!$C$4*$E10+Main!$C$5*BG$2*$F10 -> 3549.704731 | BH10: =BH$2*$F10*Main!$C$4*$E10+Main!$C$5*BH$2*$F10 -> 3949.538899 | BI10: =BI$2*$F10*Main!$C$4*$E10+Main!$C$5*BI$2*$F10 -> 3120.599104 | BJ10: =BJ$2*$F10*Main!$C$4*$E10+Main!$C$5*BJ$2*$F10 -> 3549.26465 | BK10: =BK$2*$F10*Main!$C$4*$E10+Main!$C$5*BK$2*$F10 -> 3977.927764 | BL10: =BL$2*$F10*Main!$C$4*$E10+Main!$C$5*BL$2*$F10 -> 3224.039999 | BM10: =BM$2*$F10*Main!$C$4*$E10+Main!$C$5*BM$2*$F10 -> 3648.056734 | BN10: =BN$2*$F10*Main!$C$4*$E10+Main!$C$5*BN$2*$F10 -> 4072.071039 | BO10: =BO$2*$F10*Main!$C$4*$E10+Main!$C$5*BO$2*$F10 -> 3310.135385 | BP10: =BP$2*$F10*Main!$C$4*$E10+Main!$C$5*BP$2*$F10 -> 3741.952007 | BQ10: =BQ$2*$F10*Main!$C$4*$E10+Main!$C$5*BQ$2*$F10 -> 4173.76863 | BR10: =BR$2*$F10*Main!$C$4*$E10+Main!$C$5*BR$2*$F10 -> 3406.821889 | BS10: =BS$2*$F10*Main!$C$4*$E10+Main!$C$5*BS$2*$F10 -> 3935.935293 | BT10: =BT$2*$F10*Main!$C$4*$E10+Main!$C$5*BT$2*$F10 -> 4465.048698 | BU10: =BU$2*$F10*Main!$C$4*$E10+Main!$C$5*BU$2*$F10 -> 3510.265215 | BV10: =BV$2*$F10*Main!$C$4*$E10+Main!$C$5*BV$2*$F10 -> 4034.727378 | BW10: =BW$2*$F10*Main!$C$4*$E10+Main!$C$5*BW$2*$F10 -> 4559.191972 | BX10: =BX$2*$F10*Main!$C$4*$E10+Main!$C$5*BX$2*$F10 -> 3596.358169 | BY10: =BY$2*$F10*Main!$C$4*$E10+Main!$C$5*BY$2*$F10 -> 4128.625082 | BZ10: =BZ$2*$F10*Main!$C$4*$E10+Main!$C$5*BZ$2*$F10 -> 4660.889563 | CA10: =CA$2*$F10*Main!$C$4*$E10+Main!$C$5*CA$2*$F10 -> 2997.517471 | CB10: =CB$2*$F10*Main!$C$4*$E10+Main!$C$5*CB$2*$F10 -> 3381.805356 | CC10: =CC$2*$F10*Main!$C$4*$E10+Main!$C$5*CC$2*$F10 -> 3766.090809 | CD10: =CD$2*$F10*Main!$C$4*$E10+Main!$C$5*CD$2*$F10 -> 3068.207594 | CE10: =CE$2*$F10*Main!$C$4*$E10+Main!$C$5*CE$2*$F10 -> 3458.761161 | CF10: =CF$2*$F10*Main!$C$4*$E10+Main!$C$5*CF$2*$F10 -> 3849.317159 | CG10: =CG$2*$F10*Main!$C$4*$E10+Main!$C$5*CG$2*$F10 -> 3182.21043 | CH10: =CH$2*$F10*Main!$C$4*$E10+Main!$C$5*CH$2*$F10 -> 3571.263832 | CI10: =CI$2*$F10*Main!$C$4*$E10+Main!$C$5*CI$2*$F10 -> 3960.317234 | CJ10: =CJ$2*$F10*Main!$C$4*$E10+Main!$C$5*CJ$2*$F10 -> 3126.769962 | CK10: =CK$2*$F10*Main!$C$4*$E10+Main!$C$5*CK$2*$F10 -> 3553.378555 | CL10: =CL$2*$F10*Main!$C$4*$E10+Main!$C$5*CL$2*$F10 -> 3979.984717 | CM10: =CM$2*$F10*Main!$C$4*$E10+Main!$C$5*CM$2*$F10 -> 3197.460085 | CN10: =CN$2*$F10*Main!$C$4*$E10+Main!$C$5*CN$2*$F10 -> 3630.33436 | CO10: =CO$2*$F10*Main!$C$4*$E10+Main!$C$5*CO$2*$F10 -> 4063.211067 | CP10: =CP$2*$F10*Main!$C$4*$E10+Main!$C$5*CP$2*$F10 -> 3311.462921 | CQ10: =CQ$2*$F10*Main!$C$4*$E10+Main!$C$5*CQ$2*$F10 -> 3742.837032 | CR10: =CR$2*$F10*Main!$C$4*$E10+Main!$C$5*CR$2*$F10 -> 4174.211142 | CS10: =CS$2*$F10*Main!$C$4*$E10+Main!$C$5*CS$2*$F10 -> 3635.068269 | CT10: =CT$2*$F10*Main!$C$4*$E10+Main!$C$5*CT$2*$F10 -> 4088.101168 | CU10: =CU$2*$F10*Main!$C$4*$E10+Main!$C$5*CU$2*$F10 -> 4541.131635 | CV10: =CV$2*$F10*Main!$C$4*$E10+Main!$C$5*CV$2*$F10 -> 3705.758392 | CW10: =CW$2*$F10*Main!$C$4*$E10+Main!$C$5*CW$2*$F10 -> 4165.056973 | CX10: =CX$2*$F10*Main!$C$4*$E10+Main!$C$5*CX$2*$F10 -> 4624.357985 | CY10: =CY$2*$F10*Main!$C$4*$E10+Main!$C$5*CY$2*$F10 -> 3819.761229 | CZ10: =CZ$2*$F10*Main!$C$4*$E10+Main!$C$5*CZ$2*$F10 -> 4277.559644 | DA10: =DA$2*$F10*Main!$C$4*$E10+Main!$C$5*DA$2*$F10 -> 4735.35806 | DB10: =DB$2*$F10*Main!$C$4*$E10+Main!$C$5*DB$2*$F10 -> 1108.010657 | DC10: =DC$2*$F10*Main!$C$4*$E10+Main!$C$5*DC$2*$F10 -> 1485.912263 | DD10: =DD$2*$F10*Main!$C$4*$E10+Main!$C$5*DD$2*$F10 -> 1863.813869 | DE10: =DE$2*$F10*Main!$C$4*$E10+Main!$C$5*DE$2*$F10 -> 2241.715475 | DF10: =DF$2*$F10*Main!$C$4*$E10+Main!$C$5*DF$2*$F10 -> 2619.616838 | DG10: =DG$2*$F10*Main!$C$4*$E10+Main!$C$5*DG$2*$F10 -> 1314.68116 | DH10: =DH$2*$F10*Main!$C$4*$E10+Main!$C$5*DH$2*$F10 -> 1665.386495 | DI10: =DI$2*$F10*Main!$C$4*$E10+Main!$C$5*DI$2*$F10 -> 2016.091344 | DJ10: =DJ$2*$F10*Main!$C$4*$E10+Main!$C$5*DJ$2*$F10 -> 2366.796923 | DK10: =DK$2*$F10*Main!$C$4*$E10+Main!$C$5*DK$2*$F10 -> 2717.502015 | DL10: =DL$2*$F10*Main!$C$4*$E10+Main!$C$5*DL$2*$F10 -> 1423.862315 | DM10: =DM$2*$F10*Main!$C$4*$E10+Main!$C$5*DM$2*$F10 -> 1775.532181 | DN10: =DN$2*$F10*Main!$C$4*$E10+Main!$C$5*DN$2*$F10 -> 2127.201804 | DO10: =DO$2*$F10*Main!$C$4*$E10+Main!$C$5*DO$2*$F10 -> 2478.871184 | DP10: =DP$2*$F10*Main!$C$4*$E10+Main!$C$5*DP$2*$F10 -> 2830.542023 | DQ10: =DQ$2*$F10*Main!$C$4*$E10+Main!$C$5*DQ$2*$F10 -> 1167.651589 | DR10: =DR$2*$F10*Main!$C$4*$E10+Main!$C$5*DR$2*$F10 -> 1559.475312 | DS10: =DS$2*$F10*Main!$C$4*$E10+Main!$C$5*DS$2*$F10 -> 1951.299035 | DT10: =DT$2*$F10*Main!$C$4*$E10+Main!$C$5*DT$2*$F10 -> 2343.122759 | DU10: =DU$2*$F10*Main!$C$4*$E10+Main!$C$5*DU$2*$F10 -> 2734.947211 | DV10: =DV$2*$F10*Main!$C$4*$E10+Main!$C$5*DV$2*$F10 -> 1374.321848 | DW10: =DW$2*$F10*Main!$C$4*$E10+Main!$C$5*DW$2*$F10 -> 1738.949058 | DX10: =DX$2*$F10*Main!$C$4*$E10+Main!$C$5*DX$2*$F10 -> 2103.576511 | DY10: =DY$2*$F10*Main!$C$4*$E10+Main!$C$5*DY$2*$F10 -> 2468.204693 | DZ10: =DZ$2*$F10*Main!$C$4*$E10+Main!$C$5*DZ$2*$F10 -> 2832.832389 | EA10: =EA$2*$F10*Main!$C$4*$E10+Main!$C$5*EA$2*$F10 -> 1483.503246 | EB10: =EB$2*$F10*Main!$C$4*$E10+Main!$C$5*EB$2*$F10 -> 1849.094986 | EC10: =EC$2*$F10*Main!$C$4*$E10+Main!$C$5*EC$2*$F10 -> 2214.68697 | ED10: =ED$2*$F10*Main!$C$4*$E10+Main!$C$5*ED$2*$F10 -> 2580.27944 | EE10: =EE$2*$F10*Main!$C$4*$E10+Main!$C$5*EE$2*$F10 -> 2945.869965 | EF10: =EF$2*$F10*Main!$C$4*$E10+Main!$C$5*EF$2*$F10 -> 1443.181137 | EG10: =EG$2*$F10*Main!$C$4*$E10+Main!$C$5*EG$2*$F10 -> 1881.558612 | EH10: =EH$2*$F10*Main!$C$4*$E10+Main!$C$5*EH$2*$F10 -> 2319.93633 | EI10: =EI$2*$F10*Main!$C$4*$E10+Main!$C$5*EI$2*$F10 -> 2758.312833 | EJ10: =EJ$2*$F10*Main!$C$4*$E10+Main!$C$5*EJ$2*$F10 -> 3196.691767 | EK10: =EK$2*$F10*Main!$C$4*$E10+Main!$C$5*EK$2*$F10 -> 1649.851396 | EL10: =EL$2*$F10*Main!$C$4*$E10+Main!$C$5*EL$2*$F10 -> 2061.032601 | EM10: =EM$2*$F10*Main!$C$4*$E10+Main!$C$5*EM$2*$F10 -> 2472.214049 | EN10: =EN$2*$F10*Main!$C$4*$E10+Main!$C$5*EN$2*$F10 -> 2883.395496 | EO10: =EO$2*$F10*Main!$C$4*$E10+Main!$C$5*EO$2*$F10 -> 3294.576944 | EP10: =EP$2*$F10*Main!$C$4*$E10+Main!$C$5*EP$2*$F10 -> 1759.032794 | EQ10: =EQ$2*$F10*Main!$C$4*$E10+Main!$C$5*EQ$2*$F10 -> 2171.17853 | ER10: =ER$2*$F10*Main!$C$4*$E10+Main!$C$5*ER$2*$F10 -> 2583.323536 | ES10: =ES$2*$F10*Main!$C$4*$E10+Main!$C$5*ES$2*$F10 -> 2995.470244 | ET10: =ET$2*$F10*Main!$C$4*$E10+Main!$C$5*ET$2*$F10 -> 3407.616952 | EU10: =EU$2*$F10*Main!$C$4*$E10+Main!$C$5*EU$2*$F10 -> 4150.376263 | EV10: =EV$2*$F10*Main!$C$4*$E10+Main!$C$5*EV$2*$F10 -> 4239.870727 | EW10: =EW$2*$F10*Main!$C$4*$E10+Main!$C$5*EW$2*$F10 -> 4349.370636 | EX10: =EX$2*$F10*Main!$C$4*$E10+Main!$C$5*EX$2*$F10 -> 4406.59331 | EY10: =EY$2*$F10*Main!$C$4*$E10+Main!$C$5*EY$2*$F10 -> 4496.087774 | EZ10: =EZ$2*$F10*Main!$C$4*$E10+Main!$C$5*EZ$2*$F10 -> 4605.585252 | FA10: =FA$2*$F10*Main!$C$4*$E10+Main!$C$5*FA$2*$F10 -> 4994.162102 | FB10: =FB$2*$F10*Main!$C$4*$E10+Main!$C$5*FB$2*$F10 -> 5083.656566 | FC10: =FC$2*$F10*Main!$C$4*$E10+Main!$C$5*FC$2*$F10 -> 5193.156475 | FD10: =IF($D10<100,(FD$2*(1+Main!$C$3)*$E10*Main!$C$4)+(FD$2*(1+Main!$C$3)*Main!$C$5),(FD$2*$E10*Main!$C$4)+(FD$2*Main!$C$5)) -> 114.7046304 | FE10: =IF($D10<100,(FE$2*(1+Main!$C$3)*$E10*Main!$C$4)+(FE$2*(1+Main!$C$3)*Main!$C$5),(FE$2*$E10*Main!$C$4)+(FE$2*Main!$C$5)) -> 125.3911985 | FF10: =IF($D10<100,(FF$2*(1+Main!$C$3)*$E10*Main!$C$4)+(FF$2*(1+Main!$C$3)*Main!$C$5),(FF$2*$E10*Main!$C$4)+(FF$2*Main!$C$5)) -> 126.2470838 | FG10: =IF($D10<100,(FG$2*(1+Main!$C$3)*$E10*Main!$C$4)+(FG$2*(1+Main!$C$3)*Main!$C$5),(FG$2*$E10*Main!$C$4)+(FG$2*Main!$C$5)) -> 136.2857387 | FH10: =IF($D10<100,(FH$2*(1+Main!$C$3)*$E10*Main!$C$4)+(FH$2*(1+Main!$C$3)*Main!$C$5),(FH$2*$E10*Main!$C$4)+(FH$2*Main!$C$5)) -> 183.8633636 | FI10: =IF($D10<100,(FI$2*(1+Main!$C$3)*$E10*Main!$C$4)+(FI$2*(1+Main!$C$3)*Main!$C$5),(FI$2*$E10*Main!$C$4)+(FI$2*Main!$C$5)) -> 51.94503973
A11: AL | B11: 13820 | C11: (Bibb County, Birmingham-Hoover, Blount County, Chilton County, Jefferson County, Shelby County, St. Clair County, Walker County) | D11: 13820 | E11: 0.8168 | F11: =IF($D11<100,Main!$C$2*(1+Main!$C$3),Main!$C$2) -> 3039.64 | G11: =G$2*$F11*Main!$C$4*$E11+Main!$C$5*G$2*$F11 -> 1455.950688 | H11: =H$2*$F11*Main!$C$4*$E11+Main!$C$5*H$2*$F11 -> 1798.449083 | I11: =I$2*$F11*Main!$C$4*$E11+Main!$C$5*I$2*$F11 -> 2140.947738 | J11: =J$2*$F11*Main!$C$4*$E11+Main!$C$5*J$2*$F11 -> 2483.445873 | K11: =K$2*$F11*Main!$C$4*$E11+Main!$C$5*K$2*$F11 -> 2825.945569 | L11: =L$2*$F11*Main!$C$4*$E11+Main!$C$5*L$2*$F11 -> 1728.031139 | M11: =M$2*$F11*Main!$C$4*$E11+Main!$C$5*M$2*$F11 -> 2038.256225 | N11: =N$2*$F11*Main!$C$4*$E11+Main!$C$5*N$2*$F11 -> 2348.481312 | O11: =O$2*$F11*Main!$C$4*$E11+Main!$C$5*O$2*$F11 -> 2658.705618 | P11: =P$2*$F11*Main!$C$4*$E11+Main!$C$5*P$2*$F11 -> 2968.932006 | Q11: =Q$2*$F11*Main!$C$4*$E11+Main!$C$5*Q$2*$F11 -> 1857.872275 | R11: =R$2*$F11*Main!$C$4*$E11+Main!$C$5*R$2*$F11 -> 2160.558474 | S11: =S$2*$F11*Main!$C$4*$E11+Main!$C$5*S$2*$F11 -> 2463.244413 | T11: =T$2*$F11*Main!$C$4*$E11+Main!$C$5*T$2*$F11 -> 2765.931133 | U11: =U$2*$F11*Main!$C$4*$E11+Main!$C$5*U$2*$F11 -> 3068.616031 | V11: =V$2*$F11*Main!$C$4*$E11+Main!$C$5*V$2*$F11 -> 1547.86292 | W11: =W$2*$F11*Main!$C$4*$E11+Main!$C$5*W$2*$F11 -> 1906.284579 | X11: =X$2*$F11*Main!$C$4*$E11+Main!$C$5*X$2*$F11 -> 2264.706239 | Y11: =Y$2*$F11*Main!$C$4*$E11+Main!$C$5*Y$2*$F11 -> 2623.126858 | Z11: =Z$2*$F11*Main!$C$4*$E11+Main!$C$5*Z$2*$F11 -> 2981.550599 | AA11: =AA$2*$F11*Main!$C$4*$E11+Main!$C$5*AA$2*$F11 -> 1819.94311 | AB11: =AB$2*$F11*Main!$C$4*$E11+Main!$C$5*AB$2*$F11 -> 2146.091721 | AC11: =AC$2*$F11*Main!$C$4*$E11+Main!$C$5*AC$2*$F11 -> 2472.239813 | AD11: =AD$2*$F11*Main!$C$4*$E11+Main!$C$5*AD$2*$F11 -> 2798.387123 | AE11: =AE$2*$F11*Main!$C$4*$E11+Main!$C$5*AE$2*$F11 -> 3124.537036 | AF11: =AF$2*$F11*Main!$C$4*$E11+Main!$C$5*AF$2*$F11 -> 1949.784246 | AG11: =AG$2*$F11*Main!$C$4*$E11+Main!$C$5*AG$2*$F11 -> 2268.39371 | AH11: =AH$2*$F11*Main!$C$4*$E11+Main!$C$5*AH$2*$F11 -> 2587.003174 | AI11: =AI$2*$F11*Main!$C$4*$E11+Main!$C$5*AI$2*$F11 -> 2905.612638 | AJ11: =AJ$2*$F11*Main!$C$4*$E11+Main!$C$5*AJ$2*$F11 -> 3224.221061 | AK11: =AK$2*$F11*Main!$C$4*$E11+Main!$C$5*AK$2*$F11 -> 1658.768619 | AL11: =AL$2*$F11*Main!$C$4*$E11+Main!$C$5*AL$2*$F11 -> 2056.278252 | AM11: =AM$2*$F11*Main!$C$4*$E11+Main!$C$5*AM$2*$F11 -> 2453.787625 | AN11: =AN$2*$F11*Main!$C$4*$E11+Main!$C$5*AN$2*$F11 -> 2851.297257 | AO11: =AO$2*$F11*Main!$C$4*$E11+Main!$C$5*AO$2*$F11 -> 3248.807671 | AP11: =AP$2*$F11*Main!$C$4*$E11+Main!$C$5*AP$2*$F11 -> 1930.848809 | AQ11: =AQ$2*$F11*Main!$C$4*$E11+Main!$C$5*AQ$2*$F11 -> 2296.084874 | AR11: =AR$2*$F11*Main!$C$4*$E11+Main!$C$5*AR$2*$F11 -> 2661.320938 | AS11: =AS$2*$F11*Main!$C$4*$E11+Main!$C$5*AS$2*$F11 -> 3026.557523 | AT11: =AT$2*$F11*Main!$C$4*$E11+Main!$C$5*AT$2*$F11 -> 3391.794108 | AU11: =AU$2*$F11*Main!$C$4*$E11+Main!$C$5*AU$2*$F11 -> 2060.689685 | AV11: =AV$2*$F11*Main!$C$4*$E11+Main!$C$5*AV$2*$F11 -> 2418.387383 | AW11: =AW$2*$F11*Main!$C$4*$E11+Main!$C$5*AW$2*$F11 -> 2776.08534 | AX11: =AX$2*$F11*Main!$C$4*$E11+Main!$C$5*AX$2*$F11 -> 3133.783038 | AY11: =AY$2*$F11*Main!$C$4*$E11+Main!$C$5*AY$2*$F11 -> 3491.478133 | AZ11: =AZ$2*$F11*Main!$C$4*$E11+Main!$C$5*AZ$2*$F11 -> 3168.443183 | BA11: =BA$2*$F11*Main!$C$4*$E11+Main!$C$5*BA$2*$F11 -> 3593.009797 | BB11: =BB$2*$F11*Main!$C$4*$E11+Main!$C$5*BB$2*$F11 -> 4017.576411 | BC11: =BC$2*$F11*Main!$C$4*$E11+Main!$C$5*BC$2*$F11 -> 3279.155791 | BD11: =BD$2*$F11*Main!$C$4*$E11+Main!$C$5*BD$2*$F11 -> 3698.746792 | BE11: =BE$2*$F11*Main!$C$4*$E11+Main!$C$5*BE$2*$F11 -> 4118.337792 | BF11: =BF$2*$F11*Main!$C$4*$E11+Main!$C$5*BF$2*$F11 -> 3371.303532 | BG11: =BG$2*$F11*Main!$C$4*$E11+Main!$C$5*BG$2*$F11 -> 3799.242737 | BH11: =BH$2*$F11*Main!$C$4*$E11+Main!$C$5*BH$2*$F11 -> 4227.184545 | BI11: =BI$2*$F11*Main!$C$4*$E11+Main!$C$5*BI$2*$F11 -> 3339.971739 | BJ11: =BJ$2*$F11*Main!$C$4*$E11+Main!$C$5*BJ$2*$F11 -> 3798.771719 | BK11: =BK$2*$F11*Main!$C$4*$E11+Main!$C$5*BK$2*$F11 -> 4257.569098 | BL11: =BL$2*$F11*Main!$C$4*$E11+Main!$C$5*BL$2*$F11 -> 3450.684347 | BM11: =BM$2*$F11*Main!$C$4*$E11+Main!$C$5*BM$2*$F11 -> 3904.508714 | BN11: =BN$2*$F11*Main!$C$4*$E11+Main!$C$5*BN$2*$F11 -> 4358.330479 | BO11: =BO$2*$F11*Main!$C$4*$E11+Main!$C$5*BO$2*$F11 -> 3542.832087 | BP11: =BP$2*$F11*Main!$C$4*$E11+Main!$C$5*BP$2*$F11 -> 4005.004659 | BQ11: =BQ$2*$F11*Main!$C$4*$E11+Main!$C$5*BQ$2*$F11 -> 4467.177232 | BR11: =BR$2*$F11*Main!$C$4*$E11+Main!$C$5*BR$2*$F11 -> 3646.315482 | BS11: =BS$2*$F11*Main!$C$4*$E11+Main!$C$5*BS$2*$F11 -> 4212.62463 | BT11: =BT$2*$F11*Main!$C$4*$E11+Main!$C$5*BT$2*$F11 -> 4778.933777 | BU11: =BU$2*$F11*Main!$C$4*$E11+Main!$C$5*BU$2*$F11 -> 3757.030693 | BV11: =BV$2*$F11*Main!$C$4*$E11+Main!$C$5*BV$2*$F11 -> 4318.361624 | BW11: =BW$2*$F11*Main!$C$4*$E11+Main!$C$5*BW$2*$F11 -> 4879.695158 | BX11: =BX$2*$F11*Main!$C$4*$E11+Main!$C$5*BX$2*$F11 -> 3849.175831 | BY11: =BY$2*$F11*Main!$C$4*$E11+Main!$C$5*BY$2*$F11 -> 4418.860172 | BZ11: =BZ$2*$F11*Main!$C$4*$E11+Main!$C$5*BZ$2*$F11 -> 4988.541911 | CA11: =CA$2*$F11*Main!$C$4*$E11+Main!$C$5*CA$2*$F11 -> 3208.237683 | CB11: =CB$2*$F11*Main!$C$4*$E11+Main!$C$5*CB$2*$F11 -> 3619.540331 | CC11: =CC$2*$F11*Main!$C$4*$E11+Main!$C$5*CC$2*$F11 -> 4030.840377 | CD11: =CD$2*$F11*Main!$C$4*$E11+Main!$C$5*CD$2*$F11 -> 3283.897197 | CE11: =CE$2*$F11*Main!$C$4*$E11+Main!$C$5*CE$2*$F11 -> 3701.905994 | CF11: =CF$2*$F11*Main!$C$4*$E11+Main!$C$5*CF$2*$F11 -> 4119.917393 | CG11: =CG$2*$F11*Main!$C$4*$E11+Main!$C$5*CG$2*$F11 -> 3405.914233 | CH11: =CH$2*$F11*Main!$C$4*$E11+Main!$C$5*CH$2*$F11 -> 3822.317406 | CI11: =CI$2*$F11*Main!$C$4*$E11+Main!$C$5*CI$2*$F11 -> 4238.720578 | CJ11: =CJ$2*$F11*Main!$C$4*$E11+Main!$C$5*CJ$2*$F11 -> 3346.576397 | CK11: =CK$2*$F11*Main!$C$4*$E11+Main!$C$5*CK$2*$F11 -> 3803.174825 | CL11: =CL$2*$F11*Main!$C$4*$E11+Main!$C$5*CL$2*$F11 -> 4259.770651 | CM11: =CM$2*$F11*Main!$C$4*$E11+Main!$C$5*CM$2*$F11 -> 3422.235911 | CN11: =CN$2*$F11*Main!$C$4*$E11+Main!$C$5*CN$2*$F11 -> 3885.540488 | CO11: =CO$2*$F11*Main!$C$4*$E11+Main!$C$5*CO$2*$F11 -> 4348.847667 | CP11: =CP$2*$F11*Main!$C$4*$E11+Main!$C$5*CP$2*$F11 -> 3544.252947 | CQ11: =CQ$2*$F11*Main!$C$4*$E11+Main!$C$5*CQ$2*$F11 -> 4005.9519 | CR11: =CR$2*$F11*Main!$C$4*$E11+Main!$C$5*CR$2*$F11 -> 4467.650852 | CS11: =CS$2*$F11*Main!$C$4*$E11+Main!$C$5*CS$2*$F11 -> 3890.607182 | CT11: =CT$2*$F11*Main!$C$4*$E11+Main!$C$5*CT$2*$F11 -> 4375.487498 | CU11: =CU$2*$F11*Main!$C$4*$E11+Main!$C$5*CU$2*$F11 -> 4860.365211 | CV11: =CV$2*$F11*Main!$C$4*$E11+Main!$C$5*CV$2*$F11 -> 3966.266697 | CW11: =CW$2*$F11*Main!$C$4*$E11+Main!$C$5*CW$2*$F11 -> 4457.853161 | CX11: =CX$2*$F11*Main!$C$4*$E11+Main!$C$5*CX$2*$F11 -> 4949.442227 | CY11: =CY$2*$F11*Main!$C$4*$E11+Main!$C$5*CY$2*$F11 -> 4088.283732 | CZ11: =CZ$2*$F11*Main!$C$4*$E11+Main!$C$5*CZ$2*$F11 -> 4578.264572 | DA11: =DA$2*$F11*Main!$C$4*$E11+Main!$C$5*DA$2*$F11 -> 5068.245412 | DB11: =DB$2*$F11*Main!$C$4*$E11+Main!$C$5*DB$2*$F11 -> 1185.90186 | DC11: =DC$2*$F11*Main!$C$4*$E11+Main!$C$5*DC$2*$F11 -> 1590.369285 | DD11: =DD$2*$F11*Main!$C$4*$E11+Main!$C$5*DD$2*$F11 -> 1994.83671 | DE11: =DE$2*$F11*Main!$C$4*$E11+Main!$C$5*DE$2*$F11 -> 2399.304135 | DF11: =DF$2*$F11*Main!$C$4*$E11+Main!$C$5*DF$2*$F11 -> 2803.771299 | DG11: =DG$2*$F11*Main!$C$4*$E11+Main!$C$5*DG$2*$F11 -> 1407.100936 | DH11: =DH$2*$F11*Main!$C$4*$E11+Main!$C$5*DH$2*$F11 -> 1782.46024 | DI11: =DI$2*$F11*Main!$C$4*$E11+Main!$C$5*DI$2*$F11 -> 2157.819024 | DJ11: =DJ$2*$F11*Main!$C$4*$E11+Main!$C$5*DJ$2*$F11 -> 2533.178589 | DK11: =DK$2*$F11*Main!$C$4*$E11+Main!$C$5*DK$2*$F11 -> 2908.537633 | DL11: =DL$2*$F11*Main!$C$4*$E11+Main!$C$5*DL$2*$F11 -> 1523.957334 | DM11: =DM$2*$F11*Main!$C$4*$E11+Main!$C$5*DM$2*$F11 -> 1900.348974 | DN11: =DN$2*$F11*Main!$C$4*$E11+Main!$C$5*DN$2*$F11 -> 2276.740354 | DO11: =DO$2*$F11*Main!$C$4*$E11+Main!$C$5*DO$2*$F11 -> 2653.131473 | DP11: =DP$2*$F11*Main!$C$4*$E11+Main!$C$5*DP$2*$F11 -> 3029.524154 | DQ11: =DQ$2*$F11*Main!$C$4*$E11+Main!$C$5*DQ$2*$F11 -> 1249.735444 | DR11: =DR$2*$F11*Main!$C$4*$E11+Main!$C$5*DR$2*$F11 -> 1669.103687 | DS11: =DS$2*$F11*Main!$C$4*$E11+Main!$C$5*DS$2*$F11 -> 2088.471929 | DT11: =DT$2*$F11*Main!$C$4*$E11+Main!$C$5*DT$2*$F11 -> 2507.840172 | DU11: =DU$2*$F11*Main!$C$4*$E11+Main!$C$5*DU$2*$F11 -> 2927.209195 | DV11: =DV$2*$F11*Main!$C$4*$E11+Main!$C$5*DV$2*$F11 -> 1470.93426 | DW11: =DW$2*$F11*Main!$C$4*$E11+Main!$C$5*DW$2*$F11 -> 1861.194122 | DX11: =DX$2*$F11*Main!$C$4*$E11+Main!$C$5*DX$2*$F11 -> 2251.454244 | DY11: =DY$2*$F11*Main!$C$4*$E11+Main!$C$5*DY$2*$F11 -> 2641.715147 | DZ11: =DZ$2*$F11*Main!$C$4*$E11+Main!$C$5*DZ$2*$F11 -> 3031.975529 | EA11: =EA$2*$F11*Main!$C$4*$E11+Main!$C$5*EA$2*$F11 -> 1587.790918 | EB11: =EB$2*$F11*Main!$C$4*$E11+Main!$C$5*EB$2*$F11 -> 1979.083116 | EC11: =EC$2*$F11*Main!$C$4*$E11+Main!$C$5*EC$2*$F11 -> 2370.375573 | ED11: =ED$2*$F11*Main!$C$4*$E11+Main!$C$5*ED$2*$F11 -> 2761.668552 | EE11: =EE$2*$F11*Main!$C$4*$E11+Main!$C$5*EE$2*$F11 -> 3152.959448 | EF11: =EF$2*$F11*Main!$C$4*$E11+Main!$C$5*EF$2*$F11 -> 1544.634235 | EG11: =EG$2*$F11*Main!$C$4*$E11+Main!$C$5*EG$2*$F11 -> 2013.828877 | EH11: =EH$2*$F11*Main!$C$4*$E11+Main!$C$5*EH$2*$F11 -> 2483.023779 | EI11: =EI$2*$F11*Main!$C$4*$E11+Main!$C$5*EI$2*$F11 -> 2952.217379 | EJ11: =EJ$2*$F11*Main!$C$4*$E11+Main!$C$5*EJ$2*$F11 -> 3421.413582 | EK11: =EK$2*$F11*Main!$C$4*$E11+Main!$C$5*EK$2*$F11 -> 1765.833051 | EL11: =EL$2*$F11*Main!$C$4*$E11+Main!$C$5*EL$2*$F11 -> 2205.919572 | EM11: =EM$2*$F11*Main!$C$4*$E11+Main!$C$5*EM$2*$F11 -> 2646.006353 | EN11: =EN$2*$F11*Main!$C$4*$E11+Main!$C$5*EN$2*$F11 -> 3086.093134 | EO11: =EO$2*$F11*Main!$C$4*$E11+Main!$C$5*EO$2*$F11 -> 3526.179915 | EP11: =EP$2*$F11*Main!$C$4*$E11+Main!$C$5*EP$2*$F11 -> 1882.689709 | EQ11: =EQ$2*$F11*Main!$C$4*$E11+Main!$C$5*EQ$2*$F11 -> 2323.808566 | ER11: =ER$2*$F11*Main!$C$4*$E11+Main!$C$5*ER$2*$F11 -> 2764.926642 | ES11: =ES$2*$F11*Main!$C$4*$E11+Main!$C$5*ES$2*$F11 -> 3206.04654 | ET11: =ET$2*$F11*Main!$C$4*$E11+Main!$C$5*ET$2*$F11 -> 3647.166437 | EU11: =EU$2*$F11*Main!$C$4*$E11+Main!$C$5*EU$2*$F11 -> 4442.140423 | EV11: =EV$2*$F11*Main!$C$4*$E11+Main!$C$5*EV$2*$F11 -> 4537.92619 | EW11: =EW$2*$F11*Main!$C$4*$E11+Main!$C$5*EW$2*$F11 -> 4655.123751 | EX11: =EX$2*$F11*Main!$C$4*$E11+Main!$C$5*EX$2*$F11 -> 4716.369079 | EY11: =EY$2*$F11*Main!$C$4*$E11+Main!$C$5*EY$2*$F11 -> 4812.154846 | EZ11: =EZ$2*$F11*Main!$C$4*$E11+Main!$C$5*EZ$2*$F11 -> 4929.349804 | FA11: =FA$2*$F11*Main!$C$4*$E11+Main!$C$5*FA$2*$F11 -> 5345.242924 | FB11: =FB$2*$F11*Main!$C$4*$E11+Main!$C$5*FB$2*$F11 -> 5441.028692 | FC11: =FC$2*$F11*Main!$C$4*$E11+Main!$C$5*FC$2*$F11 -> 5558.226252 | FD11: =IF($D11<100,(FD$2*(1+Main!$C$3)*$E11*Main!$C$4)+(FD$2*(1+Main!$C$3)*Main!$C$5),(FD$2*$E11*Main!$C$4)+(FD$2*Main!$C$5)) -> 122.7681644 | FE11: =IF($D11<100,(FE$2*(1+Main!$C$3)*$E11*Main!$C$4)+(FE$2*(1+Main!$C$3)*Main!$C$5),(FE$2*$E11*Main!$C$4)+(FE$2*Main!$C$5)) -> 134.2059794 | FF11: =IF($D11<100,(FF$2*(1+Main!$C$3)*$E11*Main!$C$4)+(FF$2*(1+Main!$C$3)*Main!$C$5),(FF$2*$E11*Main!$C$4)+(FF$2*Main!$C$5)) -> 135.122032 | FG11: =IF($D11<100,(FG$2*(1+Main!$C$3)*$E11*Main!$C$4)+(FG$2*(1+Main!$C$3)*Main!$C$5),(FG$2*$E11*Main!$C$4)+(FG$2*Main!$C$5)) -> 145.8663867 | FH11: =IF($D11<100,(FH$2*(1+Main!$C$3)*$E11*Main!$C$4)+(FH$2*(1+Main!$C$3)*Main!$C$5),(FH$2*$E11*Main!$C$4)+(FH$2*Main!$C$5)) -> 196.7886351 | FI11: =IF($D11<100,(FI$2*(1+Main!$C$3)*$E11*Main!$C$4)+(FI$2*(1+Main!$C$3)*Main!$C$5),(FI$2*$E11*Main!$C$4)+(FI$2*Main!$C$5)) -> 55.59668477
A12: AL | B12: 17980 | C12: (Columbus, Russell County) | D12: 17980 | E12: 0.8072 | F12: =IF($D12<100,Main!$C$2*(1+Main!$C$3),Main!$C$2) -> 3039.64 | G12: =G$2*$F12*Main!$C$4*$E12+Main!$C$5*G$2*$F12 -> 1443.12902 | H12: =H$2*$F12*Main!$C$4*$E12+Main!$C$5*H$2*$F12 -> 1782.611241 | I12: =I$2*$F12*Main!$C$4*$E12+Main!$C$5*I$2*$F12 -> 2122.09372 | J12: =J$2*$F12*Main!$C$4*$E12+Main!$C$5*J$2*$F12 -> 2461.575682 | K12: =K$2*$F12*Main!$C$4*$E12+Main!$C$5*K$2*$F12 -> 2801.059193 | L12: =L$2*$F12*Main!$C$4*$E12+Main!$C$5*L$2*$F12 -> 1712.813424 | M12: =M$2*$F12*Main!$C$4*$E12+Main!$C$5*M$2*$F12 -> 2020.306548 | N12: =N$2*$F12*Main!$C$4*$E12+Main!$C$5*N$2*$F12 -> 2327.799672 | O12: =O$2*$F12*Main!$C$4*$E12+Main!$C$5*O$2*$F12 -> 2635.292022 | P12: =P$2*$F12*Main!$C$4*$E12+Main!$C$5*P$2*$F12 -> 2942.786435 | Q12: =Q$2*$F12*Main!$C$4*$E12+Main!$C$5*Q$2*$F12 -> 1841.511129 | R12: =R$2*$F12*Main!$C$4*$E12+Main!$C$5*R$2*$F12 -> 2141.531756 | S12: =S$2*$F12*Main!$C$4*$E12+Main!$C$5*S$2*$F12 -> 2441.552124 | T12: =T$2*$F12*Main!$C$4*$E12+Main!$C$5*T$2*$F12 -> 2741.573267 | U12: =U$2*$F12*Main!$C$4*$E12+Main!$C$5*U$2*$F12 -> 3041.592604 | V12: =V$2*$F12*Main!$C$4*$E12+Main!$C$5*V$2*$F12 -> 1534.231836 | W12: =W$2*$F12*Main!$C$4*$E12+Main!$C$5*W$2*$F12 -> 1889.497095 | X12: =X$2*$F12*Main!$C$4*$E12+Main!$C$5*X$2*$F12 -> 2244.762355 | Y12: =Y$2*$F12*Main!$C$4*$E12+Main!$C$5*Y$2*$F12 -> 2600.026582 | Z12: =Z$2*$F12*Main!$C$4*$E12+Main!$C$5*Z$2*$F12 -> 2955.293905 | AA12: =AA$2*$F12*Main!$C$4*$E12+Main!$C$5*AA$2*$F12 -> 1803.915982 | AB12: =AB$2*$F12*Main!$C$4*$E12+Main!$C$5*AB$2*$F12 -> 2127.192403 | AC12: =AC$2*$F12*Main!$C$4*$E12+Main!$C$5*AC$2*$F12 -> 2450.468307 | AD12: =AD$2*$F12*Main!$C$4*$E12+Main!$C$5*AD$2*$F12 -> 2773.743437 | AE12: =AE$2*$F12*Main!$C$4*$E12+Main!$C$5*AE$2*$F12 -> 3097.021147 | AF12: =AF$2*$F12*Main!$C$4*$E12+Main!$C$5*AF$2*$F12 -> 1932.613687 | AG12: =AG$2*$F12*Main!$C$4*$E12+Main!$C$5*AG$2*$F12 -> 2248.417352 | AH12: =AH$2*$F12*Main!$C$4*$E12+Main!$C$5*AH$2*$F12 -> 2564.221017 | AI12: =AI$2*$F12*Main!$C$4*$E12+Main!$C$5*AI$2*$F12 -> 2880.024683 | AJ12: =AJ$2*$F12*Main!$C$4*$E12+Main!$C$5*AJ$2*$F12 -> 3195.827316 | AK12: =AK$2*$F12*Main!$C$4*$E12+Main!$C$5*AK$2*$F12 -> 1644.160857 | AL12: =AL$2*$F12*Main!$C$4*$E12+Main!$C$5*AL$2*$F12 -> 2038.169865 | AM12: =AM$2*$F12*Main!$C$4*$E12+Main!$C$5*AM$2*$F12 -> 2432.178616 | AN12: =AN$2*$F12*Main!$C$4*$E12+Main!$C$5*AN$2*$F12 -> 2826.187624 | AO12: =AO$2*$F12*Main!$C$4*$E12+Main!$C$5*AO$2*$F12 -> 3220.197407 | AP12: =AP$2*$F12*Main!$C$4*$E12+Main!$C$5*AP$2*$F12 -> 1913.845003 | AQ12: =AQ$2*$F12*Main!$C$4*$E12+Main!$C$5*AQ$2*$F12 -> 2275.864657 | AR12: =AR$2*$F12*Main!$C$4*$E12+Main!$C$5*AR$2*$F12 -> 2637.88431 | AS12: =AS$2*$F12*Main!$C$4*$E12+Main!$C$5*AS$2*$F12 -> 2999.90448 | AT12: =AT$2*$F12*Main!$C$4*$E12+Main!$C$5*AT$2*$F12 -> 3361.924649 | AU12: =AU$2*$F12*Main!$C$4*$E12+Main!$C$5*AU$2*$F12 -> 2042.54245 | AV12: =AV$2*$F12*Main!$C$4*$E12+Main!$C$5*AV$2*$F12 -> 2397.090122 | AW12: =AW$2*$F12*Main!$C$4*$E12+Main!$C$5*AW$2*$F12 -> 2751.638053 | AX12: =AX$2*$F12*Main!$C$4*$E12+Main!$C$5*AX$2*$F12 -> 3106.185725 | AY12: =AY$2*$F12*Main!$C$4*$E12+Main!$C$5*AY$2*$F12 -> 3460.730818 | AZ12: =AZ$2*$F12*Main!$C$4*$E12+Main!$C$5*AZ$2*$F12 -> 3140.54064 | BA12: =BA$2*$F12*Main!$C$4*$E12+Main!$C$5*BA$2*$F12 -> 3561.368355 | BB12: =BB$2*$F12*Main!$C$4*$E12+Main!$C$5*BB$2*$F12 -> 3982.19607 | BC12: =BC$2*$F12*Main!$C$4*$E12+Main!$C$5*BC$2*$F12 -> 3250.27827 | BD12: =BD$2*$F12*Main!$C$4*$E12+Main!$C$5*BD$2*$F12 -> 3666.174188 | BE12: =BE$2*$F12*Main!$C$4*$E12+Main!$C$5*BE$2*$F12 -> 4082.070107 | BF12: =BF$2*$F12*Main!$C$4*$E12+Main!$C$5*BF$2*$F12 -> 3341.614521 | BG12: =BG$2*$F12*Main!$C$4*$E12+Main!$C$5*BG$2*$F12 -> 3765.785127 | BH12: =BH$2*$F12*Main!$C$4*$E12+Main!$C$5*BH$2*$F12 -> 4189.958313 | BI12: =BI$2*$F12*Main!$C$4*$E12+Main!$C$5*BI$2*$F12 -> 3310.558648 | BJ12: =BJ$2*$F12*Main!$C$4*$E12+Main!$C$5*BJ$2*$F12 -> 3765.318258 | BK12: =BK$2*$F12*Main!$C$4*$E12+Main!$C$5*BK$2*$F12 -> 4220.075288 | BL12: =BL$2*$F12*Main!$C$4*$E12+Main!$C$5*BL$2*$F12 -> 3420.296278 | BM12: =BM$2*$F12*Main!$C$4*$E12+Main!$C$5*BM$2*$F12 -> 3870.124091 | BN12: =BN$2*$F12*Main!$C$4*$E12+Main!$C$5*BN$2*$F12 -> 4319.949325 | BO12: =BO$2*$F12*Main!$C$4*$E12+Main!$C$5*BO$2*$F12 -> 3511.632529 | BP12: =BP$2*$F12*Main!$C$4*$E12+Main!$C$5*BP$2*$F12 -> 3969.73503 | BQ12: =BQ$2*$F12*Main!$C$4*$E12+Main!$C$5*BQ$2*$F12 -> 4427.837531 | BR12: =BR$2*$F12*Main!$C$4*$E12+Main!$C$5*BR$2*$F12 -> 3614.204609 | BS12: =BS$2*$F12*Main!$C$4*$E12+Main!$C$5*BS$2*$F12 -> 4175.526618 | BT12: =BT$2*$F12*Main!$C$4*$E12+Main!$C$5*BT$2*$F12 -> 4736.848627 | BU12: =BU$2*$F12*Main!$C$4*$E12+Main!$C$5*BU$2*$F12 -> 3723.944819 | BV12: =BV$2*$F12*Main!$C$4*$E12+Main!$C$5*BV$2*$F12 -> 4280.332451 | BW12: =BW$2*$F12*Main!$C$4*$E12+Main!$C$5*BW$2*$F12 -> 4836.722664 | BX12: =BX$2*$F12*Main!$C$4*$E12+Main!$C$5*BX$2*$F12 -> 3815.278491 | BY12: =BY$2*$F12*Main!$C$4*$E12+Main!$C$5*BY$2*$F12 -> 4379.94597 | BZ12: =BZ$2*$F12*Main!$C$4*$E12+Main!$C$5*BZ$2*$F12 -> 4944.61087 | CA12: =CA$2*$F12*Main!$C$4*$E12+Main!$C$5*CA$2*$F12 -> 3179.984694 | CB12: =CB$2*$F12*Main!$C$4*$E12+Main!$C$5*CB$2*$F12 -> 3587.665251 | CC12: =CC$2*$F12*Main!$C$4*$E12+Main!$C$5*CC$2*$F12 -> 3995.343228 | CD12: =CD$2*$F12*Main!$C$4*$E12+Main!$C$5*CD$2*$F12 -> 3254.977921 | CE12: =CE$2*$F12*Main!$C$4*$E12+Main!$C$5*CE$2*$F12 -> 3669.30557 | CF12: =CF$2*$F12*Main!$C$4*$E12+Main!$C$5*CF$2*$F12 -> 4083.635798 | CG12: =CG$2*$F12*Main!$C$4*$E12+Main!$C$5*CG$2*$F12 -> 3375.920427 | CH12: =CH$2*$F12*Main!$C$4*$E12+Main!$C$5*CH$2*$F12 -> 3788.656591 | CI12: =CI$2*$F12*Main!$C$4*$E12+Main!$C$5*CI$2*$F12 -> 4201.392756 | CJ12: =CJ$2*$F12*Main!$C$4*$E12+Main!$C$5*CJ$2*$F12 -> 3317.105143 | CK12: =CK$2*$F12*Main!$C$4*$E12+Main!$C$5*CK$2*$F12 -> 3769.682588 | CL12: =CL$2*$F12*Main!$C$4*$E12+Main!$C$5*CL$2*$F12 -> 4222.257453 | CM12: =CM$2*$F12*Main!$C$4*$E12+Main!$C$5*CM$2*$F12 -> 3392.09837 | CN12: =CN$2*$F12*Main!$C$4*$E12+Main!$C$5*CN$2*$F12 -> 3851.322907 | CO12: =CO$2*$F12*Main!$C$4*$E12+Main!$C$5*CO$2*$F12 -> 4310.550022 | CP12: =CP$2*$F12*Main!$C$4*$E12+Main!$C$5*CP$2*$F12 -> 3513.040877 | CQ12: =CQ$2*$F12*Main!$C$4*$E12+Main!$C$5*CQ$2*$F12 -> 3970.673928 | CR12: =CR$2*$F12*Main!$C$4*$E12+Main!$C$5*CR$2*$F12 -> 4428.30698 | CS12: =CS$2*$F12*Main!$C$4*$E12+Main!$C$5*CS$2*$F12 -> 3856.344982 | CT12: =CT$2*$F12*Main!$C$4*$E12+Main!$C$5*CT$2*$F12 -> 4336.955253 | CU12: =CU$2*$F12*Main!$C$4*$E12+Main!$C$5*CU$2*$F12 -> 4817.562944 | CV12: =CV$2*$F12*Main!$C$4*$E12+Main!$C$5*CV$2*$F12 -> 3931.338209 | CW12: =CW$2*$F12*Main!$C$4*$E12+Main!$C$5*CW$2*$F12 -> 4418.595571 | CX12: =CX$2*$F12*Main!$C$4*$E12+Main!$C$5*CX$2*$F12 -> 4905.855513 | CY12: =CY$2*$F12*Main!$C$4*$E12+Main!$C$5*CY$2*$F12 -> 4052.280715 | CZ12: =CZ$2*$F12*Main!$C$4*$E12+Main!$C$5*CZ$2*$F12 -> 4537.946593 | DA12: =DA$2*$F12*Main!$C$4*$E12+Main!$C$5*DA$2*$F12 -> 5023.612471 | DB12: =DB$2*$F12*Main!$C$4*$E12+Main!$C$5*DB$2*$F12 -> 1175.458347 | DC12: =DC$2*$F12*Main!$C$4*$E12+Main!$C$5*DC$2*$F12 -> 1576.363874 | DD12: =DD$2*$F12*Main!$C$4*$E12+Main!$C$5*DD$2*$F12 -> 1977.269402 | DE12: =DE$2*$F12*Main!$C$4*$E12+Main!$C$5*DE$2*$F12 -> 2378.174929 | DF12: =DF$2*$F12*Main!$C$4*$E12+Main!$C$5*DF$2*$F12 -> 2779.080198 | DG12: =DG$2*$F12*Main!$C$4*$E12+Main!$C$5*DG$2*$F12 -> 1394.709458 | DH12: =DH$2*$F12*Main!$C$4*$E12+Main!$C$5*DH$2*$F12 -> 1766.763202 | DI12: =DI$2*$F12*Main!$C$4*$E12+Main!$C$5*DI$2*$F12 -> 2138.81643 | DJ12: =DJ$2*$F12*Main!$C$4*$E12+Main!$C$5*DJ$2*$F12 -> 2510.870432 | DK12: =DK$2*$F12*Main!$C$4*$E12+Main!$C$5*DK$2*$F12 -> 2882.923919 | DL12: =DL$2*$F12*Main!$C$4*$E12+Main!$C$5*DL$2*$F12 -> 1510.536773 | DM12: =DM$2*$F12*Main!$C$4*$E12+Main!$C$5*DM$2*$F12 -> 1883.613762 | DN12: =DN$2*$F12*Main!$C$4*$E12+Main!$C$5*DN$2*$F12 -> 2256.690492 | DO12: =DO$2*$F12*Main!$C$4*$E12+Main!$C$5*DO$2*$F12 -> 2629.766965 | DP12: =DP$2*$F12*Main!$C$4*$E12+Main!$C$5*DP$2*$F12 -> 3002.844986 | DQ12: =DQ$2*$F12*Main!$C$4*$E12+Main!$C$5*DQ$2*$F12 -> 1238.729787 | DR12: =DR$2*$F12*Main!$C$4*$E12+Main!$C$5*DR$2*$F12 -> 1654.40491 | DS12: =DS$2*$F12*Main!$C$4*$E12+Main!$C$5*DS$2*$F12 -> 2070.080033 | DT12: =DT$2*$F12*Main!$C$4*$E12+Main!$C$5*DT$2*$F12 -> 2485.755156 | DU12: =DU$2*$F12*Main!$C$4*$E12+Main!$C$5*DU$2*$F12 -> 2901.431052 | DV12: =DV$2*$F12*Main!$C$4*$E12+Main!$C$5*DV$2*$F12 -> 1457.98064 | DW12: =DW$2*$F12*Main!$C$4*$E12+Main!$C$5*DW$2*$F12 -> 1844.803722 | DX12: =DX$2*$F12*Main!$C$4*$E12+Main!$C$5*DX$2*$F12 -> 2231.627062 | DY12: =DY$2*$F12*Main!$C$4*$E12+Main!$C$5*DY$2*$F12 -> 2618.451175 | DZ12: =DZ$2*$F12*Main!$C$4*$E12+Main!$C$5*DZ$2*$F12 -> 3005.274773 | EA12: =EA$2*$F12*Main!$C$4*$E12+Main!$C$5*EA$2*$F12 -> 1573.808213 | EB12: =EB$2*$F12*Main!$C$4*$E12+Main!$C$5*EB$2*$F12 -> 1961.65454 | EC12: =EC$2*$F12*Main!$C$4*$E12+Main!$C$5*EC$2*$F12 -> 2349.501124 | ED12: =ED$2*$F12*Main!$C$4*$E12+Main!$C$5*ED$2*$F12 -> 2737.348224 | EE12: =EE$2*$F12*Main!$C$4*$E12+Main!$C$5*EE$2*$F12 -> 3125.193261 | EF12: =EF$2*$F12*Main!$C$4*$E12+Main!$C$5*EF$2*$F12 -> 1531.031585 | EG12: =EG$2*$F12*Main!$C$4*$E12+Main!$C$5*EG$2*$F12 -> 1996.094316 | EH12: =EH$2*$F12*Main!$C$4*$E12+Main!$C$5*EH$2*$F12 -> 2461.157305 | EI12: =EI$2*$F12*Main!$C$4*$E12+Main!$C$5*EI$2*$F12 -> 2926.219004 | EJ12: =EJ$2*$F12*Main!$C$4*$E12+Main!$C$5*EJ$2*$F12 -> 3391.283283 | EK12: =EK$2*$F12*Main!$C$4*$E12+Main!$C$5*EK$2*$F12 -> 1750.282438 | EL12: =EL$2*$F12*Main!$C$4*$E12+Main!$C$5*EL$2*$F12 -> 2186.493386 | EM12: =EM$2*$F12*Main!$C$4*$E12+Main!$C$5*EM$2*$F12 -> 2622.704592 | EN12: =EN$2*$F12*Main!$C$4*$E12+Main!$C$5*EN$2*$F12 -> 3058.915797 | EO12: =EO$2*$F12*Main!$C$4*$E12+Main!$C$5*EO$2*$F12 -> 3495.127003 | EP12: =EP$2*$F12*Main!$C$4*$E12+Main!$C$5*EP$2*$F12 -> 1866.110011 | EQ12: =EQ$2*$F12*Main!$C$4*$E12+Main!$C$5*EQ$2*$F12 -> 2303.344204 | ER12: =ER$2*$F12*Main!$C$4*$E12+Main!$C$5*ER$2*$F12 -> 2740.577622 | ES12: =ES$2*$F12*Main!$C$4*$E12+Main!$C$5*ES$2*$F12 -> 3177.812846 | ET12: =ET$2*$F12*Main!$C$4*$E12+Main!$C$5*ET$2*$F12 -> 3615.04807 | EU12: =EU$2*$F12*Main!$C$4*$E12+Main!$C$5*EU$2*$F12 -> 4403.021206 | EV12: =EV$2*$F12*Main!$C$4*$E12+Main!$C$5*EV$2*$F12 -> 4497.963446 | EW12: =EW$2*$F12*Main!$C$4*$E12+Main!$C$5*EW$2*$F12 -> 4614.12892 | EX12: =EX$2*$F12*Main!$C$4*$E12+Main!$C$5*EX$2*$F12 -> 4674.834897 | EY12: =EY$2*$F12*Main!$C$4*$E12+Main!$C$5*EY$2*$F12 -> 4769.777138 | EZ12: =EZ$2*$F12*Main!$C$4*$E12+Main!$C$5*EZ$2*$F12 -> 4885.940032 | FA12: =FA$2*$F12*Main!$C$4*$E12+Main!$C$5*FA$2*$F12 -> 5298.170635 | FB12: =FB$2*$F12*Main!$C$4*$E12+Main!$C$5*FB$2*$F12 -> 5393.112876 | FC12: =FC$2*$F12*Main!$C$4*$E12+Main!$C$5*FC$2*$F12 -> 5509.278349 | FD12: =IF($D12<100,(FD$2*(1+Main!$C$3)*$E12*Main!$C$4)+(FD$2*(1+Main!$C$3)*Main!$C$5),(FD$2*$E12*Main!$C$4)+(FD$2*Main!$C$5)) -> 121.6870202 | FE12: =IF($D12<100,(FE$2*(1+Main!$C$3)*$E12*Main!$C$4)+(FE$2*(1+Main!$C$3)*Main!$C$5),(FE$2*$E12*Main!$C$4)+(FE$2*Main!$C$5)) -> 133.0241094 | FF12: =IF($D12<100,(FF$2*(1+Main!$C$3)*$E12*Main!$C$4)+(FF$2*(1+Main!$C$3)*Main!$C$5),(FF$2*$E12*Main!$C$4)+(FF$2*Main!$C$5)) -> 133.9320948 | FG12: =IF($D12<100,(FG$2*(1+Main!$C$3)*$E12*Main!$C$4)+(FG$2*(1+Main!$C$3)*Main!$C$5),(FG$2*$E12*Main!$C$4)+(FG$2*Main!$C$5)) -> 144.5818305 | FH12: =IF($D12<100,(FH$2*(1+Main!$C$3)*$E12*Main!$C$4)+(FH$2*(1+Main!$C$3)*Main!$C$5),(FH$2*$E12*Main!$C$4)+(FH$2*Main!$C$5)) -> 195.0556378 | FI12: =IF($D12<100,(FI$2*(1+Main!$C$3)*$E12*Main!$C$4)+(FI$2*(1+Main!$C$3)*Main!$C$5),(FI$2*$E12*Main!$C$4)+(FI$2*Main!$C$5)) -> 55.10707873
A13: AL | B13: 19300 | C13: (Baldwin County, Daphne-Fairhope-Foley) | D13: 19300 | E13: 0.7566 | F13: =IF($D13<100,Main!$C$2*(1+Main!$C$3),Main!$C$2) -> 3039.64 | G13: =G$2*$F13*Main!$C$4*$E13+Main!$C$5*G$2*$F13 -> 1375.548144 | H13: =H$2*$F13*Main!$C$4*$E13+Main!$C$5*H$2*$F13 -> 1699.132613 | I13: =I$2*$F13*Main!$C$4*$E13+Main!$C$5*I$2*$F13 -> 2022.717329 | J13: =J$2*$F13*Main!$C$4*$E13+Main!$C$5*J$2*$F13 -> 2346.301552 | K13: =K$2*$F13*Main!$C$4*$E13+Main!$C$5*K$2*$F13 -> 2669.887251 | L13: =L$2*$F13*Main!$C$4*$E13+Main!$C$5*L$2*$F13 -> 1632.603387 | M13: =M$2*$F13*Main!$C$4*$E13+Main!$C$5*M$2*$F13 -> 1925.69679 | N13: =N$2*$F13*Main!$C$4*$E13+Main!$C$5*N$2*$F13 -> 2218.790193 | O13: =O$2*$F13*Main!$C$4*$E13+Main!$C$5*O$2*$F13 -> 2511.882859 | P13: =P$2*$F13*Main!$C$4*$E13+Main!$C$5*P$2*$F13 -> 2804.977491 | Q13: =Q$2*$F13*Main!$C$4*$E13+Main!$C$5*Q$2*$F13 -> 1755.274254 | R13: =R$2*$F13*Main!$C$4*$E13+Main!$C$5*R$2*$F13 -> 2041.245093 | S13: =S$2*$F13*Main!$C$4*$E13+Main!$C$5*S$2*$F13 -> 2327.215686 | T13: =T$2*$F13*Main!$C$4*$E13+Main!$C$5*T$2*$F13 -> 2613.187016 | U13: =U$2*$F13*Main!$C$4*$E13+Main!$C$5*U$2*$F13 -> 2899.156626 | V13: =V$2*$F13*Main!$C$4*$E13+Main!$C$5*V$2*$F13 -> 1462.384669 | W13: =W$2*$F13*Main!$C$4*$E13+Main!$C$5*W$2*$F13 -> 1801.013067 | X13: =X$2*$F13*Main!$C$4*$E13+Main!$C$5*X$2*$F13 -> 2139.641464 | Y13: =Y$2*$F13*Main!$C$4*$E13+Main!$C$5*Y$2*$F13 -> 2478.268879 | Z13: =Z$2*$F13*Main!$C$4*$E13+Main!$C$5*Z$2*$F13 -> 2816.899243 | AA13: =AA$2*$F13*Main!$C$4*$E13+Main!$C$5*AA$2*$F13 -> 1719.439666 | AB13: =AB$2*$F13*Main!$C$4*$E13+Main!$C$5*AB$2*$F13 -> 2027.577243 | AC13: =AC$2*$F13*Main!$C$4*$E13+Main!$C$5*AC$2*$F13 -> 2335.714329 | AD13: =AD$2*$F13*Main!$C$4*$E13+Main!$C$5*AD$2*$F13 -> 2643.850677 | AE13: =AE$2*$F13*Main!$C$4*$E13+Main!$C$5*AE$2*$F13 -> 2951.989483 | AF13: =AF$2*$F13*Main!$C$4*$E13+Main!$C$5*AF$2*$F13 -> 1842.110534 | AG13: =AG$2*$F13*Main!$C$4*$E13+Main!$C$5*AG$2*$F13 -> 2143.125301 | AH13: =AH$2*$F13*Main!$C$4*$E13+Main!$C$5*AH$2*$F13 -> 2444.140067 | AI13: =AI$2*$F13*Main!$C$4*$E13+Main!$C$5*AI$2*$F13 -> 2745.154834 | AJ13: =AJ$2*$F13*Main!$C$4*$E13+Main!$C$5*AJ$2*$F13 -> 3046.168618 | AK13: =AK$2*$F13*Main!$C$4*$E13+Main!$C$5*AK$2*$F13 -> 1567.165779 | AL13: =AL$2*$F13*Main!$C$4*$E13+Main!$C$5*AL$2*$F13 -> 1942.723579 | AM13: =AM$2*$F13*Main!$C$4*$E13+Main!$C$5*AM$2*$F13 -> 2318.281133 | AN13: =AN$2*$F13*Main!$C$4*$E13+Main!$C$5*AN$2*$F13 -> 2693.838933 | AO13: =AO$2*$F13*Main!$C$4*$E13+Main!$C$5*AO$2*$F13 -> 3069.397471 | AP13: =AP$2*$F13*Main!$C$4*$E13+Main!$C$5*AP$2*$F13 -> 1824.220776 | AQ13: =AQ$2*$F13*Main!$C$4*$E13+Main!$C$5*AQ$2*$F13 -> 2169.287264 | AR13: =AR$2*$F13*Main!$C$4*$E13+Main!$C$5*AR$2*$F13 -> 2514.353752 | AS13: =AS$2*$F13*Main!$C$4*$E13+Main!$C$5*AS$2*$F13 -> 2859.420731 | AT13: =AT$2*$F13*Main!$C$4*$E13+Main!$C$5*AT$2*$F13 -> 3204.487711 | AU13: =AU$2*$F13*Main!$C$4*$E13+Main!$C$5*AU$2*$F13 -> 1946.891398 | AV13: =AV$2*$F13*Main!$C$4*$E13+Main!$C$5*AV$2*$F13 -> 2284.835813 | AW13: =AW$2*$F13*Main!$C$4*$E13+Main!$C$5*AW$2*$F13 -> 2622.780474 | AX13: =AX$2*$F13*Main!$C$4*$E13+Main!$C$5*AX$2*$F13 -> 2960.724889 | AY13: =AY$2*$F13*Main!$C$4*$E13+Main!$C$5*AY$2*$F13 -> 3298.666846 | AZ13: =AZ$2*$F13*Main!$C$4*$E13+Main!$C$5*AZ$2*$F13 -> 2993.470983 | BA13: =BA$2*$F13*Main!$C$4*$E13+Main!$C$5*BA$2*$F13 -> 3394.591586 | BB13: =BB$2*$F13*Main!$C$4*$E13+Main!$C$5*BB$2*$F13 -> 3795.712189 | BC13: =BC$2*$F13*Main!$C$4*$E13+Main!$C$5*BC$2*$F13 -> 3098.069665 | BD13: =BD$2*$F13*Main!$C$4*$E13+Main!$C$5*BD$2*$F13 -> 3494.489425 | BE13: =BE$2*$F13*Main!$C$4*$E13+Main!$C$5*BE$2*$F13 -> 3890.909184 | BF13: =BF$2*$F13*Main!$C$4*$E13+Main!$C$5*BF$2*$F13 -> 3185.128694 | BG13: =BG$2*$F13*Main!$C$4*$E13+Main!$C$5*BG$2*$F13 -> 3589.435642 | BH13: =BH$2*$F13*Main!$C$4*$E13+Main!$C$5*BH$2*$F13 -> 3993.745049 | BI13: =BI$2*$F13*Main!$C$4*$E13+Main!$C$5*BI$2*$F13 -> 3155.527149 | BJ13: =BJ$2*$F13*Main!$C$4*$E13+Main!$C$5*BJ$2*$F13 -> 3588.990636 | BK13: =BK$2*$F13*Main!$C$4*$E13+Main!$C$5*BK$2*$F13 -> 4022.451664 | BL13: =BL$2*$F13*Main!$C$4*$E13+Main!$C$5*BL$2*$F13 -> 3260.125831 | BM13: =BM$2*$F13*Main!$C$4*$E13+Main!$C$5*BM$2*$F13 -> 3688.888474 | BN13: =BN$2*$F13*Main!$C$4*$E13+Main!$C$5*BN$2*$F13 -> 4117.648659 | BO13: =BO$2*$F13*Main!$C$4*$E13+Main!$C$5*BO$2*$F13 -> 3347.184859 | BP13: =BP$2*$F13*Main!$C$4*$E13+Main!$C$5*BP$2*$F13 -> 3783.834692 | BQ13: =BQ$2*$F13*Main!$C$4*$E13+Main!$C$5*BQ$2*$F13 -> 4220.484524 | BR13: =BR$2*$F13*Main!$C$4*$E13+Main!$C$5*BR$2*$F13 -> 3444.95355 | BS13: =BS$2*$F13*Main!$C$4*$E13+Main!$C$5*BS$2*$F13 -> 3979.989182 | BT13: =BT$2*$F13*Main!$C$4*$E13+Main!$C$5*BT$2*$F13 -> 4515.024814 | BU13: =BU$2*$F13*Main!$C$4*$E13+Main!$C$5*BU$2*$F13 -> 3549.55469 | BV13: =BV$2*$F13*Main!$C$4*$E13+Main!$C$5*BV$2*$F13 -> 4079.88702 | BW13: =BW$2*$F13*Main!$C$4*$E13+Main!$C$5*BW$2*$F13 -> 4610.221809 | BX13: =BX$2*$F13*Main!$C$4*$E13+Main!$C$5*BX$2*$F13 -> 3636.611261 | BY13: =BY$2*$F13*Main!$C$4*$E13+Main!$C$5*BY$2*$F13 -> 4174.835697 | BZ13: =BZ$2*$F13*Main!$C$4*$E13+Main!$C$5*BZ$2*$F13 -> 4713.057674 | CA13: =CA$2*$F13*Main!$C$4*$E13+Main!$C$5*CA$2*$F13 -> 3031.067896 | CB13: =CB$2*$F13*Main!$C$4*$E13+Main!$C$5*CB$2*$F13 -> 3419.657014 | CC13: =CC$2*$F13*Main!$C$4*$E13+Main!$C$5*CC$2*$F13 -> 3808.243673 | CD13: =CD$2*$F13*Main!$C$4*$E13+Main!$C$5*CD$2*$F13 -> 3102.549235 | CE13: =CE$2*$F13*Main!$C$4*$E13+Main!$C$5*CE$2*$F13 -> 3497.474165 | CF13: =CF$2*$F13*Main!$C$4*$E13+Main!$C$5*CF$2*$F13 -> 3892.401554 | CG13: =CG$2*$F13*Main!$C$4*$E13+Main!$C$5*CG$2*$F13 -> 3217.828075 | CH13: =CH$2*$F13*Main!$C$4*$E13+Main!$C$5*CH$2*$F13 -> 3611.236049 | CI13: =CI$2*$F13*Main!$C$4*$E13+Main!$C$5*CI$2*$F13 -> 4004.644023 | CJ13: =CJ$2*$F13*Main!$C$4*$E13+Main!$C$5*CJ$2*$F13 -> 3161.767076 | CK13: =CK$2*$F13*Main!$C$4*$E13+Main!$C$5*CK$2*$F13 -> 3593.150587 | CL13: =CL$2*$F13*Main!$C$4*$E13+Main!$C$5*CL$2*$F13 -> 4024.53164 | CM13: =CM$2*$F13*Main!$C$4*$E13+Main!$C$5*CM$2*$F13 -> 3233.248415 | CN13: =CN$2*$F13*Main!$C$4*$E13+Main!$C$5*CN$2*$F13 -> 3670.967738 | CO13: =CO$2*$F13*Main!$C$4*$E13+Main!$C$5*CO$2*$F13 -> 4108.68952 | CP13: =CP$2*$F13*Main!$C$4*$E13+Main!$C$5*CP$2*$F13 -> 3348.527255 | CQ13: =CQ$2*$F13*Main!$C$4*$E13+Main!$C$5*CQ$2*$F13 -> 3784.729622 | CR13: =CR$2*$F13*Main!$C$4*$E13+Main!$C$5*CR$2*$F13 -> 4220.93199 | CS13: =CS$2*$F13*Main!$C$4*$E13+Main!$C$5*CS$2*$F13 -> 3675.754632 | CT13: =CT$2*$F13*Main!$C$4*$E13+Main!$C$5*CT$2*$F13 -> 4133.858209 | CU13: =CU$2*$F13*Main!$C$4*$E13+Main!$C$5*CU$2*$F13 -> 4591.959327 | CV13: =CV$2*$F13*Main!$C$4*$E13+Main!$C$5*CV$2*$F13 -> 3747.235971 | CW13: =CW$2*$F13*Main!$C$4*$E13+Main!$C$5*CW$2*$F13 -> 4211.67536 | CX13: =CX$2*$F13*Main!$C$4*$E13+Main!$C$5*CX$2*$F13 -> 4676.117208 | CY13: =CY$2*$F13*Main!$C$4*$E13+Main!$C$5*CY$2*$F13 -> 3862.514812 | CZ13: =CZ$2*$F13*Main!$C$4*$E13+Main!$C$5*CZ$2*$F13 -> 4325.437244 | DA13: =DA$2*$F13*Main!$C$4*$E13+Main!$C$5*DA$2*$F13 -> 4788.359677 | DB13: =DB$2*$F13*Main!$C$4*$E13+Main!$C$5*DB$2*$F13 -> 1120.412329 | DC13: =DC$2*$F13*Main!$C$4*$E13+Main!$C$5*DC$2*$F13 -> 1502.543689 | DD13: =DD$2*$F13*Main!$C$4*$E13+Main!$C$5*DD$2*$F13 -> 1884.675048 | DE13: =DE$2*$F13*Main!$C$4*$E13+Main!$C$5*DE$2*$F13 -> 2266.806407 | DF13: =DF$2*$F13*Main!$C$4*$E13+Main!$C$5*DF$2*$F13 -> 2648.93752 | DG13: =DG$2*$F13*Main!$C$4*$E13+Main!$C$5*DG$2*$F13 -> 1329.39604 | DH13: =DH$2*$F13*Main!$C$4*$E13+Main!$C$5*DH$2*$F13 -> 1684.026728 | DI13: =DI$2*$F13*Main!$C$4*$E13+Main!$C$5*DI$2*$F13 -> 2038.656925 | DJ13: =DJ$2*$F13*Main!$C$4*$E13+Main!$C$5*DJ$2*$F13 -> 2393.287859 | DK13: =DK$2*$F13*Main!$C$4*$E13+Main!$C$5*DK$2*$F13 -> 2747.918301 | DL13: =DL$2*$F13*Main!$C$4*$E13+Main!$C$5*DL$2*$F13 -> 1439.799231 | DM13: =DM$2*$F13*Main!$C$4*$E13+Main!$C$5*DM$2*$F13 -> 1795.405246 | DN13: =DN$2*$F13*Main!$C$4*$E13+Main!$C$5*DN$2*$F13 -> 2151.011015 | DO13: =DO$2*$F13*Main!$C$4*$E13+Main!$C$5*DO$2*$F13 -> 2506.616537 | DP13: =DP$2*$F13*Main!$C$4*$E13+Main!$C$5*DP$2*$F13 -> 2862.223535 | DQ13: =DQ$2*$F13*Main!$C$4*$E13+Main!$C$5*DQ$2*$F13 -> 1180.720806 | DR13: =DR$2*$F13*Main!$C$4*$E13+Main!$C$5*DR$2*$F13 -> 1576.930109 | DS13: =DS$2*$F13*Main!$C$4*$E13+Main!$C$5*DS$2*$F13 -> 1973.139412 | DT13: =DT$2*$F13*Main!$C$4*$E13+Main!$C$5*DT$2*$F13 -> 2369.348715 | DU13: =DU$2*$F13*Main!$C$4*$E13+Main!$C$5*DU$2*$F13 -> 2765.558756 | DV13: =DV$2*$F13*Main!$C$4*$E13+Main!$C$5*DV$2*$F13 -> 1389.704271 | DW13: =DW$2*$F13*Main!$C$4*$E13+Main!$C$5*DW$2*$F13 -> 1758.412657 | DX13: =DX$2*$F13*Main!$C$4*$E13+Main!$C$5*DX$2*$F13 -> 2127.121289 | DY13: =DY$2*$F13*Main!$C$4*$E13+Main!$C$5*DY$2*$F13 -> 2495.830659 | DZ13: =DZ$2*$F13*Main!$C$4*$E13+Main!$C$5*DZ$2*$F13 -> 2864.539537 | EA13: =EA$2*$F13*Main!$C$4*$E13+Main!$C$5*EA$2*$F13 -> 1500.107708 | EB13: =EB$2*$F13*Main!$C$4*$E13+Main!$C$5*EB$2*$F13 -> 1869.79142 | EC13: =EC$2*$F13*Main!$C$4*$E13+Main!$C$5*EC$2*$F13 -> 2239.475379 | ED13: =ED$2*$F13*Main!$C$4*$E13+Main!$C$5*ED$2*$F13 -> 2609.159829 | EE13: =EE$2*$F13*Main!$C$4*$E13+Main!$C$5*EE$2*$F13 -> 2978.842313 | EF13: =EF$2*$F13*Main!$C$4*$E13+Main!$C$5*EF$2*$F13 -> 1459.334284 | EG13: =EG$2*$F13*Main!$C$4*$E13+Main!$C$5*EG$2*$F13 -> 1902.618403 | EH13: =EH$2*$F13*Main!$C$4*$E13+Main!$C$5*EH$2*$F13 -> 2345.902768 | EI13: =EI$2*$F13*Main!$C$4*$E13+Main!$C$5*EI$2*$F13 -> 2789.185903 | EJ13: =EJ$2*$F13*Main!$C$4*$E13+Main!$C$5*EJ$2*$F13 -> 3232.471497 | EK13: =EK$2*$F13*Main!$C$4*$E13+Main!$C$5*EK$2*$F13 -> 1668.317749 | EL13: =EL$2*$F13*Main!$C$4*$E13+Main!$C$5*EL$2*$F13 -> 2084.101197 | EM13: =EM$2*$F13*Main!$C$4*$E13+Main!$C$5*EM$2*$F13 -> 2499.88489 | EN13: =EN$2*$F13*Main!$C$4*$E13+Main!$C$5*EN$2*$F13 -> 2915.668584 | EO13: =EO$2*$F13*Main!$C$4*$E13+Main!$C$5*EO$2*$F13 -> 3331.452278 | EP13: =EP$2*$F13*Main!$C$4*$E13+Main!$C$5*EP$2*$F13 -> 1778.721186 | EQ13: =EQ$2*$F13*Main!$C$4*$E13+Main!$C$5*EQ$2*$F13 -> 2195.47996 | ER13: =ER$2*$F13*Main!$C$4*$E13+Main!$C$5*ER$2*$F13 -> 2612.237997 | ES13: =ES$2*$F13*Main!$C$4*$E13+Main!$C$5*ES$2*$F13 -> 3028.997755 | ET13: =ET$2*$F13*Main!$C$4*$E13+Main!$C$5*ET$2*$F13 -> 3445.757512 | EU13: =EU$2*$F13*Main!$C$4*$E13+Main!$C$5*EU$2*$F13 -> 4196.830333 | EV13: =EV$2*$F13*Main!$C$4*$E13+Main!$C$5*EV$2*$F13 -> 4287.326485 | EW13: =EW$2*$F13*Main!$C$4*$E13+Main!$C$5*EW$2*$F13 -> 4398.051998 | EX13: =EX$2*$F13*Main!$C$4*$E13+Main!$C$5*EX$2*$F13 -> 4455.915151 | EY13: =EY$2*$F13*Main!$C$4*$E13+Main!$C$5*EY$2*$F13 -> 4546.411302 | EZ13: =EZ$2*$F13*Main!$C$4*$E13+Main!$C$5*EZ$2*$F13 -> 4657.134357 | FA13: =FA$2*$F13*Main!$C$4*$E13+Main!$C$5*FA$2*$F13 -> 5050.060445 | FB13: =FB$2*$F13*Main!$C$4*$E13+Main!$C$5*FB$2*$F13 -> 5140.556597 | FC13: =FC$2*$F13*Main!$C$4*$E13+Main!$C$5*FC$2*$F13 -> 5251.28211 | FD13: =IF($D13<100,(FD$2*(1+Main!$C$3)*$E13*Main!$C$4)+(FD$2*(1+Main!$C$3)*Main!$C$5),(FD$2*$E13*Main!$C$4)+(FD$2*Main!$C$5)) -> 115.9884892 | FE13: =IF($D13<100,(FE$2*(1+Main!$C$3)*$E13*Main!$C$4)+(FE$2*(1+Main!$C$3)*Main!$C$5),(FE$2*$E13*Main!$C$4)+(FE$2*Main!$C$5)) -> 126.7946692 | FF13: =IF($D13<100,(FF$2*(1+Main!$C$3)*$E13*Main!$C$4)+(FF$2*(1+Main!$C$3)*Main!$C$5),(FF$2*$E13*Main!$C$4)+(FF$2*Main!$C$5)) -> 127.6601342 | FG13: =IF($D13<100,(FG$2*(1+Main!$C$3)*$E13*Main!$C$4)+(FG$2*(1+Main!$C$3)*Main!$C$5),(FG$2*$E13*Main!$C$4)+(FG$2*Main!$C$5)) -> 137.8111491 | FH13: =IF($D13<100,(FH$2*(1+Main!$C$3)*$E13*Main!$C$4)+(FH$2*(1+Main!$C$3)*Main!$C$5),(FH$2*$E13*Main!$C$4)+(FH$2*Main!$C$5)) -> 185.9212979 | FI13: =IF($D13<100,(FI$2*(1+Main!$C$3)*$E13*Main!$C$4)+(FI$2*(1+Main!$C$3)*Main!$C$5),(FI$2*$E13*Main!$C$4)+(FI$2*Main!$C$5)) -> 52.5264469
A14: AL | B14: 19460 | C14: (Decatur, Lawrence County, Morgan County) | D14: 19460 | E14: 0.6883 | F14: =IF($D14<100,Main!$C$2*(1+Main!$C$3),Main!$C$2) -> 3039.64 | G14: =G$2*$F14*Main!$C$4*$E14+Main!$C$5*G$2*$F14 -> 1284.327316 | H14: =H$2*$F14*Main!$C$4*$E14+Main!$C$5*H$2*$F14 -> 1586.452964 | I14: =I$2*$F14*Main!$C$4*$E14+Main!$C$5*I$2*$F14 -> 1888.578841 | J14: =J$2*$F14*Main!$C$4*$E14+Main!$C$5*J$2*$F14 -> 2190.704259 | K14: =K$2*$F14*Main!$C$4*$E14+Main!$C$5*K$2*$F14 -> 2492.831054 | L14: =L$2*$F14*Main!$C$4*$E14+Main!$C$5*L$2*$F14 -> 1524.335688 | M14: =M$2*$F14*Main!$C$4*$E14+Main!$C$5*M$2*$F14 -> 1797.992314 | N14: =N$2*$F14*Main!$C$4*$E14+Main!$C$5*N$2*$F14 -> 2071.64894 | O14: =O$2*$F14*Main!$C$4*$E14+Main!$C$5*O$2*$F14 -> 2345.304878 | P14: =P$2*$F14*Main!$C$4*$E14+Main!$C$5*P$2*$F14 -> 2618.962652 | Q14: =Q$2*$F14*Main!$C$4*$E14+Main!$C$5*Q$2*$F14 -> 1638.871517 | R14: =R$2*$F14*Main!$C$4*$E14+Main!$C$5*R$2*$F14 -> 1905.877918 | S14: =S$2*$F14*Main!$C$4*$E14+Main!$C$5*S$2*$F14 -> 2172.88409 | T14: =T$2*$F14*Main!$C$4*$E14+Main!$C$5*T$2*$F14 -> 2439.890951 | U14: =U$2*$F14*Main!$C$4*$E14+Main!$C$5*U$2*$F14 -> 2706.896204 | V14: =V$2*$F14*Main!$C$4*$E14+Main!$C$5*V$2*$F14 -> 1365.405192 | W14: =W$2*$F14*Main!$C$4*$E14+Main!$C$5*W$2*$F14 -> 1681.577115 | X14: =X$2*$F14*Main!$C$4*$E14+Main!$C$5*X$2*$F14 -> 1997.749037 | Y14: =Y$2*$F14*Main!$C$4*$E14+Main!$C$5*Y$2*$F14 -> 2313.920042 | Z14: =Z$2*$F14*Main!$C$4*$E14+Main!$C$5*Z$2*$F14 -> 2630.093801 | AA14: =AA$2*$F14*Main!$C$4*$E14+Main!$C$5*AA$2*$F14 -> 1605.413335 | AB14: =AB$2*$F14*Main!$C$4*$E14+Main!$C$5*AB$2*$F14 -> 1893.116465 | AC14: =AC$2*$F14*Main!$C$4*$E14+Main!$C$5*AC$2*$F14 -> 2180.819137 | AD14: =AD$2*$F14*Main!$C$4*$E14+Main!$C$5*AD$2*$F14 -> 2468.52112 | AE14: =AE$2*$F14*Main!$C$4*$E14+Main!$C$5*AE$2*$F14 -> 2756.225399 | AF14: =AF$2*$F14*Main!$C$4*$E14+Main!$C$5*AF$2*$F14 -> 1719.949163 | AG14: =AG$2*$F14*Main!$C$4*$E14+Main!$C$5*AG$2*$F14 -> 2001.00184 | AH14: =AH$2*$F14*Main!$C$4*$E14+Main!$C$5*AH$2*$F14 -> 2282.054516 | AI14: =AI$2*$F14*Main!$C$4*$E14+Main!$C$5*AI$2*$F14 -> 2563.107193 | AJ14: =AJ$2*$F14*Main!$C$4*$E14+Main!$C$5*AJ$2*$F14 -> 2844.158951 | AK14: =AK$2*$F14*Main!$C$4*$E14+Main!$C$5*AK$2*$F14 -> 1463.23764 | AL14: =AL$2*$F14*Main!$C$4*$E14+Main!$C$5*AL$2*$F14 -> 1813.889955 | AM14: =AM$2*$F14*Main!$C$4*$E14+Main!$C$5*AM$2*$F14 -> 2164.542041 | AN14: =AN$2*$F14*Main!$C$4*$E14+Main!$C$5*AN$2*$F14 -> 2515.194356 | AO14: =AO$2*$F14*Main!$C$4*$E14+Main!$C$5*AO$2*$F14 -> 2865.84736 | AP14: =AP$2*$F14*Main!$C$4*$E14+Main!$C$5*AP$2*$F14 -> 1703.245782 | AQ14: =AQ$2*$F14*Main!$C$4*$E14+Main!$C$5*AQ$2*$F14 -> 2025.428847 | AR14: =AR$2*$F14*Main!$C$4*$E14+Main!$C$5*AR$2*$F14 -> 2347.611911 | AS14: =AS$2*$F14*Main!$C$4*$E14+Main!$C$5*AS$2*$F14 -> 2669.795435 | AT14: =AT$2*$F14*Main!$C$4*$E14+Main!$C$5*AT$2*$F14 -> 2991.978958 | AU14: =AU$2*$F14*Main!$C$4*$E14+Main!$C$5*AU$2*$F14 -> 1817.781381 | AV14: =AV$2*$F14*Main!$C$4*$E14+Main!$C$5*AV$2*$F14 -> 2133.31468 | AW14: =AW$2*$F14*Main!$C$4*$E14+Main!$C$5*AW$2*$F14 -> 2448.848209 | AX14: =AX$2*$F14*Main!$C$4*$E14+Main!$C$5*AX$2*$F14 -> 2764.381508 | AY14: =AY$2*$F14*Main!$C$4*$E14+Main!$C$5*AY$2*$F14 -> 3079.912511 | AZ14: =AZ$2*$F14*Main!$C$4*$E14+Main!$C$5*AZ$2*$F14 -> 2794.956013 | BA14: =BA$2*$F14*Main!$C$4*$E14+Main!$C$5*BA$2*$F14 -> 3169.475908 | BB14: =BB$2*$F14*Main!$C$4*$E14+Main!$C$5*BB$2*$F14 -> 3543.995804 | BC14: =BC$2*$F14*Main!$C$4*$E14+Main!$C$5*BC$2*$F14 -> 2892.61813 | BD14: =BD$2*$F14*Main!$C$4*$E14+Main!$C$5*BD$2*$F14 -> 3262.748923 | BE14: =BE$2*$F14*Main!$C$4*$E14+Main!$C$5*BE$2*$F14 -> 3632.879717 | BF14: =BF$2*$F14*Main!$C$4*$E14+Main!$C$5*BF$2*$F14 -> 2973.903754 | BG14: =BG$2*$F14*Main!$C$4*$E14+Main!$C$5*BG$2*$F14 -> 3351.398689 | BH14: =BH$2*$F14*Main!$C$4*$E14+Main!$C$5*BH$2*$F14 -> 3728.89592 | BI14: =BI$2*$F14*Main!$C$4*$E14+Main!$C$5*BI$2*$F14 -> 2946.265264 | BJ14: =BJ$2*$F14*Main!$C$4*$E14+Main!$C$5*BJ$2*$F14 -> 3350.983194 | BK14: =BK$2*$F14*Main!$C$4*$E14+Main!$C$5*BK$2*$F14 -> 3755.698828 | BL14: =BL$2*$F14*Main!$C$4*$E14+Main!$C$5*BL$2*$F14 -> 3043.927381 | BM14: =BM$2*$F14*Main!$C$4*$E14+Main!$C$5*BM$2*$F14 -> 3444.256209 | BN14: =BN$2*$F14*Main!$C$4*$E14+Main!$C$5*BN$2*$F14 -> 3844.58274 | BO14: =BO$2*$F14*Main!$C$4*$E14+Main!$C$5*BO$2*$F14 -> 3125.213005 | BP14: =BP$2*$F14*Main!$C$4*$E14+Main!$C$5*BP$2*$F14 -> 3532.905975 | BQ14: =BQ$2*$F14*Main!$C$4*$E14+Main!$C$5*BQ$2*$F14 -> 3940.598944 | BR14: =BR$2*$F14*Main!$C$4*$E14+Main!$C$5*BR$2*$F14 -> 3216.498069 | BS14: =BS$2*$F14*Main!$C$4*$E14+Main!$C$5*BS$2*$F14 -> 3716.052287 | BT14: =BT$2*$F14*Main!$C$4*$E14+Main!$C$5*BT$2*$F14 -> 4215.606505 | BU14: =BU$2*$F14*Main!$C$4*$E14+Main!$C$5*BU$2*$F14 -> 3314.162482 | BV14: =BV$2*$F14*Main!$C$4*$E14+Main!$C$5*BV$2*$F14 -> 3809.325302 | BW14: =BW$2*$F14*Main!$C$4*$E14+Main!$C$5*BW$2*$F14 -> 4304.490418 | BX14: =BX$2*$F14*Main!$C$4*$E14+Main!$C$5*BX$2*$F14 -> 3395.44581 | BY14: =BY$2*$F14*Main!$C$4*$E14+Main!$C$5*BY$2*$F14 -> 3897.977364 | BZ14: =BZ$2*$F14*Main!$C$4*$E14+Main!$C$5*BZ$2*$F14 -> 4400.506621 | CA14: =CA$2*$F14*Main!$C$4*$E14+Main!$C$5*CA$2*$F14 -> 2830.059649 | CB14: =CB$2*$F14*Main!$C$4*$E14+Main!$C$5*CB$2*$F14 -> 3192.879097 | CC14: =CC$2*$F14*Main!$C$4*$E14+Main!$C$5*CC$2*$F14 -> 3555.696251 | CD14: =CD$2*$F14*Main!$C$4*$E14+Main!$C$5*CD$2*$F14 -> 2896.800632 | CE14: =CE$2*$F14*Main!$C$4*$E14+Main!$C$5*CE$2*$F14 -> 3265.535728 | CF14: =CF$2*$F14*Main!$C$4*$E14+Main!$C$5*CF$2*$F14 -> 3634.273119 | CG14: =CG$2*$F14*Main!$C$4*$E14+Main!$C$5*CG$2*$F14 -> 3004.434643 | CH14: =CH$2*$F14*Main!$C$4*$E14+Main!$C$5*CH$2*$F14 -> 3371.753381 | CI14: =CI$2*$F14*Main!$C$4*$E14+Main!$C$5*CI$2*$F14 -> 3739.072118 | CJ14: =CJ$2*$F14*Main!$C$4*$E14+Main!$C$5*CJ$2*$F14 -> 2952.091384 | CK14: =CK$2*$F14*Main!$C$4*$E14+Main!$C$5*CK$2*$F14 -> 3354.867274 | CL14: =CL$2*$F14*Main!$C$4*$E14+Main!$C$5*CL$2*$F14 -> 3757.640868 | CM14: =CM$2*$F14*Main!$C$4*$E14+Main!$C$5*CM$2*$F14 -> 3018.832368 | CN14: =CN$2*$F14*Main!$C$4*$E14+Main!$C$5*CN$2*$F14 -> 3427.523904 | CO14: =CO$2*$F14*Main!$C$4*$E14+Main!$C$5*CO$2*$F14 -> 3836.217736 | CP14: =CP$2*$F14*Main!$C$4*$E14+Main!$C$5*CP$2*$F14 -> 3126.466379 | CQ14: =CQ$2*$F14*Main!$C$4*$E14+Main!$C$5*CQ$2*$F14 -> 3533.741557 | CR14: =CR$2*$F14*Main!$C$4*$E14+Main!$C$5*CR$2*$F14 -> 3941.016735 | CS14: =CS$2*$F14*Main!$C$4*$E14+Main!$C$5*CS$2*$F14 -> 3431.993351 | CT14: =CT$2*$F14*Main!$C$4*$E14+Main!$C$5*CT$2*$F14 -> 3859.717338 | CU14: =CU$2*$F14*Main!$C$4*$E14+Main!$C$5*CU$2*$F14 -> 4287.439031 | CV14: =CV$2*$F14*Main!$C$4*$E14+Main!$C$5*CV$2*$F14 -> 3498.734334 | CW14: =CW$2*$F14*Main!$C$4*$E14+Main!$C$5*CW$2*$F14 -> 3932.373969 | CX14: =CX$2*$F14*Main!$C$4*$E14+Main!$C$5*CX$2*$F14 -> 4366.015899 | CY14: =CY$2*$F14*Main!$C$4*$E14+Main!$C$5*CY$2*$F14 -> 3606.368345 | CZ14: =CZ$2*$F14*Main!$C$4*$E14+Main!$C$5*CZ$2*$F14 -> 4038.591622 | DA14: =DA$2*$F14*Main!$C$4*$E14+Main!$C$5*DA$2*$F14 -> 4470.814898 | DB14: =DB$2*$F14*Main!$C$4*$E14+Main!$C$5*DB$2*$F14 -> 1046.111084 | DC14: =DC$2*$F14*Main!$C$4*$E14+Main!$C$5*DC$2*$F14 -> 1402.901027 | DD14: =DD$2*$F14*Main!$C$4*$E14+Main!$C$5*DD$2*$F14 -> 1759.690969 | DE14: =DE$2*$F14*Main!$C$4*$E14+Main!$C$5*DE$2*$F14 -> 2116.480912 | DF14: =DF$2*$F14*Main!$C$4*$E14+Main!$C$5*DF$2*$F14 -> 2473.270625 | DG14: =DG$2*$F14*Main!$C$4*$E14+Main!$C$5*DG$2*$F14 -> 1241.235835 | DH14: =DH$2*$F14*Main!$C$4*$E14+Main!$C$5*DH$2*$F14 -> 1572.348841 | DI14: =DI$2*$F14*Main!$C$4*$E14+Main!$C$5*DI$2*$F14 -> 1903.461387 | DJ14: =DJ$2*$F14*Main!$C$4*$E14+Main!$C$5*DJ$2*$F14 -> 2234.574622 | DK14: =DK$2*$F14*Main!$C$4*$E14+Main!$C$5*DK$2*$F14 -> 2565.687397 | DL14: =DL$2*$F14*Main!$C$4*$E14+Main!$C$5*DL$2*$F14 -> 1344.31753 | DM14: =DM$2*$F14*Main!$C$4*$E14+Main!$C$5*DM$2*$F14 -> 1676.341182 | DN14: =DN$2*$F14*Main!$C$4*$E14+Main!$C$5*DN$2*$F14 -> 2008.364605 | DO14: =DO$2*$F14*Main!$C$4*$E14+Main!$C$5*DO$2*$F14 -> 2340.387798 | DP14: =DP$2*$F14*Main!$C$4*$E14+Main!$C$5*DP$2*$F14 -> 2672.412368 | DQ14: =DQ$2*$F14*Main!$C$4*$E14+Main!$C$5*DQ$2*$F14 -> 1102.420145 | DR14: =DR$2*$F14*Main!$C$4*$E14+Main!$C$5*DR$2*$F14 -> 1472.354439 | DS14: =DS$2*$F14*Main!$C$4*$E14+Main!$C$5*DS$2*$F14 -> 1842.288733 | DT14: =DT$2*$F14*Main!$C$4*$E14+Main!$C$5*DT$2*$F14 -> 2212.223026 | DU14: =DU$2*$F14*Main!$C$4*$E14+Main!$C$5*DU$2*$F14 -> 2582.158009 | DV14: =DV$2*$F14*Main!$C$4*$E14+Main!$C$5*DV$2*$F14 -> 1297.544666 | DW14: =DW$2*$F14*Main!$C$4*$E14+Main!$C$5*DW$2*$F14 -> 1641.801793 | DX14: =DX$2*$F14*Main!$C$4*$E14+Main!$C$5*DX$2*$F14 -> 1986.05915 | DY14: =DY$2*$F14*Main!$C$4*$E14+Main!$C$5*DY$2*$F14 -> 2330.317195 | DZ14: =DZ$2*$F14*Main!$C$4*$E14+Main!$C$5*DZ$2*$F14 -> 2674.574781 | EA14: =EA$2*$F14*Main!$C$4*$E14+Main!$C$5*EA$2*$F14 -> 1400.62659 | EB14: =EB$2*$F14*Main!$C$4*$E14+Main!$C$5*EB$2*$F14 -> 1745.794364 | EC14: =EC$2*$F14*Main!$C$4*$E14+Main!$C$5*EC$2*$F14 -> 2090.962368 | ED14: =ED$2*$F14*Main!$C$4*$E14+Main!$C$5*ED$2*$F14 -> 2436.130831 | EE14: =EE$2*$F14*Main!$C$4*$E14+Main!$C$5*EE$2*$F14 -> 2781.297457 | EF14: =EF$2*$F14*Main!$C$4*$E14+Main!$C$5*EF$2*$F14 -> 1362.557096 | EG14: =EG$2*$F14*Main!$C$4*$E14+Main!$C$5*EG$2*$F14 -> 1776.444393 | EH14: =EH$2*$F14*Main!$C$4*$E14+Main!$C$5*EH$2*$F14 -> 2190.331919 | EI14: =EI$2*$F14*Main!$C$4*$E14+Main!$C$5*EI$2*$F14 -> 2604.218298 | EJ14: =EJ$2*$F14*Main!$C$4*$E14+Main!$C$5*EJ$2*$F14 -> 3018.106972 | EK14: =EK$2*$F14*Main!$C$4*$E14+Main!$C$5*EK$2*$F14 -> 1557.681618 | EL14: =EL$2*$F14*Main!$C$4*$E14+Main!$C$5*EL$2*$F14 -> 1945.891977 | EM14: =EM$2*$F14*Main!$C$4*$E14+Main!$C$5*EM$2*$F14 -> 2334.102566 | EN14: =EN$2*$F14*Main!$C$4*$E14+Main!$C$5*EN$2*$F14 -> 2722.313156 | EO14: =EO$2*$F14*Main!$C$4*$E14+Main!$C$5*EO$2*$F14 -> 3110.523745 | EP14: =EP$2*$F14*Main!$C$4*$E14+Main!$C$5*EP$2*$F14 -> 1660.763542 | EQ14: =EQ$2*$F14*Main!$C$4*$E14+Main!$C$5*EQ$2*$F14 -> 2049.884548 | ER14: =ER$2*$F14*Main!$C$4*$E14+Main!$C$5*ER$2*$F14 -> 2439.004866 | ES14: =ES$2*$F14*Main!$C$4*$E14+Main!$C$5*ES$2*$F14 -> 2828.126791 | ET14: =ET$2*$F14*Main!$C$4*$E14+Main!$C$5*ET$2*$F14 -> 3217.248716 | EU14: =EU$2*$F14*Main!$C$4*$E14+Main!$C$5*EU$2*$F14 -> 3918.513404 | EV14: =EV$2*$F14*Main!$C$4*$E14+Main!$C$5*EV$2*$F14 -> 4003.008214 | EW14: =EW$2*$F14*Main!$C$4*$E14+Main!$C$5*EW$2*$F14 -> 4106.390856 | EX14: =EX$2*$F14*Main!$C$4*$E14+Main!$C$5*EX$2*$F14 -> 4160.416757 | EY14: =EY$2*$F14*Main!$C$4*$E14+Main!$C$5*EY$2*$F14 -> 4244.911568 | EZ14: =EZ$2*$F14*Main!$C$4*$E14+Main!$C$5*EZ$2*$F14 -> 4348.291914 | FA14: =FA$2*$F14*Main!$C$4*$E14+Main!$C$5*FA$2*$F14 -> 4715.160723 | FB14: =FB$2*$F14*Main!$C$4*$E14+Main!$C$5*FB$2*$F14 -> 4799.655533 | FC14: =FC$2*$F14*Main!$C$4*$E14+Main!$C$5*FC$2*$F14 -> 4903.038175 | FD14: =IF($D14<100,(FD$2*(1+Main!$C$3)*$E14*Main!$C$4)+(FD$2*(1+Main!$C$3)*Main!$C$5),(FD$2*$E14*Main!$C$4)+(FD$2*Main!$C$5)) -> 108.2965985 | FE14: =IF($D14<100,(FE$2*(1+Main!$C$3)*$E14*Main!$C$4)+(FE$2*(1+Main!$C$3)*Main!$C$5),(FE$2*$E14*Main!$C$4)+(FE$2*Main!$C$5)) -> 118.386156 | FF14: =IF($D14<100,(FF$2*(1+Main!$C$3)*$E14*Main!$C$4)+(FF$2*(1+Main!$C$3)*Main!$C$5),(FF$2*$E14*Main!$C$4)+(FF$2*Main!$C$5)) -> 119.1942269 | FG14: =IF($D14<100,(FG$2*(1+Main!$C$3)*$E14*Main!$C$4)+(FG$2*(1+Main!$C$3)*Main!$C$5),(FG$2*$E14*Main!$C$4)+(FG$2*Main!$C$5)) -> 128.6720673 | FH14: =IF($D14<100,(FH$2*(1+Main!$C$3)*$E14*Main!$C$4)+(FH$2*(1+Main!$C$3)*Main!$C$5),(FH$2*$E14*Main!$C$4)+(FH$2*Main!$C$5)) -> 173.5917443 | FI14: =IF($D14<100,(FI$2*(1+Main!$C$3)*$E14*Main!$C$4)+(FI$2*(1+Main!$C$3)*Main!$C$5),(FI$2*$E14*Main!$C$4)+(FI$2*Main!$C$5)) -> 49.04310394
A15: AL | B15: 20020 | C15: (Dothan, Geneva County, Henry County, Houston County) | D15: 20020 | E15: 0.6631 | F15: =IF($D15<100,Main!$C$2*(1+Main!$C$3),Main!$C$2) -> 3039.64 | G15: =G$2*$F15*Main!$C$4*$E15+Main!$C$5*G$2*$F15 -> 1250.670437 | H15: =H$2*$F15*Main!$C$4*$E15+Main!$C$5*H$2*$F15 -> 1544.878627 | I15: =I$2*$F15*Main!$C$4*$E15+Main!$C$5*I$2*$F15 -> 1839.087041 | J15: =J$2*$F15*Main!$C$4*$E15+Main!$C$5*J$2*$F15 -> 2133.295008 | K15: =K$2*$F15*Main!$C$4*$E15+Main!$C$5*K$2*$F15 -> 2427.504316 | L15: =L$2*$F15*Main!$C$4*$E15+Main!$C$5*L$2*$F15 -> 1484.389188 | M15: =M$2*$F15*Main!$C$4*$E15+Main!$C$5*M$2*$F15 -> 1750.874411 | N15: =N$2*$F15*Main!$C$4*$E15+Main!$C$5*N$2*$F15 -> 2017.359635 | O15: =O$2*$F15*Main!$C$4*$E15+Main!$C$5*O$2*$F15 -> 2283.844188 | P15: =P$2*$F15*Main!$C$4*$E15+Main!$C$5*P$2*$F15 -> 2550.330529 | Q15: =Q$2*$F15*Main!$C$4*$E15+Main!$C$5*Q$2*$F15 -> 1595.923508 | R15: =R$2*$F15*Main!$C$4*$E15+Main!$C$5*R$2*$F15 -> 1855.932782 | S15: =S$2*$F15*Main!$C$4*$E15+Main!$C$5*S$2*$F15 -> 2115.941832 | T15: =T$2*$F15*Main!$C$4*$E15+Main!$C$5*T$2*$F15 -> 2375.951553 | U15: =U$2*$F15*Main!$C$4*$E15+Main!$C$5*U$2*$F15 -> 2635.959709 | V15: =V$2*$F15*Main!$C$4*$E15+Main!$C$5*V$2*$F15 -> 1329.623599 | W15: =W$2*$F15*Main!$C$4*$E15+Main!$C$5*W$2*$F15 -> 1637.50997 | X15: =X$2*$F15*Main!$C$4*$E15+Main!$C$5*X$2*$F15 -> 1945.396341 | Y15: =Y$2*$F15*Main!$C$4*$E15+Main!$C$5*Y$2*$F15 -> 2253.281818 | Z15: =Z$2*$F15*Main!$C$4*$E15+Main!$C$5*Z$2*$F15 -> 2561.169977 | AA15: =AA$2*$F15*Main!$C$4*$E15+Main!$C$5*AA$2*$F15 -> 1563.342126 | AB15: =AB$2*$F15*Main!$C$4*$E15+Main!$C$5*AB$2*$F15 -> 1843.505754 | AC15: =AC$2*$F15*Main!$C$4*$E15+Main!$C$5*AC$2*$F15 -> 2123.668935 | AD15: =AD$2*$F15*Main!$C$4*$E15+Main!$C$5*AD$2*$F15 -> 2403.831445 | AE15: =AE$2*$F15*Main!$C$4*$E15+Main!$C$5*AE$2*$F15 -> 2683.99619 | AF15: =AF$2*$F15*Main!$C$4*$E15+Main!$C$5*AF$2*$F15 -> 1674.876446 | AG15: =AG$2*$F15*Main!$C$4*$E15+Main!$C$5*AG$2*$F15 -> 1948.563901 | AH15: =AH$2*$F15*Main!$C$4*$E15+Main!$C$5*AH$2*$F15 -> 2222.251355 | AI15: =AI$2*$F15*Main!$C$4*$E15+Main!$C$5*AI$2*$F15 -> 2495.93881 | AJ15: =AJ$2*$F15*Main!$C$4*$E15+Main!$C$5*AJ$2*$F15 -> 2769.62537 | AK15: =AK$2*$F15*Main!$C$4*$E15+Main!$C$5*AK$2*$F15 -> 1424.892265 | AL15: =AL$2*$F15*Main!$C$4*$E15+Main!$C$5*AL$2*$F15 -> 1766.355441 | AM15: =AM$2*$F15*Main!$C$4*$E15+Main!$C$5*AM$2*$F15 -> 2107.818393 | AN15: =AN$2*$F15*Main!$C$4*$E15+Main!$C$5*AN$2*$F15 -> 2449.28157 | AO15: =AO$2*$F15*Main!$C$4*$E15+Main!$C$5*AO$2*$F15 -> 2790.745416 | AP15: =AP$2*$F15*Main!$C$4*$E15+Main!$C$5*AP$2*$F15 -> 1658.610792 | AQ15: =AQ$2*$F15*Main!$C$4*$E15+Main!$C$5*AQ$2*$F15 -> 1972.350778 | AR15: =AR$2*$F15*Main!$C$4*$E15+Main!$C$5*AR$2*$F15 -> 2286.090763 | AS15: =AS$2*$F15*Main!$C$4*$E15+Main!$C$5*AS$2*$F15 -> 2599.831196 | AT15: =AT$2*$F15*Main!$C$4*$E15+Main!$C$5*AT$2*$F15 -> 2913.571629 | AU15: =AU$2*$F15*Main!$C$4*$E15+Main!$C$5*AU$2*$F15 -> 1770.144889 | AV15: =AV$2*$F15*Main!$C$4*$E15+Main!$C$5*AV$2*$F15 -> 2077.409372 | AW15: =AW$2*$F15*Main!$C$4*$E15+Main!$C$5*AW$2*$F15 -> 2384.674078 | AX15: =AX$2*$F15*Main!$C$4*$E15+Main!$C$5*AX$2*$F15 -> 2691.938562 | AY15: =AY$2*$F15*Main!$C$4*$E15+Main!$C$5*AY$2*$F15 -> 2999.200809 | AZ15: =AZ$2*$F15*Main!$C$4*$E15+Main!$C$5*AZ$2*$F15 -> 2721.711836 | BA15: =BA$2*$F15*Main!$C$4*$E15+Main!$C$5*BA$2*$F15 -> 3086.417122 | BB15: =BB$2*$F15*Main!$C$4*$E15+Main!$C$5*BB$2*$F15 -> 3451.122408 | BC15: =BC$2*$F15*Main!$C$4*$E15+Main!$C$5*BC$2*$F15 -> 2816.814635 | BD15: =BD$2*$F15*Main!$C$4*$E15+Main!$C$5*BD$2*$F15 -> 3177.245839 | BE15: =BE$2*$F15*Main!$C$4*$E15+Main!$C$5*BE$2*$F15 -> 3537.677043 | BF15: =BF$2*$F15*Main!$C$4*$E15+Main!$C$5*BF$2*$F15 -> 2895.970101 | BG15: =BG$2*$F15*Main!$C$4*$E15+Main!$C$5*BG$2*$F15 -> 3263.572463 | BH15: =BH$2*$F15*Main!$C$4*$E15+Main!$C$5*BH$2*$F15 -> 3631.177062 | BI15: =BI$2*$F15*Main!$C$4*$E15+Main!$C$5*BI$2*$F15 -> 2869.055901 | BJ15: =BJ$2*$F15*Main!$C$4*$E15+Main!$C$5*BJ$2*$F15 -> 3263.167856 | BK15: =BK$2*$F15*Main!$C$4*$E15+Main!$C$5*BK$2*$F15 -> 3657.277576 | BL15: =BL$2*$F15*Main!$C$4*$E15+Main!$C$5*BL$2*$F15 -> 2964.1587 | BM15: =BM$2*$F15*Main!$C$4*$E15+Main!$C$5*BM$2*$F15 -> 3353.996573 | BN15: =BN$2*$F15*Main!$C$4*$E15+Main!$C$5*BN$2*$F15 -> 3743.832211 | BO15: =BO$2*$F15*Main!$C$4*$E15+Main!$C$5*BO$2*$F15 -> 3043.314166 | BP15: =BP$2*$F15*Main!$C$4*$E15+Main!$C$5*BP$2*$F15 -> 3440.323198 | BQ15: =BQ$2*$F15*Main!$C$4*$E15+Main!$C$5*BQ$2*$F15 -> 3837.33223 | BR15: =BR$2*$F15*Main!$C$4*$E15+Main!$C$5*BR$2*$F15 -> 3132.207028 | BS15: =BS$2*$F15*Main!$C$4*$E15+Main!$C$5*BS$2*$F15 -> 3618.670006 | BT15: =BT$2*$F15*Main!$C$4*$E15+Main!$C$5*BT$2*$F15 -> 4105.132985 | BU15: =BU$2*$F15*Main!$C$4*$E15+Main!$C$5*BU$2*$F15 -> 3227.312062 | BV15: =BV$2*$F15*Main!$C$4*$E15+Main!$C$5*BV$2*$F15 -> 3709.498724 | BW15: =BW$2*$F15*Main!$C$4*$E15+Main!$C$5*BW$2*$F15 -> 4191.68762 | BX15: =BX$2*$F15*Main!$C$4*$E15+Main!$C$5*BX$2*$F15 -> 3306.465292 | BY15: =BY$2*$F15*Main!$C$4*$E15+Main!$C$5*BY$2*$F15 -> 3795.827583 | BZ15: =BZ$2*$F15*Main!$C$4*$E15+Main!$C$5*BZ$2*$F15 -> 4285.187639 | CA15: =CA$2*$F15*Main!$C$4*$E15+Main!$C$5*CA$2*$F15 -> 2755.895552 | CB15: =CB$2*$F15*Main!$C$4*$E15+Main!$C$5*CB$2*$F15 -> 3109.207011 | CC15: =CC$2*$F15*Main!$C$4*$E15+Main!$C$5*CC$2*$F15 -> 3462.516235 | CD15: =CD$2*$F15*Main!$C$4*$E15+Main!$C$5*CD$2*$F15 -> 2820.887531 | CE15: =CE$2*$F15*Main!$C$4*$E15+Main!$C$5*CE$2*$F15 -> 3179.959613 | CF15: =CF$2*$F15*Main!$C$4*$E15+Main!$C$5*CF$2*$F15 -> 3539.03393 | CG15: =CG$2*$F15*Main!$C$4*$E15+Main!$C$5*CG$2*$F15 -> 2925.700902 | CH15: =CH$2*$F15*Main!$C$4*$E15+Main!$C$5*CH$2*$F15 -> 3283.393743 | CI15: =CI$2*$F15*Main!$C$4*$E15+Main!$C$5*CI$2*$F15 -> 3641.086584 | CJ15: =CJ$2*$F15*Main!$C$4*$E15+Main!$C$5*CJ$2*$F15 -> 2874.729343 | CK15: =CK$2*$F15*Main!$C$4*$E15+Main!$C$5*CK$2*$F15 -> 3266.950151 | CL15: =CL$2*$F15*Main!$C$4*$E15+Main!$C$5*CL$2*$F15 -> 3659.168723 | CM15: =CM$2*$F15*Main!$C$4*$E15+Main!$C$5*CM$2*$F15 -> 2939.721323 | CN15: =CN$2*$F15*Main!$C$4*$E15+Main!$C$5*CN$2*$F15 -> 3337.702753 | CO15: =CO$2*$F15*Main!$C$4*$E15+Main!$C$5*CO$2*$F15 -> 3735.686419 | CP15: =CP$2*$F15*Main!$C$4*$E15+Main!$C$5*CP$2*$F15 -> 3044.534693 | CQ15: =CQ$2*$F15*Main!$C$4*$E15+Main!$C$5*CQ$2*$F15 -> 3441.136883 | CR15: =CR$2*$F15*Main!$C$4*$E15+Main!$C$5*CR$2*$F15 -> 3837.739072 | CS15: =CS$2*$F15*Main!$C$4*$E15+Main!$C$5*CS$2*$F15 -> 3342.055074 | CT15: =CT$2*$F15*Main!$C$4*$E15+Main!$C$5*CT$2*$F15 -> 3758.570194 | CU15: =CU$2*$F15*Main!$C$4*$E15+Main!$C$5*CU$2*$F15 -> 4175.083079 | CV15: =CV$2*$F15*Main!$C$4*$E15+Main!$C$5*CV$2*$F15 -> 3407.047054 | CW15: =CW$2*$F15*Main!$C$4*$E15+Main!$C$5*CW$2*$F15 -> 3829.322796 | CX15: =CX$2*$F15*Main!$C$4*$E15+Main!$C$5*CX$2*$F15 -> 4251.600774 | CY15: =CY$2*$F15*Main!$C$4*$E15+Main!$C$5*CY$2*$F15 -> 3511.860425 | CZ15: =CZ$2*$F15*Main!$C$4*$E15+Main!$C$5*CZ$2*$F15 -> 3932.756926 | DA15: =DA$2*$F15*Main!$C$4*$E15+Main!$C$5*DA$2*$F15 -> 4353.653428 | DB15: =DB$2*$F15*Main!$C$4*$E15+Main!$C$5*DB$2*$F15 -> 1018.696862 | DC15: =DC$2*$F15*Main!$C$4*$E15+Main!$C$5*DC$2*$F15 -> 1366.136824 | DD15: =DD$2*$F15*Main!$C$4*$E15+Main!$C$5*DD$2*$F15 -> 1713.576785 | DE15: =DE$2*$F15*Main!$C$4*$E15+Main!$C$5*DE$2*$F15 -> 2061.016747 | DF15: =DF$2*$F15*Main!$C$4*$E15+Main!$C$5*DF$2*$F15 -> 2408.456484 | DG15: =DG$2*$F15*Main!$C$4*$E15+Main!$C$5*DG$2*$F15 -> 1208.708205 | DH15: =DH$2*$F15*Main!$C$4*$E15+Main!$C$5*DH$2*$F15 -> 1531.144115 | DI15: =DI$2*$F15*Main!$C$4*$E15+Main!$C$5*DI$2*$F15 -> 1853.579578 | DJ15: =DJ$2*$F15*Main!$C$4*$E15+Main!$C$5*DJ$2*$F15 -> 2176.015711 | DK15: =DK$2*$F15*Main!$C$4*$E15+Main!$C$5*DK$2*$F15 -> 2498.451398 | DL15: =DL$2*$F15*Main!$C$4*$E15+Main!$C$5*DL$2*$F15 -> 1309.088556 | DM15: =DM$2*$F15*Main!$C$4*$E15+Main!$C$5*DM$2*$F15 -> 1632.411249 | DN15: =DN$2*$F15*Main!$C$4*$E15+Main!$C$5*DN$2*$F15 -> 1955.733718 | DO15: =DO$2*$F15*Main!$C$4*$E15+Main!$C$5*DO$2*$F15 -> 2279.055964 | DP15: =DP$2*$F15*Main!$C$4*$E15+Main!$C$5*DP$2*$F15 -> 2602.379551 | DQ15: =DQ$2*$F15*Main!$C$4*$E15+Main!$C$5*DQ$2*$F15 -> 1073.530296 | DR15: =DR$2*$F15*Main!$C$4*$E15+Main!$C$5*DR$2*$F15 -> 1433.77015 | DS15: =DS$2*$F15*Main!$C$4*$E15+Main!$C$5*DS$2*$F15 -> 1794.010004 | DT15: =DT$2*$F15*Main!$C$4*$E15+Main!$C$5*DT$2*$F15 -> 2154.249858 | DU15: =DU$2*$F15*Main!$C$4*$E15+Main!$C$5*DU$2*$F15 -> 2514.490383 | DV15: =DV$2*$F15*Main!$C$4*$E15+Main!$C$5*DV$2*$F15 -> 1263.541415 | DW15: =DW$2*$F15*Main!$C$4*$E15+Main!$C$5*DW$2*$F15 -> 1598.776994 | DX15: =DX$2*$F15*Main!$C$4*$E15+Main!$C$5*DX$2*$F15 -> 1934.012797 | DY15: =DY$2*$F15*Main!$C$4*$E15+Main!$C$5*DY$2*$F15 -> 2269.24927 | DZ15: =DZ$2*$F15*Main!$C$4*$E15+Main!$C$5*DZ$2*$F15 -> 2604.485296 | EA15: =EA$2*$F15*Main!$C$4*$E15+Main!$C$5*EA$2*$F15 -> 1363.921991 | EB15: =EB$2*$F15*Main!$C$4*$E15+Main!$C$5*EB$2*$F15 -> 1700.044352 | EC15: =EC$2*$F15*Main!$C$4*$E15+Main!$C$5*EC$2*$F15 -> 2036.166938 | ED15: =ED$2*$F15*Main!$C$4*$E15+Main!$C$5*ED$2*$F15 -> 2372.28997 | EE15: =EE$2*$F15*Main!$C$4*$E15+Main!$C$5*EE$2*$F15 -> 2708.411214 | EF15: =EF$2*$F15*Main!$C$4*$E15+Main!$C$5*EF$2*$F15 -> 1326.85014 | EG15: =EG$2*$F15*Main!$C$4*$E15+Main!$C$5*EG$2*$F15 -> 1729.891171 | EH15: =EH$2*$F15*Main!$C$4*$E15+Main!$C$5*EH$2*$F15 -> 2132.932426 | EI15: =EI$2*$F15*Main!$C$4*$E15+Main!$C$5*EI$2*$F15 -> 2535.972564 | EJ15: =EJ$2*$F15*Main!$C$4*$E15+Main!$C$5*EJ$2*$F15 -> 2939.014937 | EK15: =EK$2*$F15*Main!$C$4*$E15+Main!$C$5*EK$2*$F15 -> 1516.861259 | EL15: =EL$2*$F15*Main!$C$4*$E15+Main!$C$5*EL$2*$F15 -> 1894.898239 | EM15: =EM$2*$F15*Main!$C$4*$E15+Main!$C$5*EM$2*$F15 -> 2272.935443 | EN15: =EN$2*$F15*Main!$C$4*$E15+Main!$C$5*EN$2*$F15 -> 2650.972646 | EO15: =EO$2*$F15*Main!$C$4*$E15+Main!$C$5*EO$2*$F15 -> 3029.00985 | EP15: =EP$2*$F15*Main!$C$4*$E15+Main!$C$5*EP$2*$F15 -> 1617.241834 | EQ15: =EQ$2*$F15*Main!$C$4*$E15+Main!$C$5*EQ$2*$F15 -> 1996.165597 | ER15: =ER$2*$F15*Main!$C$4*$E15+Main!$C$5*ER$2*$F15 -> 2375.088689 | ES15: =ES$2*$F15*Main!$C$4*$E15+Main!$C$5*ES$2*$F15 -> 2754.013346 | ET15: =ET$2*$F15*Main!$C$4*$E15+Main!$C$5*ET$2*$F15 -> 3132.938003 | EU15: =EU$2*$F15*Main!$C$4*$E15+Main!$C$5*EU$2*$F15 -> 3815.825459 | EV15: =EV$2*$F15*Main!$C$4*$E15+Main!$C$5*EV$2*$F15 -> 3898.106012 | EW15: =EW$2*$F15*Main!$C$4*$E15+Main!$C$5*EW$2*$F15 -> 3998.779425 | EX15: =EX$2*$F15*Main!$C$4*$E15+Main!$C$5*EX$2*$F15 -> 4051.389531 | EY15: =EY$2*$F15*Main!$C$4*$E15+Main!$C$5*EY$2*$F15 -> 4133.670084 | EZ15: =EZ$2*$F15*Main!$C$4*$E15+Main!$C$5*EZ$2*$F15 -> 4234.341261 | FA15: =FA$2*$F15*Main!$C$4*$E15+Main!$C$5*FA$2*$F15 -> 4591.595964 | FB15: =FB$2*$F15*Main!$C$4*$E15+Main!$C$5*FB$2*$F15 -> 4673.876517 | FC15: =FC$2*$F15*Main!$C$4*$E15+Main!$C$5*FC$2*$F15 -> 4774.549929 | FD15: =IF($D15<100,(FD$2*(1+Main!$C$3)*$E15*Main!$C$4)+(FD$2*(1+Main!$C$3)*Main!$C$5),(FD$2*$E15*Main!$C$4)+(FD$2*Main!$C$5)) -> 105.4585949 | FE15: =IF($D15<100,(FE$2*(1+Main!$C$3)*$E15*Main!$C$4)+(FE$2*(1+Main!$C$3)*Main!$C$5),(FE$2*$E15*Main!$C$4)+(FE$2*Main!$C$5)) -> 115.2837471 | FF15: =IF($D15<100,(FF$2*(1+Main!$C$3)*$E15*Main!$C$4)+(FF$2*(1+Main!$C$3)*Main!$C$5),(FF$2*$E15*Main!$C$4)+(FF$2*Main!$C$5)) -> 116.0706418 | FG15: =IF($D15<100,(FG$2*(1+Main!$C$3)*$E15*Main!$C$4)+(FG$2*(1+Main!$C$3)*Main!$C$5),(FG$2*$E15*Main!$C$4)+(FG$2*Main!$C$5)) -> 125.3001074 | FH15: =IF($D15<100,(FH$2*(1+Main!$C$3)*$E15*Main!$C$4)+(FH$2*(1+Main!$C$3)*Main!$C$5),(FH$2*$E15*Main!$C$4)+(FH$2*Main!$C$5)) -> 169.0426264 | FI15: =IF($D15<100,(FI$2*(1+Main!$C$3)*$E15*Main!$C$4)+(FI$2*(1+Main!$C$3)*Main!$C$5),(FI$2*$E15*Main!$C$4)+(FI$2*Main!$C$5)) -> 47.75788809
A16: AL | B16: 22520 | C16: (Colbert County, Florence-Muscle Shoals, Lauderdale County) | D16: 22520 | E16: 0.6911 | F16: =IF($D16<100,Main!$C$2*(1+Main!$C$3),Main!$C$2) -> 3039.64 | G16: =G$2*$F16*Main!$C$4*$E16+Main!$C$5*G$2*$F16 -> 1288.066969 | H16: =H$2*$F16*Main!$C$4*$E16+Main!$C$5*H$2*$F16 -> 1591.072334 | I16: =I$2*$F16*Main!$C$4*$E16+Main!$C$5*I$2*$F16 -> 1894.077929 | J16: =J$2*$F16*Main!$C$4*$E16+Main!$C$5*J$2*$F16 -> 2197.083064 | K16: =K$2*$F16*Main!$C$4*$E16+Main!$C$5*K$2*$F16 -> 2500.08958 | L16: =L$2*$F16*Main!$C$4*$E16+Main!$C$5*L$2*$F16 -> 1528.774188 | M16: =M$2*$F16*Main!$C$4*$E16+Main!$C$5*M$2*$F16 -> 1803.227637 | N16: =N$2*$F16*Main!$C$4*$E16+Main!$C$5*N$2*$F16 -> 2077.681085 | O16: =O$2*$F16*Main!$C$4*$E16+Main!$C$5*O$2*$F16 -> 2352.133843 | P16: =P$2*$F16*Main!$C$4*$E16+Main!$C$5*P$2*$F16 -> 2626.588443 | Q16: =Q$2*$F16*Main!$C$4*$E16+Main!$C$5*Q$2*$F16 -> 1643.643518 | R16: =R$2*$F16*Main!$C$4*$E16+Main!$C$5*R$2*$F16 -> 1911.427378 | S16: =S$2*$F16*Main!$C$4*$E16+Main!$C$5*S$2*$F16 -> 2179.211008 | T16: =T$2*$F16*Main!$C$4*$E16+Main!$C$5*T$2*$F16 -> 2446.995328 | U16: =U$2*$F16*Main!$C$4*$E16+Main!$C$5*U$2*$F16 -> 2714.778037 | V16: =V$2*$F16*Main!$C$4*$E16+Main!$C$5*V$2*$F16 -> 1369.380925 | W16: =W$2*$F16*Main!$C$4*$E16+Main!$C$5*W$2*$F16 -> 1686.473464 | X16: =X$2*$F16*Main!$C$4*$E16+Main!$C$5*X$2*$F16 -> 2003.566004 | Y16: =Y$2*$F16*Main!$C$4*$E16+Main!$C$5*Y$2*$F16 -> 2320.657622 | Z16: =Z$2*$F16*Main!$C$4*$E16+Main!$C$5*Z$2*$F16 -> 2637.752003 | AA16: =AA$2*$F16*Main!$C$4*$E16+Main!$C$5*AA$2*$F16 -> 1610.087913 | AB16: =AB$2*$F16*Main!$C$4*$E16+Main!$C$5*AB$2*$F16 -> 1898.628767 | AC16: =AC$2*$F16*Main!$C$4*$E16+Main!$C$5*AC$2*$F16 -> 2187.16916 | AD16: =AD$2*$F16*Main!$C$4*$E16+Main!$C$5*AD$2*$F16 -> 2475.708862 | AE16: =AE$2*$F16*Main!$C$4*$E16+Main!$C$5*AE$2*$F16 -> 2764.250866 | AF16: =AF$2*$F16*Main!$C$4*$E16+Main!$C$5*AF$2*$F16 -> 1724.957243 | AG16: =AG$2*$F16*Main!$C$4*$E16+Main!$C$5*AG$2*$F16 -> 2006.828277 | AH16: =AH$2*$F16*Main!$C$4*$E16+Main!$C$5*AH$2*$F16 -> 2288.699312 | AI16: =AI$2*$F16*Main!$C$4*$E16+Main!$C$5*AI$2*$F16 -> 2570.570346 | AJ16: =AJ$2*$F16*Main!$C$4*$E16+Main!$C$5*AJ$2*$F16 -> 2852.44046 | AK16: =AK$2*$F16*Main!$C$4*$E16+Main!$C$5*AK$2*$F16 -> 1467.498237 | AL16: =AL$2*$F16*Main!$C$4*$E16+Main!$C$5*AL$2*$F16 -> 1819.171568 | AM16: =AM$2*$F16*Main!$C$4*$E16+Main!$C$5*AM$2*$F16 -> 2170.844668 | AN16: =AN$2*$F16*Main!$C$4*$E16+Main!$C$5*AN$2*$F16 -> 2522.517999 | AO16: =AO$2*$F16*Main!$C$4*$E16+Main!$C$5*AO$2*$F16 -> 2874.192021 | AP16: =AP$2*$F16*Main!$C$4*$E16+Main!$C$5*AP$2*$F16 -> 1708.205226 | AQ16: =AQ$2*$F16*Main!$C$4*$E16+Main!$C$5*AQ$2*$F16 -> 2031.32641 | AR16: =AR$2*$F16*Main!$C$4*$E16+Main!$C$5*AR$2*$F16 -> 2354.447594 | AS16: =AS$2*$F16*Main!$C$4*$E16+Main!$C$5*AS$2*$F16 -> 2677.569239 | AT16: =AT$2*$F16*Main!$C$4*$E16+Main!$C$5*AT$2*$F16 -> 3000.690884 | AU16: =AU$2*$F16*Main!$C$4*$E16+Main!$C$5*AU$2*$F16 -> 1823.074325 | AV16: =AV$2*$F16*Main!$C$4*$E16+Main!$C$5*AV$2*$F16 -> 2139.526381 | AW16: =AW$2*$F16*Main!$C$4*$E16+Main!$C$5*AW$2*$F16 -> 2455.978667 | AX16: =AX$2*$F16*Main!$C$4*$E16+Main!$C$5*AX$2*$F16 -> 2772.430724 | AY16: =AY$2*$F16*Main!$C$4*$E16+Main!$C$5*AY$2*$F16 -> 3088.880478 | AZ16: =AZ$2*$F16*Main!$C$4*$E16+Main!$C$5*AZ$2*$F16 -> 2803.094254 | BA16: =BA$2*$F16*Main!$C$4*$E16+Main!$C$5*BA$2*$F16 -> 3178.704662 | BB16: =BB$2*$F16*Main!$C$4*$E16+Main!$C$5*BB$2*$F16 -> 3554.31507 | BC16: =BC$2*$F16*Main!$C$4*$E16+Main!$C$5*BC$2*$F16 -> 2901.04074 | BD16: =BD$2*$F16*Main!$C$4*$E16+Main!$C$5*BD$2*$F16 -> 3272.249266 | BE16: =BE$2*$F16*Main!$C$4*$E16+Main!$C$5*BE$2*$F16 -> 3643.457791 | BF16: =BF$2*$F16*Main!$C$4*$E16+Main!$C$5*BF$2*$F16 -> 2982.563048 | BG16: =BG$2*$F16*Main!$C$4*$E16+Main!$C$5*BG$2*$F16 -> 3361.157159 | BH16: =BH$2*$F16*Main!$C$4*$E16+Main!$C$5*BH$2*$F16 -> 3739.753571 | BI16: =BI$2*$F16*Main!$C$4*$E16+Main!$C$5*BI$2*$F16 -> 2954.844082 | BJ16: =BJ$2*$F16*Main!$C$4*$E16+Main!$C$5*BJ$2*$F16 -> 3360.740453 | BK16: =BK$2*$F16*Main!$C$4*$E16+Main!$C$5*BK$2*$F16 -> 3766.634522 | BL16: =BL$2*$F16*Main!$C$4*$E16+Main!$C$5*BL$2*$F16 -> 3052.790568 | BM16: =BM$2*$F16*Main!$C$4*$E16+Main!$C$5*BM$2*$F16 -> 3454.285057 | BN16: =BN$2*$F16*Main!$C$4*$E16+Main!$C$5*BN$2*$F16 -> 3855.777244 | BO16: =BO$2*$F16*Main!$C$4*$E16+Main!$C$5*BO$2*$F16 -> 3134.312876 | BP16: =BP$2*$F16*Main!$C$4*$E16+Main!$C$5*BP$2*$F16 -> 3543.19295 | BQ16: =BQ$2*$F16*Main!$C$4*$E16+Main!$C$5*BQ$2*$F16 -> 3952.073024 | BR16: =BR$2*$F16*Main!$C$4*$E16+Main!$C$5*BR$2*$F16 -> 3225.86374 | BS16: =BS$2*$F16*Main!$C$4*$E16+Main!$C$5*BS$2*$F16 -> 3726.87254 | BT16: =BT$2*$F16*Main!$C$4*$E16+Main!$C$5*BT$2*$F16 -> 4227.88134 | BU16: =BU$2*$F16*Main!$C$4*$E16+Main!$C$5*BU$2*$F16 -> 3323.812529 | BV16: =BV$2*$F16*Main!$C$4*$E16+Main!$C$5*BV$2*$F16 -> 3820.417144 | BW16: =BW$2*$F16*Main!$C$4*$E16+Main!$C$5*BW$2*$F16 -> 4317.024062 | BX16: =BX$2*$F16*Main!$C$4*$E16+Main!$C$5*BX$2*$F16 -> 3405.332534 | BY16: =BY$2*$F16*Main!$C$4*$E16+Main!$C$5*BY$2*$F16 -> 3909.327339 | BZ16: =BZ$2*$F16*Main!$C$4*$E16+Main!$C$5*BZ$2*$F16 -> 4413.319842 | CA16: =CA$2*$F16*Main!$C$4*$E16+Main!$C$5*CA$2*$F16 -> 2838.300104 | CB16: =CB$2*$F16*Main!$C$4*$E16+Main!$C$5*CB$2*$F16 -> 3202.175996 | CC16: =CC$2*$F16*Main!$C$4*$E16+Main!$C$5*CC$2*$F16 -> 3566.049586 | CD16: =CD$2*$F16*Main!$C$4*$E16+Main!$C$5*CD$2*$F16 -> 2905.235421 | CE16: =CE$2*$F16*Main!$C$4*$E16+Main!$C$5*CE$2*$F16 -> 3275.044185 | CF16: =CF$2*$F16*Main!$C$4*$E16+Main!$C$5*CF$2*$F16 -> 3644.855251 | CG16: =CG$2*$F16*Main!$C$4*$E16+Main!$C$5*CG$2*$F16 -> 3013.182836 | CH16: =CH$2*$F16*Main!$C$4*$E16+Main!$C$5*CH$2*$F16 -> 3381.571118 | CI16: =CI$2*$F16*Main!$C$4*$E16+Main!$C$5*CI$2*$F16 -> 3749.9594 | CJ16: =CJ$2*$F16*Main!$C$4*$E16+Main!$C$5*CJ$2*$F16 -> 2960.687167 | CK16: =CK$2*$F16*Main!$C$4*$E16+Main!$C$5*CK$2*$F16 -> 3364.635843 | CL16: =CL$2*$F16*Main!$C$4*$E16+Main!$C$5*CL$2*$F16 -> 3768.582217 | CM16: =CM$2*$F16*Main!$C$4*$E16+Main!$C$5*CM$2*$F16 -> 3027.622484 | CN16: =CN$2*$F16*Main!$C$4*$E16+Main!$C$5*CN$2*$F16 -> 3437.504032 | CO16: =CO$2*$F16*Main!$C$4*$E16+Main!$C$5*CO$2*$F16 -> 3847.387882 | CP16: =CP$2*$F16*Main!$C$4*$E16+Main!$C$5*CP$2*$F16 -> 3135.569899 | CQ16: =CQ$2*$F16*Main!$C$4*$E16+Main!$C$5*CQ$2*$F16 -> 3544.030965 | CR16: =CR$2*$F16*Main!$C$4*$E16+Main!$C$5*CR$2*$F16 -> 3952.492031 | CS16: =CS$2*$F16*Main!$C$4*$E16+Main!$C$5*CS$2*$F16 -> 3441.986493 | CT16: =CT$2*$F16*Main!$C$4*$E16+Main!$C$5*CT$2*$F16 -> 3870.95591 | CU16: =CU$2*$F16*Main!$C$4*$E16+Main!$C$5*CU$2*$F16 -> 4299.923025 | CV16: =CV$2*$F16*Main!$C$4*$E16+Main!$C$5*CV$2*$F16 -> 3508.92181 | CW16: =CW$2*$F16*Main!$C$4*$E16+Main!$C$5*CW$2*$F16 -> 3943.824099 | CX16: =CX$2*$F16*Main!$C$4*$E16+Main!$C$5*CX$2*$F16 -> 4378.72869 | CY16: =CY$2*$F16*Main!$C$4*$E16+Main!$C$5*CY$2*$F16 -> 3616.869225 | CZ16: =CZ$2*$F16*Main!$C$4*$E16+Main!$C$5*CZ$2*$F16 -> 4050.351032 | DA16: =DA$2*$F16*Main!$C$4*$E16+Main!$C$5*DA$2*$F16 -> 4483.832839 | DB16: =DB$2*$F16*Main!$C$4*$E16+Main!$C$5*DB$2*$F16 -> 1049.157109 | DC16: =DC$2*$F16*Main!$C$4*$E16+Main!$C$5*DC$2*$F16 -> 1406.985938 | DD16: =DD$2*$F16*Main!$C$4*$E16+Main!$C$5*DD$2*$F16 -> 1764.814767 | DE16: =DE$2*$F16*Main!$C$4*$E16+Main!$C$5*DE$2*$F16 -> 2122.643597 | DF16: =DF$2*$F16*Main!$C$4*$E16+Main!$C$5*DF$2*$F16 -> 2480.472196 | DG16: =DG$2*$F16*Main!$C$4*$E16+Main!$C$5*DG$2*$F16 -> 1244.850016 | DH16: =DH$2*$F16*Main!$C$4*$E16+Main!$C$5*DH$2*$F16 -> 1576.927143 | DI16: =DI$2*$F16*Main!$C$4*$E16+Main!$C$5*DI$2*$F16 -> 1909.00381 | DJ16: =DJ$2*$F16*Main!$C$4*$E16+Main!$C$5*DJ$2*$F16 -> 2241.081167 | DK16: =DK$2*$F16*Main!$C$4*$E16+Main!$C$5*DK$2*$F16 -> 2573.158064 | DL16: =DL$2*$F16*Main!$C$4*$E16+Main!$C$5*DL$2*$F16 -> 1348.23186 | DM16: =DM$2*$F16*Main!$C$4*$E16+Main!$C$5*DM$2*$F16 -> 1681.222286 | DN16: =DN$2*$F16*Main!$C$4*$E16+Main!$C$5*DN$2*$F16 -> 2014.212481 | DO16: =DO$2*$F16*Main!$C$4*$E16+Main!$C$5*DO$2*$F16 -> 2347.202446 | DP16: =DP$2*$F16*Main!$C$4*$E16+Main!$C$5*DP$2*$F16 -> 2680.193792 | DQ16: =DQ$2*$F16*Main!$C$4*$E16+Main!$C$5*DQ$2*$F16 -> 1105.630128 | DR16: =DR$2*$F16*Main!$C$4*$E16+Main!$C$5*DR$2*$F16 -> 1476.641582 | DS16: =DS$2*$F16*Main!$C$4*$E16+Main!$C$5*DS$2*$F16 -> 1847.653036 | DT16: =DT$2*$F16*Main!$C$4*$E16+Main!$C$5*DT$2*$F16 -> 2218.664489 | DU16: =DU$2*$F16*Main!$C$4*$E16+Main!$C$5*DU$2*$F16 -> 2589.676634 | DV16: =DV$2*$F16*Main!$C$4*$E16+Main!$C$5*DV$2*$F16 -> 1301.322805 | DW16: =DW$2*$F16*Main!$C$4*$E16+Main!$C$5*DW$2*$F16 -> 1646.582327 | DX16: =DX$2*$F16*Main!$C$4*$E16+Main!$C$5*DX$2*$F16 -> 1991.842078 | DY16: =DY$2*$F16*Main!$C$4*$E16+Main!$C$5*DY$2*$F16 -> 2337.10252 | DZ16: =DZ$2*$F16*Main!$C$4*$E16+Main!$C$5*DZ$2*$F16 -> 2682.362502 | EA16: =EA$2*$F16*Main!$C$4*$E16+Main!$C$5*EA$2*$F16 -> 1404.704879 | EB16: =EB$2*$F16*Main!$C$4*$E16+Main!$C$5*EB$2*$F16 -> 1750.877699 | EC16: =EC$2*$F16*Main!$C$4*$E16+Main!$C$5*EC$2*$F16 -> 2097.050749 | ED16: =ED$2*$F16*Main!$C$4*$E16+Main!$C$5*ED$2*$F16 -> 2443.224259 | EE16: =EE$2*$F16*Main!$C$4*$E16+Main!$C$5*EE$2*$F16 -> 2789.395928 | EF16: =EF$2*$F16*Main!$C$4*$E16+Main!$C$5*EF$2*$F16 -> 1366.524536 | EG16: =EG$2*$F16*Main!$C$4*$E16+Main!$C$5*EG$2*$F16 -> 1781.616973 | EH16: =EH$2*$F16*Main!$C$4*$E16+Main!$C$5*EH$2*$F16 -> 2196.709641 | EI16: =EI$2*$F16*Main!$C$4*$E16+Main!$C$5*EI$2*$F16 -> 2611.801157 | EJ16: =EJ$2*$F16*Main!$C$4*$E16+Main!$C$5*EJ$2*$F16 -> 3026.894976 | EK16: =EK$2*$F16*Main!$C$4*$E16+Main!$C$5*EK$2*$F16 -> 1562.217213 | EL16: =EL$2*$F16*Main!$C$4*$E16+Main!$C$5*EL$2*$F16 -> 1951.557948 | EM16: =EM$2*$F16*Main!$C$4*$E16+Main!$C$5*EM$2*$F16 -> 2340.898914 | EN16: =EN$2*$F16*Main!$C$4*$E16+Main!$C$5*EN$2*$F16 -> 2730.239879 | EO16: =EO$2*$F16*Main!$C$4*$E16+Main!$C$5*EO$2*$F16 -> 3119.580844 | EP16: =EP$2*$F16*Main!$C$4*$E16+Main!$C$5*EP$2*$F16 -> 1665.599287 | EQ16: =EQ$2*$F16*Main!$C$4*$E16+Main!$C$5*EQ$2*$F16 -> 2055.853321 | ER16: =ER$2*$F16*Main!$C$4*$E16+Main!$C$5*ER$2*$F16 -> 2446.106664 | ES16: =ES$2*$F16*Main!$C$4*$E16+Main!$C$5*ES$2*$F16 -> 2836.361618 | ET16: =ET$2*$F16*Main!$C$4*$E16+Main!$C$5*ET$2*$F16 -> 3226.616573 | EU16: =EU$2*$F16*Main!$C$4*$E16+Main!$C$5*EU$2*$F16 -> 3929.923176 | EV16: =EV$2*$F16*Main!$C$4*$E16+Main!$C$5*EV$2*$F16 -> 4014.664015 | EW16: =EW$2*$F16*Main!$C$4*$E16+Main!$C$5*EW$2*$F16 -> 4118.347682 | EX16: =EX$2*$F16*Main!$C$4*$E16+Main!$C$5*EX$2*$F16 -> 4172.530893 | EY16: =EY$2*$F16*Main!$C$4*$E16+Main!$C$5*EY$2*$F16 -> 4257.271732 | EZ16: =EZ$2*$F16*Main!$C$4*$E16+Main!$C$5*EZ$2*$F16 -> 4360.953097 | FA16: =FA$2*$F16*Main!$C$4*$E16+Main!$C$5*FA$2*$F16 -> 4728.89014 | FB16: =FB$2*$F16*Main!$C$4*$E16+Main!$C$5*FB$2*$F16 -> 4813.630979 | FC16: =FC$2*$F16*Main!$C$4*$E16+Main!$C$5*FC$2*$F16 -> 4917.314647 | FD16: =IF($D16<100,(FD$2*(1+Main!$C$3)*$E16*Main!$C$4)+(FD$2*(1+Main!$C$3)*Main!$C$5),(FD$2*$E16*Main!$C$4)+(FD$2*Main!$C$5)) -> 108.6119322 | FE16: =IF($D16<100,(FE$2*(1+Main!$C$3)*$E16*Main!$C$4)+(FE$2*(1+Main!$C$3)*Main!$C$5),(FE$2*$E16*Main!$C$4)+(FE$2*Main!$C$5)) -> 118.7308682 | FF16: =IF($D16<100,(FF$2*(1+Main!$C$3)*$E16*Main!$C$4)+(FF$2*(1+Main!$C$3)*Main!$C$5),(FF$2*$E16*Main!$C$4)+(FF$2*Main!$C$5)) -> 119.5412919 | FG16: =IF($D16<100,(FG$2*(1+Main!$C$3)*$E16*Main!$C$4)+(FG$2*(1+Main!$C$3)*Main!$C$5),(FG$2*$E16*Main!$C$4)+(FG$2*Main!$C$5)) -> 129.0467295 | FH16: =IF($D16<100,(FH$2*(1+Main!$C$3)*$E16*Main!$C$4)+(FH$2*(1+Main!$C$3)*Main!$C$5),(FH$2*$E16*Main!$C$4)+(FH$2*Main!$C$5)) -> 174.0972018 | FI16: =IF($D16<100,(FI$2*(1+Main!$C$3)*$E16*Main!$C$4)+(FI$2*(1+Main!$C$3)*Main!$C$5),(FI$2*$E16*Main!$C$4)+(FI$2*Main!$C$5)) -> 49.1859057
A17: AL | B17: 23460 | C17: (Etowah County, Gadsden) | D17: 23460 | E17: 0.6926 | F17: =IF($D17<100,Main!$C$2*(1+Main!$C$3),Main!$C$2) -> 3039.64 | G17: =G$2*$F17*Main!$C$4*$E17+Main!$C$5*G$2*$F17 -> 1290.070355 | H17: =H$2*$F17*Main!$C$4*$E17+Main!$C$5*H$2*$F17 -> 1593.546997 | I17: =I$2*$F17*Main!$C$4*$E17+Main!$C$5*I$2*$F17 -> 1897.02387 | J17: =J$2*$F17*Main!$C$4*$E17+Main!$C$5*J$2*$F17 -> 2200.500281 | K17: =K$2*$F17*Main!$C$4*$E17+Main!$C$5*K$2*$F17 -> 2503.978076 | L17: =L$2*$F17*Main!$C$4*$E17+Main!$C$5*L$2*$F17 -> 1531.151956 | M17: =M$2*$F17*Main!$C$4*$E17+Main!$C$5*M$2*$F17 -> 1806.032274 | N17: =N$2*$F17*Main!$C$4*$E17+Main!$C$5*N$2*$F17 -> 2080.912592 | O17: =O$2*$F17*Main!$C$4*$E17+Main!$C$5*O$2*$F17 -> 2355.792218 | P17: =P$2*$F17*Main!$C$4*$E17+Main!$C$5*P$2*$F17 -> 2630.673688 | Q17: =Q$2*$F17*Main!$C$4*$E17+Main!$C$5*Q$2*$F17 -> 1646.199947 | R17: =R$2*$F17*Main!$C$4*$E17+Main!$C$5*R$2*$F17 -> 1914.400302 | S17: =S$2*$F17*Main!$C$4*$E17+Main!$C$5*S$2*$F17 -> 2182.600428 | T17: =T$2*$F17*Main!$C$4*$E17+Main!$C$5*T$2*$F17 -> 2450.801245 | U17: =U$2*$F17*Main!$C$4*$E17+Main!$C$5*U$2*$F17 -> 2719.000448 | V17: =V$2*$F17*Main!$C$4*$E17+Main!$C$5*V$2*$F17 -> 1371.510781 | W17: =W$2*$F17*Main!$C$4*$E17+Main!$C$5*W$2*$F17 -> 1689.096508 | X17: =X$2*$F17*Main!$C$4*$E17+Main!$C$5*X$2*$F17 -> 2006.682235 | Y17: =Y$2*$F17*Main!$C$4*$E17+Main!$C$5*Y$2*$F17 -> 2324.26704 | Z17: =Z$2*$F17*Main!$C$4*$E17+Main!$C$5*Z$2*$F17 -> 2641.854612 | AA17: =AA$2*$F17*Main!$C$4*$E17+Main!$C$5*AA$2*$F17 -> 1612.592152 | AB17: =AB$2*$F17*Main!$C$4*$E17+Main!$C$5*AB$2*$F17 -> 1901.581785 | AC17: =AC$2*$F17*Main!$C$4*$E17+Main!$C$5*AC$2*$F17 -> 2190.570957 | AD17: =AD$2*$F17*Main!$C$4*$E17+Main!$C$5*AD$2*$F17 -> 2479.559438 | AE17: =AE$2*$F17*Main!$C$4*$E17+Main!$C$5*AE$2*$F17 -> 2768.550224 | AF17: =AF$2*$F17*Main!$C$4*$E17+Main!$C$5*AF$2*$F17 -> 1727.640142 | AG17: =AG$2*$F17*Main!$C$4*$E17+Main!$C$5*AG$2*$F17 -> 2009.949583 | AH17: =AH$2*$F17*Main!$C$4*$E17+Main!$C$5*AH$2*$F17 -> 2292.259024 | AI17: =AI$2*$F17*Main!$C$4*$E17+Main!$C$5*AI$2*$F17 -> 2574.568465 | AJ17: =AJ$2*$F17*Main!$C$4*$E17+Main!$C$5*AJ$2*$F17 -> 2856.876983 | AK17: =AK$2*$F17*Main!$C$4*$E17+Main!$C$5*AK$2*$F17 -> 1469.7807 | AL17: =AL$2*$F17*Main!$C$4*$E17+Main!$C$5*AL$2*$F17 -> 1822.001003 | AM17: =AM$2*$F17*Main!$C$4*$E17+Main!$C$5*AM$2*$F17 -> 2174.221076 | AN17: =AN$2*$F17*Main!$C$4*$E17+Main!$C$5*AN$2*$F17 -> 2526.44138 | AO17: =AO$2*$F17*Main!$C$4*$E17+Main!$C$5*AO$2*$F17 -> 2878.662375 | AP17: =AP$2*$F17*Main!$C$4*$E17+Main!$C$5*AP$2*$F17 -> 1710.86207 | AQ17: =AQ$2*$F17*Main!$C$4*$E17+Main!$C$5*AQ$2*$F17 -> 2034.485819 | AR17: =AR$2*$F17*Main!$C$4*$E17+Main!$C$5*AR$2*$F17 -> 2358.109567 | AS17: =AS$2*$F17*Main!$C$4*$E17+Main!$C$5*AS$2*$F17 -> 2681.733777 | AT17: =AT$2*$F17*Main!$C$4*$E17+Main!$C$5*AT$2*$F17 -> 3005.357987 | AU17: =AU$2*$F17*Main!$C$4*$E17+Main!$C$5*AU$2*$F17 -> 1825.90983 | AV17: =AV$2*$F17*Main!$C$4*$E17+Main!$C$5*AV$2*$F17 -> 2142.854078 | AW17: =AW$2*$F17*Main!$C$4*$E17+Main!$C$5*AW$2*$F17 -> 2459.798556 | AX17: =AX$2*$F17*Main!$C$4*$E17+Main!$C$5*AX$2*$F17 -> 2776.742804 | AY17: =AY$2*$F17*Main!$C$4*$E17+Main!$C$5*AY$2*$F17 -> 3093.684746 | AZ17: =AZ$2*$F17*Main!$C$4*$E17+Main!$C$5*AZ$2*$F17 -> 2807.454027 | BA17: =BA$2*$F17*Main!$C$4*$E17+Main!$C$5*BA$2*$F17 -> 3183.648638 | BB17: =BB$2*$F17*Main!$C$4*$E17+Main!$C$5*BB$2*$F17 -> 3559.843248 | BC17: =BC$2*$F17*Main!$C$4*$E17+Main!$C$5*BC$2*$F17 -> 2905.552853 | BD17: =BD$2*$F17*Main!$C$4*$E17+Main!$C$5*BD$2*$F17 -> 3277.338735 | BE17: =BE$2*$F17*Main!$C$4*$E17+Main!$C$5*BE$2*$F17 -> 3649.124617 | BF17: =BF$2*$F17*Main!$C$4*$E17+Main!$C$5*BF$2*$F17 -> 2987.201956 | BG17: =BG$2*$F17*Main!$C$4*$E17+Main!$C$5*BG$2*$F17 -> 3366.38491 | BH17: =BH$2*$F17*Main!$C$4*$E17+Main!$C$5*BH$2*$F17 -> 3745.57017 | BI17: =BI$2*$F17*Main!$C$4*$E17+Main!$C$5*BI$2*$F17 -> 2959.439878 | BJ17: =BJ$2*$F17*Main!$C$4*$E17+Main!$C$5*BJ$2*$F17 -> 3365.967557 | BK17: =BK$2*$F17*Main!$C$4*$E17+Main!$C$5*BK$2*$F17 -> 3772.49293 | BL17: =BL$2*$F17*Main!$C$4*$E17+Main!$C$5*BL$2*$F17 -> 3057.538704 | BM17: =BM$2*$F17*Main!$C$4*$E17+Main!$C$5*BM$2*$F17 -> 3459.657654 | BN17: =BN$2*$F17*Main!$C$4*$E17+Main!$C$5*BN$2*$F17 -> 3861.774299 | BO17: =BO$2*$F17*Main!$C$4*$E17+Main!$C$5*BO$2*$F17 -> 3139.187807 | BP17: =BP$2*$F17*Main!$C$4*$E17+Main!$C$5*BP$2*$F17 -> 3548.70383 | BQ17: =BQ$2*$F17*Main!$C$4*$E17+Main!$C$5*BQ$2*$F17 -> 3958.219852 | BR17: =BR$2*$F17*Main!$C$4*$E17+Main!$C$5*BR$2*$F17 -> 3230.881064 | BS17: =BS$2*$F17*Main!$C$4*$E17+Main!$C$5*BS$2*$F17 -> 3732.669105 | BT17: =BT$2*$F17*Main!$C$4*$E17+Main!$C$5*BT$2*$F17 -> 4234.457145 | BU17: =BU$2*$F17*Main!$C$4*$E17+Main!$C$5*BU$2*$F17 -> 3328.982196 | BV17: =BV$2*$F17*Main!$C$4*$E17+Main!$C$5*BV$2*$F17 -> 3826.359202 | BW17: =BW$2*$F17*Main!$C$4*$E17+Main!$C$5*BW$2*$F17 -> 4323.738514 | BX17: =BX$2*$F17*Main!$C$4*$E17+Main!$C$5*BX$2*$F17 -> 3410.628994 | BY17: =BY$2*$F17*Main!$C$4*$E17+Main!$C$5*BY$2*$F17 -> 3915.407683 | BZ17: =BZ$2*$F17*Main!$C$4*$E17+Main!$C$5*BZ$2*$F17 -> 4420.184067 | CA17: =CA$2*$F17*Main!$C$4*$E17+Main!$C$5*CA$2*$F17 -> 2842.714634 | CB17: =CB$2*$F17*Main!$C$4*$E17+Main!$C$5*CB$2*$F17 -> 3207.156477 | CC17: =CC$2*$F17*Main!$C$4*$E17+Main!$C$5*CC$2*$F17 -> 3571.596015 | CD17: =CD$2*$F17*Main!$C$4*$E17+Main!$C$5*CD$2*$F17 -> 2909.754058 | CE17: =CE$2*$F17*Main!$C$4*$E17+Main!$C$5*CE$2*$F17 -> 3280.138001 | CF17: =CF$2*$F17*Main!$C$4*$E17+Main!$C$5*CF$2*$F17 -> 3650.52425 | CG17: =CG$2*$F17*Main!$C$4*$E17+Main!$C$5*CG$2*$F17 -> 3017.869369 | CH17: =CH$2*$F17*Main!$C$4*$E17+Main!$C$5*CH$2*$F17 -> 3386.83062 | CI17: =CI$2*$F17*Main!$C$4*$E17+Main!$C$5*CI$2*$F17 -> 3755.791872 | CJ17: =CJ$2*$F17*Main!$C$4*$E17+Main!$C$5*CJ$2*$F17 -> 2965.29205 | CK17: =CK$2*$F17*Main!$C$4*$E17+Main!$C$5*CK$2*$F17 -> 3369.869005 | CL17: =CL$2*$F17*Main!$C$4*$E17+Main!$C$5*CL$2*$F17 -> 3774.443654 | CM17: =CM$2*$F17*Main!$C$4*$E17+Main!$C$5*CM$2*$F17 -> 3032.331475 | CN17: =CN$2*$F17*Main!$C$4*$E17+Main!$C$5*CN$2*$F17 -> 3442.850529 | CO17: =CO$2*$F17*Main!$C$4*$E17+Main!$C$5*CO$2*$F17 -> 3853.371889 | CP17: =CP$2*$F17*Main!$C$4*$E17+Main!$C$5*CP$2*$F17 -> 3140.446785 | CQ17: =CQ$2*$F17*Main!$C$4*$E17+Main!$C$5*CQ$2*$F17 -> 3549.543148 | CR17: =CR$2*$F17*Main!$C$4*$E17+Main!$C$5*CR$2*$F17 -> 3958.639511 | CS17: =CS$2*$F17*Main!$C$4*$E17+Main!$C$5*CS$2*$F17 -> 3447.339961 | CT17: =CT$2*$F17*Main!$C$4*$E17+Main!$C$5*CT$2*$F17 -> 3876.976573 | CU17: =CU$2*$F17*Main!$C$4*$E17+Main!$C$5*CU$2*$F17 -> 4306.610879 | CV17: =CV$2*$F17*Main!$C$4*$E17+Main!$C$5*CV$2*$F17 -> 3514.379386 | CW17: =CW$2*$F17*Main!$C$4*$E17+Main!$C$5*CW$2*$F17 -> 3949.958097 | CX17: =CX$2*$F17*Main!$C$4*$E17+Main!$C$5*CX$2*$F17 -> 4385.539114 | CY17: =CY$2*$F17*Main!$C$4*$E17+Main!$C$5*CY$2*$F17 -> 3622.494696 | CZ17: =CZ$2*$F17*Main!$C$4*$E17+Main!$C$5*CZ$2*$F17 -> 4056.650716 | DA17: =DA$2*$F17*Main!$C$4*$E17+Main!$C$5*DA$2*$F17 -> 4490.806737 | DB17: =DB$2*$F17*Main!$C$4*$E17+Main!$C$5*DB$2*$F17 -> 1050.788908 | DC17: =DC$2*$F17*Main!$C$4*$E17+Main!$C$5*DC$2*$F17 -> 1409.174284 | DD17: =DD$2*$F17*Main!$C$4*$E17+Main!$C$5*DD$2*$F17 -> 1767.559659 | DE17: =DE$2*$F17*Main!$C$4*$E17+Main!$C$5*DE$2*$F17 -> 2125.945035 | DF17: =DF$2*$F17*Main!$C$4*$E17+Main!$C$5*DF$2*$F17 -> 2484.33018 | DG17: =DG$2*$F17*Main!$C$4*$E17+Main!$C$5*DG$2*$F17 -> 1246.786185 | DH17: =DH$2*$F17*Main!$C$4*$E17+Main!$C$5*DH$2*$F17 -> 1579.379806 | DI17: =DI$2*$F17*Main!$C$4*$E17+Main!$C$5*DI$2*$F17 -> 1911.972965 | DJ17: =DJ$2*$F17*Main!$C$4*$E17+Main!$C$5*DJ$2*$F17 -> 2244.566817 | DK17: =DK$2*$F17*Main!$C$4*$E17+Main!$C$5*DK$2*$F17 -> 2577.160207 | DL17: =DL$2*$F17*Main!$C$4*$E17+Main!$C$5*DL$2*$F17 -> 1350.328823 | DM17: =DM$2*$F17*Main!$C$4*$E17+Main!$C$5*DM$2*$F17 -> 1683.837163 | DN17: =DN$2*$F17*Main!$C$4*$E17+Main!$C$5*DN$2*$F17 -> 2017.345272 | DO17: =DO$2*$F17*Main!$C$4*$E17+Main!$C$5*DO$2*$F17 -> 2350.85315 | DP17: =DP$2*$F17*Main!$C$4*$E17+Main!$C$5*DP$2*$F17 -> 2684.362412 | DQ17: =DQ$2*$F17*Main!$C$4*$E17+Main!$C$5*DQ$2*$F17 -> 1107.349762 | DR17: =DR$2*$F17*Main!$C$4*$E17+Main!$C$5*DR$2*$F17 -> 1478.938266 | DS17: =DS$2*$F17*Main!$C$4*$E17+Main!$C$5*DS$2*$F17 -> 1850.526769 | DT17: =DT$2*$F17*Main!$C$4*$E17+Main!$C$5*DT$2*$F17 -> 2222.115273 | DU17: =DU$2*$F17*Main!$C$4*$E17+Main!$C$5*DU$2*$F17 -> 2593.704469 | DV17: =DV$2*$F17*Main!$C$4*$E17+Main!$C$5*DV$2*$F17 -> 1303.346808 | DW17: =DW$2*$F17*Main!$C$4*$E17+Main!$C$5*DW$2*$F17 -> 1649.143327 | DX17: =DX$2*$F17*Main!$C$4*$E17+Main!$C$5*DX$2*$F17 -> 1994.940075 | DY17: =DY$2*$F17*Main!$C$4*$E17+Main!$C$5*DY$2*$F17 -> 2340.737516 | DZ17: =DZ$2*$F17*Main!$C$4*$E17+Main!$C$5*DZ$2*$F17 -> 2686.534495 | EA17: =EA$2*$F17*Main!$C$4*$E17+Main!$C$5*EA$2*$F17 -> 1406.889677 | EB17: =EB$2*$F17*Main!$C$4*$E17+Main!$C$5*EB$2*$F17 -> 1753.600914 | EC17: =EC$2*$F17*Main!$C$4*$E17+Main!$C$5*EC$2*$F17 -> 2100.312382 | ED17: =ED$2*$F17*Main!$C$4*$E17+Main!$C$5*ED$2*$F17 -> 2447.024311 | EE17: =EE$2*$F17*Main!$C$4*$E17+Main!$C$5*EE$2*$F17 -> 2793.734395 | EF17: =EF$2*$F17*Main!$C$4*$E17+Main!$C$5*EF$2*$F17 -> 1368.64995 | EG17: =EG$2*$F17*Main!$C$4*$E17+Main!$C$5*EG$2*$F17 -> 1784.387998 | EH17: =EH$2*$F17*Main!$C$4*$E17+Main!$C$5*EH$2*$F17 -> 2200.126277 | EI17: =EI$2*$F17*Main!$C$4*$E17+Main!$C$5*EI$2*$F17 -> 2615.863403 | EJ17: =EJ$2*$F17*Main!$C$4*$E17+Main!$C$5*EJ$2*$F17 -> 3031.602835 | EK17: =EK$2*$F17*Main!$C$4*$E17+Main!$C$5*EK$2*$F17 -> 1564.646996 | EL17: =EL$2*$F17*Main!$C$4*$E17+Main!$C$5*EL$2*$F17 -> 1954.59329 | EM17: =EM$2*$F17*Main!$C$4*$E17+Main!$C$5*EM$2*$F17 -> 2344.539814 | EN17: =EN$2*$F17*Main!$C$4*$E17+Main!$C$5*EN$2*$F17 -> 2734.486338 | EO17: =EO$2*$F17*Main!$C$4*$E17+Main!$C$5*EO$2*$F17 -> 3124.432862 | EP17: =EP$2*$F17*Main!$C$4*$E17+Main!$C$5*EP$2*$F17 -> 1668.189865 | EQ17: =EQ$2*$F17*Main!$C$4*$E17+Main!$C$5*EQ$2*$F17 -> 2059.050877 | ER17: =ER$2*$F17*Main!$C$4*$E17+Main!$C$5*ER$2*$F17 -> 2449.911198 | ES17: =ES$2*$F17*Main!$C$4*$E17+Main!$C$5*ES$2*$F17 -> 2840.773133 | ET17: =ET$2*$F17*Main!$C$4*$E17+Main!$C$5*ET$2*$F17 -> 3231.635067 | EU17: =EU$2*$F17*Main!$C$4*$E17+Main!$C$5*EU$2*$F17 -> 3936.035553 | EV17: =EV$2*$F17*Main!$C$4*$E17+Main!$C$5*EV$2*$F17 -> 4020.908193 | EW17: =EW$2*$F17*Main!$C$4*$E17+Main!$C$5*EW$2*$F17 -> 4124.753124 | EX17: =EX$2*$F17*Main!$C$4*$E17+Main!$C$5*EX$2*$F17 -> 4179.020609 | EY17: =EY$2*$F17*Main!$C$4*$E17+Main!$C$5*EY$2*$F17 -> 4263.893249 | EZ17: =EZ$2*$F17*Main!$C$4*$E17+Main!$C$5*EZ$2*$F17 -> 4367.735874 | FA17: =FA$2*$F17*Main!$C$4*$E17+Main!$C$5*FA$2*$F17 -> 4736.245185 | FB17: =FB$2*$F17*Main!$C$4*$E17+Main!$C$5*FB$2*$F17 -> 4821.117826 | FC17: =FC$2*$F17*Main!$C$4*$E17+Main!$C$5*FC$2*$F17 -> 4924.962757 | FD17: =IF($D17<100,(FD$2*(1+Main!$C$3)*$E17*Main!$C$4)+(FD$2*(1+Main!$C$3)*Main!$C$5),(FD$2*$E17*Main!$C$4)+(FD$2*Main!$C$5)) -> 108.780861 | FE17: =IF($D17<100,(FE$2*(1+Main!$C$3)*$E17*Main!$C$4)+(FE$2*(1+Main!$C$3)*Main!$C$5),(FE$2*$E17*Main!$C$4)+(FE$2*Main!$C$5)) -> 118.9155354 | FF17: =IF($D17<100,(FF$2*(1+Main!$C$3)*$E17*Main!$C$4)+(FF$2*(1+Main!$C$3)*Main!$C$5),(FF$2*$E17*Main!$C$4)+(FF$2*Main!$C$5)) -> 119.7272196 | FG17: =IF($D17<100,(FG$2*(1+Main!$C$3)*$E17*Main!$C$4)+(FG$2*(1+Main!$C$3)*Main!$C$5),(FG$2*$E17*Main!$C$4)+(FG$2*Main!$C$5)) -> 129.2474414 | FH17: =IF($D17<100,(FH$2*(1+Main!$C$3)*$E17*Main!$C$4)+(FH$2*(1+Main!$C$3)*Main!$C$5),(FH$2*$E17*Main!$C$4)+(FH$2*Main!$C$5)) -> 174.3679826 | FI17: =IF($D17<100,(FI$2*(1+Main!$C$3)*$E17*Main!$C$4)+(FI$2*(1+Main!$C$3)*Main!$C$5),(FI$2*$E17*Main!$C$4)+(FI$2*Main!$C$5)) -> 49.26240665
A18: AL | B18: 26620 | C18: (Huntsville, Limestone County, Madison County) | D18: 26620 | E18: 0.7998 | F18: =IF($D18<100,Main!$C$2*(1+Main!$C$3),Main!$C$2) -> 3039.64 | G18: =G$2*$F18*Main!$C$4*$E18+Main!$C$5*G$2*$F18 -> 1433.245651 | H18: =H$2*$F18*Main!$C$4*$E18+Main!$C$5*H$2*$F18 -> 1770.402904 | I18: =I$2*$F18*Main!$C$4*$E18+Main!$C$5*I$2*$F18 -> 2107.560413 | J18: =J$2*$F18*Main!$C$4*$E18+Main!$C$5*J$2*$F18 -> 2444.71741 | K18: =K$2*$F18*Main!$C$4*$E18+Main!$C$5*K$2*$F18 -> 2781.875944 | L18: =L$2*$F18*Main!$C$4*$E18+Main!$C$5*L$2*$F18 -> 1701.083102 | M18: =M$2*$F18*Main!$C$4*$E18+Main!$C$5*M$2*$F18 -> 2006.470338 | N18: =N$2*$F18*Main!$C$4*$E18+Main!$C$5*N$2*$F18 -> 2311.857574 | O18: =O$2*$F18*Main!$C$4*$E18+Main!$C$5*O$2*$F18 -> 2617.244042 | P18: =P$2*$F18*Main!$C$4*$E18+Main!$C$5*P$2*$F18 -> 2922.632558 | Q18: =Q$2*$F18*Main!$C$4*$E18+Main!$C$5*Q$2*$F18 -> 1828.899412 | R18: =R$2*$F18*Main!$C$4*$E18+Main!$C$5*R$2*$F18 -> 2126.865327 | S18: =S$2*$F18*Main!$C$4*$E18+Main!$C$5*S$2*$F18 -> 2424.830985 | T18: =T$2*$F18*Main!$C$4*$E18+Main!$C$5*T$2*$F18 -> 2722.797412 | U18: =U$2*$F18*Main!$C$4*$E18+Main!$C$5*U$2*$F18 -> 3020.762046 | V18: =V$2*$F18*Main!$C$4*$E18+Main!$C$5*V$2*$F18 -> 1523.724543 | W18: =W$2*$F18*Main!$C$4*$E18+Main!$C$5*W$2*$F18 -> 1876.556743 | X18: =X$2*$F18*Main!$C$4*$E18+Main!$C$5*X$2*$F18 -> 2229.388944 | Y18: =Y$2*$F18*Main!$C$4*$E18+Main!$C$5*Y$2*$F18 -> 2582.220119 | Z18: =Z$2*$F18*Main!$C$4*$E18+Main!$C$5*Z$2*$F18 -> 2935.054369 | AA18: =AA$2*$F18*Main!$C$4*$E18+Main!$C$5*AA$2*$F18 -> 1791.561739 | AB18: =AB$2*$F18*Main!$C$4*$E18+Main!$C$5*AB$2*$F18 -> 2112.624178 | AC18: =AC$2*$F18*Main!$C$4*$E18+Main!$C$5*AC$2*$F18 -> 2433.686105 | AD18: =AD$2*$F18*Main!$C$4*$E18+Main!$C$5*AD$2*$F18 -> 2754.747263 | AE18: =AE$2*$F18*Main!$C$4*$E18+Main!$C$5*AE$2*$F18 -> 3075.810983 | AF18: =AF$2*$F18*Main!$C$4*$E18+Main!$C$5*AF$2*$F18 -> 1919.378048 | AG18: =AG$2*$F18*Main!$C$4*$E18+Main!$C$5*AG$2*$F18 -> 2233.01891 | AH18: =AH$2*$F18*Main!$C$4*$E18+Main!$C$5*AH$2*$F18 -> 2546.659772 | AI18: =AI$2*$F18*Main!$C$4*$E18+Main!$C$5*AI$2*$F18 -> 2860.300634 | AJ18: =AJ$2*$F18*Main!$C$4*$E18+Main!$C$5*AJ$2*$F18 -> 3173.940471 | AK18: =AK$2*$F18*Main!$C$4*$E18+Main!$C$5*AK$2*$F18 -> 1632.900707 | AL18: =AL$2*$F18*Main!$C$4*$E18+Main!$C$5*AL$2*$F18 -> 2024.211318 | AM18: =AM$2*$F18*Main!$C$4*$E18+Main!$C$5*AM$2*$F18 -> 2415.521672 | AN18: =AN$2*$F18*Main!$C$4*$E18+Main!$C$5*AN$2*$F18 -> 2806.832282 | AO18: =AO$2*$F18*Main!$C$4*$E18+Main!$C$5*AO$2*$F18 -> 3198.143661 | AP18: =AP$2*$F18*Main!$C$4*$E18+Main!$C$5*AP$2*$F18 -> 1900.737903 | AQ18: =AQ$2*$F18*Main!$C$4*$E18+Main!$C$5*AQ$2*$F18 -> 2260.27824 | AR18: =AR$2*$F18*Main!$C$4*$E18+Main!$C$5*AR$2*$F18 -> 2619.818576 | AS18: =AS$2*$F18*Main!$C$4*$E18+Main!$C$5*AS$2*$F18 -> 2979.359426 | AT18: =AT$2*$F18*Main!$C$4*$E18+Main!$C$5*AT$2*$F18 -> 3338.900275 | AU18: =AU$2*$F18*Main!$C$4*$E18+Main!$C$5*AU$2*$F18 -> 2028.553956 | AV18: =AV$2*$F18*Main!$C$4*$E18+Main!$C$5*AV$2*$F18 -> 2380.673484 | AW18: =AW$2*$F18*Main!$C$4*$E18+Main!$C$5*AW$2*$F18 -> 2732.793268 | AX18: =AX$2*$F18*Main!$C$4*$E18+Main!$C$5*AX$2*$F18 -> 3084.912796 | AY18: =AY$2*$F18*Main!$C$4*$E18+Main!$C$5*AY$2*$F18 -> 3437.029763 | AZ18: =AZ$2*$F18*Main!$C$4*$E18+Main!$C$5*AZ$2*$F18 -> 3119.032429 | BA18: =BA$2*$F18*Main!$C$4*$E18+Main!$C$5*BA$2*$F18 -> 3536.978076 | BB18: =BB$2*$F18*Main!$C$4*$E18+Main!$C$5*BB$2*$F18 -> 3954.923724 | BC18: =BC$2*$F18*Main!$C$4*$E18+Main!$C$5*BC$2*$F18 -> 3228.018513 | BD18: =BD$2*$F18*Main!$C$4*$E18+Main!$C$5*BD$2*$F18 -> 3641.06614 | BE18: =BE$2*$F18*Main!$C$4*$E18+Main!$C$5*BE$2*$F18 -> 4054.113766 | BF18: =BF$2*$F18*Main!$C$4*$E18+Main!$C$5*BF$2*$F18 -> 3318.729242 | BG18: =BG$2*$F18*Main!$C$4*$E18+Main!$C$5*BG$2*$F18 -> 3739.994886 | BH18: =BH$2*$F18*Main!$C$4*$E18+Main!$C$5*BH$2*$F18 -> 4161.263093 | BI18: =BI$2*$F18*Main!$C$4*$E18+Main!$C$5*BI$2*$F18 -> 3287.886057 | BJ18: =BJ$2*$F18*Main!$C$4*$E18+Main!$C$5*BJ$2*$F18 -> 3739.531214 | BK18: =BK$2*$F18*Main!$C$4*$E18+Main!$C$5*BK$2*$F18 -> 4191.173809 | BL18: =BL$2*$F18*Main!$C$4*$E18+Main!$C$5*BL$2*$F18 -> 3396.872141 | BM18: =BM$2*$F18*Main!$C$4*$E18+Main!$C$5*BM$2*$F18 -> 3843.619277 | BN18: =BN$2*$F18*Main!$C$4*$E18+Main!$C$5*BN$2*$F18 -> 4290.363852 | BO18: =BO$2*$F18*Main!$C$4*$E18+Main!$C$5*BO$2*$F18 -> 3487.58287 | BP18: =BP$2*$F18*Main!$C$4*$E18+Main!$C$5*BP$2*$F18 -> 3942.548024 | BQ18: =BQ$2*$F18*Main!$C$4*$E18+Main!$C$5*BQ$2*$F18 -> 4397.513178 | BR18: =BR$2*$F18*Main!$C$4*$E18+Main!$C$5*BR$2*$F18 -> 3589.452478 | BS18: =BS$2*$F18*Main!$C$4*$E18+Main!$C$5*BS$2*$F18 -> 4146.930234 | BT18: =BT$2*$F18*Main!$C$4*$E18+Main!$C$5*BT$2*$F18 -> 4704.40799 | BU18: =BU$2*$F18*Main!$C$4*$E18+Main!$C$5*BU$2*$F18 -> 3698.441124 | BV18: =BV$2*$F18*Main!$C$4*$E18+Main!$C$5*BV$2*$F18 -> 4251.018297 | BW18: =BW$2*$F18*Main!$C$4*$E18+Main!$C$5*BW$2*$F18 -> 4803.598033 | BX18: =BX$2*$F18*Main!$C$4*$E18+Main!$C$5*BX$2*$F18 -> 3789.149291 | BY18: =BY$2*$F18*Main!$C$4*$E18+Main!$C$5*BY$2*$F18 -> 4349.949606 | BZ18: =BZ$2*$F18*Main!$C$4*$E18+Main!$C$5*BZ$2*$F18 -> 4910.747359 | CA18: =CA$2*$F18*Main!$C$4*$E18+Main!$C$5*CA$2*$F18 -> 3158.206348 | CB18: =CB$2*$F18*Main!$C$4*$E18+Main!$C$5*CB$2*$F18 -> 3563.094876 | CC18: =CC$2*$F18*Main!$C$4*$E18+Main!$C$5*CC$2*$F18 -> 3967.980843 | CD18: =CD$2*$F18*Main!$C$4*$E18+Main!$C$5*CD$2*$F18 -> 3232.685979 | CE18: =CE$2*$F18*Main!$C$4*$E18+Main!$C$5*CE$2*$F18 -> 3644.176076 | CF18: =CF$2*$F18*Main!$C$4*$E18+Main!$C$5*CF$2*$F18 -> 4055.668734 | CG18: =CG$2*$F18*Main!$C$4*$E18+Main!$C$5*CG$2*$F18 -> 3352.800202 | CH18: =CH$2*$F18*Main!$C$4*$E18+Main!$C$5*CH$2*$F18 -> 3762.709714 | CI18: =CI$2*$F18*Main!$C$4*$E18+Main!$C$5*CI$2*$F18 -> 4172.619226 | CJ18: =CJ$2*$F18*Main!$C$4*$E18+Main!$C$5*CJ$2*$F18 -> 3294.387718 | CK18: =CK$2*$F18*Main!$C$4*$E18+Main!$C$5*CK$2*$F18 -> 3743.865655 | CL18: =CL$2*$F18*Main!$C$4*$E18+Main!$C$5*CL$2*$F18 -> 4193.34103 | CM18: =CM$2*$F18*Main!$C$4*$E18+Main!$C$5*CM$2*$F18 -> 3368.867349 | CN18: =CN$2*$F18*Main!$C$4*$E18+Main!$C$5*CN$2*$F18 -> 3824.946854 | CO18: =CO$2*$F18*Main!$C$4*$E18+Main!$C$5*CO$2*$F18 -> 4281.028921 | CP18: =CP$2*$F18*Main!$C$4*$E18+Main!$C$5*CP$2*$F18 -> 3488.981572 | CQ18: =CQ$2*$F18*Main!$C$4*$E18+Main!$C$5*CQ$2*$F18 -> 3943.480492 | CR18: =CR$2*$F18*Main!$C$4*$E18+Main!$C$5*CR$2*$F18 -> 4397.979412 | CS18: =CS$2*$F18*Main!$C$4*$E18+Main!$C$5*CS$2*$F18 -> 3829.934535 | CT18: =CT$2*$F18*Main!$C$4*$E18+Main!$C$5*CT$2*$F18 -> 4307.253313 | CU18: =CU$2*$F18*Main!$C$4*$E18+Main!$C$5*CU$2*$F18 -> 4784.56953 | CV18: =CV$2*$F18*Main!$C$4*$E18+Main!$C$5*CV$2*$F18 -> 3904.414166 | CW18: =CW$2*$F18*Main!$C$4*$E18+Main!$C$5*CW$2*$F18 -> 4388.334513 | CX18: =CX$2*$F18*Main!$C$4*$E18+Main!$C$5*CX$2*$F18 -> 4872.257421 | CY18: =CY$2*$F18*Main!$C$4*$E18+Main!$C$5*CY$2*$F18 -> 4024.528389 | CZ18: =CZ$2*$F18*Main!$C$4*$E18+Main!$C$5*CZ$2*$F18 -> 4506.868151 | DA18: =DA$2*$F18*Main!$C$4*$E18+Main!$C$5*DA$2*$F18 -> 4989.207912 | DB18: =DB$2*$F18*Main!$C$4*$E18+Main!$C$5*DB$2*$F18 -> 1167.408139 | DC18: =DC$2*$F18*Main!$C$4*$E18+Main!$C$5*DC$2*$F18 -> 1565.568037 | DD18: =DD$2*$F18*Main!$C$4*$E18+Main!$C$5*DD$2*$F18 -> 1963.727935 | DE18: =DE$2*$F18*Main!$C$4*$E18+Main!$C$5*DE$2*$F18 -> 2361.887833 | DF18: =DF$2*$F18*Main!$C$4*$E18+Main!$C$5*DF$2*$F18 -> 2760.047475 | DG18: =DG$2*$F18*Main!$C$4*$E18+Main!$C$5*DG$2*$F18 -> 1385.157693 | DH18: =DH$2*$F18*Main!$C$4*$E18+Main!$C$5*DH$2*$F18 -> 1754.663401 | DI18: =DI$2*$F18*Main!$C$4*$E18+Main!$C$5*DI$2*$F18 -> 2124.168597 | DJ18: =DJ$2*$F18*Main!$C$4*$E18+Main!$C$5*DJ$2*$F18 -> 2493.674562 | DK18: =DK$2*$F18*Main!$C$4*$E18+Main!$C$5*DK$2*$F18 -> 2863.180014 | DL18: =DL$2*$F18*Main!$C$4*$E18+Main!$C$5*DL$2*$F18 -> 1500.191757 | DM18: =DM$2*$F18*Main!$C$4*$E18+Main!$C$5*DM$2*$F18 -> 1870.713702 | DN18: =DN$2*$F18*Main!$C$4*$E18+Main!$C$5*DN$2*$F18 -> 2241.235391 | DO18: =DO$2*$F18*Main!$C$4*$E18+Main!$C$5*DO$2*$F18 -> 2611.756824 | DP18: =DP$2*$F18*Main!$C$4*$E18+Main!$C$5*DP$2*$F18 -> 2982.279794 | DQ18: =DQ$2*$F18*Main!$C$4*$E18+Main!$C$5*DQ$2*$F18 -> 1230.246261 | DR18: =DR$2*$F18*Main!$C$4*$E18+Main!$C$5*DR$2*$F18 -> 1643.074603 | DS18: =DS$2*$F18*Main!$C$4*$E18+Main!$C$5*DS$2*$F18 -> 2055.902946 | DT18: =DT$2*$F18*Main!$C$4*$E18+Main!$C$5*DT$2*$F18 -> 2468.731289 | DU18: =DU$2*$F18*Main!$C$4*$E18+Main!$C$5*DU$2*$F18 -> 2881.5604 | DV18: =DV$2*$F18*Main!$C$4*$E18+Main!$C$5*DV$2*$F18 -> 1447.995558 | DW18: =DW$2*$F18*Main!$C$4*$E18+Main!$C$5*DW$2*$F18 -> 1832.169456 | DX18: =DX$2*$F18*Main!$C$4*$E18+Main!$C$5*DX$2*$F18 -> 2216.343609 | DY18: =DY$2*$F18*Main!$C$4*$E18+Main!$C$5*DY$2*$F18 -> 2600.51853 | DZ18: =DZ$2*$F18*Main!$C$4*$E18+Main!$C$5*DZ$2*$F18 -> 2984.69294 | EA18: =EA$2*$F18*Main!$C$4*$E18+Main!$C$5*EA$2*$F18 -> 1563.029878 | EB18: =EB$2*$F18*Main!$C$4*$E18+Main!$C$5*EB$2*$F18 -> 1948.220012 | EC18: =EC$2*$F18*Main!$C$4*$E18+Main!$C$5*EC$2*$F18 -> 2333.410402 | ED18: =ED$2*$F18*Main!$C$4*$E18+Main!$C$5*ED$2*$F18 -> 2718.601305 | EE18: =EE$2*$F18*Main!$C$4*$E18+Main!$C$5*EE$2*$F18 -> 3103.790158 | EF18: =EF$2*$F18*Main!$C$4*$E18+Main!$C$5*EF$2*$F18 -> 1520.546209 | EG18: =EG$2*$F18*Main!$C$4*$E18+Main!$C$5*EG$2*$F18 -> 1982.423926 | EH18: =EH$2*$F18*Main!$C$4*$E18+Main!$C$5*EH$2*$F18 -> 2444.301898 | EI18: =EI$2*$F18*Main!$C$4*$E18+Main!$C$5*EI$2*$F18 -> 2906.17859 | EJ18: =EJ$2*$F18*Main!$C$4*$E18+Main!$C$5*EJ$2*$F18 -> 3368.057844 | EK18: =EK$2*$F18*Main!$C$4*$E18+Main!$C$5*EK$2*$F18 -> 1738.295507 | EL18: =EL$2*$F18*Main!$C$4*$E18+Main!$C$5*EL$2*$F18 -> 2171.519034 | EM18: =EM$2*$F18*Main!$C$4*$E18+Main!$C$5*EM$2*$F18 -> 2604.742817 | EN18: =EN$2*$F18*Main!$C$4*$E18+Main!$C$5*EN$2*$F18 -> 3037.9666 | EO18: =EO$2*$F18*Main!$C$4*$E18+Main!$C$5*EO$2*$F18 -> 3471.190383 | EP18: =EP$2*$F18*Main!$C$4*$E18+Main!$C$5*EP$2*$F18 -> 1853.329827 | EQ18: =EQ$2*$F18*Main!$C$4*$E18+Main!$C$5*EQ$2*$F18 -> 2287.569591 | ER18: =ER$2*$F18*Main!$C$4*$E18+Main!$C$5*ER$2*$F18 -> 2721.808586 | ES18: =ES$2*$F18*Main!$C$4*$E18+Main!$C$5*ES$2*$F18 -> 3156.049374 | ET18: =ET$2*$F18*Main!$C$4*$E18+Main!$C$5*ET$2*$F18 -> 3590.290163 | EU18: =EU$2*$F18*Main!$C$4*$E18+Main!$C$5*EU$2*$F18 -> 4372.866809 | EV18: =EV$2*$F18*Main!$C$4*$E18+Main!$C$5*EV$2*$F18 -> 4467.158831 | EW18: =EW$2*$F18*Main!$C$4*$E18+Main!$C$5*EW$2*$F18 -> 4582.528737 | EX18: =EX$2*$F18*Main!$C$4*$E18+Main!$C$5*EX$2*$F18 -> 4642.818966 | EY18: =EY$2*$F18*Main!$C$4*$E18+Main!$C$5*EY$2*$F18 -> 4737.110988 | EZ18: =EZ$2*$F18*Main!$C$4*$E18+Main!$C$5*EZ$2*$F18 -> 4852.478332 | FA18: =FA$2*$F18*Main!$C$4*$E18+Main!$C$5*FA$2*$F18 -> 5261.885746 | FB18: =FB$2*$F18*Main!$C$4*$E18+Main!$C$5*FB$2*$F18 -> 5356.177768 | FC18: =FC$2*$F18*Main!$C$4*$E18+Main!$C$5*FC$2*$F18 -> 5471.547674 | FD18: =IF($D18<100,(FD$2*(1+Main!$C$3)*$E18*Main!$C$4)+(FD$2*(1+Main!$C$3)*Main!$C$5),(FD$2*$E18*Main!$C$4)+(FD$2*Main!$C$5)) -> 120.8536382 | FE18: =IF($D18<100,(FE$2*(1+Main!$C$3)*$E18*Main!$C$4)+(FE$2*(1+Main!$C$3)*Main!$C$5),(FE$2*$E18*Main!$C$4)+(FE$2*Main!$C$5)) -> 132.1130845 | FF18: =IF($D18<100,(FF$2*(1+Main!$C$3)*$E18*Main!$C$4)+(FF$2*(1+Main!$C$3)*Main!$C$5),(FF$2*$E18*Main!$C$4)+(FF$2*Main!$C$5)) -> 133.0148515 | FG18: =IF($D18<100,(FG$2*(1+Main!$C$3)*$E18*Main!$C$4)+(FG$2*(1+Main!$C$3)*Main!$C$5),(FG$2*$E18*Main!$C$4)+(FG$2*Main!$C$5)) -> 143.5916518 | FH18: =IF($D18<100,(FH$2*(1+Main!$C$3)*$E18*Main!$C$4)+(FH$2*(1+Main!$C$3)*Main!$C$5),(FH$2*$E18*Main!$C$4)+(FH$2*Main!$C$5)) -> 193.7197857 | FI18: =IF($D18<100,(FI$2*(1+Main!$C$3)*$E18*Main!$C$4)+(FI$2*(1+Main!$C$3)*Main!$C$5),(FI$2*$E18*Main!$C$4)+(FI$2*Main!$C$5)) -> 54.72967407
A19: AL | B19: 33660 | C19: (Mobile, Mobile County) | D19: 33660 | E19: 0.73 | F19: =IF($D19<100,Main!$C$2*(1+Main!$C$3),Main!$C$2) -> 3039.64 | G19: =G$2*$F19*Main!$C$4*$E19+Main!$C$5*G$2*$F19 -> 1340.021438 | H19: =H$2*$F19*Main!$C$4*$E19+Main!$C$5*H$2*$F19 -> 1655.248592 | I19: =I$2*$F19*Main!$C$4*$E19+Main!$C$5*I$2*$F19 -> 1970.475985 | J19: =J$2*$F19*Main!$C$4*$E19+Main!$C$5*J$2*$F19 -> 2285.702899 | K19: =K$2*$F19*Main!$C$4*$E19+Main!$C$5*K$2*$F19 -> 2600.931251 | L19: =L$2*$F19*Main!$C$4*$E19+Main!$C$5*L$2*$F19 -> 1590.437636 | M19: =M$2*$F19*Main!$C$4*$E19+Main!$C$5*M$2*$F19 -> 1875.961226 | N19: =N$2*$F19*Main!$C$4*$E19+Main!$C$5*N$2*$F19 -> 2161.484815 | O19: =O$2*$F19*Main!$C$4*$E19+Main!$C$5*O$2*$F19 -> 2447.007686 | P19: =P$2*$F19*Main!$C$4*$E19+Main!$C$5*P$2*$F19 -> 2732.532473 | Q19: =Q$2*$F19*Main!$C$4*$E19+Main!$C$5*Q$2*$F19 -> 1709.940245 | R19: =R$2*$F19*Main!$C$4*$E19+Main!$C$5*R$2*$F19 -> 1988.525227 | S19: =S$2*$F19*Main!$C$4*$E19+Main!$C$5*S$2*$F19 -> 2267.109969 | T19: =T$2*$F19*Main!$C$4*$E19+Main!$C$5*T$2*$F19 -> 2545.69543 | U19: =U$2*$F19*Main!$C$4*$E19+Main!$C$5*U$2*$F19 -> 2824.279214 | V19: =V$2*$F19*Main!$C$4*$E19+Main!$C$5*V$2*$F19 -> 1424.61521 | W19: =W$2*$F19*Main!$C$4*$E19+Main!$C$5*W$2*$F19 -> 1754.497747 | X19: =X$2*$F19*Main!$C$4*$E19+Main!$C$5*X$2*$F19 -> 2084.380285 | Y19: =Y$2*$F19*Main!$C$4*$E19+Main!$C$5*Y$2*$F19 -> 2414.261864 | Z19: =Z$2*$F19*Main!$C$4*$E19+Main!$C$5*Z$2*$F19 -> 2744.146318 | AA19: =AA$2*$F19*Main!$C$4*$E19+Main!$C$5*AA$2*$F19 -> 1675.031168 | AB19: =AB$2*$F19*Main!$C$4*$E19+Main!$C$5*AB$2*$F19 -> 1975.210381 | AC19: =AC$2*$F19*Main!$C$4*$E19+Main!$C$5*AC$2*$F19 -> 2275.389115 | AD19: =AD$2*$F19*Main!$C$4*$E19+Main!$C$5*AD$2*$F19 -> 2575.56713 | AE19: =AE$2*$F19*Main!$C$4*$E19+Main!$C$5*AE$2*$F19 -> 2875.747541 | AF19: =AF$2*$F19*Main!$C$4*$E19+Main!$C$5*AF$2*$F19 -> 1794.533777 | AG19: =AG$2*$F19*Main!$C$4*$E19+Main!$C$5*AG$2*$F19 -> 2087.774143 | AH19: =AH$2*$F19*Main!$C$4*$E19+Main!$C$5*AH$2*$F19 -> 2381.014509 | AI19: =AI$2*$F19*Main!$C$4*$E19+Main!$C$5*AI$2*$F19 -> 2674.254874 | AJ19: =AJ$2*$F19*Main!$C$4*$E19+Main!$C$5*AJ$2*$F19 -> 2967.494282 | AK19: =AK$2*$F19*Main!$C$4*$E19+Main!$C$5*AK$2*$F19 -> 1526.690105 | AL19: =AL$2*$F19*Main!$C$4*$E19+Main!$C$5*AL$2*$F19 -> 1892.548258 | AM19: =AM$2*$F19*Main!$C$4*$E19+Main!$C$5*AM$2*$F19 -> 2258.406172 | AN19: =AN$2*$F19*Main!$C$4*$E19+Main!$C$5*AN$2*$F19 -> 2624.264325 | AO19: =AO$2*$F19*Main!$C$4*$E19+Main!$C$5*AO$2*$F19 -> 2990.123197 | AP19: =AP$2*$F19*Main!$C$4*$E19+Main!$C$5*AP$2*$F19 -> 1777.106064 | AQ19: =AQ$2*$F19*Main!$C$4*$E19+Main!$C$5*AQ$2*$F19 -> 2113.260413 | AR19: =AR$2*$F19*Main!$C$4*$E19+Main!$C$5*AR$2*$F19 -> 2449.414763 | AS19: =AS$2*$F19*Main!$C$4*$E19+Main!$C$5*AS$2*$F19 -> 2785.569591 | AT19: =AT$2*$F19*Main!$C$4*$E19+Main!$C$5*AT$2*$F19 -> 3121.724419 | AU19: =AU$2*$F19*Main!$C$4*$E19+Main!$C$5*AU$2*$F19 -> 1896.608434 | AV19: =AV$2*$F19*Main!$C$4*$E19+Main!$C$5*AV$2*$F19 -> 2225.824654 | AW19: =AW$2*$F19*Main!$C$4*$E19+Main!$C$5*AW$2*$F19 -> 2555.041114 | AX19: =AX$2*$F19*Main!$C$4*$E19+Main!$C$5*AX$2*$F19 -> 2884.257335 | AY19: =AY$2*$F19*Main!$C$4*$E19+Main!$C$5*AY$2*$F19 -> 3213.47116 | AZ19: =AZ$2*$F19*Main!$C$4*$E19+Main!$C$5*AZ$2*$F19 -> 2916.157686 | BA19: =BA$2*$F19*Main!$C$4*$E19+Main!$C$5*BA$2*$F19 -> 3306.918423 | BB19: =BB$2*$F19*Main!$C$4*$E19+Main!$C$5*BB$2*$F19 -> 3697.67916 | BC19: =BC$2*$F19*Main!$C$4*$E19+Main!$C$5*BC$2*$F19 -> 3018.054865 | BD19: =BD$2*$F19*Main!$C$4*$E19+Main!$C$5*BD$2*$F19 -> 3404.236169 | BE19: =BE$2*$F19*Main!$C$4*$E19+Main!$C$5*BE$2*$F19 -> 3790.417473 | BF19: =BF$2*$F19*Main!$C$4*$E19+Main!$C$5*BF$2*$F19 -> 3102.865394 | BG19: =BG$2*$F19*Main!$C$4*$E19+Main!$C$5*BG$2*$F19 -> 3496.730182 | BH19: =BH$2*$F19*Main!$C$4*$E19+Main!$C$5*BH$2*$F19 -> 3890.597365 | BI19: =BI$2*$F19*Main!$C$4*$E19+Main!$C$5*BI$2*$F19 -> 3074.028377 | BJ19: =BJ$2*$F19*Main!$C$4*$E19+Main!$C$5*BJ$2*$F19 -> 3496.296669 | BK19: =BK$2*$F19*Main!$C$4*$E19+Main!$C$5*BK$2*$F19 -> 3918.562565 | BL19: =BL$2*$F19*Main!$C$4*$E19+Main!$C$5*BL$2*$F19 -> 3175.925556 | BM19: =BM$2*$F19*Main!$C$4*$E19+Main!$C$5*BM$2*$F19 -> 3593.614415 | BN19: =BN$2*$F19*Main!$C$4*$E19+Main!$C$5*BN$2*$F19 -> 4011.300878 | BO19: =BO$2*$F19*Main!$C$4*$E19+Main!$C$5*BO$2*$F19 -> 3260.736085 | BP19: =BP$2*$F19*Main!$C$4*$E19+Main!$C$5*BP$2*$F19 -> 3686.108427 | BQ19: =BQ$2*$F19*Main!$C$4*$E19+Main!$C$5*BQ$2*$F19 -> 4111.48077 | BR19: =BR$2*$F19*Main!$C$4*$E19+Main!$C$5*BR$2*$F19 -> 3355.979673 | BS19: =BS$2*$F19*Main!$C$4*$E19+Main!$C$5*BS$2*$F19 -> 3877.196775 | BT19: =BT$2*$F19*Main!$C$4*$E19+Main!$C$5*BT$2*$F19 -> 4398.413876 | BU19: =BU$2*$F19*Main!$C$4*$E19+Main!$C$5*BU$2*$F19 -> 3457.879248 | BV19: =BV$2*$F19*Main!$C$4*$E19+Main!$C$5*BV$2*$F19 -> 3974.514521 | BW19: =BW$2*$F19*Main!$C$4*$E19+Main!$C$5*BW$2*$F19 -> 4491.152189 | BX19: =BX$2*$F19*Main!$C$4*$E19+Main!$C$5*BX$2*$F19 -> 3542.687381 | BY19: =BY$2*$F19*Main!$C$4*$E19+Main!$C$5*BY$2*$F19 -> 4067.010929 | BZ19: =BZ$2*$F19*Main!$C$4*$E19+Main!$C$5*BZ$2*$F19 -> 4591.332081 | CA19: =CA$2*$F19*Main!$C$4*$E19+Main!$C$5*CA$2*$F19 -> 2952.783571 | CB19: =CB$2*$F19*Main!$C$4*$E19+Main!$C$5*CB$2*$F19 -> 3331.336478 | CC19: =CC$2*$F19*Main!$C$4*$E19+Main!$C$5*CC$2*$F19 -> 3709.886991 | CD19: =CD$2*$F19*Main!$C$4*$E19+Main!$C$5*CD$2*$F19 -> 3022.418739 | CE19: =CE$2*$F19*Main!$C$4*$E19+Main!$C$5*CE$2*$F19 -> 3407.143822 | CF19: =CF$2*$F19*Main!$C$4*$E19+Main!$C$5*CF$2*$F19 -> 3791.8713 | CG19: =CG$2*$F19*Main!$C$4*$E19+Main!$C$5*CG$2*$F19 -> 3134.720238 | CH19: =CH$2*$F19*Main!$C$4*$E19+Main!$C$5*CH$2*$F19 -> 3517.967543 | CI19: =CI$2*$F19*Main!$C$4*$E19+Main!$C$5*CI$2*$F19 -> 3901.214848 | CJ19: =CJ$2*$F19*Main!$C$4*$E19+Main!$C$5*CJ$2*$F19 -> 3080.107143 | CK19: =CK$2*$F19*Main!$C$4*$E19+Main!$C$5*CK$2*$F19 -> 3500.34918 | CL19: =CL$2*$F19*Main!$C$4*$E19+Main!$C$5*CL$2*$F19 -> 3920.588821 | CM19: =CM$2*$F19*Main!$C$4*$E19+Main!$C$5*CM$2*$F19 -> 3149.742311 | CN19: =CN$2*$F19*Main!$C$4*$E19+Main!$C$5*CN$2*$F19 -> 3576.156523 | CO19: =CO$2*$F19*Main!$C$4*$E19+Main!$C$5*CO$2*$F19 -> 4002.57313 | CP19: =CP$2*$F19*Main!$C$4*$E19+Main!$C$5*CP$2*$F19 -> 3262.04381 | CQ19: =CQ$2*$F19*Main!$C$4*$E19+Main!$C$5*CQ$2*$F19 -> 3686.980244 | CR19: =CR$2*$F19*Main!$C$4*$E19+Main!$C$5*CR$2*$F19 -> 4111.916678 | CS19: =CS$2*$F19*Main!$C$4*$E19+Main!$C$5*CS$2*$F19 -> 3580.819785 | CT19: =CT$2*$F19*Main!$C$4*$E19+Main!$C$5*CT$2*$F19 -> 4027.091779 | CU19: =CU$2*$F19*Main!$C$4*$E19+Main!$C$5*CU$2*$F19 -> 4473.361379 | CV19: =CV$2*$F19*Main!$C$4*$E19+Main!$C$5*CV$2*$F19 -> 3650.454953 | CW19: =CW$2*$F19*Main!$C$4*$E19+Main!$C$5*CW$2*$F19 -> 4102.899123 | CX19: =CX$2*$F19*Main!$C$4*$E19+Main!$C$5*CX$2*$F19 -> 4555.345688 | CY19: =CY$2*$F19*Main!$C$4*$E19+Main!$C$5*CY$2*$F19 -> 3762.756451 | CZ19: =CZ$2*$F19*Main!$C$4*$E19+Main!$C$5*CZ$2*$F19 -> 4213.722844 | DA19: =DA$2*$F19*Main!$C$4*$E19+Main!$C$5*DA$2*$F19 -> 4664.689236 | DB19: =DB$2*$F19*Main!$C$4*$E19+Main!$C$5*DB$2*$F19 -> 1091.475095 | DC19: =DC$2*$F19*Main!$C$4*$E19+Main!$C$5*DC$2*$F19 -> 1463.73703 | DD19: =DD$2*$F19*Main!$C$4*$E19+Main!$C$5*DD$2*$F19 -> 1835.998964 | DE19: =DE$2*$F19*Main!$C$4*$E19+Main!$C$5*DE$2*$F19 -> 2208.260899 | DF19: =DF$2*$F19*Main!$C$4*$E19+Main!$C$5*DF$2*$F19 -> 2580.522594 | DG19: =DG$2*$F19*Main!$C$4*$E19+Main!$C$5*DG$2*$F19 -> 1295.061319 | DH19: =DH$2*$F19*Main!$C$4*$E19+Main!$C$5*DH$2*$F19 -> 1640.532851 | DI19: =DI$2*$F19*Main!$C$4*$E19+Main!$C$5*DI$2*$F19 -> 1986.003904 | DJ19: =DJ$2*$F19*Main!$C$4*$E19+Main!$C$5*DJ$2*$F19 -> 2331.475675 | DK19: =DK$2*$F19*Main!$C$4*$E19+Main!$C$5*DK$2*$F19 -> 2676.946968 | DL19: =DL$2*$F19*Main!$C$4*$E19+Main!$C$5*DL$2*$F19 -> 1402.613093 | DM19: =DM$2*$F19*Main!$C$4*$E19+Main!$C$5*DM$2*$F19 -> 1749.034761 | DN19: =DN$2*$F19*Main!$C$4*$E19+Main!$C$5*DN$2*$F19 -> 2095.45619 | DO19: =DO$2*$F19*Main!$C$4*$E19+Main!$C$5*DO$2*$F19 -> 2441.87738 | DP19: =DP$2*$F19*Main!$C$4*$E19+Main!$C$5*DP$2*$F19 -> 2788.300006 | DQ19: =DQ$2*$F19*Main!$C$4*$E19+Main!$C$5*DQ$2*$F19 -> 1150.225966 | DR19: =DR$2*$F19*Main!$C$4*$E19+Main!$C$5*DR$2*$F19 -> 1536.202249 | DS19: =DS$2*$F19*Main!$C$4*$E19+Main!$C$5*DS$2*$F19 -> 1922.178533 | DT19: =DT$2*$F19*Main!$C$4*$E19+Main!$C$5*DT$2*$F19 -> 2308.154816 | DU19: =DU$2*$F19*Main!$C$4*$E19+Main!$C$5*DU$2*$F19 -> 2694.131818 | DV19: =DV$2*$F19*Main!$C$4*$E19+Main!$C$5*DV$2*$F19 -> 1353.811951 | DW19: =DW$2*$F19*Main!$C$4*$E19+Main!$C$5*DW$2*$F19 -> 1712.997592 | DX19: =DX$2*$F19*Main!$C$4*$E19+Main!$C$5*DX$2*$F19 -> 2072.183472 | DY19: =DY$2*$F19*Main!$C$4*$E19+Main!$C$5*DY$2*$F19 -> 2431.370071 | DZ19: =DZ$2*$F19*Main!$C$4*$E19+Main!$C$5*DZ$2*$F19 -> 2790.556191 | EA19: =EA$2*$F19*Main!$C$4*$E19+Main!$C$5*EA$2*$F19 -> 1461.363964 | EB19: =EB$2*$F19*Main!$C$4*$E19+Main!$C$5*EB$2*$F19 -> 1821.499741 | EC19: =EC$2*$F19*Main!$C$4*$E19+Main!$C$5*EC$2*$F19 -> 2181.635758 | ED19: =ED$2*$F19*Main!$C$4*$E19+Main!$C$5*ED$2*$F19 -> 2541.772254 | EE19: =EE$2*$F19*Main!$C$4*$E19+Main!$C$5*EE$2*$F19 -> 2901.906835 | EF19: =EF$2*$F19*Main!$C$4*$E19+Main!$C$5*EF$2*$F19 -> 1421.643608 | EG19: =EG$2*$F19*Main!$C$4*$E19+Main!$C$5*EG$2*$F19 -> 1853.478891 | EH19: =EH$2*$F19*Main!$C$4*$E19+Main!$C$5*EH$2*$F19 -> 2285.314414 | EI19: =EI$2*$F19*Main!$C$4*$E19+Main!$C$5*EI$2*$F19 -> 2717.148739 | EJ19: =EJ$2*$F19*Main!$C$4*$E19+Main!$C$5*EJ$2*$F19 -> 3148.98546 | EK19: =EK$2*$F19*Main!$C$4*$E19+Main!$C$5*EK$2*$F19 -> 1625.229592 | EL19: =EL$2*$F19*Main!$C$4*$E19+Main!$C$5*EL$2*$F19 -> 2030.274473 | EM19: =EM$2*$F19*Main!$C$4*$E19+Main!$C$5*EM$2*$F19 -> 2435.319593 | EN19: =EN$2*$F19*Main!$C$4*$E19+Main!$C$5*EN$2*$F19 -> 2840.364713 | EO19: =EO$2*$F19*Main!$C$4*$E19+Main!$C$5*EO$2*$F19 -> 3245.409833 | EP19: =EP$2*$F19*Main!$C$4*$E19+Main!$C$5*EP$2*$F19 -> 1732.781605 | EQ19: =EQ$2*$F19*Main!$C$4*$E19+Main!$C$5*EQ$2*$F19 -> 2138.776622 | ER19: =ER$2*$F19*Main!$C$4*$E19+Main!$C$5*ER$2*$F19 -> 2544.770921 | ES19: =ES$2*$F19*Main!$C$4*$E19+Main!$C$5*ES$2*$F19 -> 2950.766896 | ET19: =ET$2*$F19*Main!$C$4*$E19+Main!$C$5*ET$2*$F19 -> 3356.762871 | EU19: =EU$2*$F19*Main!$C$4*$E19+Main!$C$5*EU$2*$F19 -> 4088.437503 | EV19: =EV$2*$F19*Main!$C$4*$E19+Main!$C$5*EV$2*$F19 -> 4176.596382 | EW19: =EW$2*$F19*Main!$C$4*$E19+Main!$C$5*EW$2*$F19 -> 4284.462153 | EX19: =EX$2*$F19*Main!$C$4*$E19+Main!$C$5*EX$2*$F19 -> 4340.830857 | EY19: =EY$2*$F19*Main!$C$4*$E19+Main!$C$5*EY$2*$F19 -> 4428.989736 | EZ19: =EZ$2*$F19*Main!$C$4*$E19+Main!$C$5*EZ$2*$F19 -> 4536.853113 | FA19: =FA$2*$F19*Main!$C$4*$E19+Main!$C$5*FA$2*$F19 -> 4919.630978 | FB19: =FB$2*$F19*Main!$C$4*$E19+Main!$C$5*FB$2*$F19 -> 5007.789858 | FC19: =FC$2*$F19*Main!$C$4*$E19+Main!$C$5*FC$2*$F19 -> 5115.655629 | FD19: =IF($D19<100,(FD$2*(1+Main!$C$3)*$E19*Main!$C$4)+(FD$2*(1+Main!$C$3)*Main!$C$5),(FD$2*$E19*Main!$C$4)+(FD$2*Main!$C$5)) -> 112.9928187 | FE19: =IF($D19<100,(FE$2*(1+Main!$C$3)*$E19*Main!$C$4)+(FE$2*(1+Main!$C$3)*Main!$C$5),(FE$2*$E19*Main!$C$4)+(FE$2*Main!$C$5)) -> 123.5199042 | FF19: =IF($D19<100,(FF$2*(1+Main!$C$3)*$E19*Main!$C$4)+(FF$2*(1+Main!$C$3)*Main!$C$5),(FF$2*$E19*Main!$C$4)+(FF$2*Main!$C$5)) -> 124.3630166 | FG19: =IF($D19<100,(FG$2*(1+Main!$C$3)*$E19*Main!$C$4)+(FG$2*(1+Main!$C$3)*Main!$C$5),(FG$2*$E19*Main!$C$4)+(FG$2*Main!$C$5)) -> 134.2518581 | FH19: =IF($D19<100,(FH$2*(1+Main!$C$3)*$E19*Main!$C$4)+(FH$2*(1+Main!$C$3)*Main!$C$5),(FH$2*$E19*Main!$C$4)+(FH$2*Main!$C$5)) -> 181.1194512 | FI19: =IF($D19<100,(FI$2*(1+Main!$C$3)*$E19*Main!$C$4)+(FI$2*(1+Main!$C$3)*Main!$C$5),(FI$2*$E19*Main!$C$4)+(FI$2*Main!$C$5)) -> 51.16983017
A20: AL | B20: 33860 | C20: (Autauga County, Elmore County, Lowndes County, Montgomery, Montgomery County) | D20: 33860 | E20: 0.7309 | F20: =IF($D20<100,Main!$C$2*(1+Main!$C$3),Main!$C$2) -> 3039.64 | G20: =G$2*$F20*Main!$C$4*$E20+Main!$C$5*G$2*$F20 -> 1341.223469 | H20: =H$2*$F20*Main!$C$4*$E20+Main!$C$5*H$2*$F20 -> 1656.733389 | I20: =I$2*$F20*Main!$C$4*$E20+Main!$C$5*I$2*$F20 -> 1972.243549 | J20: =J$2*$F20*Main!$C$4*$E20+Main!$C$5*J$2*$F20 -> 2287.75323 | K20: =K$2*$F20*Main!$C$4*$E20+Main!$C$5*K$2*$F20 -> 2603.264348 | L20: =L$2*$F20*Main!$C$4*$E20+Main!$C$5*L$2*$F20 -> 1591.864297 | M20: =M$2*$F20*Main!$C$4*$E20+Main!$C$5*M$2*$F20 -> 1877.644008 | N20: =N$2*$F20*Main!$C$4*$E20+Main!$C$5*N$2*$F20 -> 2163.423719 | O20: =O$2*$F20*Main!$C$4*$E20+Main!$C$5*O$2*$F20 -> 2449.202711 | P20: =P$2*$F20*Main!$C$4*$E20+Main!$C$5*P$2*$F20 -> 2734.98362 | Q20: =Q$2*$F20*Main!$C$4*$E20+Main!$C$5*Q$2*$F20 -> 1711.474103 | R20: =R$2*$F20*Main!$C$4*$E20+Main!$C$5*R$2*$F20 -> 1990.308982 | S20: =S$2*$F20*Main!$C$4*$E20+Main!$C$5*S$2*$F20 -> 2269.143621 | T20: =T$2*$F20*Main!$C$4*$E20+Main!$C$5*T$2*$F20 -> 2547.97898 | U20: =U$2*$F20*Main!$C$4*$E20+Main!$C$5*U$2*$F20 -> 2826.812661 | V20: =V$2*$F20*Main!$C$4*$E20+Main!$C$5*V$2*$F20 -> 1425.893124 | W20: =W$2*$F20*Main!$C$4*$E20+Main!$C$5*W$2*$F20 -> 1756.071574 | X20: =X$2*$F20*Main!$C$4*$E20+Main!$C$5*X$2*$F20 -> 2086.250024 | Y20: =Y$2*$F20*Main!$C$4*$E20+Main!$C$5*Y$2*$F20 -> 2416.427515 | Z20: =Z$2*$F20*Main!$C$4*$E20+Main!$C$5*Z$2*$F20 -> 2746.607883 | AA20: =AA$2*$F20*Main!$C$4*$E20+Main!$C$5*AA$2*$F20 -> 1676.533711 | AB20: =AB$2*$F20*Main!$C$4*$E20+Main!$C$5*AB$2*$F20 -> 1976.982192 | AC20: =AC$2*$F20*Main!$C$4*$E20+Main!$C$5*AC$2*$F20 -> 2277.430194 | AD20: =AD$2*$F20*Main!$C$4*$E20+Main!$C$5*AD$2*$F20 -> 2577.877476 | AE20: =AE$2*$F20*Main!$C$4*$E20+Main!$C$5*AE$2*$F20 -> 2878.327155 | AF20: =AF$2*$F20*Main!$C$4*$E20+Main!$C$5*AF$2*$F20 -> 1796.143517 | AG20: =AG$2*$F20*Main!$C$4*$E20+Main!$C$5*AG$2*$F20 -> 2089.646927 | AH20: =AH$2*$F20*Main!$C$4*$E20+Main!$C$5*AH$2*$F20 -> 2383.150336 | AI20: =AI$2*$F20*Main!$C$4*$E20+Main!$C$5*AI$2*$F20 -> 2676.653745 | AJ20: =AJ$2*$F20*Main!$C$4*$E20+Main!$C$5*AJ$2*$F20 -> 2970.156196 | AK20: =AK$2*$F20*Main!$C$4*$E20+Main!$C$5*AK$2*$F20 -> 1528.059583 | AL20: =AL$2*$F20*Main!$C$4*$E20+Main!$C$5*AL$2*$F20 -> 1894.24592 | AM20: =AM$2*$F20*Main!$C$4*$E20+Main!$C$5*AM$2*$F20 -> 2260.432017 | AN20: =AN$2*$F20*Main!$C$4*$E20+Main!$C$5*AN$2*$F20 -> 2626.618353 | AO20: =AO$2*$F20*Main!$C$4*$E20+Main!$C$5*AO$2*$F20 -> 2992.805409 | AP20: =AP$2*$F20*Main!$C$4*$E20+Main!$C$5*AP$2*$F20 -> 1778.700171 | AQ20: =AQ$2*$F20*Main!$C$4*$E20+Main!$C$5*AQ$2*$F20 -> 2115.156059 | AR20: =AR$2*$F20*Main!$C$4*$E20+Main!$C$5*AR$2*$F20 -> 2451.611947 | AS20: =AS$2*$F20*Main!$C$4*$E20+Main!$C$5*AS$2*$F20 -> 2788.068314 | AT20: =AT$2*$F20*Main!$C$4*$E20+Main!$C$5*AT$2*$F20 -> 3124.524681 | AU20: =AU$2*$F20*Main!$C$4*$E20+Main!$C$5*AU$2*$F20 -> 1898.309737 | AV20: =AV$2*$F20*Main!$C$4*$E20+Main!$C$5*AV$2*$F20 -> 2227.821272 | AW20: =AW$2*$F20*Main!$C$4*$E20+Main!$C$5*AW$2*$F20 -> 2557.333048 | AX20: =AX$2*$F20*Main!$C$4*$E20+Main!$C$5*AX$2*$F20 -> 2886.844583 | AY20: =AY$2*$F20*Main!$C$4*$E20+Main!$C$5*AY$2*$F20 -> 3216.353721 | AZ20: =AZ$2*$F20*Main!$C$4*$E20+Main!$C$5*AZ$2*$F20 -> 2918.773549 | BA20: =BA$2*$F20*Main!$C$4*$E20+Main!$C$5*BA$2*$F20 -> 3309.884808 | BB20: =BB$2*$F20*Main!$C$4*$E20+Main!$C$5*BB$2*$F20 -> 3700.996067 | BC20: =BC$2*$F20*Main!$C$4*$E20+Main!$C$5*BC$2*$F20 -> 3020.762133 | BD20: =BD$2*$F20*Main!$C$4*$E20+Main!$C$5*BD$2*$F20 -> 3407.289851 | BE20: =BE$2*$F20*Main!$C$4*$E20+Main!$C$5*BE$2*$F20 -> 3793.817569 | BF20: =BF$2*$F20*Main!$C$4*$E20+Main!$C$5*BF$2*$F20 -> 3105.648738 | BG20: =BG$2*$F20*Main!$C$4*$E20+Main!$C$5*BG$2*$F20 -> 3499.866833 | BH20: =BH$2*$F20*Main!$C$4*$E20+Main!$C$5*BH$2*$F20 -> 3894.087324 | BI20: =BI$2*$F20*Main!$C$4*$E20+Main!$C$5*BI$2*$F20 -> 3076.785854 | BJ20: =BJ$2*$F20*Main!$C$4*$E20+Main!$C$5*BJ$2*$F20 -> 3499.432931 | BK20: =BK$2*$F20*Main!$C$4*$E20+Main!$C$5*BK$2*$F20 -> 3922.07761 | BL20: =BL$2*$F20*Main!$C$4*$E20+Main!$C$5*BL$2*$F20 -> 3178.774438 | BM20: =BM$2*$F20*Main!$C$4*$E20+Main!$C$5*BM$2*$F20 -> 3596.837973 | BN20: =BN$2*$F20*Main!$C$4*$E20+Main!$C$5*BN$2*$F20 -> 4014.899111 | BO20: =BO$2*$F20*Main!$C$4*$E20+Main!$C$5*BO$2*$F20 -> 3263.661043 | BP20: =BP$2*$F20*Main!$C$4*$E20+Main!$C$5*BP$2*$F20 -> 3689.414955 | BQ20: =BQ$2*$F20*Main!$C$4*$E20+Main!$C$5*BQ$2*$F20 -> 4115.168867 | BR20: =BR$2*$F20*Main!$C$4*$E20+Main!$C$5*BR$2*$F20 -> 3358.990068 | BS20: =BS$2*$F20*Main!$C$4*$E20+Main!$C$5*BS$2*$F20 -> 3880.674713 | BT20: =BT$2*$F20*Main!$C$4*$E20+Main!$C$5*BT$2*$F20 -> 4402.359359 | BU20: =BU$2*$F20*Main!$C$4*$E20+Main!$C$5*BU$2*$F20 -> 3460.981048 | BV20: =BV$2*$F20*Main!$C$4*$E20+Main!$C$5*BV$2*$F20 -> 3978.079756 | BW20: =BW$2*$F20*Main!$C$4*$E20+Main!$C$5*BW$2*$F20 -> 4495.180861 | BX20: =BX$2*$F20*Main!$C$4*$E20+Main!$C$5*BX$2*$F20 -> 3545.865257 | BY20: =BY$2*$F20*Main!$C$4*$E20+Main!$C$5*BY$2*$F20 -> 4070.659135 | BZ20: =BZ$2*$F20*Main!$C$4*$E20+Main!$C$5*BZ$2*$F20 -> 4595.450616 | CA20: =CA$2*$F20*Main!$C$4*$E20+Main!$C$5*CA$2*$F20 -> 2955.432289 | CB20: =CB$2*$F20*Main!$C$4*$E20+Main!$C$5*CB$2*$F20 -> 3334.324767 | CC20: =CC$2*$F20*Main!$C$4*$E20+Main!$C$5*CC$2*$F20 -> 3713.214848 | CD20: =CD$2*$F20*Main!$C$4*$E20+Main!$C$5*CD$2*$F20 -> 3025.129921 | CE20: =CE$2*$F20*Main!$C$4*$E20+Main!$C$5*CE$2*$F20 -> 3410.200112 | CF20: =CF$2*$F20*Main!$C$4*$E20+Main!$C$5*CF$2*$F20 -> 3795.272699 | CG20: =CG$2*$F20*Main!$C$4*$E20+Main!$C$5*CG$2*$F20 -> 3137.532157 | CH20: =CH$2*$F20*Main!$C$4*$E20+Main!$C$5*CH$2*$F20 -> 3521.123244 | CI20: =CI$2*$F20*Main!$C$4*$E20+Main!$C$5*CI$2*$F20 -> 3904.714332 | CJ20: =CJ$2*$F20*Main!$C$4*$E20+Main!$C$5*CJ$2*$F20 -> 3082.870073 | CK20: =CK$2*$F20*Main!$C$4*$E20+Main!$C$5*CK$2*$F20 -> 3503.489077 | CL20: =CL$2*$F20*Main!$C$4*$E20+Main!$C$5*CL$2*$F20 -> 3924.105683 | CM20: =CM$2*$F20*Main!$C$4*$E20+Main!$C$5*CM$2*$F20 -> 3152.567706 | CN20: =CN$2*$F20*Main!$C$4*$E20+Main!$C$5*CN$2*$F20 -> 3579.364421 | CO20: =CO$2*$F20*Main!$C$4*$E20+Main!$C$5*CO$2*$F20 -> 4006.163534 | CP20: =CP$2*$F20*Main!$C$4*$E20+Main!$C$5*CP$2*$F20 -> 3264.969941 | CQ20: =CQ$2*$F20*Main!$C$4*$E20+Main!$C$5*CQ$2*$F20 -> 3690.287554 | CR20: =CR$2*$F20*Main!$C$4*$E20+Main!$C$5*CR$2*$F20 -> 4115.605166 | CS20: =CS$2*$F20*Main!$C$4*$E20+Main!$C$5*CS$2*$F20 -> 3584.031866 | CT20: =CT$2*$F20*Main!$C$4*$E20+Main!$C$5*CT$2*$F20 -> 4030.704177 | CU20: =CU$2*$F20*Main!$C$4*$E20+Main!$C$5*CU$2*$F20 -> 4477.374091 | CV20: =CV$2*$F20*Main!$C$4*$E20+Main!$C$5*CV$2*$F20 -> 3653.729499 | CW20: =CW$2*$F20*Main!$C$4*$E20+Main!$C$5*CW$2*$F20 -> 4106.579522 | CX20: =CX$2*$F20*Main!$C$4*$E20+Main!$C$5*CX$2*$F20 -> 4559.431942 | CY20: =CY$2*$F20*Main!$C$4*$E20+Main!$C$5*CY$2*$F20 -> 3766.131734 | CZ20: =CZ$2*$F20*Main!$C$4*$E20+Main!$C$5*CZ$2*$F20 -> 4217.502654 | DA20: =DA$2*$F20*Main!$C$4*$E20+Main!$C$5*DA$2*$F20 -> 4668.873575 | DB20: =DB$2*$F20*Main!$C$4*$E20+Main!$C$5*DB$2*$F20 -> 1092.454174 | DC20: =DC$2*$F20*Main!$C$4*$E20+Main!$C$5*DC$2*$F20 -> 1465.050037 | DD20: =DD$2*$F20*Main!$C$4*$E20+Main!$C$5*DD$2*$F20 -> 1837.6459 | DE20: =DE$2*$F20*Main!$C$4*$E20+Main!$C$5*DE$2*$F20 -> 2210.241762 | DF20: =DF$2*$F20*Main!$C$4*$E20+Main!$C$5*DF$2*$F20 -> 2582.837385 | DG20: =DG$2*$F20*Main!$C$4*$E20+Main!$C$5*DG$2*$F20 -> 1296.22302 | DH20: =DH$2*$F20*Main!$C$4*$E20+Main!$C$5*DH$2*$F20 -> 1642.004449 | DI20: =DI$2*$F20*Main!$C$4*$E20+Main!$C$5*DI$2*$F20 -> 1987.785397 | DJ20: =DJ$2*$F20*Main!$C$4*$E20+Main!$C$5*DJ$2*$F20 -> 2333.567065 | DK20: =DK$2*$F20*Main!$C$4*$E20+Main!$C$5*DK$2*$F20 -> 2679.348254 | DL20: =DL$2*$F20*Main!$C$4*$E20+Main!$C$5*DL$2*$F20 -> 1403.87127 | DM20: =DM$2*$F20*Main!$C$4*$E20+Main!$C$5*DM$2*$F20 -> 1750.603687 | DN20: =DN$2*$F20*Main!$C$4*$E20+Main!$C$5*DN$2*$F20 -> 2097.335865 | DO20: =DO$2*$F20*Main!$C$4*$E20+Main!$C$5*DO$2*$F20 -> 2444.067802 | DP20: =DP$2*$F20*Main!$C$4*$E20+Main!$C$5*DP$2*$F20 -> 2790.801178 | DQ20: =DQ$2*$F20*Main!$C$4*$E20+Main!$C$5*DQ$2*$F20 -> 1151.257746 | DR20: =DR$2*$F20*Main!$C$4*$E20+Main!$C$5*DR$2*$F20 -> 1537.580259 | DS20: =DS$2*$F20*Main!$C$4*$E20+Main!$C$5*DS$2*$F20 -> 1923.902773 | DT20: =DT$2*$F20*Main!$C$4*$E20+Main!$C$5*DT$2*$F20 -> 2310.225286 | DU20: =DU$2*$F20*Main!$C$4*$E20+Main!$C$5*DU$2*$F20 -> 2696.548519 | DV20: =DV$2*$F20*Main!$C$4*$E20+Main!$C$5*DV$2*$F20 -> 1355.026352 | DW20: =DW$2*$F20*Main!$C$4*$E20+Main!$C$5*DW$2*$F20 -> 1714.534192 | DX20: =DX$2*$F20*Main!$C$4*$E20+Main!$C$5*DX$2*$F20 -> 2074.042271 | DY20: =DY$2*$F20*Main!$C$4*$E20+Main!$C$5*DY$2*$F20 -> 2433.551069 | DZ20: =DZ$2*$F20*Main!$C$4*$E20+Main!$C$5*DZ$2*$F20 -> 2793.059387 | EA20: =EA$2*$F20*Main!$C$4*$E20+Main!$C$5*EA$2*$F20 -> 1462.674842 | EB20: =EB$2*$F20*Main!$C$4*$E20+Main!$C$5*EB$2*$F20 -> 1823.13367 | EC20: =EC$2*$F20*Main!$C$4*$E20+Main!$C$5*EC$2*$F20 -> 2183.592738 | ED20: =ED$2*$F20*Main!$C$4*$E20+Main!$C$5*ED$2*$F20 -> 2544.052285 | EE20: =EE$2*$F20*Main!$C$4*$E20+Main!$C$5*EE$2*$F20 -> 2904.509915 | EF20: =EF$2*$F20*Main!$C$4*$E20+Main!$C$5*EF$2*$F20 -> 1422.918856 | EG20: =EG$2*$F20*Main!$C$4*$E20+Main!$C$5*EG$2*$F20 -> 1855.141506 | EH20: =EH$2*$F20*Main!$C$4*$E20+Main!$C$5*EH$2*$F20 -> 2287.364396 | EI20: =EI$2*$F20*Main!$C$4*$E20+Main!$C$5*EI$2*$F20 -> 2719.586087 | EJ20: =EJ$2*$F20*Main!$C$4*$E20+Main!$C$5*EJ$2*$F20 -> 3151.810175 | EK20: =EK$2*$F20*Main!$C$4*$E20+Main!$C$5*EK$2*$F20 -> 1626.687462 | EL20: =EL$2*$F20*Main!$C$4*$E20+Main!$C$5*EL$2*$F20 -> 2032.095678 | EM20: =EM$2*$F20*Main!$C$4*$E20+Main!$C$5*EM$2*$F20 -> 2437.504133 | EN20: =EN$2*$F20*Main!$C$4*$E20+Main!$C$5*EN$2*$F20 -> 2842.912588 | EO20: =EO$2*$F20*Main!$C$4*$E20+Main!$C$5*EO$2*$F20 -> 3248.321043 | EP20: =EP$2*$F20*Main!$C$4*$E20+Main!$C$5*EP$2*$F20 -> 1734.335952 | EQ20: =EQ$2*$F20*Main!$C$4*$E20+Main!$C$5*EQ$2*$F20 -> 2140.695156 | ER20: =ER$2*$F20*Main!$C$4*$E20+Main!$C$5*ER$2*$F20 -> 2547.053642 | ES20: =ES$2*$F20*Main!$C$4*$E20+Main!$C$5*ES$2*$F20 -> 2953.413805 | ET20: =ET$2*$F20*Main!$C$4*$E20+Main!$C$5*ET$2*$F20 -> 3359.773968 | EU20: =EU$2*$F20*Main!$C$4*$E20+Main!$C$5*EU$2*$F20 -> 4092.104929 | EV20: =EV$2*$F20*Main!$C$4*$E20+Main!$C$5*EV$2*$F20 -> 4180.34289 | EW20: =EW$2*$F20*Main!$C$4*$E20+Main!$C$5*EW$2*$F20 -> 4288.305419 | EX20: =EX$2*$F20*Main!$C$4*$E20+Main!$C$5*EX$2*$F20 -> 4344.724686 | EY20: =EY$2*$F20*Main!$C$4*$E20+Main!$C$5*EY$2*$F20 -> 4432.962647 | EZ20: =EZ$2*$F20*Main!$C$4*$E20+Main!$C$5*EZ$2*$F20 -> 4540.922779 | FA20: =FA$2*$F20*Main!$C$4*$E20+Main!$C$5*FA$2*$F20 -> 4924.044005 | FB20: =FB$2*$F20*Main!$C$4*$E20+Main!$C$5*FB$2*$F20 -> 5012.281965 | FC20: =FC$2*$F20*Main!$C$4*$E20+Main!$C$5*FC$2*$F20 -> 5120.244495 | FD20: =IF($D20<100,(FD$2*(1+Main!$C$3)*$E20*Main!$C$4)+(FD$2*(1+Main!$C$3)*Main!$C$5),(FD$2*$E20*Main!$C$4)+(FD$2*Main!$C$5)) -> 113.094176 | FE20: =IF($D20<100,(FE$2*(1+Main!$C$3)*$E20*Main!$C$4)+(FE$2*(1+Main!$C$3)*Main!$C$5),(FE$2*$E20*Main!$C$4)+(FE$2*Main!$C$5)) -> 123.6307045 | FF20: =IF($D20<100,(FF$2*(1+Main!$C$3)*$E20*Main!$C$4)+(FF$2*(1+Main!$C$3)*Main!$C$5),(FF$2*$E20*Main!$C$4)+(FF$2*Main!$C$5)) -> 124.4745732 | FG20: =IF($D20<100,(FG$2*(1+Main!$C$3)*$E20*Main!$C$4)+(FG$2*(1+Main!$C$3)*Main!$C$5),(FG$2*$E20*Main!$C$4)+(FG$2*Main!$C$5)) -> 134.3722852 | FH20: =IF($D20<100,(FH$2*(1+Main!$C$3)*$E20*Main!$C$4)+(FH$2*(1+Main!$C$3)*Main!$C$5),(FH$2*$E20*Main!$C$4)+(FH$2*Main!$C$5)) -> 181.2819197 | FI20: =IF($D20<100,(FI$2*(1+Main!$C$3)*$E20*Main!$C$4)+(FI$2*(1+Main!$C$3)*Main!$C$5),(FI$2*$E20*Main!$C$4)+(FI$2*Main!$C$5)) -> 51.21573074
A21: AL | B21: 46220 | C21: (Hale County, Pickens County, Tuscaloosa, Tuscaloosa County) | D21: 46220 | E21: 0.7718 | F21: =IF($D21<100,Main!$C$2*(1+Main!$C$3),Main!$C$2) -> 3039.64 | G21: =G$2*$F21*Main!$C$4*$E21+Main!$C$5*G$2*$F21 -> 1395.849118 | H21: =H$2*$F21*Main!$C$4*$E21+Main!$C$5*H$2*$F21 -> 1724.209197 | I21: =I$2*$F21*Main!$C$4*$E21+Main!$C$5*I$2*$F21 -> 2052.569525 | J21: =J$2*$F21*Main!$C$4*$E21+Main!$C$5*J$2*$F21 -> 2380.929354 | K21: =K$2*$F21*Main!$C$4*$E21+Main!$C$5*K$2*$F21 -> 2709.29068 | L21: =L$2*$F21*Main!$C$4*$E21+Main!$C$5*L$2*$F21 -> 1656.698102 | M21: =M$2*$F21*Main!$C$4*$E21+Main!$C$5*M$2*$F21 -> 1954.117113 | N21: =N$2*$F21*Main!$C$4*$E21+Main!$C$5*N$2*$F21 -> 2251.536124 | O21: =O$2*$F21*Main!$C$4*$E21+Main!$C$5*O$2*$F21 -> 2548.954386 | P21: =P$2*$F21*Main!$C$4*$E21+Main!$C$5*P$2*$F21 -> 2846.374644 | Q21: =Q$2*$F21*Main!$C$4*$E21+Main!$C$5*Q$2*$F21 -> 1781.179402 | R21: =R$2*$F21*Main!$C$4*$E21+Main!$C$5*R$2*$F21 -> 2071.370731 | S21: =S$2*$F21*Main!$C$4*$E21+Main!$C$5*S$2*$F21 -> 2361.56181 | T21: =T$2*$F21*Main!$C$4*$E21+Main!$C$5*T$2*$F21 -> 2651.753637 | U21: =U$2*$F21*Main!$C$4*$E21+Main!$C$5*U$2*$F21 -> 2941.943718 | V21: =V$2*$F21*Main!$C$4*$E21+Main!$C$5*V$2*$F21 -> 1483.967217 | W21: =W$2*$F21*Main!$C$4*$E21+Main!$C$5*W$2*$F21 -> 1827.593249 | X21: =X$2*$F21*Main!$C$4*$E21+Main!$C$5*X$2*$F21 -> 2171.219281 | Y21: =Y$2*$F21*Main!$C$4*$E21+Main!$C$5*Y$2*$F21 -> 2514.844315 | Z21: =Z$2*$F21*Main!$C$4*$E21+Main!$C$5*Z$2*$F21 -> 2858.472343 | AA21: =AA$2*$F21*Main!$C$4*$E21+Main!$C$5*AA$2*$F21 -> 1744.815951 | AB21: =AB$2*$F21*Main!$C$4*$E21+Main!$C$5*AB$2*$F21 -> 2057.501165 | AC21: =AC$2*$F21*Main!$C$4*$E21+Main!$C$5*AC$2*$F21 -> 2370.18588 | AD21: =AD$2*$F21*Main!$C$4*$E21+Main!$C$5*AD$2*$F21 -> 2682.869846 | AE21: =AE$2*$F21*Main!$C$4*$E21+Main!$C$5*AE$2*$F21 -> 2995.556307 | AF21: =AF$2*$F21*Main!$C$4*$E21+Main!$C$5*AF$2*$F21 -> 1869.297252 | AG21: =AG$2*$F21*Main!$C$4*$E21+Main!$C$5*AG$2*$F21 -> 2174.754534 | AH21: =AH$2*$F21*Main!$C$4*$E21+Main!$C$5*AH$2*$F21 -> 2480.211815 | AI21: =AI$2*$F21*Main!$C$4*$E21+Main!$C$5*AI$2*$F21 -> 2785.669097 | AJ21: =AJ$2*$F21*Main!$C$4*$E21+Main!$C$5*AJ$2*$F21 -> 3091.125381 | AK21: =AK$2*$F21*Main!$C$4*$E21+Main!$C$5*AK$2*$F21 -> 1590.294735 | AL21: =AL$2*$F21*Main!$C$4*$E21+Main!$C$5*AL$2*$F21 -> 1971.395191 | AM21: =AM$2*$F21*Main!$C$4*$E21+Main!$C$5*AM$2*$F21 -> 2352.495397 | AN21: =AN$2*$F21*Main!$C$4*$E21+Main!$C$5*AN$2*$F21 -> 2733.595852 | AO21: =AO$2*$F21*Main!$C$4*$E21+Main!$C$5*AO$2*$F21 -> 3114.697056 | AP21: =AP$2*$F21*Main!$C$4*$E21+Main!$C$5*AP$2*$F21 -> 1851.143469 | AQ21: =AQ$2*$F21*Main!$C$4*$E21+Main!$C$5*AQ$2*$F21 -> 2201.302607 | AR21: =AR$2*$F21*Main!$C$4*$E21+Main!$C$5*AR$2*$F21 -> 2551.461746 | AS21: =AS$2*$F21*Main!$C$4*$E21+Main!$C$5*AS$2*$F21 -> 2901.621383 | AT21: =AT$2*$F21*Main!$C$4*$E21+Main!$C$5*AT$2*$F21 -> 3251.78102 | AU21: =AU$2*$F21*Main!$C$4*$E21+Main!$C$5*AU$2*$F21 -> 1975.62452 | AV21: =AV$2*$F21*Main!$C$4*$E21+Main!$C$5*AV$2*$F21 -> 2318.556475 | AW21: =AW$2*$F21*Main!$C$4*$E21+Main!$C$5*AW$2*$F21 -> 2661.488679 | AX21: =AX$2*$F21*Main!$C$4*$E21+Main!$C$5*AX$2*$F21 -> 3004.420634 | AY21: =AY$2*$F21*Main!$C$4*$E21+Main!$C$5*AY$2*$F21 -> 3347.350094 | AZ21: =AZ$2*$F21*Main!$C$4*$E21+Main!$C$5*AZ$2*$F21 -> 3037.650011 | BA21: =BA$2*$F21*Main!$C$4*$E21+Main!$C$5*BA$2*$F21 -> 3444.690536 | BB21: =BB$2*$F21*Main!$C$4*$E21+Main!$C$5*BB$2*$F21 -> 3851.731062 | BC21: =BC$2*$F21*Main!$C$4*$E21+Main!$C$5*BC$2*$F21 -> 3143.792408 | BD21: =BD$2*$F21*Main!$C$4*$E21+Main!$C$5*BD$2*$F21 -> 3546.062713 | BE21: =BE$2*$F21*Main!$C$4*$E21+Main!$C$5*BE$2*$F21 -> 3948.333019 | BF21: =BF$2*$F21*Main!$C$4*$E21+Main!$C$5*BF$2*$F21 -> 3232.136294 | BG21: =BG$2*$F21*Main!$C$4*$E21+Main!$C$5*BG$2*$F21 -> 3642.410191 | BH21: =BH$2*$F21*Main!$C$4*$E21+Main!$C$5*BH$2*$F21 -> 4052.686583 | BI21: =BI$2*$F21*Main!$C$4*$E21+Main!$C$5*BI$2*$F21 -> 3202.097876 | BJ21: =BJ$2*$F21*Main!$C$4*$E21+Main!$C$5*BJ$2*$F21 -> 3641.958617 | BK21: =BK$2*$F21*Main!$C$4*$E21+Main!$C$5*BK$2*$F21 -> 4081.816863 | BL21: =BL$2*$F21*Main!$C$4*$E21+Main!$C$5*BL$2*$F21 -> 3308.240273 | BM21: =BM$2*$F21*Main!$C$4*$E21+Main!$C$5*BM$2*$F21 -> 3743.330794 | BN21: =BN$2*$F21*Main!$C$4*$E21+Main!$C$5*BN$2*$F21 -> 4178.418819 | BO21: =BO$2*$F21*Main!$C$4*$E21+Main!$C$5*BO$2*$F21 -> 3396.584159 | BP21: =BP$2*$F21*Main!$C$4*$E21+Main!$C$5*BP$2*$F21 -> 3839.678272 | BQ21: =BQ$2*$F21*Main!$C$4*$E21+Main!$C$5*BQ$2*$F21 -> 4282.772384 | BR21: =BR$2*$F21*Main!$C$4*$E21+Main!$C$5*BR$2*$F21 -> 3495.795766 | BS21: =BS$2*$F21*Main!$C$4*$E21+Main!$C$5*BS$2*$F21 -> 4038.7277 | BT21: =BT$2*$F21*Main!$C$4*$E21+Main!$C$5*BT$2*$F21 -> 4581.659635 | BU21: =BU$2*$F21*Main!$C$4*$E21+Main!$C$5*BU$2*$F21 -> 3601.940658 | BV21: =BV$2*$F21*Main!$C$4*$E21+Main!$C$5*BV$2*$F21 -> 4140.099877 | BW21: =BW$2*$F21*Main!$C$4*$E21+Main!$C$5*BW$2*$F21 -> 4678.261591 | BX21: =BX$2*$F21*Main!$C$4*$E21+Main!$C$5*BX$2*$F21 -> 3690.282049 | BY21: =BY$2*$F21*Main!$C$4*$E21+Main!$C$5*BY$2*$F21 -> 4236.44985 | BZ21: =BZ$2*$F21*Main!$C$4*$E21+Main!$C$5*BZ$2*$F21 -> 4782.615156 | CA21: =CA$2*$F21*Main!$C$4*$E21+Main!$C$5*CA$2*$F21 -> 3075.801796 | CB21: =CB$2*$F21*Main!$C$4*$E21+Main!$C$5*CB$2*$F21 -> 3470.125891 | CC21: =CC$2*$F21*Main!$C$4*$E21+Main!$C$5*CC$2*$F21 -> 3864.447492 | CD21: =CD$2*$F21*Main!$C$4*$E21+Main!$C$5*CD$2*$F21 -> 3148.338089 | CE21: =CE$2*$F21*Main!$C$4*$E21+Main!$C$5*CE$2*$F21 -> 3549.091504 | CF21: =CF$2*$F21*Main!$C$4*$E21+Main!$C$5*CF$2*$F21 -> 3949.847414 | CG21: =CG$2*$F21*Main!$C$4*$E21+Main!$C$5*CG$2*$F21 -> 3265.318268 | CH21: =CH$2*$F21*Main!$C$4*$E21+Main!$C$5*CH$2*$F21 -> 3664.532339 | CI21: =CI$2*$F21*Main!$C$4*$E21+Main!$C$5*CI$2*$F21 -> 4063.746409 | CJ21: =CJ$2*$F21*Main!$C$4*$E21+Main!$C$5*CJ$2*$F21 -> 3208.429895 | CK21: =CK$2*$F21*Main!$C$4*$E21+Main!$C$5*CK$2*$F21 -> 3646.179963 | CL21: =CL$2*$F21*Main!$C$4*$E21+Main!$C$5*CL$2*$F21 -> 4083.927536 | CM21: =CM$2*$F21*Main!$C$4*$E21+Main!$C$5*CM$2*$F21 -> 3280.966188 | CN21: =CN$2*$F21*Main!$C$4*$E21+Main!$C$5*CN$2*$F21 -> 3725.145575 | CO21: =CO$2*$F21*Main!$C$4*$E21+Main!$C$5*CO$2*$F21 -> 4169.327458 | CP21: =CP$2*$F21*Main!$C$4*$E21+Main!$C$5*CP$2*$F21 -> 3397.946367 | CQ21: =CQ$2*$F21*Main!$C$4*$E21+Main!$C$5*CQ$2*$F21 -> 3840.58641 | CR21: =CR$2*$F21*Main!$C$4*$E21+Main!$C$5*CR$2*$F21 -> 4283.226453 | CS21: =CS$2*$F21*Main!$C$4*$E21+Main!$C$5*CS$2*$F21 -> 3730.003117 | CT21: =CT$2*$F21*Main!$C$4*$E21+Main!$C$5*CT$2*$F21 -> 4194.867598 | CU21: =CU$2*$F21*Main!$C$4*$E21+Main!$C$5*CU$2*$F21 -> 4659.729584 | CV21: =CV$2*$F21*Main!$C$4*$E21+Main!$C$5*CV$2*$F21 -> 3802.53941 | CW21: =CW$2*$F21*Main!$C$4*$E21+Main!$C$5*CW$2*$F21 -> 4273.83321 | CX21: =CX$2*$F21*Main!$C$4*$E21+Main!$C$5*CX$2*$F21 -> 4745.129505 | CY21: =CY$2*$F21*Main!$C$4*$E21+Main!$C$5*CY$2*$F21 -> 3919.519589 | CZ21: =CZ$2*$F21*Main!$C$4*$E21+Main!$C$5*CZ$2*$F21 -> 4389.274045 | DA21: =DA$2*$F21*Main!$C$4*$E21+Main!$C$5*DA$2*$F21 -> 4859.028501 | DB21: =DB$2*$F21*Main!$C$4*$E21+Main!$C$5*DB$2*$F21 -> 1136.947892 | DC21: =DC$2*$F21*Main!$C$4*$E21+Main!$C$5*DC$2*$F21 -> 1524.718922 | DD21: =DD$2*$F21*Main!$C$4*$E21+Main!$C$5*DD$2*$F21 -> 1912.489952 | DE21: =DE$2*$F21*Main!$C$4*$E21+Main!$C$5*DE$2*$F21 -> 2300.260983 | DF21: =DF$2*$F21*Main!$C$4*$E21+Main!$C$5*DF$2*$F21 -> 2688.031763 | DG21: =DG$2*$F21*Main!$C$4*$E21+Main!$C$5*DG$2*$F21 -> 1349.015881 | DH21: =DH$2*$F21*Main!$C$4*$E21+Main!$C$5*DH$2*$F21 -> 1708.880373 | DI21: =DI$2*$F21*Main!$C$4*$E21+Main!$C$5*DI$2*$F21 -> 2068.744365 | DJ21: =DJ$2*$F21*Main!$C$4*$E21+Main!$C$5*DJ$2*$F21 -> 2428.609106 | DK21: =DK$2*$F21*Main!$C$4*$E21+Main!$C$5*DK$2*$F21 -> 2788.473348 | DL21: =DL$2*$F21*Main!$C$4*$E21+Main!$C$5*DL$2*$F21 -> 1461.048453 | DM21: =DM$2*$F21*Main!$C$4*$E21+Main!$C$5*DM$2*$F21 -> 1821.902666 | DN21: =DN$2*$F21*Main!$C$4*$E21+Main!$C$5*DN$2*$F21 -> 2182.756628 | DO21: =DO$2*$F21*Main!$C$4*$E21+Main!$C$5*DO$2*$F21 -> 2543.610342 | DP21: =DP$2*$F21*Main!$C$4*$E21+Main!$C$5*DP$2*$F21 -> 2904.465552 | DQ21: =DQ$2*$F21*Main!$C$4*$E21+Main!$C$5*DQ$2*$F21 -> 1198.146429 | DR21: =DR$2*$F21*Main!$C$4*$E21+Main!$C$5*DR$2*$F21 -> 1600.203172 | DS21: =DS$2*$F21*Main!$C$4*$E21+Main!$C$5*DS$2*$F21 -> 2002.259915 | DT21: =DT$2*$F21*Main!$C$4*$E21+Main!$C$5*DT$2*$F21 -> 2404.316658 | DU21: =DU$2*$F21*Main!$C$4*$E21+Main!$C$5*DU$2*$F21 -> 2806.37415 | DV21: =DV$2*$F21*Main!$C$4*$E21+Main!$C$5*DV$2*$F21 -> 1410.214169 | DW21: =DW$2*$F21*Main!$C$4*$E21+Main!$C$5*DW$2*$F21 -> 1784.364123 | DX21: =DX$2*$F21*Main!$C$4*$E21+Main!$C$5*DX$2*$F21 -> 2158.514328 | DY21: =DY$2*$F21*Main!$C$4*$E21+Main!$C$5*DY$2*$F21 -> 2532.66528 | DZ21: =DZ$2*$F21*Main!$C$4*$E21+Main!$C$5*DZ$2*$F21 -> 2906.815734 | EA21: =EA$2*$F21*Main!$C$4*$E21+Main!$C$5*EA$2*$F21 -> 1522.24699 | EB21: =EB$2*$F21*Main!$C$4*$E21+Main!$C$5*EB$2*$F21 -> 1897.386666 | EC21: =EC$2*$F21*Main!$C$4*$E21+Main!$C$5*EC$2*$F21 -> 2272.526591 | ED21: =ED$2*$F21*Main!$C$4*$E21+Main!$C$5*ED$2*$F21 -> 2647.667015 | EE21: =EE$2*$F21*Main!$C$4*$E21+Main!$C$5*EE$2*$F21 -> 3022.805444 | EF21: =EF$2*$F21*Main!$C$4*$E21+Main!$C$5*EF$2*$F21 -> 1480.871813 | EG21: =EG$2*$F21*Main!$C$4*$E21+Main!$C$5*EG$2*$F21 -> 1930.698124 | EH21: =EH$2*$F21*Main!$C$4*$E21+Main!$C$5*EH$2*$F21 -> 2380.524684 | EI21: =EI$2*$F21*Main!$C$4*$E21+Main!$C$5*EI$2*$F21 -> 2830.349997 | EJ21: =EJ$2*$F21*Main!$C$4*$E21+Main!$C$5*EJ$2*$F21 -> 3280.177804 | EK21: =EK$2*$F21*Main!$C$4*$E21+Main!$C$5*EK$2*$F21 -> 1692.939553 | EL21: =EL$2*$F21*Main!$C$4*$E21+Main!$C$5*EL$2*$F21 -> 2114.859325 | EM21: =EM$2*$F21*Main!$C$4*$E21+Main!$C$5*EM$2*$F21 -> 2536.779346 | EN21: =EN$2*$F21*Main!$C$4*$E21+Main!$C$5*EN$2*$F21 -> 2958.699367 | EO21: =EO$2*$F21*Main!$C$4*$E21+Main!$C$5*EO$2*$F21 -> 3380.619389 | EP21: =EP$2*$F21*Main!$C$4*$E21+Main!$C$5*EP$2*$F21 -> 1804.972374 | EQ21: =EQ$2*$F21*Main!$C$4*$E21+Main!$C$5*EQ$2*$F21 -> 2227.881867 | ER21: =ER$2*$F21*Main!$C$4*$E21+Main!$C$5*ER$2*$F21 -> 2650.790612 | ES21: =ES$2*$F21*Main!$C$4*$E21+Main!$C$5*ES$2*$F21 -> 3073.701102 | ET21: =ET$2*$F21*Main!$C$4*$E21+Main!$C$5*ET$2*$F21 -> 3496.611593 | EU21: =EU$2*$F21*Main!$C$4*$E21+Main!$C$5*EU$2*$F21 -> 4258.769093 | EV21: =EV$2*$F21*Main!$C$4*$E21+Main!$C$5*EV$2*$F21 -> 4350.600829 | EW21: =EW$2*$F21*Main!$C$4*$E21+Main!$C$5*EW$2*$F21 -> 4462.96048 | EX21: =EX$2*$F21*Main!$C$4*$E21+Main!$C$5*EX$2*$F21 -> 4521.677604 | EY21: =EY$2*$F21*Main!$C$4*$E21+Main!$C$5*EY$2*$F21 -> 4613.50934 | EZ21: =EZ$2*$F21*Main!$C$4*$E21+Main!$C$5*EZ$2*$F21 -> 4725.866496 | FA21: =FA$2*$F21*Main!$C$4*$E21+Main!$C$5*FA$2*$F21 -> 5124.59157 | FB21: =FB$2*$F21*Main!$C$4*$E21+Main!$C$5*FB$2*$F21 -> 5216.423305 | FC21: =FC$2*$F21*Main!$C$4*$E21+Main!$C$5*FC$2*$F21 -> 5328.782957 | FD21: =IF($D21<100,(FD$2*(1+Main!$C$3)*$E21*Main!$C$4)+(FD$2*(1+Main!$C$3)*Main!$C$5),(FD$2*$E21*Main!$C$4)+(FD$2*Main!$C$5)) -> 117.7003008 | FE21: =IF($D21<100,(FE$2*(1+Main!$C$3)*$E21*Main!$C$4)+(FE$2*(1+Main!$C$3)*Main!$C$5),(FE$2*$E21*Main!$C$4)+(FE$2*Main!$C$5)) -> 128.6659635 | FF21: =IF($D21<100,(FF$2*(1+Main!$C$3)*$E21*Main!$C$4)+(FF$2*(1+Main!$C$3)*Main!$C$5),(FF$2*$E21*Main!$C$4)+(FF$2*Main!$C$5)) -> 129.5442014 | FG21: =IF($D21<100,(FG$2*(1+Main!$C$3)*$E21*Main!$C$4)+(FG$2*(1+Main!$C$3)*Main!$C$5),(FG$2*$E21*Main!$C$4)+(FG$2*Main!$C$5)) -> 139.8450297 | FH21: =IF($D21<100,(FH$2*(1+Main!$C$3)*$E21*Main!$C$4)+(FH$2*(1+Main!$C$3)*Main!$C$5),(FH$2*$E21*Main!$C$4)+(FH$2*Main!$C$5)) -> 188.6652103 | FI21: =IF($D21<100,(FI$2*(1+Main!$C$3)*$E21*Main!$C$4)+(FI$2*(1+Main!$C$3)*Main!$C$5),(FI$2*$E21*Main!$C$4)+(FI$2*Main!$C$5)) -> 53.30165646
A22: AR | B22: 4 | C22: Nonurban | D22: 4 | E22: 0.7079 | F22: =IF($D22<100,Main!$C$2*(1+Main!$C$3),Main!$C$2) -> 3039.64 | G22: =G$2*$F22*Main!$C$4*$E22+Main!$C$5*G$2*$F22 -> 1310.504889 | H22: =H$2*$F22*Main!$C$4*$E22+Main!$C$5*H$2*$F22 -> 1618.788559 | I22: =I$2*$F22*Main!$C$4*$E22+Main!$C$5*I$2*$F22 -> 1927.072462 | J22: =J$2*$F22*Main!$C$4*$E22+Main!$C$5*J$2*$F22 -> 2235.355898 | K22: =K$2*$F22*Main!$C$4*$E22+Main!$C$5*K$2*$F22 -> 2543.640739 | L22: =L$2*$F22*Main!$C$4*$E22+Main!$C$5*L$2*$F22 -> 1555.405189 | M22: =M$2*$F22*Main!$C$4*$E22+Main!$C$5*M$2*$F22 -> 1834.639572 | N22: =N$2*$F22*Main!$C$4*$E22+Main!$C$5*N$2*$F22 -> 2113.873956 | O22: =O$2*$F22*Main!$C$4*$E22+Main!$C$5*O$2*$F22 -> 2393.107637 | P22: =P$2*$F22*Main!$C$4*$E22+Main!$C$5*P$2*$F22 -> 2672.343191 | Q22: =Q$2*$F22*Main!$C$4*$E22+Main!$C$5*Q$2*$F22 -> 1672.275523 | R22: =R$2*$F22*Main!$C$4*$E22+Main!$C$5*R$2*$F22 -> 1944.724135 | S22: =S$2*$F22*Main!$C$4*$E22+Main!$C$5*S$2*$F22 -> 2217.172513 | T22: =T$2*$F22*Main!$C$4*$E22+Main!$C$5*T$2*$F22 -> 2489.621593 | U22: =U$2*$F22*Main!$C$4*$E22+Main!$C$5*U$2*$F22 -> 2762.069034 | V22: =V$2*$F22*Main!$C$4*$E22+Main!$C$5*V$2*$F22 -> 1393.23532 | W22: =W$2*$F22*Main!$C$4*$E22+Main!$C$5*W$2*$F22 -> 1715.851561 | X22: =X$2*$F22*Main!$C$4*$E22+Main!$C$5*X$2*$F22 -> 2038.467801 | Y22: =Y$2*$F22*Main!$C$4*$E22+Main!$C$5*Y$2*$F22 -> 2361.083105 | Z22: =Z$2*$F22*Main!$C$4*$E22+Main!$C$5*Z$2*$F22 -> 2683.701219 | AA22: =AA$2*$F22*Main!$C$4*$E22+Main!$C$5*AA$2*$F22 -> 1638.135386 | AB22: =AB$2*$F22*Main!$C$4*$E22+Main!$C$5*AB$2*$F22 -> 1931.702574 | AC22: =AC$2*$F22*Main!$C$4*$E22+Main!$C$5*AC$2*$F22 -> 2225.269295 | AD22: =AD$2*$F22*Main!$C$4*$E22+Main!$C$5*AD$2*$F22 -> 2518.835312 | AE22: =AE$2*$F22*Main!$C$4*$E22+Main!$C$5*AE$2*$F22 -> 2812.403672 | AF22: =AF$2*$F22*Main!$C$4*$E22+Main!$C$5*AF$2*$F22 -> 1755.00572 | AG22: =AG$2*$F22*Main!$C$4*$E22+Main!$C$5*AG$2*$F22 -> 2041.786903 | AH22: =AH$2*$F22*Main!$C$4*$E22+Main!$C$5*AH$2*$F22 -> 2328.568086 | AI22: =AI$2*$F22*Main!$C$4*$E22+Main!$C$5*AI$2*$F22 -> 2615.349269 | AJ22: =AJ$2*$F22*Main!$C$4*$E22+Main!$C$5*AJ$2*$F22 -> 2902.129514 | AK22: =AK$2*$F22*Main!$C$4*$E22+Main!$C$5*AK$2*$F22 -> 1493.06182 | AL22: =AL$2*$F22*Main!$C$4*$E22+Main!$C$5*AL$2*$F22 -> 1850.861244 | AM22: =AM$2*$F22*Main!$C$4*$E22+Main!$C$5*AM$2*$F22 -> 2208.660433 | AN22: =AN$2*$F22*Main!$C$4*$E22+Main!$C$5*AN$2*$F22 -> 2566.459857 | AO22: =AO$2*$F22*Main!$C$4*$E22+Main!$C$5*AO$2*$F22 -> 2924.259984 | AP22: =AP$2*$F22*Main!$C$4*$E22+Main!$C$5*AP$2*$F22 -> 1737.961886 | AQ22: =AQ$2*$F22*Main!$C$4*$E22+Main!$C$5*AQ$2*$F22 -> 2066.711789 | AR22: =AR$2*$F22*Main!$C$4*$E22+Main!$C$5*AR$2*$F22 -> 2395.461693 | AS22: =AS$2*$F22*Main!$C$4*$E22+Main!$C$5*AS$2*$F22 -> 2724.212065 | AT22: =AT$2*$F22*Main!$C$4*$E22+Main!$C$5*AT$2*$F22 -> 3052.962436 | AU22: =AU$2*$F22*Main!$C$4*$E22+Main!$C$5*AU$2*$F22 -> 1854.831986 | AV22: =AV$2*$F22*Main!$C$4*$E22+Main!$C$5*AV$2*$F22 -> 2176.796586 | AW22: =AW$2*$F22*Main!$C$4*$E22+Main!$C$5*AW$2*$F22 -> 2498.761421 | AX22: =AX$2*$F22*Main!$C$4*$E22+Main!$C$5*AX$2*$F22 -> 2820.726021 | AY22: =AY$2*$F22*Main!$C$4*$E22+Main!$C$5*AY$2*$F22 -> 3142.688279 | AZ22: =AZ$2*$F22*Main!$C$4*$E22+Main!$C$5*AZ$2*$F22 -> 2851.923706 | BA22: =BA$2*$F22*Main!$C$4*$E22+Main!$C$5*BA$2*$F22 -> 3234.077186 | BB22: =BB$2*$F22*Main!$C$4*$E22+Main!$C$5*BB$2*$F22 -> 3616.230667 | BC22: =BC$2*$F22*Main!$C$4*$E22+Main!$C$5*BC$2*$F22 -> 2951.576404 | BD22: =BD$2*$F22*Main!$C$4*$E22+Main!$C$5*BD$2*$F22 -> 3329.251322 | BE22: =BE$2*$F22*Main!$C$4*$E22+Main!$C$5*BE$2*$F22 -> 3706.92624 | BF22: =BF$2*$F22*Main!$C$4*$E22+Main!$C$5*BF$2*$F22 -> 3034.518817 | BG22: =BG$2*$F22*Main!$C$4*$E22+Main!$C$5*BG$2*$F22 -> 3419.707976 | BH22: =BH$2*$F22*Main!$C$4*$E22+Main!$C$5*BH$2*$F22 -> 3804.899477 | BI22: =BI$2*$F22*Main!$C$4*$E22+Main!$C$5*BI$2*$F22 -> 3006.316991 | BJ22: =BJ$2*$F22*Main!$C$4*$E22+Main!$C$5*BJ$2*$F22 -> 3419.284012 | BK22: =BK$2*$F22*Main!$C$4*$E22+Main!$C$5*BK$2*$F22 -> 3832.24869 | BL22: =BL$2*$F22*Main!$C$4*$E22+Main!$C$5*BL$2*$F22 -> 3105.969689 | BM22: =BM$2*$F22*Main!$C$4*$E22+Main!$C$5*BM$2*$F22 -> 3514.458147 | BN22: =BN$2*$F22*Main!$C$4*$E22+Main!$C$5*BN$2*$F22 -> 3922.944263 | BO22: =BO$2*$F22*Main!$C$4*$E22+Main!$C$5*BO$2*$F22 -> 3188.912102 | BP22: =BP$2*$F22*Main!$C$4*$E22+Main!$C$5*BP$2*$F22 -> 3604.914801 | BQ22: =BQ$2*$F22*Main!$C$4*$E22+Main!$C$5*BQ$2*$F22 -> 4020.9175 | BR22: =BR$2*$F22*Main!$C$4*$E22+Main!$C$5*BR$2*$F22 -> 3282.057768 | BS22: =BS$2*$F22*Main!$C$4*$E22+Main!$C$5*BS$2*$F22 -> 3791.794061 | BT22: =BT$2*$F22*Main!$C$4*$E22+Main!$C$5*BT$2*$F22 -> 4301.530353 | BU22: =BU$2*$F22*Main!$C$4*$E22+Main!$C$5*BU$2*$F22 -> 3381.712808 | BV22: =BV$2*$F22*Main!$C$4*$E22+Main!$C$5*BV$2*$F22 -> 3886.968196 | BW22: =BW$2*$F22*Main!$C$4*$E22+Main!$C$5*BW$2*$F22 -> 4392.225927 | BX22: =BX$2*$F22*Main!$C$4*$E22+Main!$C$5*BX$2*$F22 -> 3464.652879 | BY22: =BY$2*$F22*Main!$C$4*$E22+Main!$C$5*BY$2*$F22 -> 3977.427193 | BZ22: =BZ$2*$F22*Main!$C$4*$E22+Main!$C$5*BZ$2*$F22 -> 4490.199164 | CA22: =CA$2*$F22*Main!$C$4*$E22+Main!$C$5*CA$2*$F22 -> 2887.742835 | CB22: =CB$2*$F22*Main!$C$4*$E22+Main!$C$5*CB$2*$F22 -> 3257.957387 | CC22: =CC$2*$F22*Main!$C$4*$E22+Main!$C$5*CC$2*$F22 -> 3628.169596 | CD22: =CD$2*$F22*Main!$C$4*$E22+Main!$C$5*CD$2*$F22 -> 2955.844155 | CE22: =CE$2*$F22*Main!$C$4*$E22+Main!$C$5*CE$2*$F22 -> 3332.094928 | CF22: =CF$2*$F22*Main!$C$4*$E22+Main!$C$5*CF$2*$F22 -> 3708.348043 | CG22: =CG$2*$F22*Main!$C$4*$E22+Main!$C$5*CG$2*$F22 -> 3065.671997 | CH22: =CH$2*$F22*Main!$C$4*$E22+Main!$C$5*CH$2*$F22 -> 3440.477543 | CI22: =CI$2*$F22*Main!$C$4*$E22+Main!$C$5*CI$2*$F22 -> 3815.28309 | CJ22: =CJ$2*$F22*Main!$C$4*$E22+Main!$C$5*CJ$2*$F22 -> 3012.261861 | CK22: =CK$2*$F22*Main!$C$4*$E22+Main!$C$5*CK$2*$F22 -> 3423.247258 | CL22: =CL$2*$F22*Main!$C$4*$E22+Main!$C$5*CL$2*$F22 -> 3834.230313 | CM22: =CM$2*$F22*Main!$C$4*$E22+Main!$C$5*CM$2*$F22 -> 3080.363181 | CN22: =CN$2*$F22*Main!$C$4*$E22+Main!$C$5*CN$2*$F22 -> 3497.384799 | CO22: =CO$2*$F22*Main!$C$4*$E22+Main!$C$5*CO$2*$F22 -> 3914.40876 | CP22: =CP$2*$F22*Main!$C$4*$E22+Main!$C$5*CP$2*$F22 -> 3190.191022 | CQ22: =CQ$2*$F22*Main!$C$4*$E22+Main!$C$5*CQ$2*$F22 -> 3605.767415 | CR22: =CR$2*$F22*Main!$C$4*$E22+Main!$C$5*CR$2*$F22 -> 4021.343807 | CS22: =CS$2*$F22*Main!$C$4*$E22+Main!$C$5*CS$2*$F22 -> 3501.945344 | CT22: =CT$2*$F22*Main!$C$4*$E22+Main!$C$5*CT$2*$F22 -> 3938.387339 | CU22: =CU$2*$F22*Main!$C$4*$E22+Main!$C$5*CU$2*$F22 -> 4374.826993 | CV22: =CV$2*$F22*Main!$C$4*$E22+Main!$C$5*CV$2*$F22 -> 3570.046663 | CW22: =CW$2*$F22*Main!$C$4*$E22+Main!$C$5*CW$2*$F22 -> 4012.52488 | CX22: =CX$2*$F22*Main!$C$4*$E22+Main!$C$5*CX$2*$F22 -> 4455.00544 | CY22: =CY$2*$F22*Main!$C$4*$E22+Main!$C$5*CY$2*$F22 -> 3679.874505 | CZ22: =CZ$2*$F22*Main!$C$4*$E22+Main!$C$5*CZ$2*$F22 -> 4120.907496 | DA22: =DA$2*$F22*Main!$C$4*$E22+Main!$C$5*DA$2*$F22 -> 4561.940486 | DB22: =DB$2*$F22*Main!$C$4*$E22+Main!$C$5*DB$2*$F22 -> 1067.433257 | DC22: =DC$2*$F22*Main!$C$4*$E22+Main!$C$5*DC$2*$F22 -> 1431.495407 | DD22: =DD$2*$F22*Main!$C$4*$E22+Main!$C$5*DD$2*$F22 -> 1795.557557 | DE22: =DE$2*$F22*Main!$C$4*$E22+Main!$C$5*DE$2*$F22 -> 2159.619707 | DF22: =DF$2*$F22*Main!$C$4*$E22+Main!$C$5*DF$2*$F22 -> 2523.681622 | DG22: =DG$2*$F22*Main!$C$4*$E22+Main!$C$5*DG$2*$F22 -> 1266.535104 | DH22: =DH$2*$F22*Main!$C$4*$E22+Main!$C$5*DH$2*$F22 -> 1604.396961 | DI22: =DI$2*$F22*Main!$C$4*$E22+Main!$C$5*DI$2*$F22 -> 1942.258349 | DJ22: =DJ$2*$F22*Main!$C$4*$E22+Main!$C$5*DJ$2*$F22 -> 2280.120441 | DK22: =DK$2*$F22*Main!$C$4*$E22+Main!$C$5*DK$2*$F22 -> 2617.982064 | DL22: =DL$2*$F22*Main!$C$4*$E22+Main!$C$5*DL$2*$F22 -> 1371.717842 | DM22: =DM$2*$F22*Main!$C$4*$E22+Main!$C$5*DM$2*$F22 -> 1710.508907 | DN22: =DN$2*$F22*Main!$C$4*$E22+Main!$C$5*DN$2*$F22 -> 2049.299738 | DO22: =DO$2*$F22*Main!$C$4*$E22+Main!$C$5*DO$2*$F22 -> 2388.090335 | DP22: =DP$2*$F22*Main!$C$4*$E22+Main!$C$5*DP$2*$F22 -> 2726.882337 | DQ22: =DQ$2*$F22*Main!$C$4*$E22+Main!$C$5*DQ$2*$F22 -> 1124.890027 | DR22: =DR$2*$F22*Main!$C$4*$E22+Main!$C$5*DR$2*$F22 -> 1502.364441 | DS22: =DS$2*$F22*Main!$C$4*$E22+Main!$C$5*DS$2*$F22 -> 1879.838854 | DT22: =DT$2*$F22*Main!$C$4*$E22+Main!$C$5*DT$2*$F22 -> 2257.313268 | DU22: =DU$2*$F22*Main!$C$4*$E22+Main!$C$5*DU$2*$F22 -> 2634.788384 | DV22: =DV$2*$F22*Main!$C$4*$E22+Main!$C$5*DV$2*$F22 -> 1323.991639 | DW22: =DW$2*$F22*Main!$C$4*$E22+Main!$C$5*DW$2*$F22 -> 1675.265526 | DX22: =DX$2*$F22*Main!$C$4*$E22+Main!$C$5*DX$2*$F22 -> 2026.539647 | DY22: =DY$2*$F22*Main!$C$4*$E22+Main!$C$5*DY$2*$F22 -> 2377.81447 | DZ22: =DZ$2*$F22*Main!$C$4*$E22+Main!$C$5*DZ$2*$F22 -> 2729.088825 | EA22: =EA$2*$F22*Main!$C$4*$E22+Main!$C$5*EA$2*$F22 -> 1429.174612 | EB22: =EB$2*$F22*Main!$C$4*$E22+Main!$C$5*EB$2*$F22 -> 1781.377707 | EC22: =EC$2*$F22*Main!$C$4*$E22+Main!$C$5*EC$2*$F22 -> 2133.581036 | ED22: =ED$2*$F22*Main!$C$4*$E22+Main!$C$5*ED$2*$F22 -> 2485.784833 | EE22: =EE$2*$F22*Main!$C$4*$E22+Main!$C$5*EE$2*$F22 -> 2837.986757 | EF22: =EF$2*$F22*Main!$C$4*$E22+Main!$C$5*EF$2*$F22 -> 1390.329174 | EG22: =EG$2*$F22*Main!$C$4*$E22+Main!$C$5*EG$2*$F22 -> 1812.652454 | EH22: =EH$2*$F22*Main!$C$4*$E22+Main!$C$5*EH$2*$F22 -> 2234.97597 | EI22: =EI$2*$F22*Main!$C$4*$E22+Main!$C$5*EI$2*$F22 -> 2657.298313 | EJ22: =EJ$2*$F22*Main!$C$4*$E22+Main!$C$5*EJ$2*$F22 -> 3079.623 | EK22: =EK$2*$F22*Main!$C$4*$E22+Main!$C$5*EK$2*$F22 -> 1589.430786 | EL22: =EL$2*$F22*Main!$C$4*$E22+Main!$C$5*EL$2*$F22 -> 1985.553774 | EM22: =EM$2*$F22*Main!$C$4*$E22+Main!$C$5*EM$2*$F22 -> 2381.676996 | EN22: =EN$2*$F22*Main!$C$4*$E22+Main!$C$5*EN$2*$F22 -> 2777.800219 | EO22: =EO$2*$F22*Main!$C$4*$E22+Main!$C$5*EO$2*$F22 -> 3173.923441 | EP22: =EP$2*$F22*Main!$C$4*$E22+Main!$C$5*EP$2*$F22 -> 1694.613759 | EQ22: =EQ$2*$F22*Main!$C$4*$E22+Main!$C$5*EQ$2*$F22 -> 2091.665955 | ER22: =ER$2*$F22*Main!$C$4*$E22+Main!$C$5*ER$2*$F22 -> 2488.717448 | ES22: =ES$2*$F22*Main!$C$4*$E22+Main!$C$5*ES$2*$F22 -> 2885.770581 | ET22: =ET$2*$F22*Main!$C$4*$E22+Main!$C$5*ET$2*$F22 -> 3282.823714 | EU22: =EU$2*$F22*Main!$C$4*$E22+Main!$C$5*EU$2*$F22 -> 3998.381805 | EV22: =EV$2*$F22*Main!$C$4*$E22+Main!$C$5*EV$2*$F22 -> 4084.598816 | EW22: =EW$2*$F22*Main!$C$4*$E22+Main!$C$5*EW$2*$F22 -> 4190.088636 | EX22: =EX$2*$F22*Main!$C$4*$E22+Main!$C$5*EX$2*$F22 -> 4245.21571 | EY22: =EY$2*$F22*Main!$C$4*$E22+Main!$C$5*EY$2*$F22 -> 4331.432721 | EZ22: =EZ$2*$F22*Main!$C$4*$E22+Main!$C$5*EZ$2*$F22 -> 4436.920199 | FA22: =FA$2*$F22*Main!$C$4*$E22+Main!$C$5*FA$2*$F22 -> 4811.266646 | FB22: =FB$2*$F22*Main!$C$4*$E22+Main!$C$5*FB$2*$F22 -> 4897.483657 | FC22: =FC$2*$F22*Main!$C$4*$E22+Main!$C$5*FC$2*$F22 -> 5002.973477 | FD22: =IF($D22<100,(FD$2*(1+Main!$C$3)*$E22*Main!$C$4)+(FD$2*(1+Main!$C$3)*Main!$C$5),(FD$2*$E22*Main!$C$4)+(FD$2*Main!$C$5)) -> 110.5039346 | FE22: =IF($D22<100,(FE$2*(1+Main!$C$3)*$E22*Main!$C$4)+(FE$2*(1+Main!$C$3)*Main!$C$5),(FE$2*$E22*Main!$C$4)+(FE$2*Main!$C$5)) -> 120.7991408 | FF22: =IF($D22<100,(FF$2*(1+Main!$C$3)*$E22*Main!$C$4)+(FF$2*(1+Main!$C$3)*Main!$C$5),(FF$2*$E22*Main!$C$4)+(FF$2*Main!$C$5)) -> 121.623682 | FG22: =IF($D22<100,(FG$2*(1+Main!$C$3)*$E22*Main!$C$4)+(FG$2*(1+Main!$C$3)*Main!$C$5),(FG$2*$E22*Main!$C$4)+(FG$2*Main!$C$5)) -> 131.2947028 | FH22: =IF($D22<100,(FH$2*(1+Main!$C$3)*$E22*Main!$C$4)+(FH$2*(1+Main!$C$3)*Main!$C$5),(FH$2*$E22*Main!$C$4)+(FH$2*Main!$C$5)) -> 177.1299471 | FI22: =IF($D22<100,(FI$2*(1+Main!$C$3)*$E22*Main!$C$4)+(FI$2*(1+Main!$C$3)*Main!$C$5),(FI$2*$E22*Main!$C$4)+(FI$2*Main!$C$5)) -> 50.04271627
A23: AR | B23: 22220 | C23: (Benton County, Fayetteville-Springdale-Rogers, Madison County, Washington County) | D23: 22220 | E23: 0.8445 | F23: =IF($D23<100,Main!$C$2*(1+Main!$C$3),Main!$C$2) -> 3039.64 | G23: =G$2*$F23*Main!$C$4*$E23+Main!$C$5*G$2*$F23 -> 1492.946544 | H23: =H$2*$F23*Main!$C$4*$E23+Main!$C$5*H$2*$F23 -> 1844.147858 | I23: =I$2*$F23*Main!$C$4*$E23+Main!$C$5*I$2*$F23 -> 2195.349438 | J23: =J$2*$F23*Main!$C$4*$E23+Main!$C$5*J$2*$F23 -> 2546.550486 | K23: =K$2*$F23*Main!$C$4*$E23+Main!$C$5*K$2*$F23 -> 2897.753134 | L23: =L$2*$F23*Main!$C$4*$E23+Main!$C$5*L$2*$F23 -> 1771.940586 | M23: =M$2*$F23*Main!$C$4*$E23+Main!$C$5*M$2*$F23 -> 2090.048524 | N23: =N$2*$F23*Main!$C$4*$E23+Main!$C$5*N$2*$F23 -> 2408.156461 | O23: =O$2*$F23*Main!$C$4*$E23+Main!$C$5*O$2*$F23 -> 2726.263599 | P23: =P$2*$F23*Main!$C$4*$E23+Main!$C$5*P$2*$F23 -> 3044.372871 | Q23: =Q$2*$F23*Main!$C$4*$E23+Main!$C$5*Q$2*$F23 -> 1905.080999 | R23: =R$2*$F23*Main!$C$4*$E23+Main!$C$5*R$2*$F23 -> 2215.458485 | S23: =S$2*$F23*Main!$C$4*$E23+Main!$C$5*S$2*$F23 -> 2525.835705 | T23: =T$2*$F23*Main!$C$4*$E23+Main!$C$5*T$2*$F23 -> 2836.213725 | U23: =U$2*$F23*Main!$C$4*$E23+Main!$C$5*U$2*$F23 -> 3146.589877 | V23: =V$2*$F23*Main!$C$4*$E23+Main!$C$5*V$2*$F23 -> 1587.194274 | W23: =W$2*$F23*Main!$C$4*$E23+Main!$C$5*W$2*$F23 -> 1954.723465 | X23: =X$2*$F23*Main!$C$4*$E23+Main!$C$5*X$2*$F23 -> 2322.252655 | Y23: =Y$2*$F23*Main!$C$4*$E23+Main!$C$5*Y$2*$F23 -> 2689.780778 | Z23: =Z$2*$F23*Main!$C$4*$E23+Main!$C$5*Z$2*$F23 -> 3057.312104 | AA23: =AA$2*$F23*Main!$C$4*$E23+Main!$C$5*AA$2*$F23 -> 1866.188049 | AB23: =AB$2*$F23*Main!$C$4*$E23+Main!$C$5*AB$2*$F23 -> 2200.624131 | AC23: =AC$2*$F23*Main!$C$4*$E23+Main!$C$5*AC$2*$F23 -> 2535.059678 | AD23: =AD$2*$F23*Main!$C$4*$E23+Main!$C$5*AD$2*$F23 -> 2869.494425 | AE23: =AE$2*$F23*Main!$C$4*$E23+Main!$C$5*AE$2*$F23 -> 3203.93184 | AF23: =AF$2*$F23*Main!$C$4*$E23+Main!$C$5*AF$2*$F23 -> 1999.328462 | AG23: =AG$2*$F23*Main!$C$4*$E23+Main!$C$5*AG$2*$F23 -> 2326.033825 | AH23: =AH$2*$F23*Main!$C$4*$E23+Main!$C$5*AH$2*$F23 -> 2652.739188 | AI23: =AI$2*$F23*Main!$C$4*$E23+Main!$C$5*AI$2*$F23 -> 2979.444551 | AJ23: =AJ$2*$F23*Main!$C$4*$E23+Main!$C$5*AJ$2*$F23 -> 3306.148847 | AK23: =AK$2*$F23*Main!$C$4*$E23+Main!$C$5*AK$2*$F23 -> 1700.918099 | AL23: =AL$2*$F23*Main!$C$4*$E23+Main!$C$5*AL$2*$F23 -> 2108.528492 | AM23: =AM$2*$F23*Main!$C$4*$E23+Main!$C$5*AM$2*$F23 -> 2516.138618 | AN23: =AN$2*$F23*Main!$C$4*$E23+Main!$C$5*AN$2*$F23 -> 2923.749011 | AO23: =AO$2*$F23*Main!$C$4*$E23+Main!$C$5*AO$2*$F23 -> 3331.360205 | AP23: =AP$2*$F23*Main!$C$4*$E23+Main!$C$5*AP$2*$F23 -> 1979.911874 | AQ23: =AQ$2*$F23*Main!$C$4*$E23+Main!$C$5*AQ$2*$F23 -> 2354.428624 | AR23: =AR$2*$F23*Main!$C$4*$E23+Main!$C$5*AR$2*$F23 -> 2728.945374 | AS23: =AS$2*$F23*Main!$C$4*$E23+Main!$C$5*AS$2*$F23 -> 3103.462658 | AT23: =AT$2*$F23*Main!$C$4*$E23+Main!$C$5*AT$2*$F23 -> 3477.979942 | AU23: =AU$2*$F23*Main!$C$4*$E23+Main!$C$5*AU$2*$F23 -> 2113.05202 | AV23: =AV$2*$F23*Main!$C$4*$E23+Main!$C$5*AV$2*$F23 -> 2479.838852 | AW23: =AW$2*$F23*Main!$C$4*$E23+Main!$C$5*AW$2*$F23 -> 2846.625952 | AX23: =AX$2*$F23*Main!$C$4*$E23+Main!$C$5*AX$2*$F23 -> 3213.412784 | AY23: =AY$2*$F23*Main!$C$4*$E23+Main!$C$5*AY$2*$F23 -> 3580.196948 | AZ23: =AZ$2*$F23*Main!$C$4*$E23+Main!$C$5*AZ$2*$F23 -> 3248.953647 | BA23: =BA$2*$F23*Main!$C$4*$E23+Main!$C$5*BA$2*$F23 -> 3684.308542 | BB23: =BB$2*$F23*Main!$C$4*$E23+Main!$C$5*BB$2*$F23 -> 4119.663437 | BC23: =BC$2*$F23*Main!$C$4*$E23+Main!$C$5*BC$2*$F23 -> 3362.479474 | BD23: =BD$2*$F23*Main!$C$4*$E23+Main!$C$5*BD$2*$F23 -> 3792.732324 | BE23: =BE$2*$F23*Main!$C$4*$E23+Main!$C$5*BE$2*$F23 -> 4222.985175 | BF23: =BF$2*$F23*Main!$C$4*$E23+Main!$C$5*BF$2*$F23 -> 3456.968698 | BG23: =BG$2*$F23*Main!$C$4*$E23+Main!$C$5*BG$2*$F23 -> 3895.781882 | BH23: =BH$2*$F23*Main!$C$4*$E23+Main!$C$5*BH$2*$F23 -> 4334.597735 | BI23: =BI$2*$F23*Main!$C$4*$E23+Main!$C$5*BI$2*$F23 -> 3424.840761 | BJ23: =BJ$2*$F23*Main!$C$4*$E23+Main!$C$5*BJ$2*$F23 -> 3895.298896 | BK23: =BK$2*$F23*Main!$C$4*$E23+Main!$C$5*BK$2*$F23 -> 4365.754362 | BL23: =BL$2*$F23*Main!$C$4*$E23+Main!$C$5*BL$2*$F23 -> 3538.366587 | BM23: =BM$2*$F23*Main!$C$4*$E23+Main!$C$5*BM$2*$F23 -> 4003.722678 | BN23: =BN$2*$F23*Main!$C$4*$E23+Main!$C$5*BN$2*$F23 -> 4469.0761 | BO23: =BO$2*$F23*Main!$C$4*$E23+Main!$C$5*BO$2*$F23 -> 3632.855811 | BP23: =BP$2*$F23*Main!$C$4*$E23+Main!$C$5*BP$2*$F23 -> 4106.772236 | BQ23: =BQ$2*$F23*Main!$C$4*$E23+Main!$C$5*BQ$2*$F23 -> 4580.68866 | BR23: =BR$2*$F23*Main!$C$4*$E23+Main!$C$5*BR$2*$F23 -> 3738.96873 | BS23: =BS$2*$F23*Main!$C$4*$E23+Main!$C$5*BS$2*$F23 -> 4319.667851 | BT23: =BT$2*$F23*Main!$C$4*$E23+Main!$C$5*BT$2*$F23 -> 4900.366971 | BU23: =BU$2*$F23*Main!$C$4*$E23+Main!$C$5*BU$2*$F23 -> 3852.497225 | BV23: =BV$2*$F23*Main!$C$4*$E23+Main!$C$5*BV$2*$F23 -> 4428.091633 | BW23: =BW$2*$F23*Main!$C$4*$E23+Main!$C$5*BW$2*$F23 -> 5003.688709 | BX23: =BX$2*$F23*Main!$C$4*$E23+Main!$C$5*BX$2*$F23 -> 3946.983781 | BY23: =BY$2*$F23*Main!$C$4*$E23+Main!$C$5*BY$2*$F23 -> 4531.143859 | BZ23: =BZ$2*$F23*Main!$C$4*$E23+Main!$C$5*BZ$2*$F23 -> 5115.301269 | CA23: =CA$2*$F23*Main!$C$4*$E23+Main!$C$5*CA$2*$F23 -> 3289.75933 | CB23: =CB$2*$F23*Main!$C$4*$E23+Main!$C$5*CB$2*$F23 -> 3711.51322 | CC23: =CC$2*$F23*Main!$C$4*$E23+Main!$C$5*CC$2*$F23 -> 4133.264442 | CD23: =CD$2*$F23*Main!$C$4*$E23+Main!$C$5*CD$2*$F23 -> 3367.34136 | CE23: =CE$2*$F23*Main!$C$4*$E23+Main!$C$5*CE$2*$F23 -> 3795.971803 | CF23: =CF$2*$F23*Main!$C$4*$E23+Main!$C$5*CF$2*$F23 -> 4224.604914 | CG23: =CG$2*$F23*Main!$C$4*$E23+Main!$C$5*CG$2*$F23 -> 3492.458861 | CH23: =CH$2*$F23*Main!$C$4*$E23+Main!$C$5*CH$2*$F23 -> 3919.44288 | CI23: =CI$2*$F23*Main!$C$4*$E23+Main!$C$5*CI$2*$F23 -> 4346.4269 | CJ23: =CJ$2*$F23*Main!$C$4*$E23+Main!$C$5*CJ$2*$F23 -> 3431.613244 | CK23: =CK$2*$F23*Main!$C$4*$E23+Main!$C$5*CK$2*$F23 -> 3899.813885 | CL23: =CL$2*$F23*Main!$C$4*$E23+Main!$C$5*CL$2*$F23 -> 4368.011857 | CM23: =CM$2*$F23*Main!$C$4*$E23+Main!$C$5*CM$2*$F23 -> 3509.195275 | CN23: =CN$2*$F23*Main!$C$4*$E23+Main!$C$5*CN$2*$F23 -> 3984.272468 | CO23: =CO$2*$F23*Main!$C$4*$E23+Main!$C$5*CO$2*$F23 -> 4459.352329 | CP23: =CP$2*$F23*Main!$C$4*$E23+Main!$C$5*CP$2*$F23 -> 3634.312776 | CQ23: =CQ$2*$F23*Main!$C$4*$E23+Main!$C$5*CQ$2*$F23 -> 4107.743545 | CR23: =CR$2*$F23*Main!$C$4*$E23+Main!$C$5*CR$2*$F23 -> 4581.174315 | CS23: =CS$2*$F23*Main!$C$4*$E23+Main!$C$5*CS$2*$F23 -> 3989.467907 | CT23: =CT$2*$F23*Main!$C$4*$E23+Main!$C$5*CT$2*$F23 -> 4486.669081 | CU23: =CU$2*$F23*Main!$C$4*$E23+Main!$C$5*CU$2*$F23 -> 4983.867586 | CV23: =CV$2*$F23*Main!$C$4*$E23+Main!$C$5*CV$2*$F23 -> 4067.049937 | CW23: =CW$2*$F23*Main!$C$4*$E23+Main!$C$5*CW$2*$F23 -> 4571.127664 | CX23: =CX$2*$F23*Main!$C$4*$E23+Main!$C$5*CX$2*$F23 -> 5075.208059 | CY23: =CY$2*$F23*Main!$C$4*$E23+Main!$C$5*CY$2*$F23 -> 4192.167439 | CZ23: =CZ$2*$F23*Main!$C$4*$E23+Main!$C$5*CZ$2*$F23 -> 4694.598742 | DA23: =DA$2*$F23*Main!$C$4*$E23+Main!$C$5*DA$2*$F23 -> 5197.030045 | DB23: =DB$2*$F23*Main!$C$4*$E23+Main!$C$5*DB$2*$F23 -> 1216.035747 | DC23: =DC$2*$F23*Main!$C$4*$E23+Main!$C$5*DC$2*$F23 -> 1630.780731 | DD23: =DD$2*$F23*Main!$C$4*$E23+Main!$C$5*DD$2*$F23 -> 2045.525714 | DE23: =DE$2*$F23*Main!$C$4*$E23+Main!$C$5*DE$2*$F23 -> 2460.270697 | DF23: =DF$2*$F23*Main!$C$4*$E23+Main!$C$5*DF$2*$F23 -> 2875.015414 | DG23: =DG$2*$F23*Main!$C$4*$E23+Main!$C$5*DG$2*$F23 -> 1442.855514 | DH23: =DH$2*$F23*Main!$C$4*$E23+Main!$C$5*DH$2*$F23 -> 1827.752736 | DI23: =DI$2*$F23*Main!$C$4*$E23+Main!$C$5*DI$2*$F23 -> 2212.649425 | DJ23: =DJ$2*$F23*Main!$C$4*$E23+Main!$C$5*DJ$2*$F23 -> 2597.546915 | DK23: =DK$2*$F23*Main!$C$4*$E23+Main!$C$5*DK$2*$F23 -> 2982.44387 | DL23: =DL$2*$F23*Main!$C$4*$E23+Main!$C$5*DL$2*$F23 -> 1562.681245 | DM23: =DM$2*$F23*Main!$C$4*$E23+Main!$C$5*DM$2*$F23 -> 1948.637035 | DN23: =DN$2*$F23*Main!$C$4*$E23+Main!$C$5*DN$2*$F23 -> 2334.592558 | DO23: =DO$2*$F23*Main!$C$4*$E23+Main!$C$5*DO$2*$F23 -> 2720.547814 | DP23: =DP$2*$F23*Main!$C$4*$E23+Main!$C$5*DP$2*$F23 -> 3106.504672 | DQ23: =DQ$2*$F23*Main!$C$4*$E23+Main!$C$5*DQ$2*$F23 -> 1281.491349 | DR23: =DR$2*$F23*Main!$C$4*$E23+Main!$C$5*DR$2*$F23 -> 1711.515781 | DS23: =DS$2*$F23*Main!$C$4*$E23+Main!$C$5*DS$2*$F23 -> 2141.540214 | DT23: =DT$2*$F23*Main!$C$4*$E23+Main!$C$5*DT$2*$F23 -> 2571.564646 | DU23: =DU$2*$F23*Main!$C$4*$E23+Main!$C$5*DU$2*$F23 -> 3001.589879 | DV23: =DV$2*$F23*Main!$C$4*$E23+Main!$C$5*DV$2*$F23 -> 1508.310849 | DW23: =DW$2*$F23*Main!$C$4*$E23+Main!$C$5*DW$2*$F23 -> 1908.487254 | DX23: =DX$2*$F23*Main!$C$4*$E23+Main!$C$5*DX$2*$F23 -> 2308.663925 | DY23: =DY$2*$F23*Main!$C$4*$E23+Main!$C$5*DY$2*$F23 -> 2708.841398 | DZ23: =DZ$2*$F23*Main!$C$4*$E23+Main!$C$5*DZ$2*$F23 -> 3109.018336 | EA23: =EA$2*$F23*Main!$C$4*$E23+Main!$C$5*EA$2*$F23 -> 1628.136847 | EB23: =EB$2*$F23*Main!$C$4*$E23+Main!$C$5*EB$2*$F23 -> 2029.371819 | EC23: =EC$2*$F23*Main!$C$4*$E23+Main!$C$5*EC$2*$F23 -> 2430.607058 | ED23: =ED$2*$F23*Main!$C$4*$E23+Main!$C$5*ED$2*$F23 -> 2831.842831 | EE23: =EE$2*$F23*Main!$C$4*$E23+Main!$C$5*EE$2*$F23 -> 3233.076469 | EF23: =EF$2*$F23*Main!$C$4*$E23+Main!$C$5*EF$2*$F23 -> 1583.883549 | EG23: =EG$2*$F23*Main!$C$4*$E23+Main!$C$5*EG$2*$F23 -> 2065.000474 | EH23: =EH$2*$F23*Main!$C$4*$E23+Main!$C$5*EH$2*$F23 -> 2546.117666 | EI23: =EI$2*$F23*Main!$C$4*$E23+Main!$C$5*EI$2*$F23 -> 3027.233523 | EJ23: =EJ$2*$F23*Main!$C$4*$E23+Main!$C$5*EJ$2*$F23 -> 3508.35205 | EK23: =EK$2*$F23*Main!$C$4*$E23+Main!$C$5*EK$2*$F23 -> 1810.703049 | EL23: =EL$2*$F23*Main!$C$4*$E23+Main!$C$5*EL$2*$F23 -> 2261.972213 | EM23: =EM$2*$F23*Main!$C$4*$E23+Main!$C$5*EM$2*$F23 -> 2713.241644 | EN23: =EN$2*$F23*Main!$C$4*$E23+Main!$C$5*EN$2*$F23 -> 3164.511075 | EO23: =EO$2*$F23*Main!$C$4*$E23+Main!$C$5*EO$2*$F23 -> 3615.780506 | EP23: =EP$2*$F23*Main!$C$4*$E23+Main!$C$5*EP$2*$F23 -> 1930.529047 | EQ23: =EQ$2*$F23*Main!$C$4*$E23+Main!$C$5*EQ$2*$F23 -> 2382.856778 | ER23: =ER$2*$F23*Main!$C$4*$E23+Main!$C$5*ER$2*$F23 -> 2835.18371 | ES23: =ES$2*$F23*Main!$C$4*$E23+Main!$C$5*ES$2*$F23 -> 3287.512509 | ET23: =ET$2*$F23*Main!$C$4*$E23+Main!$C$5*ET$2*$F23 -> 3739.841308 | EU23: =EU$2*$F23*Main!$C$4*$E23+Main!$C$5*EU$2*$F23 -> 4555.015663 | EV23: =EV$2*$F23*Main!$C$4*$E23+Main!$C$5*EV$2*$F23 -> 4653.235357 | EW23: =EW$2*$F23*Main!$C$4*$E23+Main!$C$5*EW$2*$F23 -> 4773.410919 | EX23: =EX$2*$F23*Main!$C$4*$E23+Main!$C$5*EX$2*$F23 -> 4836.212497 | EY23: =EY$2*$F23*Main!$C$4*$E23+Main!$C$5*EY$2*$F23 -> 4934.432191 | EZ23: =EZ$2*$F23*Main!$C$4*$E23+Main!$C$5*EZ$2*$F23 -> 5054.605085 | FA23: =FA$2*$F23*Main!$C$4*$E23+Main!$C$5*FA$2*$F23 -> 5481.066092 | FB23: =FB$2*$F23*Main!$C$4*$E23+Main!$C$5*FB$2*$F23 -> 5579.285785 | FC23: =FC$2*$F23*Main!$C$4*$E23+Main!$C$5*FC$2*$F23 -> 5699.461348 | FD23: =IF($D23<100,(FD$2*(1+Main!$C$3)*$E23*Main!$C$4)+(FD$2*(1+Main!$C$3)*Main!$C$5),(FD$2*$E23*Main!$C$4)+(FD$2*Main!$C$5)) -> 125.887716 | FE23: =IF($D23<100,(FE$2*(1+Main!$C$3)*$E23*Main!$C$4)+(FE$2*(1+Main!$C$3)*Main!$C$5),(FE$2*$E23*Main!$C$4)+(FE$2*Main!$C$5)) -> 137.616167 | FF23: =IF($D23<100,(FF$2*(1+Main!$C$3)*$E23*Main!$C$4)+(FF$2*(1+Main!$C$3)*Main!$C$5),(FF$2*$E23*Main!$C$4)+(FF$2*Main!$C$5)) -> 138.5554966 | FG23: =IF($D23<100,(FG$2*(1+Main!$C$3)*$E23*Main!$C$4)+(FG$2*(1+Main!$C$3)*Main!$C$5),(FG$2*$E23*Main!$C$4)+(FG$2*Main!$C$5)) -> 149.5728664 | FH23: =IF($D23<100,(FH$2*(1+Main!$C$3)*$E23*Main!$C$4)+(FH$2*(1+Main!$C$3)*Main!$C$5),(FH$2*$E23*Main!$C$4)+(FH$2*Main!$C$5)) -> 201.7890543 | FI23: =IF($D23<100,(FI$2*(1+Main!$C$3)*$E23*Main!$C$4)+(FI$2*(1+Main!$C$3)*Main!$C$5),(FI$2*$E23*Main!$C$4)+(FI$2*Main!$C$5)) -> 57.00940219
A24: AR | B24: 22900 | C24: (Crawford County, Fort Smith, Sebastian County) | D24: 22900 | E24: 0.7017 | F24: =IF($D24<100,Main!$C$2*(1+Main!$C$3),Main!$C$2) -> 3039.64 | G24: =G$2*$F24*Main!$C$4*$E24+Main!$C$5*G$2*$F24 -> 1302.224228 | H24: =H$2*$F24*Main!$C$4*$E24+Main!$C$5*H$2*$F24 -> 1608.559952 | I24: =I$2*$F24*Main!$C$4*$E24+Main!$C$5*I$2*$F24 -> 1914.895909 | J24: =J$2*$F24*Main!$C$4*$E24+Main!$C$5*J$2*$F24 -> 2221.2314 | K24: =K$2*$F24*Main!$C$4*$E24+Main!$C$5*K$2*$F24 -> 2527.568287 | L24: =L$2*$F24*Main!$C$4*$E24+Main!$C$5*L$2*$F24 -> 1545.577082 | M24: =M$2*$F24*Main!$C$4*$E24+Main!$C$5*M$2*$F24 -> 1823.047072 | N24: =N$2*$F24*Main!$C$4*$E24+Main!$C$5*N$2*$F24 -> 2100.517063 | O24: =O$2*$F24*Main!$C$4*$E24+Main!$C$5*O$2*$F24 -> 2377.986356 | P24: =P$2*$F24*Main!$C$4*$E24+Main!$C$5*P$2*$F24 -> 2655.45751 | Q24: =Q$2*$F24*Main!$C$4*$E24+Main!$C$5*Q$2*$F24 -> 1661.70895 | R24: =R$2*$F24*Main!$C$4*$E24+Main!$C$5*R$2*$F24 -> 1932.436046 | S24: =S$2*$F24*Main!$C$4*$E24+Main!$C$5*S$2*$F24 -> 2203.16291 | T24: =T$2*$F24*Main!$C$4*$E24+Main!$C$5*T$2*$F24 -> 2473.890472 | U24: =U$2*$F24*Main!$C$4*$E24+Main!$C$5*U$2*$F24 -> 2744.616404 | V24: =V$2*$F24*Main!$C$4*$E24+Main!$C$5*V$2*$F24 -> 1384.431912 | W24: =W$2*$F24*Main!$C$4*$E24+Main!$C$5*W$2*$F24 -> 1705.009644 | X24: =X$2*$F24*Main!$C$4*$E24+Main!$C$5*X$2*$F24 -> 2025.587376 | Y24: =Y$2*$F24*Main!$C$4*$E24+Main!$C$5*Y$2*$F24 -> 2346.164177 | Z24: =Z$2*$F24*Main!$C$4*$E24+Main!$C$5*Z$2*$F24 -> 2666.74377 | AA24: =AA$2*$F24*Main!$C$4*$E24+Main!$C$5*AA$2*$F24 -> 1627.784533 | AB24: =AB$2*$F24*Main!$C$4*$E24+Main!$C$5*AB$2*$F24 -> 1919.496764 | AC24: =AC$2*$F24*Main!$C$4*$E24+Main!$C$5*AC$2*$F24 -> 2211.20853 | AD24: =AD$2*$F24*Main!$C$4*$E24+Main!$C$5*AD$2*$F24 -> 2502.919598 | AE24: =AE$2*$F24*Main!$C$4*$E24+Main!$C$5*AE$2*$F24 -> 2794.632993 | AF24: =AF$2*$F24*Main!$C$4*$E24+Main!$C$5*AF$2*$F24 -> 1743.916401 | AG24: =AG$2*$F24*Main!$C$4*$E24+Main!$C$5*AG$2*$F24 -> 2028.885505 | AH24: =AH$2*$F24*Main!$C$4*$E24+Main!$C$5*AH$2*$F24 -> 2313.85461 | AI24: =AI$2*$F24*Main!$C$4*$E24+Main!$C$5*AI$2*$F24 -> 2598.823714 | AJ24: =AJ$2*$F24*Main!$C$4*$E24+Main!$C$5*AJ$2*$F24 -> 2883.791887 | AK24: =AK$2*$F24*Main!$C$4*$E24+Main!$C$5*AK$2*$F24 -> 1483.627641 | AL24: =AL$2*$F24*Main!$C$4*$E24+Main!$C$5*AL$2*$F24 -> 1839.166244 | AM24: =AM$2*$F24*Main!$C$4*$E24+Main!$C$5*AM$2*$F24 -> 2194.704615 | AN24: =AN$2*$F24*Main!$C$4*$E24+Main!$C$5*AN$2*$F24 -> 2550.243219 | AO24: =AO$2*$F24*Main!$C$4*$E24+Main!$C$5*AO$2*$F24 -> 2905.782521 | AP24: =AP$2*$F24*Main!$C$4*$E24+Main!$C$5*AP$2*$F24 -> 1726.980261 | AQ24: =AQ$2*$F24*Main!$C$4*$E24+Main!$C$5*AQ$2*$F24 -> 2053.652899 | AR24: =AR$2*$F24*Main!$C$4*$E24+Main!$C$5*AR$2*$F24 -> 2380.325537 | AS24: =AS$2*$F24*Main!$C$4*$E24+Main!$C$5*AS$2*$F24 -> 2706.998641 | AT24: =AT$2*$F24*Main!$C$4*$E24+Main!$C$5*AT$2*$F24 -> 3033.671744 | AU24: =AU$2*$F24*Main!$C$4*$E24+Main!$C$5*AU$2*$F24 -> 1843.111897 | AV24: =AV$2*$F24*Main!$C$4*$E24+Main!$C$5*AV$2*$F24 -> 2163.042106 | AW24: =AW$2*$F24*Main!$C$4*$E24+Main!$C$5*AW$2*$F24 -> 2482.972548 | AX24: =AX$2*$F24*Main!$C$4*$E24+Main!$C$5*AX$2*$F24 -> 2802.902757 | AY24: =AY$2*$F24*Main!$C$4*$E24+Main!$C$5*AY$2*$F24 -> 3122.830638 | AZ24: =AZ$2*$F24*Main!$C$4*$E24+Main!$C$5*AZ$2*$F24 -> 2833.903313 | BA24: =BA$2*$F24*Main!$C$4*$E24+Main!$C$5*BA$2*$F24 -> 3213.642088 | BB24: =BB$2*$F24*Main!$C$4*$E24+Main!$C$5*BB$2*$F24 -> 3593.380863 | BC24: =BC$2*$F24*Main!$C$4*$E24+Main!$C$5*BC$2*$F24 -> 2932.926337 | BD24: =BD$2*$F24*Main!$C$4*$E24+Main!$C$5*BD$2*$F24 -> 3308.214849 | BE24: =BE$2*$F24*Main!$C$4*$E24+Main!$C$5*BE$2*$F24 -> 3683.50336 | BF24: =BF$2*$F24*Main!$C$4*$E24+Main!$C$5*BF$2*$F24 -> 3015.344664 | BG24: =BG$2*$F24*Main!$C$4*$E24+Main!$C$5*BG$2*$F24 -> 3398.099936 | BH24: =BH$2*$F24*Main!$C$4*$E24+Main!$C$5*BH$2*$F24 -> 3780.857536 | BI24: =BI$2*$F24*Main!$C$4*$E24+Main!$C$5*BI$2*$F24 -> 2987.321037 | BJ24: =BJ$2*$F24*Main!$C$4*$E24+Main!$C$5*BJ$2*$F24 -> 3397.678651 | BK24: =BK$2*$F24*Main!$C$4*$E24+Main!$C$5*BK$2*$F24 -> 3808.033938 | BL24: =BL$2*$F24*Main!$C$4*$E24+Main!$C$5*BL$2*$F24 -> 3086.344061 | BM24: =BM$2*$F24*Main!$C$4*$E24+Main!$C$5*BM$2*$F24 -> 3492.251412 | BN24: =BN$2*$F24*Main!$C$4*$E24+Main!$C$5*BN$2*$F24 -> 3898.156434 | BO24: =BO$2*$F24*Main!$C$4*$E24+Main!$C$5*BO$2*$F24 -> 3168.762388 | BP24: =BP$2*$F24*Main!$C$4*$E24+Main!$C$5*BP$2*$F24 -> 3582.136499 | BQ24: =BQ$2*$F24*Main!$C$4*$E24+Main!$C$5*BQ$2*$F24 -> 3995.51061 | BR24: =BR$2*$F24*Main!$C$4*$E24+Main!$C$5*BR$2*$F24 -> 3261.319496 | BS24: =BS$2*$F24*Main!$C$4*$E24+Main!$C$5*BS$2*$F24 -> 3767.834928 | BT24: =BT$2*$F24*Main!$C$4*$E24+Main!$C$5*BT$2*$F24 -> 4274.35036 | BU24: =BU$2*$F24*Main!$C$4*$E24+Main!$C$5*BU$2*$F24 -> 3360.344848 | BV24: =BV$2*$F24*Main!$C$4*$E24+Main!$C$5*BV$2*$F24 -> 3862.407689 | BW24: =BW$2*$F24*Main!$C$4*$E24+Main!$C$5*BW$2*$F24 -> 4364.472857 | BX24: =BX$2*$F24*Main!$C$4*$E24+Main!$C$5*BX$2*$F24 -> 3442.760847 | BY24: =BY$2*$F24*Main!$C$4*$E24+Main!$C$5*BY$2*$F24 -> 3952.295104 | BZ24: =BZ$2*$F24*Main!$C$4*$E24+Main!$C$5*BZ$2*$F24 -> 4461.827033 | CA24: =CA$2*$F24*Main!$C$4*$E24+Main!$C$5*CA$2*$F24 -> 2869.496113 | CB24: =CB$2*$F24*Main!$C$4*$E24+Main!$C$5*CB$2*$F24 -> 3237.371397 | CC24: =CC$2*$F24*Main!$C$4*$E24+Main!$C$5*CC$2*$F24 -> 3605.244354 | CD24: =CD$2*$F24*Main!$C$4*$E24+Main!$C$5*CD$2*$F24 -> 2937.167122 | CE24: =CE$2*$F24*Main!$C$4*$E24+Main!$C$5*CE$2*$F24 -> 3311.040487 | CF24: =CF$2*$F24*Main!$C$4*$E24+Main!$C$5*CF$2*$F24 -> 3684.916179 | CG24: =CG$2*$F24*Main!$C$4*$E24+Main!$C$5*CG$2*$F24 -> 3046.300997 | CH24: =CH$2*$F24*Main!$C$4*$E24+Main!$C$5*CH$2*$F24 -> 3418.738267 | CI24: =CI$2*$F24*Main!$C$4*$E24+Main!$C$5*CI$2*$F24 -> 3791.175538 | CJ24: =CJ$2*$F24*Main!$C$4*$E24+Main!$C$5*CJ$2*$F24 -> 2993.228343 | CK24: =CK$2*$F24*Main!$C$4*$E24+Main!$C$5*CK$2*$F24 -> 3401.616855 | CL24: =CL$2*$F24*Main!$C$4*$E24+Main!$C$5*CL$2*$F24 -> 3810.00304 | CM24: =CM$2*$F24*Main!$C$4*$E24+Main!$C$5*CM$2*$F24 -> 3060.899352 | CN24: =CN$2*$F24*Main!$C$4*$E24+Main!$C$5*CN$2*$F24 -> 3475.285945 | CO24: =CO$2*$F24*Main!$C$4*$E24+Main!$C$5*CO$2*$F24 -> 3889.674865 | CP24: =CP$2*$F24*Main!$C$4*$E24+Main!$C$5*CP$2*$F24 -> 3170.033227 | CQ24: =CQ$2*$F24*Main!$C$4*$E24+Main!$C$5*CQ$2*$F24 -> 3582.983725 | CR24: =CR$2*$F24*Main!$C$4*$E24+Main!$C$5*CR$2*$F24 -> 3995.934223 | CS24: =CS$2*$F24*Main!$C$4*$E24+Main!$C$5*CS$2*$F24 -> 3479.817672 | CT24: =CT$2*$F24*Main!$C$4*$E24+Main!$C$5*CT$2*$F24 -> 3913.501931 | CU24: =CU$2*$F24*Main!$C$4*$E24+Main!$C$5*CU$2*$F24 -> 4347.183862 | CV24: =CV$2*$F24*Main!$C$4*$E24+Main!$C$5*CV$2*$F24 -> 3547.488682 | CW24: =CW$2*$F24*Main!$C$4*$E24+Main!$C$5*CW$2*$F24 -> 3987.171021 | CX24: =CX$2*$F24*Main!$C$4*$E24+Main!$C$5*CX$2*$F24 -> 4426.855687 | CY24: =CY$2*$F24*Main!$C$4*$E24+Main!$C$5*CY$2*$F24 -> 3656.622557 | CZ24: =CZ$2*$F24*Main!$C$4*$E24+Main!$C$5*CZ$2*$F24 -> 4094.868801 | DA24: =DA$2*$F24*Main!$C$4*$E24+Main!$C$5*DA$2*$F24 -> 4533.115045 | DB24: =DB$2*$F24*Main!$C$4*$E24+Main!$C$5*DB$2*$F24 -> 1060.688488 | DC24: =DC$2*$F24*Main!$C$4*$E24+Main!$C$5*DC$2*$F24 -> 1422.450246 | DD24: =DD$2*$F24*Main!$C$4*$E24+Main!$C$5*DD$2*$F24 -> 1784.212004 | DE24: =DE$2*$F24*Main!$C$4*$E24+Main!$C$5*DE$2*$F24 -> 2145.973761 | DF24: =DF$2*$F24*Main!$C$4*$E24+Main!$C$5*DF$2*$F24 -> 2507.735286 | DG24: =DG$2*$F24*Main!$C$4*$E24+Main!$C$5*DG$2*$F24 -> 1258.532274 | DH24: =DH$2*$F24*Main!$C$4*$E24+Main!$C$5*DH$2*$F24 -> 1594.25929 | DI24: =DI$2*$F24*Main!$C$4*$E24+Main!$C$5*DI$2*$F24 -> 1929.985841 | DJ24: =DJ$2*$F24*Main!$C$4*$E24+Main!$C$5*DJ$2*$F24 -> 2265.71309 | DK24: =DK$2*$F24*Main!$C$4*$E24+Main!$C$5*DK$2*$F24 -> 2601.439873 | DL24: =DL$2*$F24*Main!$C$4*$E24+Main!$C$5*DL$2*$F24 -> 1363.050397 | DM24: =DM$2*$F24*Main!$C$4*$E24+Main!$C$5*DM$2*$F24 -> 1699.700749 | DN24: =DN$2*$F24*Main!$C$4*$E24+Main!$C$5*DN$2*$F24 -> 2036.35087 | DO24: =DO$2*$F24*Main!$C$4*$E24+Main!$C$5*DO$2*$F24 -> 2373.000757 | DP24: =DP$2*$F24*Main!$C$4*$E24+Main!$C$5*DP$2*$F24 -> 2709.652041 | DQ24: =DQ$2*$F24*Main!$C$4*$E24+Main!$C$5*DQ$2*$F24 -> 1117.782207 | DR24: =DR$2*$F24*Main!$C$4*$E24+Main!$C$5*DR$2*$F24 -> 1492.871481 | DS24: =DS$2*$F24*Main!$C$4*$E24+Main!$C$5*DS$2*$F24 -> 1867.960755 | DT24: =DT$2*$F24*Main!$C$4*$E24+Main!$C$5*DT$2*$F24 -> 2243.050028 | DU24: =DU$2*$F24*Main!$C$4*$E24+Main!$C$5*DU$2*$F24 -> 2618.14 | DV24: =DV$2*$F24*Main!$C$4*$E24+Main!$C$5*DV$2*$F24 -> 1315.62576 | DW24: =DW$2*$F24*Main!$C$4*$E24+Main!$C$5*DW$2*$F24 -> 1664.680059 | DX24: =DX$2*$F24*Main!$C$4*$E24+Main!$C$5*DX$2*$F24 -> 2013.734592 | DY24: =DY$2*$F24*Main!$C$4*$E24+Main!$C$5*DY$2*$F24 -> 2362.789822 | DZ24: =DZ$2*$F24*Main!$C$4*$E24+Main!$C$5*DZ$2*$F24 -> 2711.844587 | EA24: =EA$2*$F24*Main!$C$4*$E24+Main!$C$5*EA$2*$F24 -> 1420.144116 | EB24: =EB$2*$F24*Main!$C$4*$E24+Main!$C$5*EB$2*$F24 -> 1770.121752 | EC24: =EC$2*$F24*Main!$C$4*$E24+Main!$C$5*EC$2*$F24 -> 2120.09962 | ED24: =ED$2*$F24*Main!$C$4*$E24+Main!$C$5*ED$2*$F24 -> 2470.077955 | EE24: =EE$2*$F24*Main!$C$4*$E24+Main!$C$5*EE$2*$F24 -> 2820.054427 | EF24: =EF$2*$F24*Main!$C$4*$E24+Main!$C$5*EF$2*$F24 -> 1381.544129 | EG24: =EG$2*$F24*Main!$C$4*$E24+Main!$C$5*EG$2*$F24 -> 1801.198884 | EH24: =EH$2*$F24*Main!$C$4*$E24+Main!$C$5*EH$2*$F24 -> 2220.853872 | EI24: =EI$2*$F24*Main!$C$4*$E24+Main!$C$5*EI$2*$F24 -> 2640.507696 | EJ24: =EJ$2*$F24*Main!$C$4*$E24+Main!$C$5*EJ$2*$F24 -> 3060.163848 | EK24: =EK$2*$F24*Main!$C$4*$E24+Main!$C$5*EK$2*$F24 -> 1579.387681 | EL24: =EL$2*$F24*Main!$C$4*$E24+Main!$C$5*EL$2*$F24 -> 1973.007695 | EM24: =EM$2*$F24*Main!$C$4*$E24+Main!$C$5*EM$2*$F24 -> 2366.627942 | EN24: =EN$2*$F24*Main!$C$4*$E24+Main!$C$5*EN$2*$F24 -> 2760.248188 | EO24: =EO$2*$F24*Main!$C$4*$E24+Main!$C$5*EO$2*$F24 -> 3153.868435 | EP24: =EP$2*$F24*Main!$C$4*$E24+Main!$C$5*EP$2*$F24 -> 1683.906037 | EQ24: =EQ$2*$F24*Main!$C$4*$E24+Main!$C$5*EQ$2*$F24 -> 2078.449387 | ER24: =ER$2*$F24*Main!$C$4*$E24+Main!$C$5*ER$2*$F24 -> 2472.99204 | ES24: =ES$2*$F24*Main!$C$4*$E24+Main!$C$5*ES$2*$F24 -> 2867.536321 | ET24: =ET$2*$F24*Main!$C$4*$E24+Main!$C$5*ET$2*$F24 -> 3262.080603 | EU24: =EU$2*$F24*Main!$C$4*$E24+Main!$C$5*EU$2*$F24 -> 3973.117311 | EV24: =EV$2*$F24*Main!$C$4*$E24+Main!$C$5*EV$2*$F24 -> 4058.789544 | EW24: =EW$2*$F24*Main!$C$4*$E24+Main!$C$5*EW$2*$F24 -> 4163.612808 | EX24: =EX$2*$F24*Main!$C$4*$E24+Main!$C$5*EX$2*$F24 -> 4218.391552 | EY24: =EY$2*$F24*Main!$C$4*$E24+Main!$C$5*EY$2*$F24 -> 4304.063785 | EZ24: =EZ$2*$F24*Main!$C$4*$E24+Main!$C$5*EZ$2*$F24 -> 4408.884721 | FA24: =FA$2*$F24*Main!$C$4*$E24+Main!$C$5*FA$2*$F24 -> 4780.865793 | FB24: =FB$2*$F24*Main!$C$4*$E24+Main!$C$5*FB$2*$F24 -> 4866.538026 | FC24: =FC$2*$F24*Main!$C$4*$E24+Main!$C$5*FC$2*$F24 -> 4971.36129 | FD24: =IF($D24<100,(FD$2*(1+Main!$C$3)*$E24*Main!$C$4)+(FD$2*(1+Main!$C$3)*Main!$C$5),(FD$2*$E24*Main!$C$4)+(FD$2*Main!$C$5)) -> 109.8056956 | FE24: =IF($D24<100,(FE$2*(1+Main!$C$3)*$E24*Main!$C$4)+(FE$2*(1+Main!$C$3)*Main!$C$5),(FE$2*$E24*Main!$C$4)+(FE$2*Main!$C$5)) -> 120.0358497 | FF24: =IF($D24<100,(FF$2*(1+Main!$C$3)*$E24*Main!$C$4)+(FF$2*(1+Main!$C$3)*Main!$C$5),(FF$2*$E24*Main!$C$4)+(FF$2*Main!$C$5)) -> 120.8551809 | FG24: =IF($D24<100,(FG$2*(1+Main!$C$3)*$E24*Main!$C$4)+(FG$2*(1+Main!$C$3)*Main!$C$5),(FG$2*$E24*Main!$C$4)+(FG$2*Main!$C$5)) -> 130.4650936 | FH24: =IF($D24<100,(FH$2*(1+Main!$C$3)*$E24*Main!$C$4)+(FH$2*(1+Main!$C$3)*Main!$C$5),(FH$2*$E24*Main!$C$4)+(FH$2*Main!$C$5)) -> 176.0107196 | FI24: =IF($D24<100,(FI$2*(1+Main!$C$3)*$E24*Main!$C$4)+(FI$2*(1+Main!$C$3)*Main!$C$5),(FI$2*$E24*Main!$C$4)+(FI$2*Main!$C$5)) -> 49.72651237
A25: AR | B25: 26300 | C25: (Garland County, Hot Springs) | D25: 26300 | E25: 0.858 | F25: =IF($D25<100,Main!$C$2*(1+Main!$C$3),Main!$C$2) -> 3039.64 | G25: =G$2*$F25*Main!$C$4*$E25+Main!$C$5*G$2*$F25 -> 1510.977015 | H25: =H$2*$F25*Main!$C$4*$E25+Main!$C$5*H$2*$F25 -> 1866.419823 | I25: =I$2*$F25*Main!$C$4*$E25+Main!$C$5*I$2*$F25 -> 2221.862902 | J25: =J$2*$F25*Main!$C$4*$E25+Main!$C$5*J$2*$F25 -> 2577.305441 | K25: =K$2*$F25*Main!$C$4*$E25+Main!$C$5*K$2*$F25 -> 2932.7496 | L25: =L$2*$F25*Main!$C$4*$E25+Main!$C$5*L$2*$F25 -> 1793.340497 | M25: =M$2*$F25*Main!$C$4*$E25+Main!$C$5*M$2*$F25 -> 2115.290257 | N25: =N$2*$F25*Main!$C$4*$E25+Main!$C$5*N$2*$F25 -> 2437.240018 | O25: =O$2*$F25*Main!$C$4*$E25+Main!$C$5*O$2*$F25 -> 2759.188968 | P25: =P$2*$F25*Main!$C$4*$E25+Main!$C$5*P$2*$F25 -> 3081.140079 | Q25: =Q$2*$F25*Main!$C$4*$E25+Main!$C$5*Q$2*$F25 -> 1928.08886 | R25: =R$2*$F25*Main!$C$4*$E25+Main!$C$5*R$2*$F25 -> 2242.214808 | S25: =S$2*$F25*Main!$C$4*$E25+Main!$C$5*S$2*$F25 -> 2556.340486 | T25: =T$2*$F25*Main!$C$4*$E25+Main!$C$5*T$2*$F25 -> 2870.466974 | U25: =U$2*$F25*Main!$C$4*$E25+Main!$C$5*U$2*$F25 -> 3184.591571 | V25: =V$2*$F25*Main!$C$4*$E25+Main!$C$5*V$2*$F25 -> 1606.362985 | W25: =W$2*$F25*Main!$C$4*$E25+Main!$C$5*W$2*$F25 -> 1978.330864 | X25: =X$2*$F25*Main!$C$4*$E25+Main!$C$5*X$2*$F25 -> 2350.298742 | Y25: =Y$2*$F25*Main!$C$4*$E25+Main!$C$5*Y$2*$F25 -> 2722.265541 | Z25: =Z$2*$F25*Main!$C$4*$E25+Main!$C$5*Z$2*$F25 -> 3094.235581 | AA25: =AA$2*$F25*Main!$C$4*$E25+Main!$C$5*AA$2*$F25 -> 1888.726197 | AB25: =AB$2*$F25*Main!$C$4*$E25+Main!$C$5*AB$2*$F25 -> 2227.201298 | AC25: =AC$2*$F25*Main!$C$4*$E25+Main!$C$5*AC$2*$F25 -> 2565.675858 | AD25: =AD$2*$F25*Main!$C$4*$E25+Main!$C$5*AD$2*$F25 -> 2904.149608 | AE25: =AE$2*$F25*Main!$C$4*$E25+Main!$C$5*AE$2*$F25 -> 3242.626059 | AF25: =AF$2*$F25*Main!$C$4*$E25+Main!$C$5*AF$2*$F25 -> 2023.47456 | AG25: =AG$2*$F25*Main!$C$4*$E25+Main!$C$5*AG$2*$F25 -> 2354.125578 | AH25: =AH$2*$F25*Main!$C$4*$E25+Main!$C$5*AH$2*$F25 -> 2684.776596 | AI25: =AI$2*$F25*Main!$C$4*$E25+Main!$C$5*AI$2*$F25 -> 3015.427614 | AJ25: =AJ$2*$F25*Main!$C$4*$E25+Main!$C$5*AJ$2*$F25 -> 3346.077551 | AK25: =AK$2*$F25*Main!$C$4*$E25+Main!$C$5*AK$2*$F25 -> 1721.460264 | AL25: =AL$2*$F25*Main!$C$4*$E25+Main!$C$5*AL$2*$F25 -> 2133.99341 | AM25: =AM$2*$F25*Main!$C$4*$E25+Main!$C$5*AM$2*$F25 -> 2546.526286 | AN25: =AN$2*$F25*Main!$C$4*$E25+Main!$C$5*AN$2*$F25 -> 2959.059433 | AO25: =AO$2*$F25*Main!$C$4*$E25+Main!$C$5*AO$2*$F25 -> 3371.593389 | AP25: =AP$2*$F25*Main!$C$4*$E25+Main!$C$5*AP$2*$F25 -> 2003.823476 | AQ25: =AQ$2*$F25*Main!$C$4*$E25+Main!$C$5*AQ$2*$F25 -> 2382.863304 | AR25: =AR$2*$F25*Main!$C$4*$E25+Main!$C$5*AR$2*$F25 -> 2761.903132 | AS25: =AS$2*$F25*Main!$C$4*$E25+Main!$C$5*AS$2*$F25 -> 3140.9435 | AT25: =AT$2*$F25*Main!$C$4*$E25+Main!$C$5*AT$2*$F25 -> 3519.983868 | AU25: =AU$2*$F25*Main!$C$4*$E25+Main!$C$5*AU$2*$F25 -> 2138.571569 | AV25: =AV$2*$F25*Main!$C$4*$E25+Main!$C$5*AV$2*$F25 -> 2509.788125 | AW25: =AW$2*$F25*Main!$C$4*$E25+Main!$C$5*AW$2*$F25 -> 2881.00495 | AX25: =AX$2*$F25*Main!$C$4*$E25+Main!$C$5*AX$2*$F25 -> 3252.221505 | AY25: =AY$2*$F25*Main!$C$4*$E25+Main!$C$5*AY$2*$F25 -> 3623.43536 | AZ25: =AZ$2*$F25*Main!$C$4*$E25+Main!$C$5*AZ$2*$F25 -> 3288.191599 | BA25: =BA$2*$F25*Main!$C$4*$E25+Main!$C$5*BA$2*$F25 -> 3728.80432 | BB25: =BB$2*$F25*Main!$C$4*$E25+Main!$C$5*BB$2*$F25 -> 4169.417042 | BC25: =BC$2*$F25*Main!$C$4*$E25+Main!$C$5*BC$2*$F25 -> 3403.088489 | BD25: =BD$2*$F25*Main!$C$4*$E25+Main!$C$5*BD$2*$F25 -> 3838.537548 | BE25: =BE$2*$F25*Main!$C$4*$E25+Main!$C$5*BE$2*$F25 -> 4273.986607 | BF25: =BF$2*$F25*Main!$C$4*$E25+Main!$C$5*BF$2*$F25 -> 3498.718869 | BG25: =BG$2*$F25*Main!$C$4*$E25+Main!$C$5*BG$2*$F25 -> 3942.831646 | BH25: =BH$2*$F25*Main!$C$4*$E25+Main!$C$5*BH$2*$F25 -> 4386.947124 | BI25: =BI$2*$F25*Main!$C$4*$E25+Main!$C$5*BI$2*$F25 -> 3466.202919 | BJ25: =BJ$2*$F25*Main!$C$4*$E25+Main!$C$5*BJ$2*$F25 -> 3942.342826 | BK25: =BK$2*$F25*Main!$C$4*$E25+Main!$C$5*BK$2*$F25 -> 4418.480033 | BL25: =BL$2*$F25*Main!$C$4*$E25+Main!$C$5*BL$2*$F25 -> 3581.099809 | BM25: =BM$2*$F25*Main!$C$4*$E25+Main!$C$5*BM$2*$F25 -> 4052.076054 | BN25: =BN$2*$F25*Main!$C$4*$E25+Main!$C$5*BN$2*$F25 -> 4523.049598 | BO25: =BO$2*$F25*Main!$C$4*$E25+Main!$C$5*BO$2*$F25 -> 3676.730189 | BP25: =BP$2*$F25*Main!$C$4*$E25+Main!$C$5*BP$2*$F25 -> 4156.370152 | BQ25: =BQ$2*$F25*Main!$C$4*$E25+Main!$C$5*BQ$2*$F25 -> 4636.010115 | BR25: =BR$2*$F25*Main!$C$4*$E25+Main!$C$5*BR$2*$F25 -> 3784.124645 | BS25: =BS$2*$F25*Main!$C$4*$E25+Main!$C$5*BS$2*$F25 -> 4371.836929 | BT25: =BT$2*$F25*Main!$C$4*$E25+Main!$C$5*BT$2*$F25 -> 4959.549214 | BU25: =BU$2*$F25*Main!$C$4*$E25+Main!$C$5*BU$2*$F25 -> 3899.024236 | BV25: =BV$2*$F25*Main!$C$4*$E25+Main!$C$5*BV$2*$F25 -> 4481.570157 | BW25: =BW$2*$F25*Main!$C$4*$E25+Main!$C$5*BW$2*$F25 -> 5064.118779 | BX25: =BX$2*$F25*Main!$C$4*$E25+Main!$C$5*BX$2*$F25 -> 3994.651915 | BY25: =BY$2*$F25*Main!$C$4*$E25+Main!$C$5*BY$2*$F25 -> 4585.866956 | BZ25: =BZ$2*$F25*Main!$C$4*$E25+Main!$C$5*BZ$2*$F25 -> 5177.079296 | CA25: =CA$2*$F25*Main!$C$4*$E25+Main!$C$5*CA$2*$F25 -> 3329.490096 | CB25: =CB$2*$F25*Main!$C$4*$E25+Main!$C$5*CB$2*$F25 -> 3756.337552 | CC25: =CC$2*$F25*Main!$C$4*$E25+Main!$C$5*CC$2*$F25 -> 4183.182307 | CD25: =CD$2*$F25*Main!$C$4*$E25+Main!$C$5*CD$2*$F25 -> 3408.009092 | CE25: =CE$2*$F25*Main!$C$4*$E25+Main!$C$5*CE$2*$F25 -> 3841.81615 | CF25: =CF$2*$F25*Main!$C$4*$E25+Main!$C$5*CF$2*$F25 -> 4275.625908 | CG25: =CG$2*$F25*Main!$C$4*$E25+Main!$C$5*CG$2*$F25 -> 3534.63765 | CH25: =CH$2*$F25*Main!$C$4*$E25+Main!$C$5*CH$2*$F25 -> 3966.7784 | CI25: =CI$2*$F25*Main!$C$4*$E25+Main!$C$5*CI$2*$F25 -> 4398.91915 | CJ25: =CJ$2*$F25*Main!$C$4*$E25+Main!$C$5*CJ$2*$F25 -> 3473.057195 | CK25: =CK$2*$F25*Main!$C$4*$E25+Main!$C$5*CK$2*$F25 -> 3946.912344 | CL25: =CL$2*$F25*Main!$C$4*$E25+Main!$C$5*CL$2*$F25 -> 4420.764791 | CM25: =CM$2*$F25*Main!$C$4*$E25+Main!$C$5*CM$2*$F25 -> 3551.576192 | CN25: =CN$2*$F25*Main!$C$4*$E25+Main!$C$5*CN$2*$F25 -> 4032.390941 | CO25: =CO$2*$F25*Main!$C$4*$E25+Main!$C$5*CO$2*$F25 -> 4513.208392 | CP25: =CP$2*$F25*Main!$C$4*$E25+Main!$C$5*CP$2*$F25 -> 3678.20475 | CQ25: =CQ$2*$F25*Main!$C$4*$E25+Main!$C$5*CQ$2*$F25 -> 4157.353192 | CR25: =CR$2*$F25*Main!$C$4*$E25+Main!$C$5*CR$2*$F25 -> 4636.501635 | CS25: =CS$2*$F25*Main!$C$4*$E25+Main!$C$5*CS$2*$F25 -> 4037.649127 | CT25: =CT$2*$F25*Main!$C$4*$E25+Main!$C$5*CT$2*$F25 -> 4540.855051 | CU25: =CU$2*$F25*Main!$C$4*$E25+Main!$C$5*CU$2*$F25 -> 5044.058274 | CV25: =CV$2*$F25*Main!$C$4*$E25+Main!$C$5*CV$2*$F25 -> 4116.168123 | CW25: =CW$2*$F25*Main!$C$4*$E25+Main!$C$5*CW$2*$F25 -> 4626.333649 | CX25: =CX$2*$F25*Main!$C$4*$E25+Main!$C$5*CX$2*$F25 -> 5136.501875 | CY25: =CY$2*$F25*Main!$C$4*$E25+Main!$C$5*CY$2*$F25 -> 4242.796682 | CZ25: =CZ$2*$F25*Main!$C$4*$E25+Main!$C$5*CZ$2*$F25 -> 4751.2959 | DA25: =DA$2*$F25*Main!$C$4*$E25+Main!$C$5*DA$2*$F25 -> 5259.795118 | DB25: =DB$2*$F25*Main!$C$4*$E25+Main!$C$5*DB$2*$F25 -> 1230.721938 | DC25: =DC$2*$F25*Main!$C$4*$E25+Main!$C$5*DC$2*$F25 -> 1650.475839 | DD25: =DD$2*$F25*Main!$C$4*$E25+Main!$C$5*DD$2*$F25 -> 2070.229741 | DE25: =DE$2*$F25*Main!$C$4*$E25+Main!$C$5*DE$2*$F25 -> 2489.983643 | DF25: =DF$2*$F25*Main!$C$4*$E25+Main!$C$5*DF$2*$F25 -> 2909.737274 | DG25: =DG$2*$F25*Main!$C$4*$E25+Main!$C$5*DG$2*$F25 -> 1460.28103 | DH25: =DH$2*$F25*Main!$C$4*$E25+Main!$C$5*DH$2*$F25 -> 1849.826697 | DI25: =DI$2*$F25*Main!$C$4*$E25+Main!$C$5*DI$2*$F25 -> 2239.371823 | DJ25: =DJ$2*$F25*Main!$C$4*$E25+Main!$C$5*DJ$2*$F25 -> 2628.917759 | DK25: =DK$2*$F25*Main!$C$4*$E25+Main!$C$5*DK$2*$F25 -> 3018.463156 | DL25: =DL$2*$F25*Main!$C$4*$E25+Main!$C$5*DL$2*$F25 -> 1581.553909 | DM25: =DM$2*$F25*Main!$C$4*$E25+Main!$C$5*DM$2*$F25 -> 1972.170928 | DN25: =DN$2*$F25*Main!$C$4*$E25+Main!$C$5*DN$2*$F25 -> 2362.787676 | DO25: =DO$2*$F25*Main!$C$4*$E25+Main!$C$5*DO$2*$F25 -> 2753.404154 | DP25: =DP$2*$F25*Main!$C$4*$E25+Main!$C$5*DP$2*$F25 -> 3144.022253 | DQ25: =DQ$2*$F25*Main!$C$4*$E25+Main!$C$5*DQ$2*$F25 -> 1296.968054 | DR25: =DR$2*$F25*Main!$C$4*$E25+Main!$C$5*DR$2*$F25 -> 1732.185936 | DS25: =DS$2*$F25*Main!$C$4*$E25+Main!$C$5*DS$2*$F25 -> 2167.403818 | DT25: =DT$2*$F25*Main!$C$4*$E25+Main!$C$5*DT$2*$F25 -> 2602.621701 | DU25: =DU$2*$F25*Main!$C$4*$E25+Main!$C$5*DU$2*$F25 -> 3037.840393 | DV25: =DV$2*$F25*Main!$C$4*$E25+Main!$C$5*DV$2*$F25 -> 1526.526876 | DW25: =DW$2*$F25*Main!$C$4*$E25+Main!$C$5*DW$2*$F25 -> 1931.536253 | DX25: =DX$2*$F25*Main!$C$4*$E25+Main!$C$5*DX$2*$F25 -> 2336.5459 | DY25: =DY$2*$F25*Main!$C$4*$E25+Main!$C$5*DY$2*$F25 -> 2741.556357 | DZ25: =DZ$2*$F25*Main!$C$4*$E25+Main!$C$5*DZ$2*$F25 -> 3146.566274 | EA25: =EA$2*$F25*Main!$C$4*$E25+Main!$C$5*EA$2*$F25 -> 1647.800025 | EB25: =EB$2*$F25*Main!$C$4*$E25+Main!$C$5*EB$2*$F25 -> 2053.880754 | EC25: =EC$2*$F25*Main!$C$4*$E25+Main!$C$5*EC$2*$F25 -> 2459.961753 | ED25: =ED$2*$F25*Main!$C$4*$E25+Main!$C$5*ED$2*$F25 -> 2866.043292 | EE25: =EE$2*$F25*Main!$C$4*$E25+Main!$C$5*EE$2*$F25 -> 3272.122671 | EF25: =EF$2*$F25*Main!$C$4*$E25+Main!$C$5*EF$2*$F25 -> 1603.012275 | EG25: =EG$2*$F25*Main!$C$4*$E25+Main!$C$5*EG$2*$F25 -> 2089.9397 | EH25: =EH$2*$F25*Main!$C$4*$E25+Main!$C$5*EH$2*$F25 -> 2576.867394 | EI25: =EI$2*$F25*Main!$C$4*$E25+Main!$C$5*EI$2*$F25 -> 3063.793738 | EJ25: =EJ$2*$F25*Main!$C$4*$E25+Main!$C$5*EJ$2*$F25 -> 3550.722783 | EK25: =EK$2*$F25*Main!$C$4*$E25+Main!$C$5*EK$2*$F25 -> 1832.571098 | EL25: =EL$2*$F25*Main!$C$4*$E25+Main!$C$5*EL$2*$F25 -> 2289.290287 | EM25: =EM$2*$F25*Main!$C$4*$E25+Main!$C$5*EM$2*$F25 -> 2746.009746 | EN25: =EN$2*$F25*Main!$C$4*$E25+Main!$C$5*EN$2*$F25 -> 3202.729205 | EO25: =EO$2*$F25*Main!$C$4*$E25+Main!$C$5*EO$2*$F25 -> 3659.448664 | EP25: =EP$2*$F25*Main!$C$4*$E25+Main!$C$5*EP$2*$F25 -> 1953.844247 | EQ25: =EQ$2*$F25*Main!$C$4*$E25+Main!$C$5*EQ$2*$F25 -> 2411.634788 | ER25: =ER$2*$F25*Main!$C$4*$E25+Main!$C$5*ER$2*$F25 -> 2869.424519 | ES25: =ES$2*$F25*Main!$C$4*$E25+Main!$C$5*ES$2*$F25 -> 3327.21614 | ET25: =ET$2*$F25*Main!$C$4*$E25+Main!$C$5*ET$2*$F25 -> 3785.007761 | EU25: =EU$2*$F25*Main!$C$4*$E25+Main!$C$5*EU$2*$F25 -> 4610.027062 | EV25: =EV$2*$F25*Main!$C$4*$E25+Main!$C$5*EV$2*$F25 -> 4709.432965 | EW25: =EW$2*$F25*Main!$C$4*$E25+Main!$C$5*EW$2*$F25 -> 4831.059901 | EX25: =EX$2*$F25*Main!$C$4*$E25+Main!$C$5*EX$2*$F25 -> 4894.61994 | EY25: =EY$2*$F25*Main!$C$4*$E25+Main!$C$5*EY$2*$F25 -> 4994.025843 | EZ25: =EZ$2*$F25*Main!$C$4*$E25+Main!$C$5*EZ$2*$F25 -> 5115.650077 | FA25: =FA$2*$F25*Main!$C$4*$E25+Main!$C$5*FA$2*$F25 -> 5547.261498 | FB25: =FB$2*$F25*Main!$C$4*$E25+Main!$C$5*FB$2*$F25 -> 5646.667401 | FC25: =FC$2*$F25*Main!$C$4*$E25+Main!$C$5*FC$2*$F25 -> 5768.294336 | FD25: =IF($D25<100,(FD$2*(1+Main!$C$3)*$E25*Main!$C$4)+(FD$2*(1+Main!$C$3)*Main!$C$5),(FD$2*$E25*Main!$C$4)+(FD$2*Main!$C$5)) -> 127.408075 | FE25: =IF($D25<100,(FE$2*(1+Main!$C$3)*$E25*Main!$C$4)+(FE$2*(1+Main!$C$3)*Main!$C$5),(FE$2*$E25*Main!$C$4)+(FE$2*Main!$C$5)) -> 139.2781718 | FF25: =IF($D25<100,(FF$2*(1+Main!$C$3)*$E25*Main!$C$4)+(FF$2*(1+Main!$C$3)*Main!$C$5),(FF$2*$E25*Main!$C$4)+(FF$2*Main!$C$5)) -> 140.2288457 | FG25: =IF($D25<100,(FG$2*(1+Main!$C$3)*$E25*Main!$C$4)+(FG$2*(1+Main!$C$3)*Main!$C$5),(FG$2*$E25*Main!$C$4)+(FG$2*Main!$C$5)) -> 151.3792735 | FH25: =IF($D25<100,(FH$2*(1+Main!$C$3)*$E25*Main!$C$4)+(FH$2*(1+Main!$C$3)*Main!$C$5),(FH$2*$E25*Main!$C$4)+(FH$2*Main!$C$5)) -> 204.2260818 | FI25: =IF($D25<100,(FI$2*(1+Main!$C$3)*$E25*Main!$C$4)+(FI$2*(1+Main!$C$3)*Main!$C$5),(FI$2*$E25*Main!$C$4)+(FI$2*Main!$C$5)) -> 57.69791068
A26: AR | B26: 27860 | C26: (Craighead County, Jonesboro, Poinsett County) | D26: 27860 | E26: 0.7855 | F26: =IF($D26<100,Main!$C$2*(1+Main!$C$3),Main!$C$2) -> 3039.64 | G26: =G$2*$F26*Main!$C$4*$E26+Main!$C$5*G$2*$F26 -> 1414.146707 | H26: =H$2*$F26*Main!$C$4*$E26+Main!$C$5*H$2*$F26 -> 1746.811118 | I26: =I$2*$F26*Main!$C$4*$E26+Main!$C$5*I$2*$F26 -> 2079.475781 | J26: =J$2*$F26*Main!$C$4*$E26+Main!$C$5*J$2*$F26 -> 2412.139939 | K26: =K$2*$F26*Main!$C$4*$E26+Main!$C$5*K$2*$F26 -> 2744.805613 | L26: =L$2*$F26*Main!$C$4*$E26+Main!$C$5*L$2*$F26 -> 1678.415048 | M26: =M$2*$F26*Main!$C$4*$E26+Main!$C$5*M$2*$F26 -> 1979.732798 | N26: =N$2*$F26*Main!$C$4*$E26+Main!$C$5*N$2*$F26 -> 2281.050548 | O26: =O$2*$F26*Main!$C$4*$E26+Main!$C$5*O$2*$F26 -> 2582.367539 | P26: =P$2*$F26*Main!$C$4*$E26+Main!$C$5*P$2*$F26 -> 2883.686552 | Q26: =Q$2*$F26*Main!$C$4*$E26+Main!$C$5*Q$2*$F26 -> 1804.528121 | R26: =R$2*$F26*Main!$C$4*$E26+Main!$C$5*R$2*$F26 -> 2098.523444 | S26: =S$2*$F26*Main!$C$4*$E26+Main!$C$5*S$2*$F26 -> 2392.518513 | T26: =T$2*$F26*Main!$C$4*$E26+Main!$C$5*T$2*$F26 -> 2686.514341 | U26: =U$2*$F26*Main!$C$4*$E26+Main!$C$5*U$2*$F26 -> 2980.5084 | V26: =V$2*$F26*Main!$C$4*$E26+Main!$C$5*V$2*$F26 -> 1503.419909 | W26: =W$2*$F26*Main!$C$4*$E26+Main!$C$5*W$2*$F26 -> 1851.550387 | X26: =X$2*$F26*Main!$C$4*$E26+Main!$C$5*X$2*$F26 -> 2199.680866 | Y26: =Y$2*$F26*Main!$C$4*$E26+Main!$C$5*Y$2*$F26 -> 2547.810334 | Z26: =Z$2*$F26*Main!$C$4*$E26+Main!$C$5*Z$2*$F26 -> 2895.942834 | AA26: =AA$2*$F26*Main!$C$4*$E26+Main!$C$5*AA$2*$F26 -> 1767.687997 | AB26: =AB$2*$F26*Main!$C$4*$E26+Main!$C$5*AB$2*$F26 -> 2084.472068 | AC26: =AC$2*$F26*Main!$C$4*$E26+Main!$C$5*AC$2*$F26 -> 2401.255633 | AD26: =AD$2*$F26*Main!$C$4*$E26+Main!$C$5*AD$2*$F26 -> 2718.038439 | AE26: =AE$2*$F26*Main!$C$4*$E26+Main!$C$5*AE$2*$F26 -> 3034.823773 | AF26: =AF$2*$F26*Main!$C$4*$E26+Main!$C$5*AF$2*$F26 -> 1893.80107 | AG26: =AG$2*$F26*Main!$C$4*$E26+Main!$C$5*AG$2*$F26 -> 2203.262461 | AH26: =AH$2*$F26*Main!$C$4*$E26+Main!$C$5*AH$2*$F26 -> 2512.723851 | AI26: =AI$2*$F26*Main!$C$4*$E26+Main!$C$5*AI$2*$F26 -> 2822.185242 | AJ26: =AJ$2*$F26*Main!$C$4*$E26+Main!$C$5*AJ$2*$F26 -> 3131.645621 | AK26: =AK$2*$F26*Main!$C$4*$E26+Main!$C$5*AK$2*$F26 -> 1611.141229 | AL26: =AL$2*$F26*Main!$C$4*$E26+Main!$C$5*AL$2*$F26 -> 1997.237367 | AM26: =AM$2*$F26*Main!$C$4*$E26+Main!$C$5*AM$2*$F26 -> 2383.333253 | AN26: =AN$2*$F26*Main!$C$4*$E26+Main!$C$5*AN$2*$F26 -> 2769.429391 | AO26: =AO$2*$F26*Main!$C$4*$E26+Main!$C$5*AO$2*$F26 -> 3155.526288 | AP26: =AP$2*$F26*Main!$C$4*$E26+Main!$C$5*AP$2*$F26 -> 1875.409317 | AQ26: =AQ$2*$F26*Main!$C$4*$E26+Main!$C$5*AQ$2*$F26 -> 2230.158542 | AR26: =AR$2*$F26*Main!$C$4*$E26+Main!$C$5*AR$2*$F26 -> 2584.907766 | AS26: =AS$2*$F26*Main!$C$4*$E26+Main!$C$5*AS$2*$F26 -> 2939.657497 | AT26: =AT$2*$F26*Main!$C$4*$E26+Main!$C$5*AT$2*$F26 -> 3294.407227 | AU26: =AU$2*$F26*Main!$C$4*$E26+Main!$C$5*AU$2*$F26 -> 2001.522137 | AV26: =AV$2*$F26*Main!$C$4*$E26+Main!$C$5*AV$2*$F26 -> 2348.94944 | AW26: =AW$2*$F26*Main!$C$4*$E26+Main!$C$5*AW$2*$F26 -> 2696.376996 | AX26: =AX$2*$F26*Main!$C$4*$E26+Main!$C$5*AX$2*$F26 -> 3043.804299 | AY26: =AY$2*$F26*Main!$C$4*$E26+Main!$C$5*AY$2*$F26 -> 3391.229075 | AZ26: =AZ$2*$F26*Main!$C$4*$E26+Main!$C$5*AZ$2*$F26 -> 3077.469265 | BA26: =BA$2*$F26*Main!$C$4*$E26+Main!$C$5*BA$2*$F26 -> 3489.845511 | BB26: =BB$2*$F26*Main!$C$4*$E26+Main!$C$5*BB$2*$F26 -> 3902.221757 | BC26: =BC$2*$F26*Main!$C$4*$E26+Main!$C$5*BC$2*$F26 -> 3185.003038 | BD26: =BD$2*$F26*Main!$C$4*$E26+Main!$C$5*BD$2*$F26 -> 3592.546533 | BE26: =BE$2*$F26*Main!$C$4*$E26+Main!$C$5*BE$2*$F26 -> 4000.090027 | BF26: =BF$2*$F26*Main!$C$4*$E26+Main!$C$5*BF$2*$F26 -> 3274.504986 | BG26: =BG$2*$F26*Main!$C$4*$E26+Main!$C$5*BG$2*$F26 -> 3690.156989 | BH26: =BH$2*$F26*Main!$C$4*$E26+Main!$C$5*BH$2*$F26 -> 4105.811518 | BI26: =BI$2*$F26*Main!$C$4*$E26+Main!$C$5*BI$2*$F26 -> 3244.072807 | BJ26: =BJ$2*$F26*Main!$C$4*$E26+Main!$C$5*BJ$2*$F26 -> 3689.699495 | BK26: =BK$2*$F26*Main!$C$4*$E26+Main!$C$5*BK$2*$F26 -> 4135.323655 | BL26: =BL$2*$F26*Main!$C$4*$E26+Main!$C$5*BL$2*$F26 -> 3351.60658 | BM26: =BM$2*$F26*Main!$C$4*$E26+Main!$C$5*BM$2*$F26 -> 3792.400516 | BN26: =BN$2*$F26*Main!$C$4*$E26+Main!$C$5*BN$2*$F26 -> 4233.191925 | BO26: =BO$2*$F26*Main!$C$4*$E26+Main!$C$5*BO$2*$F26 -> 3441.108528 | BP26: =BP$2*$F26*Main!$C$4*$E26+Main!$C$5*BP$2*$F26 -> 3890.010972 | BQ26: =BQ$2*$F26*Main!$C$4*$E26+Main!$C$5*BQ$2*$F26 -> 4338.913415 | BR26: =BR$2*$F26*Main!$C$4*$E26+Main!$C$5*BR$2*$F26 -> 3541.620657 | BS26: =BS$2*$F26*Main!$C$4*$E26+Main!$C$5*BS$2*$F26 -> 4091.669654 | BT26: =BT$2*$F26*Main!$C$4*$E26+Main!$C$5*BT$2*$F26 -> 4641.718652 | BU26: =BU$2*$F26*Main!$C$4*$E26+Main!$C$5*BU$2*$F26 -> 3649.156957 | BV26: =BV$2*$F26*Main!$C$4*$E26+Main!$C$5*BV$2*$F26 -> 4194.370676 | BW26: =BW$2*$F26*Main!$C$4*$E26+Main!$C$5*BW$2*$F26 -> 4739.586921 | BX26: =BX$2*$F26*Main!$C$4*$E26+Main!$C$5*BX$2*$F26 -> 3738.656378 | BY26: =BY$2*$F26*Main!$C$4*$E26+Main!$C$5*BY$2*$F26 -> 4291.983659 | BZ26: =BZ$2*$F26*Main!$C$4*$E26+Main!$C$5*BZ$2*$F26 -> 4845.308412 | CA26: =CA$2*$F26*Main!$C$4*$E26+Main!$C$5*CA$2*$F26 -> 3116.121166 | CB26: =CB$2*$F26*Main!$C$4*$E26+Main!$C$5*CB$2*$F26 -> 3515.614288 | CC26: =CC$2*$F26*Main!$C$4*$E26+Main!$C$5*CC$2*$F26 -> 3915.104882 | CD26: =CD$2*$F26*Main!$C$4*$E26+Main!$C$5*CD$2*$F26 -> 3189.608306 | CE26: =CE$2*$F26*Main!$C$4*$E26+Main!$C$5*CE$2*$F26 -> 3595.615027 | CF26: =CF$2*$F26*Main!$C$4*$E26+Main!$C$5*CF$2*$F26 -> 4001.624274 | CG26: =CG$2*$F26*Main!$C$4*$E26+Main!$C$5*CG$2*$F26 -> 3308.121928 | CH26: =CH$2*$F26*Main!$C$4*$E26+Main!$C$5*CH$2*$F26 -> 3712.569126 | CI26: =CI$2*$F26*Main!$C$4*$E26+Main!$C$5*CI$2*$F26 -> 4117.016323 | CJ26: =CJ$2*$F26*Main!$C$4*$E26+Main!$C$5*CJ$2*$F26 -> 3250.48783 | CK26: =CK$2*$F26*Main!$C$4*$E26+Main!$C$5*CK$2*$F26 -> 3693.976176 | CL26: =CL$2*$F26*Main!$C$4*$E26+Main!$C$5*CL$2*$F26 -> 4137.461995 | CM26: =CM$2*$F26*Main!$C$4*$E26+Main!$C$5*CM$2*$F26 -> 3323.97497 | CN26: =CN$2*$F26*Main!$C$4*$E26+Main!$C$5*CN$2*$F26 -> 3773.976915 | CO26: =CO$2*$F26*Main!$C$4*$E26+Main!$C$5*CO$2*$F26 -> 4223.981388 | CP26: =CP$2*$F26*Main!$C$4*$E26+Main!$C$5*CP$2*$F26 -> 3442.488592 | CQ26: =CQ$2*$F26*Main!$C$4*$E26+Main!$C$5*CQ$2*$F26 -> 3890.931015 | CR26: =CR$2*$F26*Main!$C$4*$E26+Main!$C$5*CR$2*$F26 -> 4339.373437 | CS26: =CS$2*$F26*Main!$C$4*$E26+Main!$C$5*CS$2*$F26 -> 3778.898132 | CT26: =CT$2*$F26*Main!$C$4*$E26+Main!$C$5*CT$2*$F26 -> 4249.856323 | CU26: =CU$2*$F26*Main!$C$4*$E26+Main!$C$5*CU$2*$F26 -> 4720.811986 | CV26: =CV$2*$F26*Main!$C$4*$E26+Main!$C$5*CV$2*$F26 -> 3852.385273 | CW26: =CW$2*$F26*Main!$C$4*$E26+Main!$C$5*CW$2*$F26 -> 4329.857062 | CX26: =CX$2*$F26*Main!$C$4*$E26+Main!$C$5*CX$2*$F26 -> 4807.331378 | CY26: =CY$2*$F26*Main!$C$4*$E26+Main!$C$5*CY$2*$F26 -> 3970.898895 | CZ26: =CZ$2*$F26*Main!$C$4*$E26+Main!$C$5*CZ$2*$F26 -> 4446.811161 | DA26: =DA$2*$F26*Main!$C$4*$E26+Main!$C$5*DA$2*$F26 -> 4922.723427 | DB26: =DB$2*$F26*Main!$C$4*$E26+Main!$C$5*DB$2*$F26 -> 1151.851656 | DC26: =DC$2*$F26*Main!$C$4*$E26+Main!$C$5*DC$2*$F26 -> 1544.70581 | DD26: =DD$2*$F26*Main!$C$4*$E26+Main!$C$5*DD$2*$F26 -> 1937.559965 | DE26: =DE$2*$F26*Main!$C$4*$E26+Main!$C$5*DE$2*$F26 -> 2330.41412 | DF26: =DF$2*$F26*Main!$C$4*$E26+Main!$C$5*DF$2*$F26 -> 2723.268022 | DG26: =DG$2*$F26*Main!$C$4*$E26+Main!$C$5*DG$2*$F26 -> 1366.699553 | DH26: =DH$2*$F26*Main!$C$4*$E26+Main!$C$5*DH$2*$F26 -> 1731.281355 | DI26: =DI$2*$F26*Main!$C$4*$E26+Main!$C$5*DI$2*$F26 -> 2095.86265 | DJ26: =DJ$2*$F26*Main!$C$4*$E26+Main!$C$5*DJ$2*$F26 -> 2460.444704 | DK26: =DK$2*$F26*Main!$C$4*$E26+Main!$C$5*DK$2*$F26 -> 2825.026252 | DL26: =DL$2*$F26*Main!$C$4*$E26+Main!$C$5*DL$2*$F26 -> 1480.200712 | DM26: =DM$2*$F26*Main!$C$4*$E26+Main!$C$5*DM$2*$F26 -> 1845.785208 | DN26: =DN$2*$F26*Main!$C$4*$E26+Main!$C$5*DN$2*$F26 -> 2211.369452 | DO26: =DO$2*$F26*Main!$C$4*$E26+Main!$C$5*DO$2*$F26 -> 2576.953442 | DP26: =DP$2*$F26*Main!$C$4*$E26+Main!$C$5*DP$2*$F26 -> 2942.538949 | DQ26: =DQ$2*$F26*Main!$C$4*$E26+Main!$C$5*DQ$2*$F26 -> 1213.852418 | DR26: =DR$2*$F26*Main!$C$4*$E26+Main!$C$5*DR$2*$F26 -> 1621.179551 | DS26: =DS$2*$F26*Main!$C$4*$E26+Main!$C$5*DS$2*$F26 -> 2028.506684 | DT26: =DT$2*$F26*Main!$C$4*$E26+Main!$C$5*DT$2*$F26 -> 2435.833817 | DU26: =DU$2*$F26*Main!$C$4*$E26+Main!$C$5*DU$2*$F26 -> 2843.161708 | DV26: =DV$2*$F26*Main!$C$4*$E26+Main!$C$5*DV$2*$F26 -> 1428.700063 | DW26: =DW$2*$F26*Main!$C$4*$E26+Main!$C$5*DW$2*$F26 -> 1807.754589 | DX26: =DX$2*$F26*Main!$C$4*$E26+Main!$C$5*DX$2*$F26 -> 2186.809369 | DY26: =DY$2*$F26*Main!$C$4*$E26+Main!$C$5*DY$2*$F26 -> 2565.864906 | DZ26: =DZ$2*$F26*Main!$C$4*$E26+Main!$C$5*DZ$2*$F26 -> 2944.919938 | EA26: =EA$2*$F26*Main!$C$4*$E26+Main!$C$5*EA$2*$F26 -> 1542.201475 | EB26: =EB$2*$F26*Main!$C$4*$E26+Main!$C$5*EB$2*$F26 -> 1922.258696 | EC26: =EC$2*$F26*Main!$C$4*$E26+Main!$C$5*EC$2*$F26 -> 2302.31617 | ED26: =ED$2*$F26*Main!$C$4*$E26+Main!$C$5*ED$2*$F26 -> 2682.37415 | EE26: =EE$2*$F26*Main!$C$4*$E26+Main!$C$5*EE$2*$F26 -> 3062.430107 | EF26: =EF$2*$F26*Main!$C$4*$E26+Main!$C$5*EF$2*$F26 -> 1500.283928 | EG26: =EG$2*$F26*Main!$C$4*$E26+Main!$C$5*EG$2*$F26 -> 1956.00682 | EH26: =EH$2*$F26*Main!$C$4*$E26+Main!$C$5*EH$2*$F26 -> 2411.729964 | EI26: =EI$2*$F26*Main!$C$4*$E26+Main!$C$5*EI$2*$F26 -> 2867.451844 | EJ26: =EJ$2*$F26*Main!$C$4*$E26+Main!$C$5*EJ$2*$F26 -> 3323.176252 | EK26: =EK$2*$F26*Main!$C$4*$E26+Main!$C$5*EK$2*$F26 -> 1715.131573 | EL26: =EL$2*$F26*Main!$C$4*$E26+Main!$C$5*EL$2*$F26 -> 2142.582111 | EM26: =EM$2*$F26*Main!$C$4*$E26+Main!$C$5*EM$2*$F26 -> 2570.032902 | EN26: =EN$2*$F26*Main!$C$4*$E26+Main!$C$5*EN$2*$F26 -> 2997.483692 | EO26: =EO$2*$F26*Main!$C$4*$E26+Main!$C$5*EO$2*$F26 -> 3424.934482 | EP26: =EP$2*$F26*Main!$C$4*$E26+Main!$C$5*EP$2*$F26 -> 1828.632985 | EQ26: =EQ$2*$F26*Main!$C$4*$E26+Main!$C$5*EQ$2*$F26 -> 2257.086218 | ER26: =ER$2*$F26*Main!$C$4*$E26+Main!$C$5*ER$2*$F26 -> 2685.538692 | ES26: =ES$2*$F26*Main!$C$4*$E26+Main!$C$5*ES$2*$F26 -> 3113.992935 | ET26: =ET$2*$F26*Main!$C$4*$E26+Main!$C$5*ET$2*$F26 -> 3542.447179 | EU26: =EU$2*$F26*Main!$C$4*$E26+Main!$C$5*EU$2*$F26 -> 4314.595476 | EV26: =EV$2*$F26*Main!$C$4*$E26+Main!$C$5*EV$2*$F26 -> 4407.630994 | EW26: =EW$2*$F26*Main!$C$4*$E26+Main!$C$5*EW$2*$F26 -> 4521.46352 | EX26: =EX$2*$F26*Main!$C$4*$E26+Main!$C$5*EX$2*$F26 -> 4580.950342 | EY26: =EY$2*$F26*Main!$C$4*$E26+Main!$C$5*EY$2*$F26 -> 4673.985861 | EZ26: =EZ$2*$F26*Main!$C$4*$E26+Main!$C$5*EZ$2*$F26 -> 4787.815859 | FA26: =FA$2*$F26*Main!$C$4*$E26+Main!$C$5*FA$2*$F26 -> 5191.767649 | FB26: =FB$2*$F26*Main!$C$4*$E26+Main!$C$5*FB$2*$F26 -> 5284.803167 | FC26: =FC$2*$F26*Main!$C$4*$E26+Main!$C$5*FC$2*$F26 -> 5398.635693 | FD26: =IF($D26<100,(FD$2*(1+Main!$C$3)*$E26*Main!$C$4)+(FD$2*(1+Main!$C$3)*Main!$C$5),(FD$2*$E26*Main!$C$4)+(FD$2*Main!$C$5)) -> 119.2431837 | FE26: =IF($D26<100,(FE$2*(1+Main!$C$3)*$E26*Main!$C$4)+(FE$2*(1+Main!$C$3)*Main!$C$5),(FE$2*$E26*Main!$C$4)+(FE$2*Main!$C$5)) -> 130.3525905 | FF26: =IF($D26<100,(FF$2*(1+Main!$C$3)*$E26*Main!$C$4)+(FF$2*(1+Main!$C$3)*Main!$C$5),(FF$2*$E26*Main!$C$4)+(FF$2*Main!$C$5)) -> 131.2423409 | FG26: =IF($D26<100,(FG$2*(1+Main!$C$3)*$E26*Main!$C$4)+(FG$2*(1+Main!$C$3)*Main!$C$5),(FG$2*$E26*Main!$C$4)+(FG$2*Main!$C$5)) -> 141.6781984 | FH26: =IF($D26<100,(FH$2*(1+Main!$C$3)*$E26*Main!$C$4)+(FH$2*(1+Main!$C$3)*Main!$C$5),(FH$2*$E26*Main!$C$4)+(FH$2*Main!$C$5)) -> 191.1383418 | FI26: =IF($D26<100,(FI$2*(1+Main!$C$3)*$E26*Main!$C$4)+(FI$2*(1+Main!$C$3)*Main!$C$5),(FI$2*$E26*Main!$C$4)+(FI$2*Main!$C$5)) -> 54.00036508
A27: AR | B27: 30780 | C27: (Faulkner County, Grant County, Little Rock-North Little Rock-Conway, Lonoke County, Perry County, Pulaski County, Saline County) | D27: 30780 | E27: 0.8338 | F27: =IF($D27<100,Main!$C$2*(1+Main!$C$3),Main!$C$2) -> 3039.64 | G27: =G$2*$F27*Main!$C$4*$E27+Main!$C$5*G$2*$F27 -> 1478.655726 | H27: =H$2*$F27*Main!$C$4*$E27+Main!$C$5*H$2*$F27 -> 1826.495262 | I27: =I$2*$F27*Main!$C$4*$E27+Main!$C$5*I$2*$F27 -> 2174.335063 | J27: =J$2*$F27*Main!$C$4*$E27+Main!$C$5*J$2*$F27 -> 2522.174336 | K27: =K$2*$F27*Main!$C$4*$E27+Main!$C$5*K$2*$F27 -> 2870.015194 | L27: =L$2*$F27*Main!$C$4*$E27+Main!$C$5*L$2*$F27 -> 1754.979175 | M27: =M$2*$F27*Main!$C$4*$E27+Main!$C$5*M$2*$F27 -> 2070.042112 | N27: =N$2*$F27*Main!$C$4*$E27+Main!$C$5*N$2*$F27 -> 2385.10505 | O27: =O$2*$F27*Main!$C$4*$E27+Main!$C$5*O$2*$F27 -> 2700.167195 | P27: =P$2*$F27*Main!$C$4*$E27+Main!$C$5*P$2*$F27 -> 3015.231454 | Q27: =Q$2*$F27*Main!$C$4*$E27+Main!$C$5*Q$2*$F27 -> 1886.845138 | R27: =R$2*$F27*Main!$C$4*$E27+Main!$C$5*R$2*$F27 -> 2194.251622 | S27: =S$2*$F27*Main!$C$4*$E27+Main!$C$5*S$2*$F27 -> 2501.657841 | T27: =T$2*$F27*Main!$C$4*$E27+Main!$C$5*T$2*$F27 -> 2809.064854 | U27: =U$2*$F27*Main!$C$4*$E27+Main!$C$5*U$2*$F27 -> 3116.470016 | V27: =V$2*$F27*Main!$C$4*$E27+Main!$C$5*V$2*$F27 -> 1572.001296 | W27: =W$2*$F27*Main!$C$4*$E27+Main!$C$5*W$2*$F27 -> 1936.012415 | X27: =X$2*$F27*Main!$C$4*$E27+Main!$C$5*X$2*$F27 -> 2300.023534 | Y27: =Y$2*$F27*Main!$C$4*$E27+Main!$C$5*Y$2*$F27 -> 2664.033596 | Z27: =Z$2*$F27*Main!$C$4*$E27+Main!$C$5*Z$2*$F27 -> 3028.046829 | AA27: =AA$2*$F27*Main!$C$4*$E27+Main!$C$5*AA$2*$F27 -> 1848.324481 | AB27: =AB$2*$F27*Main!$C$4*$E27+Main!$C$5*AB$2*$F27 -> 2179.559265 | AC27: =AC$2*$F27*Main!$C$4*$E27+Main!$C$5*AC$2*$F27 -> 2510.793521 | AD27: =AD$2*$F27*Main!$C$4*$E27+Main!$C$5*AD$2*$F27 -> 2842.026984 | AE27: =AE$2*$F27*Main!$C$4*$E27+Main!$C$5*AE$2*$F27 -> 3173.263089 | AF27: =AF$2*$F27*Main!$C$4*$E27+Main!$C$5*AF$2*$F27 -> 1980.190444 | AG27: =AG$2*$F27*Main!$C$4*$E27+Main!$C$5*AG$2*$F27 -> 2303.76851 | AH27: =AH$2*$F27*Main!$C$4*$E27+Main!$C$5*AH$2*$F27 -> 2627.346576 | AI27: =AI$2*$F27*Main!$C$4*$E27+Main!$C$5*AI$2*$F27 -> 2950.924643 | AJ27: =AJ$2*$F27*Main!$C$4*$E27+Main!$C$5*AJ$2*$F27 -> 3274.501652 | AK27: =AK$2*$F27*Main!$C$4*$E27+Main!$C$5*AK$2*$F27 -> 1684.636531 | AL27: =AL$2*$F27*Main!$C$4*$E27+Main!$C$5*AL$2*$F27 -> 2088.345186 | AM27: =AM$2*$F27*Main!$C$4*$E27+Main!$C$5*AM$2*$F27 -> 2492.053577 | AN27: =AN$2*$F27*Main!$C$4*$E27+Main!$C$5*AN$2*$F27 -> 2895.762233 | AO27: =AO$2*$F27*Main!$C$4*$E27+Main!$C$5*AO$2*$F27 -> 3299.471681 | AP27: =AP$2*$F27*Main!$C$4*$E27+Main!$C$5*AP$2*$F27 -> 1960.959715 | AQ27: =AQ$2*$F27*Main!$C$4*$E27+Main!$C$5*AQ$2*$F27 -> 2331.891507 | AR27: =AR$2*$F27*Main!$C$4*$E27+Main!$C$5*AR$2*$F27 -> 2702.8233 | AS27: =AS$2*$F27*Main!$C$4*$E27+Main!$C$5*AS$2*$F27 -> 3073.75562 | AT27: =AT$2*$F27*Main!$C$4*$E27+Main!$C$5*AT$2*$F27 -> 3444.687941 | AU27: =AU$2*$F27*Main!$C$4*$E27+Main!$C$5*AU$2*$F27 -> 2092.825414 | AV27: =AV$2*$F27*Main!$C$4*$E27+Main!$C$5*AV$2*$F27 -> 2456.101281 | AW27: =AW$2*$F27*Main!$C$4*$E27+Main!$C$5*AW$2*$F27 -> 2819.377412 | AX27: =AX$2*$F27*Main!$C$4*$E27+Main!$C$5*AX$2*$F27 -> 3182.653279 | AY27: =AY$2*$F27*Main!$C$4*$E27+Main!$C$5*AY$2*$F27 -> 3545.926503 | AZ27: =AZ$2*$F27*Main!$C$4*$E27+Main!$C$5*AZ$2*$F27 -> 3217.853937 | BA27: =BA$2*$F27*Main!$C$4*$E27+Main!$C$5*BA$2*$F27 -> 3649.041518 | BB27: =BB$2*$F27*Main!$C$4*$E27+Main!$C$5*BB$2*$F27 -> 4080.229098 | BC27: =BC$2*$F27*Main!$C$4*$E27+Main!$C$5*BC$2*$F27 -> 3330.29307 | BD27: =BD$2*$F27*Main!$C$4*$E27+Main!$C$5*BD$2*$F27 -> 3756.427444 | BE27: =BE$2*$F27*Main!$C$4*$E27+Main!$C$5*BE$2*$F27 -> 4182.561818 | BF27: =BF$2*$F27*Main!$C$4*$E27+Main!$C$5*BF$2*$F27 -> 3423.877821 | BG27: =BG$2*$F27*Main!$C$4*$E27+Main!$C$5*BG$2*$F27 -> 3858.490588 | BH27: =BH$2*$F27*Main!$C$4*$E27+Main!$C$5*BH$2*$F27 -> 4293.105997 | BI27: =BI$2*$F27*Main!$C$4*$E27+Main!$C$5*BI$2*$F27 -> 3392.05742 | BJ27: =BJ$2*$F27*Main!$C$4*$E27+Main!$C$5*BJ$2*$F27 -> 3858.012225 | BK27: =BK$2*$F27*Main!$C$4*$E27+Main!$C$5*BK$2*$F27 -> 4323.964387 | BL27: =BL$2*$F27*Main!$C$4*$E27+Main!$C$5*BL$2*$F27 -> 3504.496552 | BM27: =BM$2*$F27*Main!$C$4*$E27+Main!$C$5*BM$2*$F27 -> 3965.39815 | BN27: =BN$2*$F27*Main!$C$4*$E27+Main!$C$5*BN$2*$F27 -> 4426.297106 | BO27: =BO$2*$F27*Main!$C$4*$E27+Main!$C$5*BO$2*$F27 -> 3598.081304 | BP27: =BP$2*$F27*Main!$C$4*$E27+Main!$C$5*BP$2*$F27 -> 4067.461295 | BQ27: =BQ$2*$F27*Main!$C$4*$E27+Main!$C$5*BQ$2*$F27 -> 4536.841285 | BR27: =BR$2*$F27*Main!$C$4*$E27+Main!$C$5*BR$2*$F27 -> 3703.178486 | BS27: =BS$2*$F27*Main!$C$4*$E27+Main!$C$5*BS$2*$F27 -> 4278.319025 | BT27: =BT$2*$F27*Main!$C$4*$E27+Main!$C$5*BT$2*$F27 -> 4853.459564 | BU27: =BU$2*$F27*Main!$C$4*$E27+Main!$C$5*BU$2*$F27 -> 3815.620262 | BV27: =BV$2*$F27*Main!$C$4*$E27+Main!$C$5*BV$2*$F27 -> 4385.704951 | BW27: =BW$2*$F27*Main!$C$4*$E27+Main!$C$5*BW$2*$F27 -> 4955.792283 | BX27: =BX$2*$F27*Main!$C$4*$E27+Main!$C$5*BX$2*$F27 -> 3909.20237 | BY27: =BY$2*$F27*Main!$C$4*$E27+Main!$C$5*BY$2*$F27 -> 4487.770738 | BZ27: =BZ$2*$F27*Main!$C$4*$E27+Main!$C$5*BZ$2*$F27 -> 5066.336463 | CA27: =CA$2*$F27*Main!$C$4*$E27+Main!$C$5*CA$2*$F27 -> 3258.269018 | CB27: =CB$2*$F27*Main!$C$4*$E27+Main!$C$5*CB$2*$F27 -> 3675.985786 | CC27: =CC$2*$F27*Main!$C$4*$E27+Main!$C$5*CC$2*$F27 -> 4093.699911 | CD27: =CD$2*$F27*Main!$C$4*$E27+Main!$C$5*CD$2*$F27 -> 3335.108416 | CE27: =CE$2*$F27*Main!$C$4*$E27+Main!$C$5*CE$2*$F27 -> 3759.635913 | CF27: =CF$2*$F27*Main!$C$4*$E27+Main!$C$5*CF$2*$F27 -> 4184.166052 | CG27: =CG$2*$F27*Main!$C$4*$E27+Main!$C$5*CG$2*$F27 -> 3459.028265 | CH27: =CH$2*$F27*Main!$C$4*$E27+Main!$C$5*CH$2*$F27 -> 3881.925098 | CI27: =CI$2*$F27*Main!$C$4*$E27+Main!$C$5*CI$2*$F27 -> 4304.821931 | CJ27: =CJ$2*$F27*Main!$C$4*$E27+Main!$C$5*CJ$2*$F27 -> 3398.765076 | CK27: =CK$2*$F27*Main!$C$4*$E27+Main!$C$5*CK$2*$F27 -> 3862.483995 | CL27: =CL$2*$F27*Main!$C$4*$E27+Main!$C$5*CL$2*$F27 -> 4326.200272 | CM27: =CM$2*$F27*Main!$C$4*$E27+Main!$C$5*CM$2*$F27 -> 3475.604474 | CN27: =CN$2*$F27*Main!$C$4*$E27+Main!$C$5*CN$2*$F27 -> 3946.134122 | CO27: =CO$2*$F27*Main!$C$4*$E27+Main!$C$5*CO$2*$F27 -> 4416.666413 | CP27: =CP$2*$F27*Main!$C$4*$E27+Main!$C$5*CP$2*$F27 -> 3599.524322 | CQ27: =CQ$2*$F27*Main!$C$4*$E27+Main!$C$5*CQ$2*$F27 -> 4068.423307 | CR27: =CR$2*$F27*Main!$C$4*$E27+Main!$C$5*CR$2*$F27 -> 4537.322291 | CS27: =CS$2*$F27*Main!$C$4*$E27+Main!$C$5*CS$2*$F27 -> 3951.279829 | CT27: =CT$2*$F27*Main!$C$4*$E27+Main!$C$5*CT$2*$F27 -> 4443.721682 | CU27: =CU$2*$F27*Main!$C$4*$E27+Main!$C$5*CU$2*$F27 -> 4936.160893 | CV27: =CV$2*$F27*Main!$C$4*$E27+Main!$C$5*CV$2*$F27 -> 4028.119227 | CW27: =CW$2*$F27*Main!$C$4*$E27+Main!$C$5*CW$2*$F27 -> 4527.371809 | CX27: =CX$2*$F27*Main!$C$4*$E27+Main!$C$5*CX$2*$F27 -> 5026.627033 | CY27: =CY$2*$F27*Main!$C$4*$E27+Main!$C$5*CY$2*$F27 -> 4152.039076 | CZ27: =CZ$2*$F27*Main!$C$4*$E27+Main!$C$5*CZ$2*$F27 -> 4649.660994 | DA27: =DA$2*$F27*Main!$C$4*$E27+Main!$C$5*DA$2*$F27 -> 5147.282912 | DB27: =DB$2*$F27*Main!$C$4*$E27+Main!$C$5*DB$2*$F27 -> 1204.395581 | DC27: =DC$2*$F27*Main!$C$4*$E27+Main!$C$5*DC$2*$F27 -> 1615.170533 | DD27: =DD$2*$F27*Main!$C$4*$E27+Main!$C$5*DD$2*$F27 -> 2025.945485 | DE27: =DE$2*$F27*Main!$C$4*$E27+Main!$C$5*DE$2*$F27 -> 2436.720437 | DF27: =DF$2*$F27*Main!$C$4*$E27+Main!$C$5*DF$2*$F27 -> 2847.495124 | DG27: =DG$2*$F27*Main!$C$4*$E27+Main!$C$5*DG$2*$F27 -> 1429.044179 | DH27: =DH$2*$F27*Main!$C$4*$E27+Main!$C$5*DH$2*$F27 -> 1810.257079 | DI27: =DI$2*$F27*Main!$C$4*$E27+Main!$C$5*DI$2*$F27 -> 2191.469451 | DJ27: =DJ$2*$F27*Main!$C$4*$E27+Main!$C$5*DJ$2*$F27 -> 2572.682615 | DK27: =DK$2*$F27*Main!$C$4*$E27+Main!$C$5*DK$2*$F27 -> 2953.895251 | DL27: =DL$2*$F27*Main!$C$4*$E27+Main!$C$5*DL$2*$F27 -> 1547.722911 | DM27: =DM$2*$F27*Main!$C$4*$E27+Main!$C$5*DM$2*$F27 -> 1929.984246 | DN27: =DN$2*$F27*Main!$C$4*$E27+Main!$C$5*DN$2*$F27 -> 2312.245317 | DO27: =DO$2*$F27*Main!$C$4*$E27+Main!$C$5*DO$2*$F27 -> 2694.506123 | DP27: =DP$2*$F27*Main!$C$4*$E27+Main!$C$5*DP$2*$F27 -> 3076.768515 | DQ27: =DQ$2*$F27*Main!$C$4*$E27+Main!$C$5*DQ$2*$F27 -> 1269.224628 | DR27: =DR$2*$F27*Main!$C$4*$E27+Main!$C$5*DR$2*$F27 -> 1695.13277 | DS27: =DS$2*$F27*Main!$C$4*$E27+Main!$C$5*DS$2*$F27 -> 2121.040913 | DT27: =DT$2*$F27*Main!$C$4*$E27+Main!$C$5*DT$2*$F27 -> 2546.949055 | DU27: =DU$2*$F27*Main!$C$4*$E27+Main!$C$5*DU$2*$F27 -> 2972.857991 | DV27: =DV$2*$F27*Main!$C$4*$E27+Main!$C$5*DV$2*$F27 -> 1493.872961 | DW27: =DW$2*$F27*Main!$C$4*$E27+Main!$C$5*DW$2*$F27 -> 1890.218787 | DX27: =DX$2*$F27*Main!$C$4*$E27+Main!$C$5*DX$2*$F27 -> 2286.564879 | DY27: =DY$2*$F27*Main!$C$4*$E27+Main!$C$5*DY$2*$F27 -> 2682.911763 | DZ27: =DZ$2*$F27*Main!$C$4*$E27+Main!$C$5*DZ$2*$F27 -> 3079.258118 | EA27: =EA$2*$F27*Main!$C$4*$E27+Main!$C$5*EA$2*$F27 -> 1612.551957 | EB27: =EB$2*$F27*Main!$C$4*$E27+Main!$C$5*EB$2*$F27 -> 2009.946219 | EC27: =EC$2*$F27*Main!$C$4*$E27+Main!$C$5*EC$2*$F27 -> 2407.340745 | ED27: =ED$2*$F27*Main!$C$4*$E27+Main!$C$5*ED$2*$F27 -> 2804.735799 | EE27: =EE$2*$F27*Main!$C$4*$E27+Main!$C$5*EE$2*$F27 -> 3202.128739 | EF27: =EF$2*$F27*Main!$C$4*$E27+Main!$C$5*EF$2*$F27 -> 1568.722262 | EG27: =EG$2*$F27*Main!$C$4*$E27+Main!$C$5*EG$2*$F27 -> 2045.233828 | EH27: =EH$2*$F27*Main!$C$4*$E27+Main!$C$5*EH$2*$F27 -> 2521.745659 | EI27: =EI$2*$F27*Main!$C$4*$E27+Main!$C$5*EI$2*$F27 -> 2998.256168 | EJ27: =EJ$2*$F27*Main!$C$4*$E27+Main!$C$5*EJ$2*$F27 -> 3474.76932 | EK27: =EK$2*$F27*Main!$C$4*$E27+Main!$C$5*EK$2*$F27 -> 1793.370595 | EL27: =EL$2*$F27*Main!$C$4*$E27+Main!$C$5*EL$2*$F27 -> 2240.32011 | EM27: =EM$2*$F27*Main!$C$4*$E27+Main!$C$5*EM$2*$F27 -> 2687.269889 | EN27: =EN$2*$F27*Main!$C$4*$E27+Main!$C$5*EN$2*$F27 -> 3134.219668 | EO27: =EO$2*$F27*Main!$C$4*$E27+Main!$C$5*EO$2*$F27 -> 3581.169448 | EP27: =EP$2*$F27*Main!$C$4*$E27+Main!$C$5*EP$2*$F27 -> 1912.049591 | EQ27: =EQ$2*$F27*Main!$C$4*$E27+Main!$C$5*EQ$2*$F27 -> 2360.047541 | ER27: =ER$2*$F27*Main!$C$4*$E27+Main!$C$5*ER$2*$F27 -> 2808.044698 | ES27: =ES$2*$F27*Main!$C$4*$E27+Main!$C$5*ES$2*$F27 -> 3256.043705 | ET27: =ET$2*$F27*Main!$C$4*$E27+Main!$C$5*ET$2*$F27 -> 3704.042712 | EU27: =EU$2*$F27*Main!$C$4*$E27+Main!$C$5*EU$2*$F27 -> 4511.414036 | EV27: =EV$2*$F27*Main!$C$4*$E27+Main!$C$5*EV$2*$F27 -> 4608.693549 | EW27: =EW$2*$F27*Main!$C$4*$E27+Main!$C$5*EW$2*$F27 -> 4727.718764 | EX27: =EX$2*$F27*Main!$C$4*$E27+Main!$C$5*EX$2*$F27 -> 4789.919191 | EY27: =EY$2*$F27*Main!$C$4*$E27+Main!$C$5*EY$2*$F27 -> 4887.198704 | EZ27: =EZ$2*$F27*Main!$C$4*$E27+Main!$C$5*EZ$2*$F27 -> 5006.221276 | FA27: =FA$2*$F27*Main!$C$4*$E27+Main!$C$5*FA$2*$F27 -> 5428.600103 | FB27: =FB$2*$F27*Main!$C$4*$E27+Main!$C$5*FB$2*$F27 -> 5525.879615 | FC27: =FC$2*$F27*Main!$C$4*$E27+Main!$C$5*FC$2*$F27 -> 5644.904831 | FD27: =IF($D27<100,(FD$2*(1+Main!$C$3)*$E27*Main!$C$4)+(FD$2*(1+Main!$C$3)*Main!$C$5),(FD$2*$E27*Main!$C$4)+(FD$2*Main!$C$5)) -> 124.6826906 | FE27: =IF($D27<100,(FE$2*(1+Main!$C$3)*$E27*Main!$C$4)+(FE$2*(1+Main!$C$3)*Main!$C$5),(FE$2*$E27*Main!$C$4)+(FE$2*Main!$C$5)) -> 136.2988744 | FF27: =IF($D27<100,(FF$2*(1+Main!$C$3)*$E27*Main!$C$4)+(FF$2*(1+Main!$C$3)*Main!$C$5),(FF$2*$E27*Main!$C$4)+(FF$2*Main!$C$5)) -> 137.2292124 | FG27: =IF($D27<100,(FG$2*(1+Main!$C$3)*$E27*Main!$C$4)+(FG$2*(1+Main!$C$3)*Main!$C$5),(FG$2*$E27*Main!$C$4)+(FG$2*Main!$C$5)) -> 148.1411215 | FH27: =IF($D27<100,(FH$2*(1+Main!$C$3)*$E27*Main!$C$4)+(FH$2*(1+Main!$C$3)*Main!$C$5),(FH$2*$E27*Main!$C$4)+(FH$2*Main!$C$5)) -> 199.8574844 | FI27: =IF($D27<100,(FI$2*(1+Main!$C$3)*$E27*Main!$C$4)+(FI$2*(1+Main!$C$3)*Main!$C$5),(FI$2*$E27*Main!$C$4)+(FI$2*Main!$C$5)) -> 56.46369546
A28: AR | B28: 32820 | C28: (Crittenden County, Memphis) | D28: 32820 | E28: 0.886 | F28: =IF($D28<100,Main!$C$2*(1+Main!$C$3),Main!$C$2) -> 3039.64 | G28: =G$2*$F28*Main!$C$4*$E28+Main!$C$5*G$2*$F28 -> 1548.373547 | H28: =H$2*$F28*Main!$C$4*$E28+Main!$C$5*H$2*$F28 -> 1912.61353 | I28: =I$2*$F28*Main!$C$4*$E28+Main!$C$5*I$2*$F28 -> 2276.853791 | J28: =J$2*$F28*Main!$C$4*$E28+Main!$C$5*J$2*$F28 -> 2641.093497 | K28: =K$2*$F28*Main!$C$4*$E28+Main!$C$5*K$2*$F28 -> 3005.334864 | L28: =L$2*$F28*Main!$C$4*$E28+Main!$C$5*L$2*$F28 -> 1837.725498 | M28: =M$2*$F28*Main!$C$4*$E28+Main!$C$5*M$2*$F28 -> 2167.643483 | N28: =N$2*$F28*Main!$C$4*$E28+Main!$C$5*N$2*$F28 -> 2497.561469 | O28: =O$2*$F28*Main!$C$4*$E28+Main!$C$5*O$2*$F28 -> 2827.478624 | P28: =P$2*$F28*Main!$C$4*$E28+Main!$C$5*P$2*$F28 -> 3157.397993 | Q28: =Q$2*$F28*Main!$C$4*$E28+Main!$C$5*Q$2*$F28 -> 1975.80887 | R28: =R$2*$F28*Main!$C$4*$E28+Main!$C$5*R$2*$F28 -> 2297.709404 | S28: =S$2*$F28*Main!$C$4*$E28+Main!$C$5*S$2*$F28 -> 2619.609661 | T28: =T$2*$F28*Main!$C$4*$E28+Main!$C$5*T$2*$F28 -> 2941.510749 | U28: =U$2*$F28*Main!$C$4*$E28+Main!$C$5*U$2*$F28 -> 3263.409899 | V28: =V$2*$F28*Main!$C$4*$E28+Main!$C$5*V$2*$F28 -> 1646.12031 | W28: =W$2*$F28*Main!$C$4*$E28+Main!$C$5*W$2*$F28 -> 2027.294358 | X28: =X$2*$F28*Main!$C$4*$E28+Main!$C$5*X$2*$F28 -> 2408.468405 | Y28: =Y$2*$F28*Main!$C$4*$E28+Main!$C$5*Y$2*$F28 -> 2789.641345 | Z28: =Z$2*$F28*Main!$C$4*$E28+Main!$C$5*Z$2*$F28 -> 3170.817607 | AA28: =AA$2*$F28*Main!$C$4*$E28+Main!$C$5*AA$2*$F28 -> 1935.471984 | AB28: =AB$2*$F28*Main!$C$4*$E28+Main!$C$5*AB$2*$F28 -> 2282.324311 | AC28: =AC$2*$F28*Main!$C$4*$E28+Main!$C$5*AC$2*$F28 -> 2629.176083 | AD28: =AD$2*$F28*Main!$C$4*$E28+Main!$C$5*AD$2*$F28 -> 2976.027025 | AE28: =AE$2*$F28*Main!$C$4*$E28+Main!$C$5*AE$2*$F28 -> 3322.880735 | AF28: =AF$2*$F28*Main!$C$4*$E28+Main!$C$5*AF$2*$F28 -> 2073.555357 | AG28: =AG$2*$F28*Main!$C$4*$E28+Main!$C$5*AG$2*$F28 -> 2412.389954 | AH28: =AH$2*$F28*Main!$C$4*$E28+Main!$C$5*AH$2*$F28 -> 2751.224552 | AI28: =AI$2*$F28*Main!$C$4*$E28+Main!$C$5*AI$2*$F28 -> 3090.05915 | AJ28: =AJ$2*$F28*Main!$C$4*$E28+Main!$C$5*AJ$2*$F28 -> 3428.892641 | AK28: =AK$2*$F28*Main!$C$4*$E28+Main!$C$5*AK$2*$F28 -> 1764.066236 | AL28: =AL$2*$F28*Main!$C$4*$E28+Main!$C$5*AL$2*$F28 -> 2186.809537 | AM28: =AM$2*$F28*Main!$C$4*$E28+Main!$C$5*AM$2*$F28 -> 2609.552561 | AN28: =AN$2*$F28*Main!$C$4*$E28+Main!$C$5*AN$2*$F28 -> 3032.295862 | AO28: =AO$2*$F28*Main!$C$4*$E28+Main!$C$5*AO$2*$F28 -> 3455.039994 | AP28: =AP$2*$F28*Main!$C$4*$E28+Main!$C$5*AP$2*$F28 -> 2053.41791 | AQ28: =AQ$2*$F28*Main!$C$4*$E28+Main!$C$5*AQ$2*$F28 -> 2441.838936 | AR28: =AR$2*$F28*Main!$C$4*$E28+Main!$C$5*AR$2*$F28 -> 2830.259963 | AS28: =AS$2*$F28*Main!$C$4*$E28+Main!$C$5*AS$2*$F28 -> 3218.681542 | AT28: =AT$2*$F28*Main!$C$4*$E28+Main!$C$5*AT$2*$F28 -> 3607.103122 | AU28: =AU$2*$F28*Main!$C$4*$E28+Main!$C$5*AU$2*$F28 -> 2191.501005 | AV28: =AV$2*$F28*Main!$C$4*$E28+Main!$C$5*AV$2*$F28 -> 2571.905134 | AW28: =AW$2*$F28*Main!$C$4*$E28+Main!$C$5*AW$2*$F28 -> 2952.309539 | AX28: =AX$2*$F28*Main!$C$4*$E28+Main!$C$5*AX$2*$F28 -> 3332.713667 | AY28: =AY$2*$F28*Main!$C$4*$E28+Main!$C$5*AY$2*$F28 -> 3713.115028 | AZ28: =AZ$2*$F28*Main!$C$4*$E28+Main!$C$5*AZ$2*$F28 -> 3369.574018 | BA28: =BA$2*$F28*Main!$C$4*$E28+Main!$C$5*BA$2*$F28 -> 3821.09186 | BB28: =BB$2*$F28*Main!$C$4*$E28+Main!$C$5*BB$2*$F28 -> 4272.609703 | BC28: =BC$2*$F28*Main!$C$4*$E28+Main!$C$5*BC$2*$F28 -> 3487.314594 | BD28: =BD$2*$F28*Main!$C$4*$E28+Main!$C$5*BD$2*$F28 -> 3933.540975 | BE28: =BE$2*$F28*Main!$C$4*$E28+Main!$C$5*BE$2*$F28 -> 4379.767355 | BF28: =BF$2*$F28*Main!$C$4*$E28+Main!$C$5*BF$2*$F28 -> 3585.311817 | BG28: =BG$2*$F28*Main!$C$4*$E28+Main!$C$5*BG$2*$F28 -> 4040.416341 | BH28: =BH$2*$F28*Main!$C$4*$E28+Main!$C$5*BH$2*$F28 -> 4495.523633 | BI28: =BI$2*$F28*Main!$C$4*$E28+Main!$C$5*BI$2*$F28 -> 3551.991101 | BJ28: =BJ$2*$F28*Main!$C$4*$E28+Main!$C$5*BJ$2*$F28 -> 4039.915423 | BK28: =BK$2*$F28*Main!$C$4*$E28+Main!$C$5*BK$2*$F28 -> 4527.836979 | BL28: =BL$2*$F28*Main!$C$4*$E28+Main!$C$5*BL$2*$F28 -> 3669.731677 | BM28: =BM$2*$F28*Main!$C$4*$E28+Main!$C$5*BM$2*$F28 -> 4152.364538 | BN28: =BN$2*$F28*Main!$C$4*$E28+Main!$C$5*BN$2*$F28 -> 4634.99463 | BO28: =BO$2*$F28*Main!$C$4*$E28+Main!$C$5*BO$2*$F28 -> 3767.7289 | BP28: =BP$2*$F28*Main!$C$4*$E28+Main!$C$5*BP$2*$F28 -> 4259.239904 | BQ28: =BQ$2*$F28*Main!$C$4*$E28+Main!$C$5*BQ$2*$F28 -> 4750.750909 | BR28: =BR$2*$F28*Main!$C$4*$E28+Main!$C$5*BR$2*$F28 -> 3877.781358 | BS28: =BS$2*$F28*Main!$C$4*$E28+Main!$C$5*BS$2*$F28 -> 4480.039463 | BT28: =BT$2*$F28*Main!$C$4*$E28+Main!$C$5*BT$2*$F28 -> 5082.297569 | BU28: =BU$2*$F28*Main!$C$4*$E28+Main!$C$5*BU$2*$F28 -> 3995.524702 | BV28: =BV$2*$F28*Main!$C$4*$E28+Main!$C$5*BV$2*$F28 -> 4592.488577 | BW28: =BW$2*$F28*Main!$C$4*$E28+Main!$C$5*BW$2*$F28 -> 5189.45522 | BX28: =BX$2*$F28*Main!$C$4*$E28+Main!$C$5*BX$2*$F28 -> 4093.519157 | BY28: =BY$2*$F28*Main!$C$4*$E28+Main!$C$5*BY$2*$F28 -> 4699.366712 | BZ28: =BZ$2*$F28*Main!$C$4*$E28+Main!$C$5*BZ$2*$F28 -> 5305.211499 | CA28: =CA$2*$F28*Main!$C$4*$E28+Main!$C$5*CA$2*$F28 -> 3411.894648 | CB28: =CB$2*$F28*Main!$C$4*$E28+Main!$C$5*CB$2*$F28 -> 3849.306537 | CC28: =CC$2*$F28*Main!$C$4*$E28+Main!$C$5*CC$2*$F28 -> 4286.715657 | CD28: =CD$2*$F28*Main!$C$4*$E28+Main!$C$5*CD$2*$F28 -> 3492.356982 | CE28: =CE$2*$F28*Main!$C$4*$E28+Main!$C$5*CE$2*$F28 -> 3936.900721 | CF28: =CF$2*$F28*Main!$C$4*$E28+Main!$C$5*CF$2*$F28 -> 4381.447228 | CG28: =CG$2*$F28*Main!$C$4*$E28+Main!$C$5*CG$2*$F28 -> 3622.119584 | CH28: =CH$2*$F28*Main!$C$4*$E28+Main!$C$5*CH$2*$F28 -> 4064.955776 | CI28: =CI$2*$F28*Main!$C$4*$E28+Main!$C$5*CI$2*$F28 -> 4507.791967 | CJ28: =CJ$2*$F28*Main!$C$4*$E28+Main!$C$5*CJ$2*$F28 -> 3559.015019 | CK28: =CK$2*$F28*Main!$C$4*$E28+Main!$C$5*CK$2*$F28 -> 4044.598036 | CL28: =CL$2*$F28*Main!$C$4*$E28+Main!$C$5*CL$2*$F28 -> 4530.178285 | CM28: =CM$2*$F28*Main!$C$4*$E28+Main!$C$5*CM$2*$F28 -> 3639.477353 | CN28: =CN$2*$F28*Main!$C$4*$E28+Main!$C$5*CN$2*$F28 -> 4132.19222 | CO28: =CO$2*$F28*Main!$C$4*$E28+Main!$C$5*CO$2*$F28 -> 4624.909856 | CP28: =CP$2*$F28*Main!$C$4*$E28+Main!$C$5*CP$2*$F28 -> 3769.239955 | CQ28: =CQ$2*$F28*Main!$C$4*$E28+Main!$C$5*CQ$2*$F28 -> 4260.247275 | CR28: =CR$2*$F28*Main!$C$4*$E28+Main!$C$5*CR$2*$F28 -> 4751.254594 | CS28: =CS$2*$F28*Main!$C$4*$E28+Main!$C$5*CS$2*$F28 -> 4137.580546 | CT28: =CT$2*$F28*Main!$C$4*$E28+Main!$C$5*CT$2*$F28 -> 4653.240767 | CU28: =CU$2*$F28*Main!$C$4*$E28+Main!$C$5*CU$2*$F28 -> 5168.89822 | CV28: =CV$2*$F28*Main!$C$4*$E28+Main!$C$5*CV$2*$F28 -> 4218.042879 | CW28: =CW$2*$F28*Main!$C$4*$E28+Main!$C$5*CW$2*$F28 -> 4740.834952 | CX28: =CX$2*$F28*Main!$C$4*$E28+Main!$C$5*CX$2*$F28 -> 5263.629791 | CY28: =CY$2*$F28*Main!$C$4*$E28+Main!$C$5*CY$2*$F28 -> 4347.805482 | CZ28: =CZ$2*$F28*Main!$C$4*$E28+Main!$C$5*CZ$2*$F28 -> 4868.890006 | DA28: =DA$2*$F28*Main!$C$4*$E28+Main!$C$5*DA$2*$F28 -> 5389.97453 | DB28: =DB$2*$F28*Main!$C$4*$E28+Main!$C$5*DB$2*$F28 -> 1261.182185 | DC28: =DC$2*$F28*Main!$C$4*$E28+Main!$C$5*DC$2*$F28 -> 1691.324954 | DD28: =DD$2*$F28*Main!$C$4*$E28+Main!$C$5*DD$2*$F28 -> 2121.467723 | DE28: =DE$2*$F28*Main!$C$4*$E28+Main!$C$5*DE$2*$F28 -> 2551.610493 | DF28: =DF$2*$F28*Main!$C$4*$E28+Main!$C$5*DF$2*$F28 -> 2981.752986 | DG28: =DG$2*$F28*Main!$C$4*$E28+Main!$C$5*DG$2*$F28 -> 1496.422842 | DH28: =DH$2*$F28*Main!$C$4*$E28+Main!$C$5*DH$2*$F28 -> 1895.609726 | DI28: =DI$2*$F28*Main!$C$4*$E28+Main!$C$5*DI$2*$F28 -> 2294.796055 | DJ28: =DJ$2*$F28*Main!$C$4*$E28+Main!$C$5*DJ$2*$F28 -> 2693.983215 | DK28: =DK$2*$F28*Main!$C$4*$E28+Main!$C$5*DK$2*$F28 -> 3093.169822 | DL28: =DL$2*$F28*Main!$C$4*$E28+Main!$C$5*DL$2*$F28 -> 1620.697213 | DM28: =DM$2*$F28*Main!$C$4*$E28+Main!$C$5*DM$2*$F28 -> 2020.981964 | DN28: =DN$2*$F28*Main!$C$4*$E28+Main!$C$5*DN$2*$F28 -> 2421.266438 | DO28: =DO$2*$F28*Main!$C$4*$E28+Main!$C$5*DO$2*$F28 -> 2821.550636 | DP28: =DP$2*$F28*Main!$C$4*$E28+Main!$C$5*DP$2*$F28 -> 3221.836494 | DQ28: =DQ$2*$F28*Main!$C$4*$E28+Main!$C$5*DQ$2*$F28 -> 1329.067885 | DR28: =DR$2*$F28*Main!$C$4*$E28+Main!$C$5*DR$2*$F28 -> 1775.057367 | DS28: =DS$2*$F28*Main!$C$4*$E28+Main!$C$5*DS$2*$F28 -> 2221.046849 | DT28: =DT$2*$F28*Main!$C$4*$E28+Main!$C$5*DT$2*$F28 -> 2667.036332 | DU28: =DU$2*$F28*Main!$C$4*$E28+Main!$C$5*DU$2*$F28 -> 3113.026644 | DV28: =DV$2*$F28*Main!$C$4*$E28+Main!$C$5*DV$2*$F28 -> 1564.308266 | DW28: =DW$2*$F28*Main!$C$4*$E28+Main!$C$5*DW$2*$F28 -> 1979.341585 | DX28: =DX$2*$F28*Main!$C$4*$E28+Main!$C$5*DX$2*$F28 -> 2394.375181 | DY28: =DY$2*$F28*Main!$C$4*$E28+Main!$C$5*DY$2*$F28 -> 2809.409607 | DZ28: =DZ$2*$F28*Main!$C$4*$E28+Main!$C$5*DZ$2*$F28 -> 3224.44348 | EA28: =EA$2*$F28*Main!$C$4*$E28+Main!$C$5*EA$2*$F28 -> 1688.582914 | EB28: =EB$2*$F28*Main!$C$4*$E28+Main!$C$5*EB$2*$F28 -> 2104.714101 | EC28: =EC$2*$F28*Main!$C$4*$E28+Main!$C$5*EC$2*$F28 -> 2520.845564 | ED28: =ED$2*$F28*Main!$C$4*$E28+Main!$C$5*ED$2*$F28 -> 2936.977582 | EE28: =EE$2*$F28*Main!$C$4*$E28+Main!$C$5*EE$2*$F28 -> 3353.107385 | EF28: =EF$2*$F28*Main!$C$4*$E28+Main!$C$5*EF$2*$F28 -> 1642.686672 | EG28: =EG$2*$F28*Main!$C$4*$E28+Main!$C$5*EG$2*$F28 -> 2141.665502 | EH28: =EH$2*$F28*Main!$C$4*$E28+Main!$C$5*EH$2*$F28 -> 2640.644609 | EI28: =EI$2*$F28*Main!$C$4*$E28+Main!$C$5*EI$2*$F28 -> 3139.622332 | EJ28: =EJ$2*$F28*Main!$C$4*$E28+Main!$C$5*EJ$2*$F28 -> 3638.602822 | EK28: =EK$2*$F28*Main!$C$4*$E28+Main!$C$5*EK$2*$F28 -> 1877.927052 | EL28: =EL$2*$F28*Main!$C$4*$E28+Main!$C$5*EL$2*$F28 -> 2345.949996 | EM28: =EM$2*$F28*Main!$C$4*$E28+Main!$C$5*EM$2*$F28 -> 2813.973217 | EN28: =EN$2*$F28*Main!$C$4*$E28+Main!$C$5*EN$2*$F28 -> 3281.996438 | EO28: =EO$2*$F28*Main!$C$4*$E28+Main!$C$5*EO$2*$F28 -> 3750.019659 | EP28: =EP$2*$F28*Main!$C$4*$E28+Main!$C$5*EP$2*$F28 -> 2002.2017 | EQ28: =EQ$2*$F28*Main!$C$4*$E28+Main!$C$5*EQ$2*$F28 -> 2471.322512 | ER28: =ER$2*$F28*Main!$C$4*$E28+Main!$C$5*ER$2*$F28 -> 2940.442493 | ES28: =ES$2*$F28*Main!$C$4*$E28+Main!$C$5*ES$2*$F28 -> 3409.564412 | ET28: =ET$2*$F28*Main!$C$4*$E28+Main!$C$5*ET$2*$F28 -> 3878.686331 | EU28: =EU$2*$F28*Main!$C$4*$E28+Main!$C$5*EU$2*$F28 -> 4724.124778 | EV28: =EV$2*$F28*Main!$C$4*$E28+Main!$C$5*EV$2*$F28 -> 4825.990968 | EW28: =EW$2*$F28*Main!$C$4*$E28+Main!$C$5*EW$2*$F28 -> 4950.628158 | EX28: =EX$2*$F28*Main!$C$4*$E28+Main!$C$5*EX$2*$F28 -> 5015.761302 | EY28: =EY$2*$F28*Main!$C$4*$E28+Main!$C$5*EY$2*$F28 -> 5117.627491 | EZ28: =EZ$2*$F28*Main!$C$4*$E28+Main!$C$5*EZ$2*$F28 -> 5242.261913 | FA28: =FA$2*$F28*Main!$C$4*$E28+Main!$C$5*FA$2*$F28 -> 5684.555674 | FB28: =FB$2*$F28*Main!$C$4*$E28+Main!$C$5*FB$2*$F28 -> 5786.421863 | FC28: =FC$2*$F28*Main!$C$4*$E28+Main!$C$5*FC$2*$F28 -> 5911.059053 | FD28: =IF($D28<100,(FD$2*(1+Main!$C$3)*$E28*Main!$C$4)+(FD$2*(1+Main!$C$3)*Main!$C$5),(FD$2*$E28*Main!$C$4)+(FD$2*Main!$C$5)) -> 130.5614123 | FE28: =IF($D28<100,(FE$2*(1+Main!$C$3)*$E28*Main!$C$4)+(FE$2*(1+Main!$C$3)*Main!$C$5),(FE$2*$E28*Main!$C$4)+(FE$2*Main!$C$5)) -> 142.7252929 | FF28: =IF($D28<100,(FF$2*(1+Main!$C$3)*$E28*Main!$C$4)+(FF$2*(1+Main!$C$3)*Main!$C$5),(FF$2*$E28*Main!$C$4)+(FF$2*Main!$C$5)) -> 143.6994959 | FG28: =IF($D28<100,(FG$2*(1+Main!$C$3)*$E28*Main!$C$4)+(FG$2*(1+Main!$C$3)*Main!$C$5),(FG$2*$E28*Main!$C$4)+(FG$2*Main!$C$5)) -> 155.1258956 | FH28: =IF($D28<100,(FH$2*(1+Main!$C$3)*$E28*Main!$C$4)+(FH$2*(1+Main!$C$3)*Main!$C$5),(FH$2*$E28*Main!$C$4)+(FH$2*Main!$C$5)) -> 209.2806572 | FI28: =IF($D28<100,(FI$2*(1+Main!$C$3)*$E28*Main!$C$4)+(FI$2*(1+Main!$C$3)*Main!$C$5),(FI$2*$E28*Main!$C$4)+(FI$2*Main!$C$5)) -> 59.12592829
A29: AR | B29: 38220 | C29: (Cleveland County, Jefferson County, Lincoln County, Pine Bluff) | D29: 38220 | E29: 0.7779 | F29: =IF($D29<100,Main!$C$2*(1+Main!$C$3),Main!$C$2) -> 3039.64 | G29: =G$2*$F29*Main!$C$4*$E29+Main!$C$5*G$2*$F29 -> 1403.99622 | H29: =H$2*$F29*Main!$C$4*$E29+Main!$C$5*H$2*$F29 -> 1734.272826 | I29: =I$2*$F29*Main!$C$4*$E29+Main!$C$5*I$2*$F29 -> 2064.549683 | J29: =J$2*$F29*Main!$C$4*$E29+Main!$C$5*J$2*$F29 -> 2394.826038 | K29: =K$2*$F29*Main!$C$4*$E29+Main!$C$5*K$2*$F29 -> 2725.103899 | L29: =L$2*$F29*Main!$C$4*$E29+Main!$C$5*L$2*$F29 -> 1666.367691 | M29: =M$2*$F29*Main!$C$4*$E29+Main!$C$5*M$2*$F29 -> 1965.522637 | N29: =N$2*$F29*Main!$C$4*$E29+Main!$C$5*N$2*$F29 -> 2264.677582 | O29: =O$2*$F29*Main!$C$4*$E29+Main!$C$5*O$2*$F29 -> 2563.831775 | P29: =P$2*$F29*Main!$C$4*$E29+Main!$C$5*P$2*$F29 -> 2862.987976 | Q29: =Q$2*$F29*Main!$C$4*$E29+Main!$C$5*Q$2*$F29 -> 1791.575547 | R29: =R$2*$F29*Main!$C$4*$E29+Main!$C$5*R$2*$F29 -> 2083.460625 | S29: =S$2*$F29*Main!$C$4*$E29+Main!$C$5*S$2*$F29 -> 2375.345452 | T29: =T$2*$F29*Main!$C$4*$E29+Main!$C$5*T$2*$F29 -> 2667.231031 | U29: =U$2*$F29*Main!$C$4*$E29+Main!$C$5*U$2*$F29 -> 2959.114854 | V29: =V$2*$F29*Main!$C$4*$E29+Main!$C$5*V$2*$F29 -> 1492.628635 | W29: =W$2*$F29*Main!$C$4*$E29+Main!$C$5*W$2*$F29 -> 1838.260296 | X29: =X$2*$F29*Main!$C$4*$E29+Main!$C$5*X$2*$F29 -> 2183.891958 | Y29: =Y$2*$F29*Main!$C$4*$E29+Main!$C$5*Y$2*$F29 -> 2529.522615 | Z29: =Z$2*$F29*Main!$C$4*$E29+Main!$C$5*Z$2*$F29 -> 2875.156284 | AA29: =AA$2*$F29*Main!$C$4*$E29+Main!$C$5*AA$2*$F29 -> 1754.999855 | AB29: =AB$2*$F29*Main!$C$4*$E29+Main!$C$5*AB$2*$F29 -> 2069.510107 | AC29: =AC$2*$F29*Main!$C$4*$E29+Main!$C$5*AC$2*$F29 -> 2384.019857 | AD29: =AD$2*$F29*Main!$C$4*$E29+Main!$C$5*AD$2*$F29 -> 2698.528855 | AE29: =AE$2*$F29*Main!$C$4*$E29+Main!$C$5*AE$2*$F29 -> 3013.040361 | AF29: =AF$2*$F29*Main!$C$4*$E29+Main!$C$5*AF$2*$F29 -> 1880.207711 | AG29: =AG$2*$F29*Main!$C$4*$E29+Main!$C$5*AG$2*$F29 -> 2187.447844 | AH29: =AH$2*$F29*Main!$C$4*$E29+Main!$C$5*AH$2*$F29 -> 2494.687977 | AI29: =AI$2*$F29*Main!$C$4*$E29+Main!$C$5*AI$2*$F29 -> 2801.92811 | AJ29: =AJ$2*$F29*Main!$C$4*$E29+Main!$C$5*AJ$2*$F29 -> 3109.16724 | AK29: =AK$2*$F29*Main!$C$4*$E29+Main!$C$5*AK$2*$F29 -> 1599.576751 | AL29: =AL$2*$F29*Main!$C$4*$E29+Main!$C$5*AL$2*$F29 -> 1982.901561 | AM29: =AM$2*$F29*Main!$C$4*$E29+Main!$C$5*AM$2*$F29 -> 2366.226121 | AN29: =AN$2*$F29*Main!$C$4*$E29+Main!$C$5*AN$2*$F29 -> 2749.550932 | AO29: =AO$2*$F29*Main!$C$4*$E29+Main!$C$5*AO$2*$F29 -> 3132.876495 | AP29: =AP$2*$F29*Main!$C$4*$E29+Main!$C$5*AP$2*$F29 -> 1861.947971 | AQ29: =AQ$2*$F29*Main!$C$4*$E29+Main!$C$5*AQ$2*$F29 -> 2214.15087 | AR29: =AR$2*$F29*Main!$C$4*$E29+Main!$C$5*AR$2*$F29 -> 2566.35377 | AS29: =AS$2*$F29*Main!$C$4*$E29+Main!$C$5*AS$2*$F29 -> 2918.557171 | AT29: =AT$2*$F29*Main!$C$4*$E29+Main!$C$5*AT$2*$F29 -> 3270.760572 | AU29: =AU$2*$F29*Main!$C$4*$E29+Main!$C$5*AU$2*$F29 -> 1987.155576 | AV29: =AV$2*$F29*Main!$C$4*$E29+Main!$C$5*AV$2*$F29 -> 2332.089109 | AW29: =AW$2*$F29*Main!$C$4*$E29+Main!$C$5*AW$2*$F29 -> 2677.022893 | AX29: =AX$2*$F29*Main!$C$4*$E29+Main!$C$5*AX$2*$F29 -> 3021.956427 | AY29: =AY$2*$F29*Main!$C$4*$E29+Main!$C$5*AY$2*$F29 -> 3366.887451 | AZ29: =AZ$2*$F29*Main!$C$4*$E29+Main!$C$5*AZ$2*$F29 -> 3055.379752 | BA29: =BA$2*$F29*Main!$C$4*$E29+Main!$C$5*BA$2*$F29 -> 3464.796036 | BB29: =BB$2*$F29*Main!$C$4*$E29+Main!$C$5*BB$2*$F29 -> 3874.212321 | BC29: =BC$2*$F29*Main!$C$4*$E29+Main!$C$5*BC$2*$F29 -> 3162.141667 | BD29: =BD$2*$F29*Main!$C$4*$E29+Main!$C$5*BD$2*$F29 -> 3566.759888 | BE29: =BE$2*$F29*Main!$C$4*$E29+Main!$C$5*BE$2*$F29 -> 3971.37811 | BF29: =BF$2*$F29*Main!$C$4*$E29+Main!$C$5*BF$2*$F29 -> 3251.001186 | BG29: =BG$2*$F29*Main!$C$4*$E29+Main!$C$5*BG$2*$F29 -> 3663.669714 | BH29: =BH$2*$F29*Main!$C$4*$E29+Main!$C$5*BH$2*$F29 -> 4076.340751 | BI29: =BI$2*$F29*Main!$C$4*$E29+Main!$C$5*BI$2*$F29 -> 3220.787444 | BJ29: =BJ$2*$F29*Main!$C$4*$E29+Main!$C$5*BJ$2*$F29 -> 3663.215504 | BK29: =BK$2*$F29*Main!$C$4*$E29+Main!$C$5*BK$2*$F29 -> 4105.641055 | BL29: =BL$2*$F29*Main!$C$4*$E29+Main!$C$5*BL$2*$F29 -> 3327.549359 | BM29: =BM$2*$F29*Main!$C$4*$E29+Main!$C$5*BM$2*$F29 -> 3765.179356 | BN29: =BN$2*$F29*Main!$C$4*$E29+Main!$C$5*BN$2*$F29 -> 4202.806844 | BO29: =BO$2*$F29*Main!$C$4*$E29+Main!$C$5*BO$2*$F29 -> 3416.408878 | BP29: =BP$2*$F29*Main!$C$4*$E29+Main!$C$5*BP$2*$F29 -> 3862.089182 | BQ29: =BQ$2*$F29*Main!$C$4*$E29+Main!$C$5*BQ$2*$F29 -> 4307.769486 | BR29: =BR$2*$F29*Main!$C$4*$E29+Main!$C$5*BR$2*$F29 -> 3516.199549 | BS29: =BS$2*$F29*Main!$C$4*$E29+Main!$C$5*BS$2*$F29 -> 4062.300395 | BT29: =BT$2*$F29*Main!$C$4*$E29+Main!$C$5*BT$2*$F29 -> 4608.401241 | BU29: =BU$2*$F29*Main!$C$4*$E29+Main!$C$5*BU$2*$F29 -> 3622.963974 | BV29: =BV$2*$F29*Main!$C$4*$E29+Main!$C$5*BV$2*$F29 -> 4164.264247 | BW29: =BW$2*$F29*Main!$C$4*$E29+Main!$C$5*BW$2*$F29 -> 4705.56703 | BX29: =BX$2*$F29*Main!$C$4*$E29+Main!$C$5*BX$2*$F29 -> 3711.820984 | BY29: =BY$2*$F29*Main!$C$4*$E29+Main!$C$5*BY$2*$F29 -> 4261.176582 | BZ29: =BZ$2*$F29*Main!$C$4*$E29+Main!$C$5*BZ$2*$F29 -> 4810.529672 | CA29: =CA$2*$F29*Main!$C$4*$E29+Main!$C$5*CA$2*$F29 -> 3093.754216 | CB29: =CB$2*$F29*Main!$C$4*$E29+Main!$C$5*CB$2*$F29 -> 3490.379849 | CC29: =CC$2*$F29*Main!$C$4*$E29+Main!$C$5*CC$2*$F29 -> 3887.002972 | CD29: =CD$2*$F29*Main!$C$4*$E29+Main!$C$5*CD$2*$F29 -> 3166.713879 | CE29: =CE$2*$F29*Main!$C$4*$E29+Main!$C$5*CE$2*$F29 -> 3569.806357 | CF29: =CF$2*$F29*Main!$C$4*$E29+Main!$C$5*CF$2*$F29 -> 3972.901344 | CG29: =CG$2*$F29*Main!$C$4*$E29+Main!$C$5*CG$2*$F29 -> 3284.376832 | CH29: =CH$2*$F29*Main!$C$4*$E29+Main!$C$5*CH$2*$F29 -> 3685.920981 | CI29: =CI$2*$F29*Main!$C$4*$E29+Main!$C$5*CI$2*$F29 -> 4087.46513 | CJ29: =CJ$2*$F29*Main!$C$4*$E29+Main!$C$5*CJ$2*$F29 -> 3227.156421 | CK29: =CK$2*$F29*Main!$C$4*$E29+Main!$C$5*CK$2*$F29 -> 3667.461489 | CL29: =CL$2*$F29*Main!$C$4*$E29+Main!$C$5*CL$2*$F29 -> 4107.764047 | CM29: =CM$2*$F29*Main!$C$4*$E29+Main!$C$5*CM$2*$F29 -> 3300.116084 | CN29: =CN$2*$F29*Main!$C$4*$E29+Main!$C$5*CN$2*$F29 -> 3746.887997 | CO29: =CO$2*$F29*Main!$C$4*$E29+Main!$C$5*CO$2*$F29 -> 4193.662419 | CP29: =CP$2*$F29*Main!$C$4*$E29+Main!$C$5*CP$2*$F29 -> 3417.779037 | CQ29: =CQ$2*$F29*Main!$C$4*$E29+Main!$C$5*CQ$2*$F29 -> 3863.002621 | CR29: =CR$2*$F29*Main!$C$4*$E29+Main!$C$5*CR$2*$F29 -> 4308.226205 | CS29: =CS$2*$F29*Main!$C$4*$E29+Main!$C$5*CS$2*$F29 -> 3751.77389 | CT29: =CT$2*$F29*Main!$C$4*$E29+Main!$C$5*CT$2*$F29 -> 4219.351629 | CU29: =CU$2*$F29*Main!$C$4*$E29+Main!$C$5*CU$2*$F29 -> 4686.926858 | CV29: =CV$2*$F29*Main!$C$4*$E29+Main!$C$5*CV$2*$F29 -> 3824.733553 | CW29: =CW$2*$F29*Main!$C$4*$E29+Main!$C$5*CW$2*$F29 -> 4298.778137 | CX29: =CX$2*$F29*Main!$C$4*$E29+Main!$C$5*CX$2*$F29 -> 4772.82523 | CY29: =CY$2*$F29*Main!$C$4*$E29+Main!$C$5*CY$2*$F29 -> 3942.396506 | CZ29: =CZ$2*$F29*Main!$C$4*$E29+Main!$C$5*CZ$2*$F29 -> 4414.892761 | DA29: =DA$2*$F29*Main!$C$4*$E29+Main!$C$5*DA$2*$F29 -> 4887.389015 | DB29: =DB$2*$F29*Main!$C$4*$E29+Main!$C$5*DB$2*$F29 -> 1143.583874 | DC29: =DC$2*$F29*Main!$C$4*$E29+Main!$C$5*DC$2*$F29 -> 1533.618194 | DD29: =DD$2*$F29*Main!$C$4*$E29+Main!$C$5*DD$2*$F29 -> 1923.652513 | DE29: =DE$2*$F29*Main!$C$4*$E29+Main!$C$5*DE$2*$F29 -> 2313.686832 | DF29: =DF$2*$F29*Main!$C$4*$E29+Main!$C$5*DF$2*$F29 -> 2703.7209 | DG29: =DG$2*$F29*Main!$C$4*$E29+Main!$C$5*DG$2*$F29 -> 1356.889633 | DH29: =DH$2*$F29*Main!$C$4*$E29+Main!$C$5*DH$2*$F29 -> 1718.854532 | DI29: =DI$2*$F29*Main!$C$4*$E29+Main!$C$5*DI$2*$F29 -> 2080.81893 | DJ29: =DJ$2*$F29*Main!$C$4*$E29+Main!$C$5*DJ$2*$F29 -> 2442.78408 | DK29: =DK$2*$F29*Main!$C$4*$E29+Main!$C$5*DK$2*$F29 -> 2804.748729 | DL29: =DL$2*$F29*Main!$C$4*$E29+Main!$C$5*DL$2*$F29 -> 1469.576101 | DM29: =DM$2*$F29*Main!$C$4*$E29+Main!$C$5*DM$2*$F29 -> 1832.536498 | DN29: =DN$2*$F29*Main!$C$4*$E29+Main!$C$5*DN$2*$F29 -> 2195.496645 | DO29: =DO$2*$F29*Main!$C$4*$E29+Main!$C$5*DO$2*$F29 -> 2558.45654 | DP29: =DP$2*$F29*Main!$C$4*$E29+Main!$C$5*DP$2*$F29 -> 2921.417941 | DQ29: =DQ$2*$F29*Main!$C$4*$E29+Main!$C$5*DQ$2*$F29 -> 1205.139606 | DR29: =DR$2*$F29*Main!$C$4*$E29+Main!$C$5*DR$2*$F29 -> 1609.543019 | DS29: =DS$2*$F29*Main!$C$4*$E29+Main!$C$5*DS$2*$F29 -> 2013.946432 | DT29: =DT$2*$F29*Main!$C$4*$E29+Main!$C$5*DT$2*$F29 -> 2418.349845 | DU29: =DU$2*$F29*Main!$C$4*$E29+Main!$C$5*DU$2*$F29 -> 2822.754011 | DV29: =DV$2*$F29*Main!$C$4*$E29+Main!$C$5*DV$2*$F29 -> 1418.445114 | DW29: =DW$2*$F29*Main!$C$4*$E29+Main!$C$5*DW$2*$F29 -> 1794.778856 | DX29: =DX$2*$F29*Main!$C$4*$E29+Main!$C$5*DX$2*$F29 -> 2171.11285 | DY29: =DY$2*$F29*Main!$C$4*$E29+Main!$C$5*DY$2*$F29 -> 2547.447596 | DZ29: =DZ$2*$F29*Main!$C$4*$E29+Main!$C$5*DZ$2*$F29 -> 2923.78184 | EA29: =EA$2*$F29*Main!$C$4*$E29+Main!$C$5*EA$2*$F29 -> 1531.131833 | EB29: =EB$2*$F29*Main!$C$4*$E29+Main!$C$5*EB$2*$F29 -> 1908.461073 | EC29: =EC$2*$F29*Main!$C$4*$E29+Main!$C$5*EC$2*$F29 -> 2285.790564 | ED29: =ED$2*$F29*Main!$C$4*$E29+Main!$C$5*ED$2*$F29 -> 2663.120557 | EE29: =EE$2*$F29*Main!$C$4*$E29+Main!$C$5*EE$2*$F29 -> 3040.448542 | EF29: =EF$2*$F29*Main!$C$4*$E29+Main!$C$5*EF$2*$F29 -> 1489.515164 | EG29: =EG$2*$F29*Main!$C$4*$E29+Main!$C$5*EG$2*$F29 -> 1941.966959 | EH29: =EH$2*$F29*Main!$C$4*$E29+Main!$C$5*EH$2*$F29 -> 2394.419006 | EI29: =EI$2*$F29*Main!$C$4*$E29+Main!$C$5*EI$2*$F29 -> 2846.869797 | EJ29: =EJ$2*$F29*Main!$C$4*$E29+Main!$C$5*EJ$2*$F29 -> 3299.323099 | EK29: =EK$2*$F29*Main!$C$4*$E29+Main!$C$5*EK$2*$F29 -> 1702.820672 | EL29: =EL$2*$F29*Main!$C$4*$E29+Main!$C$5*EL$2*$F29 -> 2127.203047 | EM29: =EM$2*$F29*Main!$C$4*$E29+Main!$C$5*EM$2*$F29 -> 2551.585674 | EN29: =EN$2*$F29*Main!$C$4*$E29+Main!$C$5*EN$2*$F29 -> 2975.9683 | EO29: =EO$2*$F29*Main!$C$4*$E29+Main!$C$5*EO$2*$F29 -> 3400.350927 | EP29: =EP$2*$F29*Main!$C$4*$E29+Main!$C$5*EP$2*$F29 -> 1815.507391 | EQ29: =EQ$2*$F29*Main!$C$4*$E29+Main!$C$5*EQ$2*$F29 -> 2240.885264 | ER29: =ER$2*$F29*Main!$C$4*$E29+Main!$C$5*ER$2*$F29 -> 2666.262385 | ES29: =ES$2*$F29*Main!$C$4*$E29+Main!$C$5*ES$2*$F29 -> 3091.641262 | ET29: =ET$2*$F29*Main!$C$4*$E29+Main!$C$5*ET$2*$F29 -> 3517.020139 | EU29: =EU$2*$F29*Main!$C$4*$E29+Main!$C$5*EU$2*$F29 -> 4283.626096 | EV29: =EV$2*$F29*Main!$C$4*$E29+Main!$C$5*EV$2*$F29 -> 4375.993822 | EW29: =EW$2*$F29*Main!$C$4*$E29+Main!$C$5*EW$2*$F29 -> 4489.009279 | EX29: =EX$2*$F29*Main!$C$4*$E29+Main!$C$5*EX$2*$F29 -> 4548.069115 | EY29: =EY$2*$F29*Main!$C$4*$E29+Main!$C$5*EY$2*$F29 -> 4640.436842 | EZ29: =EZ$2*$F29*Main!$C$4*$E29+Main!$C$5*EZ$2*$F29 -> 4753.449789 | FA29: =FA$2*$F29*Main!$C$4*$E29+Main!$C$5*FA$2*$F29 -> 5154.502087 | FB29: =FB$2*$F29*Main!$C$4*$E29+Main!$C$5*FB$2*$F29 -> 5246.869813 | FC29: =FC$2*$F29*Main!$C$4*$E29+Main!$C$5*FC$2*$F29 -> 5359.88527 | FD29: =IF($D29<100,(FD$2*(1+Main!$C$3)*$E29*Main!$C$4)+(FD$2*(1+Main!$C$3)*Main!$C$5),(FD$2*$E29*Main!$C$4)+(FD$2*Main!$C$5)) -> 118.3872779 | FE29: =IF($D29<100,(FE$2*(1+Main!$C$3)*$E29*Main!$C$4)+(FE$2*(1+Main!$C$3)*Main!$C$5),(FE$2*$E29*Main!$C$4)+(FE$2*Main!$C$5)) -> 129.4169434 | FF29: =IF($D29<100,(FF$2*(1+Main!$C$3)*$E29*Main!$C$4)+(FF$2*(1+Main!$C$3)*Main!$C$5),(FF$2*$E29*Main!$C$4)+(FF$2*Main!$C$5)) -> 130.3003073 | FG29: =IF($D29<100,(FG$2*(1+Main!$C$3)*$E29*Main!$C$4)+(FG$2*(1+Main!$C$3)*Main!$C$5),(FG$2*$E29*Main!$C$4)+(FG$2*Main!$C$5)) -> 140.6612581 | FH29: =IF($D29<100,(FH$2*(1+Main!$C$3)*$E29*Main!$C$4)+(FH$2*(1+Main!$C$3)*Main!$C$5),(FH$2*$E29*Main!$C$4)+(FH$2*Main!$C$5)) -> 189.7663856 | FI29: =IF($D29<100,(FI$2*(1+Main!$C$3)*$E29*Main!$C$4)+(FI$2*(1+Main!$C$3)*Main!$C$5),(FI$2*$E29*Main!$C$4)+(FI$2*Main!$C$5)) -> 53.6127603
